Workbook

Sheet Contents
D3: Distribution Future Electricity Scenarios 2021 Data Workbook
D9: This workbook is an accompaniment to our 2021 DFES. It contains detailed datasets and interactive tools which allow our customers to understand what our Distribution Future Electricity Scenarios mean to them. Please refer to our main DFES report for a full description of our forecasts and scenarios. Our forecasts are not precise predictions of what the future is likely to be, but instead frame the uncertainty within our planning as explained in the main report.
B20: OUR DISTRIBUTION FUTURE ELECTRICITY SCENARIOS
B22: Best View | D22: Highest certainty scenario in 1 to 10 years horizon
B23: Steady Progression | D23: Slow decarbonisation not meeting net zero carbon, limited efficiencies
B24: System Transformation | D24: Hydrogen helps to meet net zero carbon beyond 2040, limited efficiencies
B25: Consumer Transformation | D25: Electric transport and heating and renewable DG to meet zero carbon, high efficiencies
B26: Leading the Way | D26: Net zero carbon before 2050, early electrification of transport and heating
B29: CONTENTS
B31: Section | C31: Tab | D31: Description
B32: USEFUL INFORMATION | C32: Geographical Information | D32: A tool to locate the nearest 10 substations to a specified location and maps showing supply areas
C33: LCT Profiles | D33: Charts which show electric vehicle (EV) and heat pump (HP) profiles adopted in the forecasts
B34: INTERACTIVE GRAPH TOOLS | C34: Single Primary Charts | D34: Charts which plot minimum/maximum demand, DG/storage capacity and EV/HP volumes for a single primary substation supply area
C35: Single Local Authority Charts | D35: Charts which plot number of EV, HP, energy from domestic, industrial and commercial (I&C), EV,HP, renewable generation, non-renewable generation and the installed capacity for renewable and non-renewable generation. All data is provided for each local authority
C36: Single BSP Charts | D36: Charts which plot minimum/maximum demand, DG/storage capacity and EV/HP volumes for a single bulk supply point (BSP) supply area
C37: Multiple Primary Charts | D37: Charts which plot aggregated minimum/maximum demand, DG/storage capacity and EV/HP volumes for multiple primary substation supply areas
C39: Multiple BSP Charts | D39: Charts which plot aggregated minimum/maximum demand, DG/storage capacity and EV/HP volumes for multiple BSP supply areas
B40: BSP AND PRIMARY SUBSTATION DATASETS | C40: Maximum Demand | D40: Data table containing maximum demand values for each BSP and primary substation
C41: Minimum Demand | D41: Data table containing minimum demand values for each BSP and primary substation
C42: Generation | D42: Data table containing DG capacity values for each BSP and primary substation
C43: Electric Vehicle uptake | D43: Data table containing the number of EVs per BSP and primary substation
C44: Heat Pump Uptake | D44: Data table containing the number of HPs per BSP and primary substation
C45: Energy Demand | D45: Data table containing the total energy demand (electricity consumption) per BSP and primary substation
C46: Storage | D46: Data table containing battery storage capacity values per BSP and primary substation
B47: LOCAL AUTHORITY AND COUNTY DATA | C47: Heat Pump Uptake | D47: Data table containing the number of HPs per Local Authority and County
C48: Energy Demand | D48: Data table containing the total energy demand (electricity consumption) per Local Authority and County
C49: Wind Uptake | D49: Data table containing the wind installed capacity per Local Authority and County
C50: PV Uptake | D50: Data table containing the PV installed capacity per Local Authority and County
C51: PV Energy | D51: Data table containing the PV energy generated per Local Authority and County
C52: Wind Energy | D52: Data table containing the wind energy generated per Local Authority and County
C53: I&C Energy | D53: Data table containing the energy demand from Industrial and Commercial (I&C) customers per Local Authority and County
C54: Domestic Energy | D54: Data table containing the domestic energy demand per Local Authority and County
C55: HP Energy | D55: Data table containing the energy demand from heat pumps per Local Authority and County
C56: EV Energy | D56: Data table containing the energy demand from EVs per Local Authority and County
C57: EV Uptake | D57: Data table containing the number of EVs per Local Authority and County
C58: Battey Storage | D58: Data table containing the total battery storage installed capacity per Local Authority and County
C59: Generation Uptake | D59: Data table containing the total installed capacity of distributed generation per Local Authority and County
C60: Carbon Savings | D60: Data table containing the total carbon savings per Local Authority and County due to low carbon technologies and renewable generation
B61: ENTIRE ENWL NETWORK DATASETS | C61: LCT Seasonal Demand | D61: Data table containing the demand in winter and summer day for low carbon technologies and air conditioning
C62: Annual Energy Demand & Generation | D62: Data table containing energy for demand and distributed generation for the entire ENWL network broken down by technology
C63: DG and Storage Breakdown | D63: Data table containing DG and storage capacity values for the entire ENWL network with breakdown per technology
C64: Total Transport | D64: Data table containing the number of EV per type (cars, vans, HDVs) for the entire ENWL area

Sheet Geographical Information
H2: Geographical Information
E6: This worksheet contains geographical information to allow users to better understand the locations of our substations. Maps are provided for each of our supply regions and show the BSP and primary supply areas on our network. A helpful tool is also provided which allows you to locate the ten nearest BSP and primary substations by entering co-ordinates.
C14: Locate the nearest BSP and primary substations | L14: Maps
B16: To locate the nearest BSP or primary substations, enter the co-ordinates of your point of interest in the grey boxes below. If you are unsure of the co-ordinates, there are many tools available online that will allow you to obtain co-ordinates from a post code. | L16: The maps below show the BSP and primary supply areas on our network. To open a map, double click on the pdf icon for the area you wish to view below.
B20: Easting | D20: 381054 | F20: Northing | H20: 396173 | L20: Primary Supply Areas
B24: 10 NEAREST PRIMARY SUBSTATIONS | F24: 10 NEAREST BSP SUBSTATIONS
B25: No | C25: Distance (km) | D25: Primary Substation | F25: No | G25: Distance (km) | H25: BSP Substation
B27: 1 | C27: =IF(OR(ISBLANK($D$20),ISBLANK($H$20)),"-",'Substation Location'!F382) -> 0.01414213562 | D27: =IF(OR(ISBLANK($D$20),ISBLANK($H$20)),"",'Substation Location'!E382) -> CHESTER RD T13 | F27: 1 | G27: =IF(OR(ISBLANK($D$20),ISBLANK($H$20)),"-",'Substation Location'!M382) -> 1.453611365 | H27: =IF(OR(ISBLANK($D$20),ISBLANK($H$20)),"",'Substation Location'!L382) -> STRETFORD
B28: 2 | C28: =IF(OR(ISBLANK($D$20),ISBLANK($H$20)),"-",'Substation Location'!F383) -> 0.02529822128 | D28: =IF(OR(ISBLANK($D$20),ISBLANK($H$20)),"",'Substation Location'!E383) -> CHESTER RD T11 & T12 | F28: 2 | G28: =IF(OR(ISBLANK($D$20),ISBLANK($H$20)),"-",'Substation Location'!M383) -> 3.164966035 | H28: =IF(OR(ISBLANK($D$20),ISBLANK($H$20)),"",'Substation Location'!L383) -> FREDERICK RD | L28: BSP supply areas
B29: 3 | C29: =IF(OR(ISBLANK($D$20),ISBLANK($H$20)),"-",'Substation Location'!F384) -> 0.5084132178 | D29: =IF(OR(ISBLANK($D$20),ISBLANK($H$20)),"",'Substation Location'!E384) -> TRAFFORD | F29: 3 | G29: =IF(OR(ISBLANK($D$20),ISBLANK($H$20)),"-",'Substation Location'!M384) -> 3.441065533 | H29: =IF(OR(ISBLANK($D$20),ISBLANK($H$20)),"",'Substation Location'!L384) -> WEST DIDSBURY
B30: 4 | C30: =IF(OR(ISBLANK($D$20),ISBLANK($H$20)),"-",'Substation Location'!F385) -> 1.477871442 | D30: =IF(OR(ISBLANK($D$20),ISBLANK($H$20)),"",'Substation Location'!E385) -> LONGFORD BRIDGE | F30: 4 | G30: =IF(OR(ISBLANK($D$20),ISBLANK($H$20)),"-",'Substation Location'!M385) -> 3.523325844 | H30: =IF(OR(ISBLANK($D$20),ISBLANK($H$20)),"",'Substation Location'!L385) -> BLOOM ST
B31: 5 | C31: =IF(OR(ISBLANK($D$20),ISBLANK($H$20)),"-",'Substation Location'!F386) -> 1.558308057 | D31: =IF(OR(ISBLANK($D$20),ISBLANK($H$20)),"",'Substation Location'!E386) -> SALFORD QUAYS | F31: 5 | G31: =IF(OR(ISBLANK($D$20),ISBLANK($H$20)),"-",'Substation Location'!M386) -> 4.023001989 | H31: =IF(OR(ISBLANK($D$20),ISBLANK($H$20)),"",'Substation Location'!L386) -> SALE
B32: 6 | C32: =IF(OR(ISBLANK($D$20),ISBLANK($H$20)),"-",'Substation Location'!F387) -> 1.57481745 | D32: =IF(OR(ISBLANK($D$20),ISBLANK($H$20)),"",'Substation Location'!E387) -> ROBERT HALL ST | F32: 6 | G32: =IF(OR(ISBLANK($D$20),ISBLANK($H$20)),"-",'Substation Location'!M387) -> 4.411078893 | H32: =IF(OR(ISBLANK($D$20),ISBLANK($H$20)),"",'Substation Location'!L387) -> BARTON
B33: 7 | C33: =IF(OR(ISBLANK($D$20),ISBLANK($H$20)),"-",'Substation Location'!F388) -> 1.9993679 | D33: =IF(OR(ISBLANK($D$20),ISBLANK($H$20)),"",'Substation Location'!E388) -> MOSLEY RD | F33: 7 | G33: =IF(OR(ISBLANK($D$20),ISBLANK($H$20)),"-",'Substation Location'!M388) -> 4.540715032 | H33: =IF(OR(ISBLANK($D$20),ISBLANK($H$20)),"",'Substation Location'!L388) -> LONGSIGHT
B34: 8 | C34: =IF(OR(ISBLANK($D$20),ISBLANK($H$20)),"-",'Substation Location'!F389) -> 2.281320013 | D34: =IF(OR(ISBLANK($D$20),ISBLANK($H$20)),"",'Substation Location'!E389) -> BARTON DOCK RD | F34: 8 | G34: =IF(OR(ISBLANK($D$20),ISBLANK($H$20)),"-",'Substation Location'!M389) -> 4.668485086 | H34: =IF(OR(ISBLANK($D$20),ISBLANK($H$20)),"",'Substation Location'!L389) -> RED BANK
B35: 9 | C35: =IF(OR(ISBLANK($D$20),ISBLANK($H$20)),"-",'Substation Location'!F390) -> 2.414113709 | D35: =IF(OR(ISBLANK($D$20),ISBLANK($H$20)),"",'Substation Location'!E390) -> WHALLEY RANGE | F35: 9 | G35: =IF(OR(ISBLANK($D$20),ISBLANK($H$20)),"-",'Substation Location'!M390) -> 5.702249118 | H35: =IF(OR(ISBLANK($D$20),ISBLANK($H$20)),"",'Substation Location'!L390) -> AGECROFT
B36: 10 | C36: =IF(OR(ISBLANK($D$20),ISBLANK($H$20)),"-",'Substation Location'!F391) -> 2.445201423 | D36: =IF(OR(ISBLANK($D$20),ISBLANK($H$20)),"",'Substation Location'!E391) -> CHORLTON | F36: 10 | G36: =IF(OR(ISBLANK($D$20),ISBLANK($H$20)),"-",'Substation Location'!M391) -> 6.7567783 | H36: =IF(OR(ISBLANK($D$20),ISBLANK($H$20)),"",'Substation Location'!L391) -> STUART ST

Sheet LCT Profiles
A8: EV Charging Demand Profiles
F11: 00:00:00 | G11: 00:30:00 | H11: 01:00:00 | I11: 01:30:00 | J11: 02:00:00 | K11: 02:30:00 | L11: 03:00:00 | M11: 03:30:00 | N11: 04:00:00 | O11: 04:30:00 | P11: 05:00:00 | Q11: 05:30:00 | R11: 06:00:00 | S11: 06:30:00 | T11: 07:00:00 | U11: 07:30:00 | V11: 08:00:00 | W11: 08:30:00 | X11: 09:00:00 | Y11: 09:30:00 | Z11: 10:00:00 | AA11: 10:30:00 | AB11: 11:00:00 | AC11: 11:30:00 | AD11: 12:00:00 | AE11: 12:30:00 | AF11: 13:00:00 | AG11: 13:30:00 | AH11: 14:00:00 | AI11: 14:30:00 | AJ11: 15:00:00 | AK11: 15:30:00 | AL11: 16:00:00 | AM11: 16:30:00 | AN11: 17:00:00 | AO11: 17:30:00 | AP11: 18:00:00 | AQ11: 18:30:00 | AR11: 19:00:00 | AS11: 19:30:00 | AT11: 20:00:00 | AU11: 20:30:00 | AV11: 21:00:00 | AW11: 21:30:00 | AX11: 22:00:00 | AY11: 22:30:00 | AZ11: 23:00:00 | BA11: 23:30:00
E12: 2021 | F12: 42.04775003 | G12: 37.55599749 | H12: 32.31512987 | I12: 27.29263261 | J12: 23.41225955 | K12: 19.66316528 | L12: 16.8741505 | M12: 13.95352935 | N12: 11.8345013 | O12: 9.739884929 | P12: 8.15859059 | Q12: 7.274593488 | R12: 7.028571512 | S12: 6.810355419 | T12: 7.726791568 | U12: 8.798147888 | V12: 10.22857759 | W12: 12.50404469 | X12: 14.93182833 | Y12: 16.95118674 | Z12: 18.03851228 | AA12: 19.31228723 | AB12: 20.69000146 | AC12: 22.16924174 | AD12: 23.79116935 | AE12: 25.17328163 | AF12: 26.26227602 | AG12: 27.2792645 | AH12: 27.83144367 | AI12: 28.93045029 | AJ12: 31.23239118 | AK12: 34.94535049 | AL12: 40.91862483 | AM12: 47.40431537 | AN12: 54.99364642 | AO12: 62.5434455 | AP12: 69.91861823 | AQ12: 75.094652 | AR12: 76.57180227 | AS12: 76.46487261 | AT12: 74.07625785 | AU12: 71.49117467 | AV12: 67.85361695 | AW12: 64.10084058 | AX12: 60.30080907 | AY12: 56.02398273 | AZ12: 51.20041702 | BA12: 46.21114923
E13: 2030 | F13: 39.03801123 | G13: 38.17095737 | H13: 34.40442637 | I13: 30.83184828 | J13: 28.35755698 | K13: 25.72799008 | L13: 23.09842317 | M13: 19.8016209 | N13: 16.90020187 | O13: 13.84265967 | P13: 11.00477483 | Q13: 9.728780501 | R13: 8.979963829 | S13: 8.038387863 | T13: 8.678344878 | U13: 9.416540908 | V13: 9.583627805 | W13: 11.71018137 | X13: 13.22169433 | Y13: 14.13925332 | Z13: 14.9250179 | AA13: 16.09036804 | AB13: 17.03606083 | AC13: 18.18592296 | AD13: 19.42364805 | AE13: 20.18936655 | AF13: 20.91115357 | AG13: 21.60743829 | AH13: 21.90833977 | AI13: 23.07122805 | AJ13: 24.62949958 | AK13: 28.74479511 | AL13: 33.38726829 | AM13: 38.77544785 | AN13: 44.16362741 | AO13: 49.54002986 | AP13: 54.9164323 | AQ13: 56.52680112 | AR13: 57.96144405 | AS13: 56.53934885 | AT13: 55.24904806 | AU13: 53.84523929 | AV13: 51.6945955 | AW13: 49.2735547 | AX13: 46.8525139 | AY13: 43.67659987 | AZ13: 41.42324674 | BA13: 38.86875336
E14: 2050 | F14: 45.97925094 | G14: 50.97209356 | H14: 48.99106936 | I14: 45.24395749 | J14: 41.72006704 | K14: 36.42792437 | L14: 32.30655565 | M14: 27.58656702 | N14: 23.87201801 | O14: 19.27166988 | P14: 15.04981269 | Q14: 12.76670712 | R14: 11.30751419 | S14: 9.217296193 | T14: 9.242423465 | U14: 9.010456042 | V14: 8.02727269 | W14: 9.413766915 | X14: 10.06763675 | Y14: 10.72173094 | Z14: 11.23050487 | AA14: 12.06361919 | AB14: 12.59588041 | AC14: 13.30134645 | AD14: 14.12882953 | AE14: 14.55864123 | AF14: 14.93582336 | AG14: 15.56893375 | AH14: 15.6194517 | AI14: 15.58985857 | AJ14: 15.89706413 | AK14: 15.14620888 | AL14: 15.29469201 | AM14: 18.54743972 | AN14: 21.74744693 | AO14: 25.10221191 | AP14: 28.39654265 | AQ14: 33.16813859 | AR14: 37.65441758 | AS14: 37.44623987 | AT14: 37.20459571 | AU14: 37.47277065 | AV14: 37.13077556 | AW14: 36.6344665 | AX14: 36.34629333 | AY14: 35.90778512 | AZ14: 37.47139445 | BA14: 38.24495943
A35: Further References
A36: EV Charging Behaviour Study - Element Energy
A37: REFLECT NIA project documentation - Electricity North West
A39: Heat Pump Demand Profiles
F43: 00:00:00 | G43: 00:30:00 | H43: 01:00:00 | I43: 01:30:00 | J43: 02:00:00 | K43: 02:30:00 | L43: 03:00:00 | M43: 03:30:00 | N43: 04:00:00 | O43: 04:30:00 | P43: 05:00:00 | Q43: 05:30:00 | R43: 06:00:00 | S43: 06:30:00 | T43: 07:00:00 | U43: 07:30:00 | V43: 08:00:00 | W43: 08:30:00 | X43: 09:00:00 | Y43: 09:30:00 | Z43: 10:00:00 | AA43: 10:30:00 | AB43: 11:00:00 | AC43: 11:30:00 | AD43: 12:00:00 | AE43: 12:30:00 | AF43: 13:00:00 | AG43: 13:30:00 | AH43: 14:00:00 | AI43: 14:30:00 | AJ43: 15:00:00 | AK43: 15:30:00 | AL43: 16:00:00 | AM43: 16:30:00 | AN43: 17:00:00 | AO43: 17:30:00 | AP43: 18:00:00 | AQ43: 18:30:00 | AR43: 19:00:00 | AS43: 19:30:00 | AT43: 20:00:00 | AU43: 20:30:00 | AV43: 21:00:00 | AW43: 21:30:00 | AX43: 22:00:00 | AY43: 22:30:00 | AZ43: 23:00:00 | BA43: 23:30:00
E44: 2021 | F44: 79.51694841 | G44: 79.51694841 | H44: 79.51694841 | I44: 79.6216413 | J44: 79.83543798 | K44: 79.98193469 | L44: 82.74548968 | M44: 80.60814865 | N44: 81.98386585 | O44: 83.70742049 | P44: 94.53277372 | Q44: 105.3671838 | R44: 116.1133396 | S44: 124.4448916 | T44: 123.5671187 | U44: 123.3386241 | V44: 117.0466751 | W44: 107.725998 | X44: 99.24087477 | Y44: 89.7297755 | Z44: 86.6032951 | AA44: 87.08811508 | AB44: 86.30140862 | AC44: 85.78769735 | AD44: 85.21677885 | AE44: 85.10175664 | AF44: 85.03026281 | AG44: 85.6584705 | AH44: 92.94947628 | AI44: 101.2880871 | AJ44: 109.384904 | AK44: 116.9683656 | AL44: 117.5184062 | AM44: 119.7631893 | AN44: 122.3443761 | AO44: 122.4697118 | AP44: 119.8462692 | AQ44: 114.6974886 | AR44: 111.6069603 | AS44: 110.1003907 | AT44: 112.194979 | AU44: 114.5772861 | AV44: 113.5491359 | AW44: 111.8323187 | AX44: 103.7614254 | AY44: 94.78270142 | AZ44: 86.93466103 | BA44: 79.51694841
E45: 2030 | F45: 57.85474275 | G45: 57.85474275 | H45: 57.85474275 | I45: 58.3415255 | J45: 58.35210899 | K45: 58.5233739 | L45: 59.68784727 | M45: 59.05494217 | N45: 60.02100049 | O45: 61.53134584 | P45: 68.77778549 | Q45: 73.23189925 | R45: 79.77900179 | S45: 85.60358276 | T45: 85.39994014 | U45: 88.46656949 | V45: 84.18950911 | W45: 77.63368737 | X45: 71.6651069 | Y45: 65.18280154 | Z45: 63.60983586 | AA45: 63.79896907 | AB45: 63.40882346 | AC45: 62.78914059 | AD45: 62.620141 | AE45: 62.73635887 | AF45: 62.55330898 | AG45: 63.30516485 | AH45: 68.99647977 | AI45: 75.41262988 | AJ45: 82.03740202 | AK45: 87.61717892 | AL45: 87.86668166 | AM45: 88.7904206 | AN45: 89.65260044 | AO45: 88.8054289 | AP45: 87.15563624 | AQ45: 84.03839431 | AR45: 82.37685347 | AS45: 81.16269256 | AT45: 81.55625851 | AU45: 82.5370357 | AV45: 81.63886866 | AW45: 81.44351938 | AX45: 75.72261222 | AY45: 69.40380751 | AZ45: 63.38732239 | BA45: 57.85474275
E46: 2050 | F46: 56.40952528 | G46: 56.40952528 | H46: 56.40952528 | I46: 56.86093284 | J46: 56.87791567 | K46: 57.04094203 | L46: 58.20610318 | M46: 57.55472368 | N46: 58.49306709 | O46: 59.946859 | P46: 67.07915226 | Q46: 71.64190954 | R46: 78.12524857 | S46: 83.80813927 | T46: 83.52876232 | U46: 86.35058139 | V46: 82.14105316 | W46: 75.75149955 | X46: 69.94385202 | Y46: 63.55651833 | Z46: 61.97136096 | AA46: 62.16467509 | AB46: 61.77534677 | AC46: 61.18569708 | AD46: 61.00954757 | AE46: 61.11232819 | AF46: 60.94204759 | AG46: 61.65518509 | AH46: 67.16543176 | AI46: 73.3729509 | AJ46: 79.76246495 | AK46: 85.17634305 | AL46: 85.4265257 | AM46: 86.43853231 | AN46: 87.39706066 | AO46: 86.61183384 | AP46: 84.99894493 | AQ46: 81.89919709 | AR46: 80.27400829 | AS46: 79.10737983 | AT46: 79.53666009 | AU46: 80.50545102 | AV46: 79.6503507 | AW46: 79.45286162 | AX46: 73.89096435 | AY46: 67.73146922 | AZ46: 61.81153687 | BA46: 56.40952528
A68: Further References
A69: Demand Scenario NIA project documentation - Electricity North West

Sheet INTERACTIVE GRAPH TOOLS >>>>
B3: Interactive Graph Tools
B11: CONTENTS
B13: Section | C13: Tab | D13: Short Description
B14: CHARTS | C14: Single Primary Charts | D14: Charts which plot minimum/maximum demand, DG/storage capacity and EV/HP volumes for a single primary substation supply area
C15: Single BSP Charts | D15: Charts which plot minimum/maximum demand, DG/storage capacity and EV/HP volumes for a single BSP supply area
C16: Multiple Primary Charts | D16: Charts which plot aggregated minimum/maximum demand, DG/storage capacity and EV/HP volumes for multiple primary substation supply areas
C18: Multiple BSP Charts | D18: Charts which plot aggregated minimum/maximum demand, DG/storage capacity and EV/HP volumes for multiple BSP supply areas
C19: Single Local Authority Charts | D19: Charts which plot number of EV, HP, energy from domestic, industrial and commercial (I&C), EV,HP, renewable generation, non-renewable generation and the installed capacity for renewable and non-renewable generation. All data is provided for each local authority

Sheet Single BSP charts
B2: Bulk Supply Point Forecast Charts
B5: These charts show the forecasts for a single bulk supply point (BSP). You can choose a BSP to view by using the drop down box below. If you would like to understand more about which BSPs are located in the area you are interested in, head to our geographical information worksheet. This charts plot our DFES forecast charts for minimum demand, maximum demand, installed distributed generation capacity, installed storage capacity, uptake of electric vehicles and uptake of heat pumps.
B8: Select BSP | D8: Hartshead-Heyrod
... 44 more rows

Sheet Single Primary charts
B3: Primary Substation Forecast Charts
B7: These charts show the forecasts for a single primary substation. You can choose a primary substation to view by using the drop down box below. If you would like to understand more about which primary substations are located in the area you are interested in, head to our geographical information worksheet. The charts plot our DFES charts for minimum and maximum demand, installed distributed generation capacity, installed storage capacity, uptake of electric vehicles and uptake of heat pumps.
B11: Select Primary Substation | D11: Thornton
... 68 more rows

Sheet Multiple BSP charts
D2: Multiple Bulk Supply Points Forecast Charts
B4: These charts aggregate the forecasts for multiple bulk supply points (BSP). You can choose multiple BSPs to view by using the drop down boxes below. You can also choose whether to include a BSP in the charts by selecting "yes" or "no" in the box to the right of the BSP name. If you would like to understand more about which primary substations are located in the area you are interested in, head to our geographical information worksheet. The charts plot our DFES charts for minimum demand, maximum demand, installed distributed generation capacity, installed storage capacity, uptake of electric vehicles and uptake of heat pumps.
D7: Select BSP | E7: BSP Included
D8: Select a BSP | E8: Yes
B9: =IF(AND(COUNTIF(D8:D17,D9)>1,D9<>"Select a BSP"),"Duplicate BSP entered","") ->  | D9: Select a BSP | E9: No
B10: =IF(AND(COUNTIF(D8:D17,D10)>1,D10<>"Select a BSP"),"Duplicate BSP entered","") ->  | D10: Select a BSP | E10: No
B11: =IF(AND(COUNTIF(D8:D17,D11)>1,D11<>"Select a BSP"),"Duplicate BSP entered","") ->  | D11: Select a BSP | E11: No
B12: =IF(AND(COUNTIF(D8:D17,D12)>1,D12<>"Select a BSP"),"Duplicate BSP entered","") ->  | D12: Select a BSP | E12: No
B13: =IF(AND(COUNTIF(D8:D17,D13)>1,D13<>"Select a BSP"),"Duplicate BSP entered","") ->  | D13: Select a BSP | E13: No
B14: =IF(AND(COUNTIF(D8:D17,D14)>1,D14<>"Select a BSP"),"Duplicate BSP entered","") ->  | D14: Select a BSP | E14: No
B15: =IF(AND(COUNTIF(D8:D17,D15)>1,D15<>"Select a BSP"),"Duplicate BSP entered","") ->  | D15: Select a BSP | E15: No
B16: =IF(AND(COUNTIF(D8:D17,D16)>1,D16<>"Select a BSP"),"Duplicate BSP entered","") ->  | D16: Select a BSP | E16: No
B17: =IF(AND(COUNTIF(D8:D17,D17)>1,D17<>"Select a BSP"),"Duplicate BSP entered","") ->  | D17: Select a BSP | E17: No
... 41 more rows

Sheet Multiple Primary charts
D2: Multiple Primary Substation Forecast Charts
B4: These charts aggregate the forecasts for multiple primary substations. You can choose multiple primary substations to view by using the drop down boxes below. You can also choose whether to include a primary substation in the charts by selecting "yes" or "no" in the box to the right of the primary name. If you would like to understand more about which primary substations are located in the area you are interested in, head to our geographical information worksheet. The charts plot our DFES charts for minimum demand, maximum demand, installed distributed generation capacity, installed storage capacity, uptake of electric vehicles and uptake of heat pumps.
D7: Select Primary Substation | E7: Primary Included | F7: #
D8: Select a Primary | E8: No
B9: =IF(AND(COUNTIF($D$8:$D$17,D9)>1,D9<>"Select a Primary"),"Duplicate primary entered","") ->  | D9: Select a Primary | E9: No
B10: =IF(AND(COUNTIF($D$8:$D$17,D10)>1,D10<>"Select a Primary"),"Duplicate primary entered","") ->  | D10: Select a Primary | E10: No
D11: Select a Primary | E11: No
D12: Select a Primary | E12: No
D13: Select a Primary | E13: No
D14: Select a Primary | E14: No
D15: Select a Primary | E15: No
D16: Select a Primary | E16: No
B17: =IF(AND(COUNTIF($D$8:$D$17,D17)>1,D17<>"Select a Primary"),"Duplicate primary entered","") ->  | D17: Select a Primary | E17: No
... 66 more rows

Sheet Local Authority charts
B3: Local Authority Forecast Charts
B7: These charts show the forecasts for a single Local Authority. You can choose a Local Authority to view by using the drop down box below.
B11: Select Local Authority | D11: Staffordshire Moorlands
... 68 more rows

Sheet LA AND COUNTY DATASET >>>
B3: LA and County Datasets
B11: CONTENTS
B13: Section | C13: Tab | D13: Short Description
B14: LOCAL AUTHORITY AND COUNTY DATA | C14: Heat Pump Uptake | D14: Data table containing the number of HPs per Local Authority and County
C15: Energy Demand | D15: Data table containing the total energy demand (electricity consumption) per Local Authority and County
C16: Wind Uptake | D16: Data table containing the wind installed capacity per Local Authority and County
C17: PV Uptake | D17: Data table containing the PV installed capacity per Local Authority and County
C18: PV Energy | D18: Data table containing the PV energy generated per Local Authority and County
C19: Wind Energy | D19: Data table containing the wind energy generated per Local Authority and County
C20: I&C Energy | D20: Data table containing the energy demand from Industrial and Commercial (I&C) customers per Local Authority and County
C21: Domestic Energy | D21: Data table containing the domestic energy demand per Local Authority and County
C22: HP Energy | D22: Data table containing the energy demand from heat pumps per Local Authority and County
C23: EV Energy | D23: Data table containing the energy demand from EVs per Local Authority and County
C24: EV Uptake | D24: Data table containing the number of EVs per Local Authority and County
C25: Battey Storage | D25: Data table containing the total battery storage installed capacity per Local Authority and County
C26: Generation Uptake | D26: Data table containing the total installed capacity of distributed generation per Local Authority and County
C27: Carbon Savings | D27: Data table containing the total carbon savings per Local Authority and County due to low carbon technologies and renewable generation

Sheet LA Energy Demand
B8: * includes electricity consumption from all the demand types (i.e., domestic, I&C, all heat pumps types, all air conditioning types, all EV types, large industry and connections)
C10: Best View | AI10: Steady Progression | BO10: System Transformation | CU10: Consumer Transformation | EA10: Leading the Way
A11: County | B11: Local Authority List | C11: (Years as financial years, ie 2051 is FY2050/51) | D11: 2021 | E11: 2022 | F11: 2023 | G11: 2024 | H11: 2025 | I11: 2026 | J11: 2027 | K11: 2028 | L11: 2029 | M11: 2030 | N11: 2031 | O11: 2032 | P11: 2033 | Q11: 2034 | R11: 2035 | S11: 2036 | T11: 2037 | U11: 2038 | V11: 2039 | W11: 2040 | X11: 2041 | Y11: 2042 | Z11: 2043 | AA11: 2044 | AB11: 2045 | AC11: 2046 | AD11: 2047 | AE11: 2048 | AF11: 2049 | AG11: 2050 | AH11: 2051 | AI11: (Years as financial years, ie 2051 is FY2050/51) | AJ11: 2021 | AK11: 2022 | AL11: 2023 | AM11: 2024 | AN11: 2025 | AO11: 2026 | AP11: 2027 | AQ11: 2028 | AR11: 2029 | AS11: 2030 | AT11: 2031 | AU11: 2032 | AV11: 2033 | AW11: 2034 | AX11: 2035 | AY11: 2036 | AZ11: 2037 | BA11: 2038 | BB11: 2039 | BC11: 2040 | BD11: 2041 | BE11: 2042 | BF11: 2043 | BG11: 2044 | BH11: 2045 | BI11: 2046 | BJ11: 2047 | BK11: 2048 | BL11: 2049 | BM11: 2050 | BN11: 2051 | BO11: (Years as financial years, ie 2051 is FY2050/51) | BP11: 2021 | BQ11: 2022 | BR11: 2023 | BS11: 2024 | BT11: 2025 | BU11: 2026 | BV11: 2027 | BW11: 2028 | BX11: 2029 | BY11: 2030 | BZ11: 2031 | CA11: 2032 | CB11: 2033 | CC11: 2034 | CD11: 2035 | CE11: 2036 | CF11: 2037 | CG11: 2038 | CH11: 2039 | CI11: 2040 | CJ11: 2041 | CK11: 2042 | CL11: 2043 | CM11: 2044 | CN11: 2045 | CO11: 2046 | CP11: 2047 | CQ11: 2048 | CR11: 2049 | CS11: 2050 | CT11: 2051 | CU11: (Years as financial years, ie 2051 is FY2050/51) | CV11: 2021 | CW11: 2022 | CX11: 2023 | CY11: 2024 | CZ11: 2025 | DA11: 2026 | DB11: 2027 | DC11: 2028 | DD11: 2029 | DE11: 2030 | DF11: 2031 | DG11: 2032 | DH11: 2033 | DI11: 2034 | DJ11: 2035 | DK11: 2036 | DL11: 2037 | DM11: 2038 | DN11: 2039 | DO11: 2040 | DP11: 2041 | DQ11: 2042 | DR11: 2043 | DS11: 2044 | DT11: 2045 | DU11: 2046 | DV11: 2047 | DW11: 2048 | DX11: 2049 | DY11: 2050 | DZ11: 2051 | EA11: (Years as financial years, ie 2051 is FY2050/51) | EB11: 2021 | EC11: 2022 | ED11: 2023 | EE11: 2024 | EF11: 2025 | EG11: 2026 | EH11: 2027 | EI11: 2028 | EJ11: 2029 | EK11: 2030 | EL11: 2031 | EM11: 2032 | EN11: 2033 | EO11: 2034 | EP11: 2035 | EQ11: 2036 | ER11: 2037 | ES11: 2038 | ET11: 2039 | EU11: 2040 | EV11: 2041 | EW11: 2042 | EX11: 2043 | EY11: 2044 | EZ11: 2045 | FA11: 2046 | FB11: 2047 | FC11: 2048 | FD11: 2049 | FE11: 2050 | FF11: 2051
A12: Cumbria | B12: Allerdale | D12: 536986.2765 | E12: 545487.9837 | F12: 564690.2345 | G12: 577301.9703 | H12: 592601.2719 | I12: 608467.6028 | J12: 630228.7653 | K12: 659608.1469 | L12: 679009.9957 | M12: 703479.072 | N12: 729721.7808 | O12: 751083.8555 | P12: 774372.7875 | Q12: 793082.9082 | R12: 814896.119 | S12: 845582.9702 | T12: 883172.2306 | U12: 897934.4122 | V12: 912065.9305 | W12: 926800.2353 | X12: 942164.9947 | Y12: 949271.6052 | Z12: 962842.191 | AA12: 967687.6098 | AB12: 972120.0274 | AC12: 978325.3914 | AD12: 979719.6385 | AE12: 980685.3731 | AF12: 982315.1261 | AG12: 983649.2823 | AH12: 985347.5042 | AJ12: 537190.2216 | AK12: 536177.5642 | AL12: 545906.6091 | AM12: 559184.4005 | AN12: 571915.3172 | AO12: 584959.9982 | AP12: 599558.2465 | AQ12: 615953.7205 | AR12: 633053.1139 | AS12: 650925.8453 | AT12: 669309.5652 | AU12: 680329.8943 | AV12: 690113.2835 | AW12: 699280.8492 | AX12: 708405.1649 | AY12: 718674.738 | AZ12: 728412.0159 | BA12: 737386.6603 | BB12: 745517.9726 | BC12: 753459.7044 | BD12: 760238.9259 | BE12: 766733.9943 | BF12: 772827.3029 | BG12: 778350.9707 | BH12: 783701.5929 | BI12: 788832.5817 | BJ12: 793536.3103 | BK12: 797859.8601 | BL12: 801739.6574 | BM12: 804777.7097 | BN12: 805911.6645 | BP12: 536986.2765 | BQ12: 545577.0264 | BR12: 564887.0082 | BS12: 577596.7987 | BT12: 592971.0437 | BU12: 608804.2113 | BV12: 630471.7891 | BW12: 659730.8106 | BX12: 679046.6203 | BY12: 703195.7991 | BZ12: 728278.6448 | CA12: 748403.487 | CB12: 770422.4371 | CC12: 787901.2541 | CD12: 808679.7317 | CE12: 837440.9247 | CF12: 872790.88 | CG12: 885609.0977 | CH12: 897607.5915 | CI12: 910010.0703 | CJ12: 922873.8545 | CK12: 927940.9165 | CL12: 939891.7558 | CM12: 943561.5971 | CN12: 947258.3052 | CO12: 953146.363 | CP12: 953893.4516 | CQ12: 953830.6854 | CR12: 954018.6211 | CS12: 953440.8033 | CT12: 952718.3111 | CV12: 536986.2765 | CW12: 545061.1803 | CX12: 564285.5429 | CY12: 577132.8811 | CZ12: 592921.1706 | DA12: 609927.1477 | DB12: 634032.1941 | DC12: 666779.8593 | DD12: 690311.5123 | DE12: 718163.7617 | DF12: 750844.8041 | DG12: 773079.6055 | DH12: 796068.9944 | DI12: 834598.5735 | DJ12: 862655.4332 | DK12: 959919.2631 | DL12: 1002524.396 | DM12: 1032051.712 | DN12: 1058357.969 | DO12: 1081432.235 | DP12: 1106148.343 | DQ12: 1124484.231 | DR12: 1140755.458 | DS12: 1154714.162 | DT12: 1168614.229 | DU12: 1180969.873 | DV12: 1193378.377 | DW12: 1205432.094 | DX12: 1217696.941 | DY12: 1225937.692 | DZ12: 1221775.447 | EB12: 536986.2765 | EC12: 545429.3643 | ED12: 566218.6279 | EE12: 579584.0978 | EF12: 595001.4966 | EG12: 612739.3627 | EH12: 654120.5037 | EI12: 708992.9334 | EJ12: 742506.5157 | EK12: 768436.7352 | EL12: 811653.9387 | EM12: 887974.5921 | EN12: 919179.2975 | EO12: 953204.5369 | EP12: 981437.282 | EQ12: 1011138.744 | ER12: 1037547.912 | ES12: 1060761.799 | ET12: 1082006.288 | EU12: 1100153.208 | EV12: 1116181.631 | EW12: 1130085.825 | EX12: 1142337.141 | EY12: 1152819.057 | EZ12: 1161960.91 | FA12: 1158262.291 | FB12: 1154040.722 | FC12: 1149364.064 | FD12: 1144439.127 | FE12: 1139070.645 | FF12: 1133560.726
A13: Cumbria | B13: Barrow-in-Furness | D13: 400160.7309 | E13: 406496.1803 | F13: 420805.646 | G13: 430203.8777 | H13: 441604.8761 | I13: 453428.4233 | J13: 469644.7831 | K13: 491538.2194 | L13: 505996.4249 | M13: 524230.7149 | N13: 543786.7111 | O13: 559705.6717 | P13: 577060.5213 | Q13: 591003.2529 | R13: 607258.399 | S13: 630126.1582 | T13: 658137.574 | U13: 669138.3121 | V13: 679669.0816 | W13: 690649.046 | X13: 702098.8234 | Y13: 707394.6505 | Z13: 717507.4145 | AA13: 721118.2076 | AB13: 724421.2333 | AC13: 729045.4539 | AD13: 730084.4431 | AE13: 730804.1059 | AF13: 732018.5935 | AG13: 733012.8031 | AH13: 734278.3135 | AJ13: 400312.7102 | AK13: 399558.0807 | AL13: 406808.1388 | AM13: 416702.7133 | AN13: 426189.7582 | AO13: 435910.6194 | AP13: 446789.1948 | AQ13: 459007.058 | AR13: 471749.4801 | AS13: 485068.1915 | AT13: 498767.6902 | AU13: 506980.0099 | AV13: 514270.5652 | AW13: 521102.2106 | AX13: 527901.6261 | AY13: 535554.4844 | AZ13: 542810.6778 | BA13: 549498.5587 | BB13: 555557.9908 | BC13: 561476.1479 | BD13: 566528.0055 | BE13: 571368.1131 | BF13: 575908.8303 | BG13: 580025.0527 | BH13: 584012.322 | BI13: 587835.9211 | BJ13: 591341.127 | BK13: 594563.0247 | BL13: 597454.2392 | BM13: 599718.1876 | BN13: 600563.2077 | BP13: 400160.7309 | BQ13: 406562.5346 | BR13: 420952.2812 | BS13: 430423.583 | BT13: 441880.4291 | BU13: 453679.263 | BV13: 469825.8838 | BW13: 491629.628 | BX13: 506023.7175 | BY13: 524019.6207 | BZ13: 542711.2899 | CA13: 557708.2683 | CB13: 574116.7308 | CC13: 587141.8983 | CD13: 602625.964 | CE13: 624058.7277 | CF13: 650401.4195 | CG13: 659953.5209 | CH13: 668894.7662 | CI13: 678137.0601 | CJ13: 687723.1176 | CK13: 691499.0785 | CL13: 700404.8119 | CM13: 703139.5677 | CN13: 705894.3447 | CO13: 710282.1095 | CP13: 710838.838 | CQ13: 710792.0648 | CR13: 710932.1139 | CS13: 710501.5257 | CT13: 709963.1264 | CV13: 400160.7309 | CW13: 406178.1275 | CX13: 420504.0709 | CY13: 430077.8728 | CZ13: 441843.2637 | DA13: 454516.0722 | DB13: 472479.088 | DC13: 496882.5602 | DD13: 514418.2848 | DE13: 535173.7063 | DF13: 559527.5312 | DG13: 576096.8455 | DH13: 593228.4764 | DI13: 621940.6152 | DJ13: 642848.5117 | DK13: 715329.2565 | DL13: 747078.487 | DM13: 769082.1638 | DN13: 788685.5155 | DO13: 805880.3971 | DP13: 824298.7738 | DQ13: 837962.6282 | DR13: 850087.9036 | DS13: 860489.8921 | DT13: 870848.1848 | DU13: 880055.5773 | DV13: 889302.3609 | DW13: 898284.7589 | DX13: 907424.49 | DY13: 913565.4755 | DZ13: 910463.7815 | EB13: 400160.7309 | EC13: 406452.4972 | ED13: 421944.6006 | EE13: 431904.5129 | EF13: 443393.5171 | EG13: 456611.7273 | EH13: 487448.8424 | EI13: 528339.6296 | EJ13: 553313.8612 | EK13: 572636.991 | EL13: 604842.335 | EM13: 661716.2809 | EN13: 684969.9436 | EO13: 710325.4606 | EP13: 731364.4264 | EQ13: 753497.8761 | ER13: 773177.9172 | ES13: 790476.8431 | ET13: 806308.1792 | EU13: 819831.2158 | EV13: 831775.5534 | EW13: 842136.9217 | EX13: 851266.5688 | EY13: 859077.6647 | EZ13: 865890.1489 | FA13: 863133.9482 | FB13: 859988.046 | FC13: 856503.0134 | FD13: 852832.9635 | FE13: 848832.385 | FF13: 844726.4086
A14: Lancashire | B14: Blackburn with Darwen | D14: 631634.1622 | E14: 646217.5256 | F14: 674832.9905 | G14: 717361.4169 | H14: 733440.555 | I14: 749727.2879 | J14: 768937.7457 | K14: 790069.0249 | L14: 811679.066 | M14: 833830.4954 | N14: 858428.0742 | O14: 882008.9763 | P14: 902826.8285 | Q14: 928542.4603 | R14: 946741.058 | S14: 968098.5216 | T14: 985627.8403 | U14: 1002399.412 | V14: 1023756.173 | W14: 1036930.816 | X14: 1049676.923 | Y14: 1059302.999 | Z14: 1067640.479 | AA14: 1082083.22 | AB14: 1087816.477 | AC14: 1091016.316 | AD14: 1094401.05 | AE14: 1097902.602 | AF14: 1101492.627 | AG14: 1105353.163 | AH14: 1109575.462 | AJ14: 631829.2963 | AK14: 630581.5446 | AL14: 643729.4273 | AM14: 685916.8482 | AN14: 701069.5712 | AO14: 716450.3993 | AP14: 733556.8474 | AQ14: 752467.5659 | AR14: 772167.4974 | AS14: 792715.8259 | AT14: 813650.6186 | AU14: 827340.5099 | AV14: 840028.9289 | AW14: 851890.4589 | AX14: 863319.1265 | AY14: 874969.315 | AZ14: 885952.1526 | BA14: 896336.0247 | BB14: 905788.786 | BC14: 914639.5077 | BD14: 922100.6977 | BE14: 929230.1168 | BF14: 935884.2557 | BG14: 941922.4524 | BH14: 947652.218 | BI14: 953126.7464 | BJ14: 958039.3177 | BK14: 962445.8839 | BL14: 966287.1536 | BM14: 969487.1514 | BN14: 971566.6625 | BP14: 631634.1622 | BQ14: 646257.4484 | BR14: 674861.9898 | BS14: 717331.212 | BT14: 733437.2568 | BU14: 749677.9822 | BV14: 768763.2052 | BW14: 789766.7017 | BX14: 811266.8043 | BY14: 833010.8475 | BZ14: 856149.3221 | CA14: 878174.4253 | CB14: 897391.4327 | CC14: 921547.4006 | CD14: 938419.9966 | CE14: 957343.5454 | CF14: 972008.6585 | CG14: 986238.8236 | CH14: 1004782.494 | CI14: 1014863.142 | CJ14: 1024275.194 | CK14: 1031177.669 | CL14: 1037350.721 | CM14: 1050218.429 | CN14: 1054960.975 | CO14: 1057727.019 | CP14: 1060229.399 | CQ14: 1062331.165 | CR14: 1063959.159 | CS14: 1065222.455 | CT14: 1066161.624 | CV14: 631634.1622 | CW14: 645489.2644 | CX14: 673513.149 | CY14: 715684.1273 | CZ14: 731714.8011 | DA14: 748290.4753 | DB14: 768549.5027 | DC14: 791921.2579 | DD14: 816769.4355 | DE14: 841728.2928 | DF14: 867839.4243 | DG14: 892895.8193 | DH14: 915289.1961 | DI14: 949368.0963 | DJ14: 974362.4389 | DK14: 1029588.744 | DL14: 1080313.163 | DM14: 1119104.521 | DN14: 1154737.83 | DO14: 1187820.234 | DP14: 1220310.452 | DQ14: 1248356.619 | DR14: 1273629.794 | DS14: 1296581.816 | DT14: 1318625.645 | DU14: 1339139.924 | DV14: 1359151.774 | DW14: 1378346.714 | DX14: 1396844.392 | DY14: 1410216.242 | DZ14: 1406571.503 | EB14: 631634.1622 | EC14: 646564.4419 | ED14: 677083.0344 | EE14: 719917.8871 | EF14: 735215.0456 | EG14: 751456.1222 | EH14: 780180.9888 | EI14: 814979.3759 | EJ14: 846337.9732 | EK14: 872962.8021 | EL14: 924627.957 | EM14: 967974.3555 | EN14: 1013204.431 | EO14: 1053816.928 | EP14: 1092399.265 | EQ14: 1131681.463 | ER14: 1167744.88 | ES14: 1200667.44 | ET14: 1230964.288 | EU14: 1258167.07 | EV14: 1283348.144 | EW14: 1305380.029 | EX14: 1325115.008 | EY14: 1342639.376 | EZ14: 1356727.244 | FA14: 1353262.79 | FB14: 1349336.154 | FC14: 1344767.235 | FD14: 1339715.811 | FE14: 1334166.887 | FF14: 1328315.808
A15: Lancashire | B15: Blackpool | D15: 638945.2202 | E15: 648632.3626 | F15: 668928.1673 | G15: 682784.0253 | H15: 698891.7085 | I15: 719064.7429 | J15: 742208.1144 | K15: 767693.0116 | L15: 794329.2034 | M15: 821255.5543 | N15: 851636.7416 | O15: 878862.2772 | P15: 915445.0033 | Q15: 939384.0003 | R15: 965750.4633 | S15: 987781.3255 | T15: 1009179.096 | U15: 1026917.249 | V15: 1042948.097 | W15: 1057198.118 | X15: 1078687.728 | Y15: 1089606.661 | Z15: 1099024.149 | AA15: 1106851.61 | AB15: 1113903.513 | AC15: 1117608.977 | AD15: 1121203.181 | AE15: 1124887.328 | AF15: 1128694.497 | AG15: 1132581.304 | AH15: 1136808.497 | AJ15: 639168.8284 | AK15: 638435.3453 | AL15: 649653.5433 | AM15: 665987.6434 | AN15: 681780.0604 | AO15: 699812.6538 | AP15: 719916.014 | AQ15: 742240.6857 | AR15: 765630.756 | AS15: 790032.8237 | AT15: 814951.4073 | AU15: 831122.9587 | AV15: 846047.3325 | AW15: 860015.2357 | AX15: 873474.568 | AY15: 887271.4793 | AZ15: 900270.0799 | BA15: 912304.6806 | BB15: 923300.2961 | BC15: 933742.055 | BD15: 942492.9224 | BE15: 950828.7413 | BF15: 958570.5454 | BG15: 965544.0428 | BH15: 972325.9976 | BI15: 978785.8201 | BJ15: 984673.9364 | BK15: 990063.7361 | BL15: 994900.6532 | BM15: 999060.3163 | BN15: 1001869.679 | BP15: 638945.2202 | BQ15: 648689.8483 | BR15: 669024.057 | BS15: 682916.2934 | BT15: 699057.7466 | BU15: 719164.5669 | BV15: 742159.6853 | BW15: 767504.8654 | BX15: 794034.4365 | BY15: 820503.039 | BZ15: 849154.6374 | CA15: 874586.2106 | CB15: 909369.3417 | CC15: 931601.6359 | CD15: 956582.9805 | CE15: 975904.4662 | CF15: 994241.4287 | CG15: 1009458.893 | CH15: 1022772.175 | CI15: 1034083.223 | CJ15: 1052447.28 | CK15: 1060826.224 | CL15: 1068231.581 | CM15: 1074610.609 | CN15: 1080773.849 | CO15: 1084123.03 | CP15: 1086949.415 | CQ15: 1089391.649 | CR15: 1091444.994 | CS15: 1092990.133 | CT15: 1094235.957 | CV15: 638945.2202 | CW15: 647951.0977 | CX15: 667871.8191 | CY15: 683764.4808 | CZ15: 705123.0343 | DA15: 730134.9481 | DB15: 758051.6185 | DC15: 786920.7464 | DD15: 817673.8452 | DE15: 853172.5397 | DF15: 907000.018 | DG15: 935320.0878 | DH15: 975002.8976 | DI15: 1009663.509 | DJ15: 1037403.6 | DK15: 1089050.389 | DL15: 1143243.899 | DM15: 1184475.814 | DN15: 1222922.878 | DO15: 1258536.298 | DP15: 1295495.987 | DQ15: 1325593.855 | DR15: 1352400.332 | DS15: 1376607.887 | DT15: 1400315.859 | DU15: 1422368.557 | DV15: 1443908.451 | DW15: 1465000.575 | DX15: 1485846.21 | DY15: 1501257.498 | DZ15: 1498122.803 | EB15: 638945.2202 | EC15: 649347.3676 | ED15: 672484.2074 | EE15: 689218.3993 | EF15: 709780.7364 | EG15: 734117.4138 | EH15: 759981.7922 | EI15: 788046.1445 | EJ15: 820063.238 | EK15: 850436.2986 | EL15: 910847.3642 | EM15: 983034.7832 | EN15: 1046622.163 | EO15: 1091151.835 | EP15: 1133339.715 | EQ15: 1178164.855 | ER15: 1217541.018 | ES15: 1252759.727 | ET15: 1284987.755 | EU15: 1313646.96 | EV15: 1339316.784 | EW15: 1362510.343 | EX15: 1383292.92 | EY15: 1401688.429 | EZ15: 1417650.692 | FA15: 1414500.43 | FB15: 1410488.906 | FC15: 1405913.851 | FD15: 1400957.604 | FE15: 1395580.824 | FF15: 1389972.211
A16: Greater Manchester | B16: Bolton | D16: 1152576.943 | E16: 1179686.854 | F16: 1225699.064 | G16: 1258655.598 | H16: 1298256.551 | I16: 1331902.588 | J16: 1372307.519 | K16: 1415858.456 | L16: 1459804.2 | M16: 1504927.767 | N16: 1555123.674 | O16: 1598075.684 | P16: 1638329.401 | Q16: 1676411.129 | R16: 1711705.125 | S16: 1748202.74 | T16: 1781987.855 | U16: 1811276.837 | V16: 1838025.429 | W16: 1862511.043 | X16: 1887356.366 | Y16: 1906362.661 | Z16: 1922907.451 | AA16: 1936918.474 | AB16: 1949186.613 | AC16: 1957103.757 | AD16: 1965048.289 | AE16: 1973194.122 | AF16: 1981440.177 | AG16: 1989983.268 | AH16: 1999145.027 | AJ16: 1152917.999 | AK16: 1154855.74 | AL16: 1177552.769 | AM16: 1206469.766 | AN16: 1234586.226 | AO16: 1264758.638 | AP16: 1298421.178 | AQ16: 1335190.526 | AR16: 1373239.796 | AS16: 1412684.014 | AT16: 1452565.997 | AU16: 1479702.94 | AV16: 1504890.166 | AW16: 1528547.2 | AX16: 1551263.168 | AY16: 1573912.133 | AZ16: 1595419.765 | BA16: 1615888.853 | BB16: 1634698.402 | BC16: 1652403.341 | BD16: 1667383.989 | BE16: 1681763.89 | BF16: 1695188.851 | BG16: 1707323.152 | BH16: 1719181.687 | BI16: 1730505.88 | BJ16: 1740814.987 | BK16: 1750219.574 | BL16: 1758617.94 | BM16: 1765999.816 | BN16: 1771706.437 | BP16: 1152576.943 | BQ16: 1179751.05 | BR16: 1225788 | BS16: 1258784.93 | BT16: 1298409.747 | BU16: 1331975.741 | BV16: 1372190.202 | BW16: 1415565.348 | BX16: 1459373.324 | BY16: 1503797.337 | BZ16: 1551255.307 | CA16: 1591302.247 | CB16: 1628594.887 | CC16: 1663821.591 | CD16: 1696735.344 | CE16: 1728709.885 | CF16: 1757296.639 | CG16: 1782150.011 | CH16: 1804060.06 | CI16: 1823274.921 | CJ16: 1842485.283 | CK16: 1856927.285 | CL16: 1869881.062 | CM16: 1881331.049 | CN16: 1892059.239 | CO16: 1899408.272 | CP16: 1905984.14 | CQ16: 1911843.233 | CR16: 1916808.636 | CS16: 1920944.518 | CT16: 1924479.791 | CV16: 1152576.943 | CW16: 1178393.23 | CX16: 1223239.56 | CY16: 1255453.281 | CZ16: 1295115.962 | DA16: 1328983.306 | DB16: 1371324.008 | DC16: 1419330.127 | DD16: 1470952.241 | DE16: 1521002.602 | DF16: 1572630.325 | DG16: 1618297.998 | DH16: 1661162.937 | DI16: 1703679.325 | DJ16: 1750623.239 | DK16: 1835572.662 | DL16: 1915306.38 | DM16: 1988898.584 | DN16: 2057763.139 | DO16: 2122206.762 | DP16: 2184041.315 | DQ16: 2239212.842 | DR16: 2289015.156 | DS16: 2334365.85 | DT16: 2378453.364 | DU16: 2419696.469 | DV16: 2459854.488 | DW16: 2498748.567 | DX16: 2536723.798 | DY16: 2564753.275 | DZ16: 2559544.99 | EB16: 1152576.943 | EC16: 1179931.133 | ED16: 1229444.808 | EE16: 1263243.843 | EF16: 1301548.391 | EG16: 1333887.438 | EH16: 1379248.131 | EI16: 1428206.315 | EJ16: 1474527.519 | EK16: 1526512.519 | EL16: 1615044.839 | EM16: 1699776.599 | EN16: 1781409.2 | EO16: 1859954.119 | EP16: 1934542.104 | EQ16: 2009187.79 | ER16: 2078298.291 | ES16: 2142236.607 | ET16: 2201147.072 | EU16: 2254614.633 | EV16: 2303294.761 | EW16: 2347214.727 | EX16: 2386648.614 | EY16: 2421844.975 | EZ16: 2450939.162 | FA16: 2445722.177 | FB16: 2439292.506 | FC16: 2431813.806 | FD16: 2423601.781 | FE16: 2414597.555 | FF16: 2405509.36
A17: Lancashire | B17: Burnley | D17: 408867.7786 | E17: 417553.2547 | F17: 432890.0492 | G17: 443241.2681 | H17: 457107.8843 | I17: 474628.7115 | J17: 498231.2172 | K17: 514153.8659 | L17: 529452.5838 | M17: 551481.0026 | N17: 567165.4967 | O17: 581718.7811 | P17: 600096.9287 | Q17: 612913.7079 | R17: 624818.3085 | S17: 638440.7302 | T17: 654037.8016 | U17: 663916.1459 | V17: 673060.1756 | W17: 682403.6019 | X17: 699932.8401 | Y17: 706375.3413 | Z17: 711989.9843 | AA17: 716715.3624 | AB17: 721006.9142 | AC17: 723581.9886 | AD17: 726222.2592 | AE17: 728944.9672 | AF17: 731734.4791 | AG17: 734722.9841 | AH17: 737944.5758 | AJ17: 408995.8085 | AK17: 408499.1405 | AL17: 415825.4015 | AM17: 427305.167 | AN17: 440647.4159 | AO17: 455213.5016 | AP17: 474945.1671 | AQ17: 489217.7766 | AR17: 503219.4284 | AS17: 516900.2655 | AT17: 530842.7208 | AU17: 540049.5134 | AV17: 548563.8173 | AW17: 556602.4449 | AX17: 564330.9037 | AY17: 572104.2553 | AZ17: 579466.9729 | BA17: 586512.8924 | BB17: 593010.099 | BC17: 599120.2709 | BD17: 604318.0753 | BE17: 609279.5469 | BF17: 613930.5537 | BG17: 618168.5816 | BH17: 622274.6206 | BI17: 626191.1971 | BJ17: 629747.957 | BK17: 632981.3955 | BL17: 635851.2075 | BM17: 638330.3199 | BN17: 640162.5049 | BP17: 408867.7786 | BQ17: 417592.5571 | BR17: 432954.9725 | BS17: 443326.0392 | BT17: 457203.9481 | BU17: 474686.0012 | BV17: 498190.5952 | BW17: 514034.2076 | BX17: 529269.1655 | BY17: 551052.8671 | BZ17: 565837.1573 | CA17: 579424.011 | CB17: 596802.9884 | CC17: 608642.2942 | CD17: 619712.7046 | CE17: 631803.2235 | CF17: 645602.5193 | CG17: 653889.5037 | CH17: 661276.1878 | CI17: 668689.9044 | CJ17: 684143.0197 | CK17: 688897.7187 | CL17: 693179.8789 | CM17: 696946.7614 | CN17: 700650.4597 | CO17: 702990.872 | CP17: 705103.7778 | CQ17: 706962.5752 | CR17: 708522.8775 | CS17: 709870.4029 | CT17: 711006.8179 | CV17: 408867.7786 | CW17: 417075.6099 | CX17: 432022.9361 | CY17: 442145.2632 | CZ17: 455980.0477 | DA17: 473543.0656 | DB17: 497754.7593 | DC17: 515109.884 | DD17: 532383.5437 | DE17: 555704.0996 | DF17: 572680.7513 | DG17: 587875.7916 | DH17: 605779.1416 | DI17: 623846.3979 | DJ17: 640151.3616 | DK17: 682722.8583 | DL17: 712142.582 | DM17: 737992.1707 | DN17: 762475.4598 | DO17: 785115.9508 | DP17: 808564.1932 | DQ17: 827944.3472 | DR17: 845544.3101 | DS17: 861595.668 | DT17: 877228.1228 | DU17: 891636.1046 | DV17: 905617.2144 | DW17: 919018.1994 | DX17: 931905.3763 | DY17: 941235.4901 | DZ17: 938865.4268 | EB17: 408867.7786 | EC17: 417397.1827 | ED17: 433633.0212 | EE17: 444156.3164 | EF17: 457476.3831 | EG17: 474473.8598 | EH17: 499110.8517 | EI17: 523780.2991 | EJ17: 541034.7262 | EK17: 560013.6972 | EL17: 590603.9722 | EM17: 620896.5834 | EN17: 659949.7908 | EO17: 690847.2086 | EP17: 717148.8074 | EQ17: 746275.4564 | ER17: 770636.5067 | ES17: 792911.4806 | ET17: 813537.1366 | EU17: 832321.0037 | EV17: 849493.4612 | EW17: 865080.4594 | EX17: 879179.9626 | EY17: 891746.6107 | EZ17: 901834.5896 | FA17: 899700.9922 | FB17: 897165.4798 | FC17: 894229.1454 | FD17: 890993.3413 | FE17: 887440.4431 | FF17: 883691.6038
A18: Greater Manchester | B18: Bury | D18: 761392.1282 | E18: 779270.0936 | F18: 809789.8308 | G18: 831478.2222 | H18: 857432.5149 | I18: 879593.8408 | J18: 906119.5886 | K18: 934708.8211 | L18: 963581.9409 | M18: 993499.9589 | N18: 1026481.18 | O18: 1054738.16 | P18: 1081415.639 | Q18: 1106447.984 | R18: 1129638.38 | S18: 1153676.279 | T18: 1176037.889 | U18: 1195260.827 | V18: 1212810.789 | W18: 1228863.47 | X18: 1245560.109 | Y18: 1258015.041 | Z18: 1268854.806 | AA18: 1278030.39 | AB18: 1286068.058 | AC18: 1291223.653 | AD18: 1296394.334 | AE18: 1301692.92 | AF18: 1307053.116 | AG18: 1312606.308 | AH18: 1318561.018 | AJ18: 761618.3638 | AK18: 762801.1935 | AL18: 777817.2616 | AM18: 796931.1278 | AN18: 815491.5331 | AO18: 835386.6657 | AP18: 857571.1629 | AQ18: 881802.9711 | AR18: 906887.191 | AS18: 932891.8189 | AT18: 959194.5521 | AU18: 977045.0353 | AV18: 993603.1446 | AW18: 1009148.229 | AX18: 1024070.782 | AY18: 1038953.934 | AZ18: 1053079.177 | BA18: 1066532.372 | BB18: 1078893.473 | BC18: 1090525.98 | BD18: 1100372.998 | BE18: 1109818.756 | BF18: 1118633.893 | BG18: 1126596.833 | BH18: 1134373.605 | BI18: 1141795.065 | BJ18: 1148549.019 | BK18: 1154708.554 | BL18: 1160206.385 | BM18: 1165032.41 | BN18: 1168747.741 | BP18: 761392.1282 | BQ18: 779312.2971 | BR18: 809847.9297 | BS18: 831562.5712 | BT18: 857532.3163 | BU18: 879640.486 | BV18: 906040.316 | BW18: 934513.3959 | BX18: 963295.7472 | BY18: 992754.1047 | BZ18: 1023936.821 | CA18: 1050287.432 | CB18: 1075023.324 | CC18: 1098185.17 | CD18: 1119818.229 | CE18: 1140891.943 | CF18: 1159850.18 | CG18: 1176174.694 | CH18: 1190565.026 | CI18: 1203177.231 | CJ18: 1216196.782 | CK18: 1225673.229 | CL18: 1234169.307 | CM18: 1241673.248 | CN18: 1248705.573 | CO18: 1253489.973 | CP18: 1257768.142 | CQ18: 1261576.329 | CR18: 1264798.933 | CS18: 1267480.607 | CT18: 1269769.28 | CV18: 761392.1282 | CW18: 778411.5611 | CX18: 808159.8193 | CY18: 829354.8299 | CZ18: 855340.2653 | DA18: 877645.1005 | DB18: 905440.236 | DC18: 936959.1351 | DD18: 970861.1337 | DE18: 1003996.639 | DF18: 1037921.583 | DG18: 1067913.379 | DH18: 1096198.328 | DI18: 1124253.729 | DJ18: 1155060.186 | DK18: 1211450.49 | DL18: 1263904.828 | DM18: 1312295.361 | DN18: 1357585.548 | DO18: 1399956.183 | DP18: 1440695.425 | DQ18: 1476970.836 | DR18: 1509714.722 | DS18: 1539533.509 | DT18: 1568531.109 | DU18: 1595651.324 | DV18: 1622066.493 | DW18: 1647655.529 | DX18: 1672644.49 | DY18: 1691084.335 | DZ18: 1687596.258 | EB18: 761392.1282 | EC18: 779401.6317 | ED18: 812196.0724 | EE18: 834418.9631 | EF18: 859498.6962 | EG18: 880793.3037 | EH18: 910506.8735 | EI18: 942883.9724 | EJ18: 973289.5885 | EK18: 1007484.132 | EL18: 1065727.224 | EM18: 1121513.616 | EN18: 1175672.498 | EO18: 1227485.18 | EP18: 1276549.045 | EQ18: 1325773.816 | ER18: 1371214.356 | ES18: 1413246.587 | ET18: 1451976.901 | EU18: 1487130.6 | EV18: 1519130.198 | EW18: 1548012.558 | EX18: 1573954.111 | EY18: 1597112.084 | EZ18: 1616255.616 | FA18: 1612760.355 | FB18: 1608471.663 | FC18: 1603496.703 | FD18: 1598042.117 | FE18: 1592067.968 | FF18: 1586035.858
A19: Cumbria | B19: Carlisle | D19: 585324.9205 | E19: 594591.9377 | F19: 615522.7444 | G19: 629269.7685 | H19: 645946.2886 | I19: 663240.8812 | J19: 686960.9487 | K19: 718985.0152 | L19: 740133.3872 | M19: 766805.1306 | N19: 795410.166 | O19: 818695.2204 | P19: 844080.5848 | Q19: 864474.9605 | R19: 888251.7616 | S19: 921700.994 | T19: 962673.9793 | U19: 978765.0289 | V19: 994168.6438 | W19: 1010229.307 | X19: 1026977.178 | Y19: 1034723.514 | Z19: 1049515.702 | AA19: 1054797.298 | AB19: 1059628.714 | AC19: 1066392.675 | AD19: 1067912.43 | AE19: 1068965.099 | AF19: 1070741.559 | AG19: 1072195.814 | AH19: 1074046.907 | AJ19: 585547.2244 | AK19: 584443.4092 | AL19: 595048.2471 | AM19: 609521.2841 | AN19: 623398.2174 | AO19: 637617.1597 | AP19: 653529.5189 | AQ19: 671400.8872 | AR19: 690039.5406 | AS19: 709521.1467 | AT19: 729559.7396 | AU19: 741572.1011 | AV19: 752236.1752 | AW19: 762228.9905 | AX19: 772174.6625 | AY19: 783368.6861 | AZ19: 793982.4982 | BA19: 803765.0257 | BB19: 812628.3057 | BC19: 821284.9394 | BD19: 828674.4155 | BE19: 835754.1597 | BF19: 842395.9781 | BG19: 848416.8776 | BH19: 854249.1543 | BI19: 859842.0264 | BJ19: 864969.1772 | BK19: 869681.926 | BL19: 873910.9764 | BM19: 877222.5093 | BN19: 878458.5409 | BP19: 585324.9205 | BQ19: 594688.9959 | BR19: 615737.2313 | BS19: 629591.1368 | BT19: 646349.3467 | BU19: 663607.7907 | BV19: 687225.8491 | BW19: 719118.7208 | BX19: 740173.3087 | BY19: 766496.358 | BZ19: 793837.1212 | CA19: 815773.5694 | CB19: 839774.6302 | CC19: 858826.8622 | CD19: 881475.7851 | CE19: 912826.0146 | CF19: 951358.1162 | CG19: 965330.2094 | CH19: 978408.7883 | CI19: 991927.7183 | CJ19: 1005949.48 | CK19: 1011472.671 | CL19: 1024499.305 | CM19: 1028499.5 | CN19: 1032528.98 | CO19: 1038947.071 | CP19: 1039761.411 | CQ19: 1039692.995 | CR19: 1039897.848 | CS19: 1039268.016 | CT19: 1038480.487 | CV19: 585324.9205 | CW19: 594126.7142 | CX19: 615081.6231 | CY19: 629085.4581 | CZ19: 646294.9841 | DA19: 664831.812 | DB19: 691106.756 | DC19: 726802.3136 | DD19: 752452.2483 | DE19: 782811.7126 | DF19: 818434.65 | DG19: 842670.9926 | DH19: 867729.8494 | DI19: 909727.7995 | DJ19: 940310.2927 | DK19: 1046329.657 | DL19: 1092770.035 | DM19: 1124955.353 | DN19: 1153629.657 | DO19: 1178781.032 | DP19: 1205722.044 | DQ19: 1225708.499 | DR19: 1243444.437 | DS19: 1258659.68 | DT19: 1273811.009 | DU19: 1287278.888 | DV19: 1300804.386 | DW19: 1313943.16 | DX19: 1327312.068 | DY19: 1336294.639 | DZ19: 1331757.715 | EB19: 585324.9205 | EC19: 594528.0415 | ED19: 617188.7213 | EE19: 631757.3294 | EF19: 648562.5777 | EG19: 667897.1781 | EH19: 713003.383 | EI19: 772815.341 | EJ19: 809345.7623 | EK19: 837610.1785 | EL19: 884717.7255 | EM19: 967908.6417 | EN19: 1001922.345 | EO19: 1039010.482 | EP19: 1069784.693 | EQ19: 1102159.833 | ER19: 1130946.312 | ES19: 1156249.876 | ET19: 1179406.759 | EU19: 1199187.237 | EV19: 1216658.513 | EW19: 1231814.34 | EX19: 1245168.499 | EY19: 1256593.981 | EZ19: 1266558.768 | FA19: 1262527.206 | FB19: 1257925.618 | FC19: 1252827.975 | FD19: 1247459.703 | FE19: 1241607.959 | FF19: 1235602.046
A20: Cheshire | B20: Cheshire East | D20: 655349.2699 | E20: 672248.2351 | F20: 703270.562 | G20: 721574.3017 | H20: 741509.6088 | I20: 764219.687 | J20: 788673.4341 | K20: 814035.2581 | L20: 840241.8863 | M20: 866474.3262 | N20: 893400.7242 | O20: 917232.9395 | P20: 939093.1359 | Q20: 959884.8412 | R20: 984422.1909 | S20: 1003963.279 | T20: 1051534.961 | U20: 1091885.494 | V20: 1105329.395 | W20: 1116471.36 | X20: 1128765.008 | Y20: 1138956.721 | Z20: 1146337.475 | AA20: 1152485.153 | AB20: 1157844.719 | AC20: 1161382.151 | AD20: 1163877.454 | AE20: 1166289.795 | AF20: 1168664.242 | AG20: 1170850.78 | AH20: 1173126.296 | AJ20: 655500.419 | AK20: 658113.8816 | AL20: 674406.0931 | AM20: 694750.7276 | AN20: 714724.3316 | AO20: 734601.6195 | AP20: 756175.211 | AQ20: 779468.5197 | AR20: 802609.6522 | AS20: 824622.5599 | AT20: 846980.0996 | AU20: 861426.6029 | AV20: 874639.9135 | AW20: 886859.9235 | AX20: 898534.0698 | AY20: 910504.9158 | AZ20: 921805.6745 | BA20: 932226.5275 | BB20: 941774.1301 | BC20: 950923.1583 | BD20: 958535.7447 | BE20: 965763.3016 | BF20: 972396.0463 | BG20: 978283.9793 | BH20: 983894.6967 | BI20: 989151.5974 | BJ20: 993936.4742 | BK20: 998317.1934 | BL20: 1002253.354 | BM20: 1005624.922 | BN20: 1007815.501 | BP20: 655349.2699 | BQ20: 672284.9109 | BR20: 703323.4683 | BS20: 721646.8647 | BT20: 741604.1783 | BU20: 764251.5144 | BV20: 788580.6574 | BW20: 813832.9266 | BX20: 839962.0658 | BY20: 865821.9732 | BZ20: 891312.0049 | CA20: 913717.3966 | CB20: 934203.5678 | CC20: 953748.5179 | CD20: 977348.4468 | CE20: 994878.1902 | CF20: 1040288.873 | CG20: 1079049.848 | CH20: 1090850.83 | CI20: 1100263.149 | CJ20: 1110755.072 | CK20: 1119475.199 | CL20: 1125673.64 | CM20: 1130957.808 | CN20: 1135773.073 | CO20: 1139069.454 | CP20: 1141131.478 | CQ20: 1142887.292 | CR20: 1144366.976 | CS20: 1145371.007 | CT20: 1146143.474 | CV20: 655349.2699 | CW20: 671555.3152 | CX20: 702074.4133 | CY20: 721704.0567 | CZ20: 744385.8371 | DA20: 767414.1354 | DB20: 793007.1964 | DC20: 820738.1953 | DD20: 850692.5108 | DE20: 879156.8931 | DF20: 906802.8272 | DG20: 932413.6997 | DH20: 954145.5936 | DI20: 1007105.351 | DJ20: 1031446.648 | DK20: 1241757.428 | DL20: 1308355.607 | DM20: 1340963.946 | DN20: 1370912.967 | DO20: 1398613.209 | DP20: 1423850.056 | DQ20: 1447430.061 | DR20: 1468426.677 | DS20: 1487424.579 | DT20: 1505973.567 | DU20: 1523287.851 | DV20: 1540090.947 | DW20: 1556564.548 | DX20: 1572893.24 | DY20: 1584855.319 | DZ20: 1581729.772 | EB20: 655349.2699 | EC20: 673317.8946 | ED20: 706739.1425 | EE20: 726740.8966 | EF20: 748358.4144 | EG20: 769611.3931 | EH20: 796476.1231 | EI20: 824032.2801 | EJ20: 851376.2421 | EK20: 882480.5688 | EL20: 960025.307 | EM20: 1011767.533 | EN20: 1103811.745 | EO20: 1140029.94 | EP20: 1173182.45 | EQ20: 1230594.241 | ER20: 1260986.323 | ES20: 1288312.772 | ET20: 1313530.179 | EU20: 1335928.83 | EV20: 1355903.651 | EW20: 1374185.296 | EX20: 1391159.42 | EY20: 1405761.337 | EZ20: 1418037.867 | FA20: 1414726.866 | FB20: 1410730.294 | FC20: 1406354.504 | FD20: 1401836.206 | FE20: 1396944.241 | FF20: 1391912.294
A21: Lancashire | B21: Chorley | D21: 401260.7629 | E21: 407457.9739 | F21: 420321.9759 | G21: 429125.6643 | H21: 439369.5009 | I21: 452004.5947 | J21: 466516.2605 | K21: 482486.8362 | L21: 499164.8545 | M21: 516031.7297 | N21: 535060.9862 | O21: 552089.2082 | P21: 574793.3806 | Q21: 589766.4308 | R21: 606189.8982 | S21: 619983.3449 | T21: 633359.4135 | U21: 644459.6192 | V21: 654492.5464 | W21: 663415.9843 | X21: 676764.4036 | Y21: 683602.9795 | Z21: 689502.0738 | AA21: 694407.1362 | AB21: 698821.8603 | AC21: 701151.5315 | AD21: 703413.4793 | AE21: 705731.9333 | AF21: 708125.892 | AG21: 710570.7154 | AH21: 713228.7642 | AJ21: 401400.7275 | AK21: 400976.3416 | AL21: 408055.7776 | AM21: 418312.9988 | AN21: 428228.8221 | AO21: 439527.011 | AP21: 452122.377 | AQ21: 466103.4555 | AR21: 480747.5683 | AS21: 496022.7778 | AT21: 511617.6962 | AU21: 521745.7367 | AV21: 531092.7275 | AW21: 539840.2234 | AX21: 548267.4807 | AY21: 556899.5321 | AZ21: 565032.6344 | BA21: 572569.3652 | BB21: 579456.3501 | BC21: 585994.559 | BD21: 591475.9786 | BE21: 596698.041 | BF21: 601548.3111 | BG21: 605916.9455 | BH21: 610165.5878 | BI21: 614212.273 | BJ21: 617900.4231 | BK21: 621275.9624 | BL21: 624304.5739 | BM21: 626910.0068 | BN21: 628674.8225 | BP21: 401260.7629 | BQ21: 407493.4028 | BR21: 420380.8979 | BS21: 429207.0517 | BT21: 439471.5483 | BU21: 452065.411 | BV21: 466484.8224 | BW21: 482368.5912 | BX21: 498980.4556 | BY21: 515561.5018 | BZ21: 533508.9651 | CA21: 549414.7405 | CB21: 570992.7226 | CC21: 584897.5111 | CD21: 600453.7661 | CE21: 612551.0734 | CF21: 624010.941 | CG21: 633532.8285 | CH21: 641864.1314 | CI21: 648947.3106 | CJ21: 660338.6777 | CK21: 665587.1797 | CL21: 670227.0353 | CM21: 674226.1087 | CN21: 678085.6177 | CO21: 680193.6823 | CP21: 681975.6759 | CQ21: 683516.614 | CR21: 684811.7604 | CS21: 685788.9095 | CT21: 686577.9157 | CV21: 401260.7629 | CW21: 407028.891 | CX21: 419651.9975 | CY21: 429689.0055 | CZ21: 443133.0968 | DA21: 458719.9548 | DB21: 476160.2185 | DC21: 494237.9737 | DD21: 513505.0799 | DE21: 535645.0786 | DF21: 568974.6958 | DG21: 586691.7224 | DH21: 611305.1034 | DI21: 632856.0791 | DJ21: 650225.4545 | DK21: 682558.4344 | DL21: 716387.2063 | DM21: 742249.7195 | DN21: 766366.9071 | DO21: 788712.2729 | DP21: 811856.0784 | DQ21: 830746.1283 | DR21: 847575.7769 | DS21: 862777.0588 | DT21: 877661.6574 | DU21: 891509.232 | DV21: 905034.6405 | DW21: 918275.6096 | DX21: 931358.2734 | DY21: 941029.2247 | DZ21: 939057.7422 | EB21: 401260.7629 | EC21: 407895.3442 | ED21: 422526.3582 | EE21: 433091.5246 | EF21: 446035.3428 | EG21: 461194.83 | EH21: 477424.379 | EI21: 495022.9564 | EJ21: 514997.5517 | EK21: 534024.4493 | EL21: 571734.1122 | EM21: 616585.3735 | EN21: 656161.3531 | EO21: 684087.445 | EP21: 710545.2222 | EQ21: 738614.4528 | ER21: 763301.2019 | ES21: 785401.0965 | ET21: 805627.6313 | EU21: 823623.8202 | EV21: 839748.5368 | EW21: 854316.5585 | EX21: 867371.0352 | EY21: 878928.9298 | EZ21: 888943.4673 | FA21: 886958.9663 | FB21: 884438.1142 | FC21: 881564.1917 | FD21: 878451.4397 | FE21: 875075.0702 | FF21: 871557.9659
A22: Cumbria | B22: Copeland | D22: 399263.6428 | E22: 405584.8892 | F22: 419862.2757 | G22: 429239.4382 | H22: 440614.8776 | I22: 452411.9185 | J22: 468591.9242 | K22: 490436.2794 | L22: 504862.0722 | M22: 523055.4842 | N22: 542567.6393 | O22: 558450.9126 | P22: 575766.8557 | Q22: 589678.3302 | R22: 605897.0352 | S22: 628713.529 | T22: 656662.1483 | U22: 667638.2247 | V22: 678145.3861 | W22: 689100.7354 | X22: 700524.8445 | Y22: 705808.7993 | Z22: 715898.8923 | AA22: 719501.5907 | AB22: 722797.2116 | AC22: 727411.0655 | AD22: 728447.7255 | AE22: 729165.775 | AF22: 730377.5398 | AG22: 731369.5206 | AH22: 732632.194 | AJ22: 399415.2813 | AK22: 398662.3435 | AL22: 405896.1483 | AM22: 415768.541 | AN22: 425234.3176 | AO22: 434933.3865 | AP22: 445787.5741 | AQ22: 457978.047 | AR22: 470691.9029 | AS22: 483980.7561 | AT22: 497649.543 | AU22: 505843.4522 | AV22: 513117.6634 | AW22: 519933.9934 | AX22: 526718.1659 | AY22: 534353.8679 | AZ22: 541593.7941 | BA22: 548266.682 | BB22: 554312.53 | BC22: 560217.4197 | BD22: 565257.9519 | BE22: 570087.2089 | BF22: 574617.7466 | BG22: 578724.7411 | BH22: 582703.0718 | BI22: 586518.0989 | BJ22: 590015.4469 | BK22: 593230.1217 | BL22: 596114.8545 | BM22: 598373.7276 | BN22: 599216.8533 | BP22: 399263.6428 | BQ22: 405651.0948 | BR22: 420008.5821 | BS22: 429458.6509 | BT22: 440889.8129 | BU22: 452662.196 | BV22: 468772.6189 | BW22: 490527.4831 | BX22: 504889.3036 | BY22: 522844.8633 | BZ22: 541494.6291 | CA22: 556457.987 | CB22: 572829.6646 | CC22: 585825.632 | CD22: 601274.9852 | CE22: 622659.7006 | CF22: 648943.3368 | CG22: 658474.0241 | CH22: 667395.2248 | CI22: 676616.7991 | CJ22: 686181.3664 | CK22: 689948.8623 | CL22: 698834.6306 | CM22: 701563.2556 | CN22: 704311.8569 | CO22: 708689.7852 | CP22: 709245.2655 | CQ22: 709198.5972 | CR22: 709338.3323 | CS22: 708908.7094 | CT22: 708371.5172 | CV22: 399263.6428 | CW22: 405267.5494 | CX22: 419561.3766 | CY22: 429113.7158 | CZ22: 440852.7308 | DA22: 453497.1292 | DB22: 471419.8751 | DC22: 495768.6391 | DD22: 513265.0518 | DE22: 533973.9433 | DF22: 558273.1714 | DG22: 574805.3403 | DH22: 591898.5652 | DI22: 620546.3366 | DJ22: 641407.3613 | DK22: 713725.6173 | DL22: 745403.6718 | DM22: 767358.0203 | DN22: 786917.4248 | DO22: 804073.7586 | DP22: 822450.8446 | DQ22: 836084.0671 | DR22: 848182.1598 | DS22: 858560.829 | DT22: 868895.9003 | DU22: 878082.6514 | DV22: 887308.7054 | DW22: 896270.9665 | DX22: 905390.208 | DY22: 911517.4265 | DZ22: 908422.686 | EB22: 399263.6428 | EC22: 405541.3041 | ED22: 420998.677 | EE22: 430936.2609 | EF22: 442399.5088 | EG22: 455588.0861 | EH22: 486356.07 | EI22: 527155.1875 | EJ22: 552073.4313 | EK22: 571353.2422 | EL22: 603486.3876 | EM22: 660232.8324 | EN22: 683434.3645 | EO22: 708733.0391 | EP22: 729724.8393 | EQ22: 751808.6697 | ER22: 771444.5918 | ES22: 788704.7366 | ET22: 804500.5817 | EU22: 817993.302 | EV22: 829910.8626 | EW22: 840249.0026 | EX22: 849358.1827 | EY22: 857151.7675 | EZ22: 863948.9793 | FA22: 861198.9576 | FB22: 858060.1079 | FC22: 854582.8882 | FD22: 850921.0658 | FE22: 846929.4559 | FF22: 842832.6843
A23: North Yorkshire | B23: Craven | D23: 85355.49025 | E23: 86810.49356 | F23: 89764.86163 | G23: 91568.45598 | H23: 93584.81739 | I23: 96206.43792 | J23: 99127.06739 | K23: 102730.0633 | L23: 105662.1396 | M23: 110680.6005 | N23: 114273.803 | O23: 117422.0345 | P23: 121836.7756 | Q23: 124552.5754 | R23: 127383.7938 | S23: 131296.9031 | T23: 136289.5589 | U23: 138344.6723 | V23: 140278.9378 | W23: 142146.257 | X23: 146629.9025 | Y23: 147743.0857 | Z23: 149243.2721 | AA23: 150016.1976 | AB23: 150742.0169 | AC23: 151368.933 | AD23: 151653.17 | AE23: 151913.5496 | AF23: 152227.2249 | AG23: 152539.2381 | AH23: 152900.2807 | AJ23: 85385.43079 | AK23: 85229.33689 | AL23: 86702.22626 | AM23: 88725.5665 | AN23: 90629.86227 | AO23: 92679.29553 | AP23: 94961.57249 | AQ23: 97502.389 | AR23: 100159.8086 | AS23: 102932.6455 | AT23: 105777.4932 | AU23: 107520.5178 | AV23: 109090.7555 | AW23: 110558.68 | AX23: 111985.0752 | AY23: 113506.0641 | AZ23: 114937.9456 | BA23: 116280.0915 | BB23: 117504.9792 | BC23: 118679.4182 | BD23: 119681.1915 | BE23: 120634.541 | BF23: 121525.996 | BG23: 122331.5777 | BH23: 123107.7008 | BI23: 123848.4136 | BJ23: 124522.3663 | BK23: 125137.5389 | BL23: 125685.0364 | BM23: 126127.9331 | BN23: 126352.3859 | BP23: 85355.49025 | BQ23: 86819.25944 | BR23: 89783.27774 | BS23: 91595.9545 | BT23: 93619.82199 | BU23: 96235.69077 | BV23: 99141.93568 | BW23: 102729.3283 | BX23: 105650.4501 | BY23: 110621.3707 | BZ23: 114033.8464 | CA23: 116990.5069 | CB23: 121209.6681 | CC23: 123736.8678 | CD23: 126411.207 | CE23: 130026.0608 | CF23: 134676.791 | CG23: 136441.8042 | CH23: 138060.5443 | CI23: 139584.9584 | CJ23: 143702.6695 | CK23: 144519.5469 | CL23: 145786.5146 | CM23: 146393.0709 | CN23: 147018.7119 | CO23: 147608.361 | CP23: 147804.2195 | CQ23: 147917.4662 | CR23: 148020.4826 | CS23: 148049.573 | CT23: 148049.4349 | CV23: 85355.49025 | CW23: 86729.91819 | CX23: 89654.45301 | CY23: 91460.45399 | CZ23: 93514.73793 | DA23: 96240.52464 | DB23: 99412.7012 | DC23: 103427.5646 | DD23: 106886.5648 | DE23: 112252.6882 | DF23: 116480.7355 | DG23: 119678.8964 | DH23: 123747.5906 | DI23: 129089.251 | DJ23: 132794.7616 | DK23: 146228.8929 | DL23: 152428.7717 | DM23: 157252.9305 | DN23: 161730.6985 | DO23: 165730.8617 | DP23: 170296.6576 | DQ23: 173587.4471 | DR23: 176540.6333 | DS23: 179163.3364 | DT23: 181767.3337 | DU23: 184106.6568 | DV23: 186426.0883 | DW23: 188668.7231 | DX23: 190879.3699 | DY23: 192417.9309 | DZ23: 191773.5103 | EB23: 85355.49025 | EC23: 86783.16557 | ED23: 89964.19281 | EE23: 91845.3936 | EF23: 93806.36509 | EG23: 96514.75277 | EH23: 100859.7536 | EI23: 108149.0364 | EJ23: 112180.3978 | EK23: 116327.046 | EL23: 122742.4907 | EM23: 131605.7513 | EN23: 139623.0573 | EO23: 145856.7398 | EP23: 150666.1327 | EQ23: 156412.5244 | ER23: 160845.3503 | ES23: 164785.362 | ET23: 168417.0357 | EU23: 171631.6897 | EV23: 174502.8868 | EW23: 177077.3496 | EX23: 179387.847 | EY23: 181408.4428 | EZ23: 183074.0102 | FA23: 182462.7454 | FB23: 181778.277 | FC23: 181027.1482 | FD23: 180235.0493 | FE23: 179383.1654 | FF23: 178506.5988
A24: Derbyshire | B24: Derbyshire Dales | D24: 75.31000028 | E24: 76.51334764 | F24: 78.90649035 | G24: 81.33552469 | H24: 84.86464337 | I24: 89.78247269 | J24: 94.84585569 | K24: 100.1778251 | L24: 103.0250537 | M24: 105.9582777 | N24: 109.8411486 | O24: 113.9202796 | P24: 116.1355703 | Q24: 118.2185171 | R24: 120.1370061 | S24: 123.5371577 | T24: 125.3278894 | U24: 127.1134311 | V24: 128.4911643 | W24: 129.7219842 | X24: 131.0410575 | Y24: 131.9739266 | Z24: 132.7729722 | AA24: 133.4284063 | AB24: 134.0043177 | AC24: 134.3340444 | AD24: 134.6519303 | AE24: 134.9438313 | AF24: 135.2465928 | AG24: 135.5540567 | AH24: 135.8858963 | AJ24: 75.33385819 | AK24: 74.94258419 | AL24: 75.97489617 | AM24: 78.76303113 | AN24: 82.35377594 | AO24: 87.05661909 | AP24: 91.89358605 | AQ24: 96.91162831 | AR24: 99.55377349 | AS24: 102.2742909 | AT24: 104.6719045 | AU24: 106.1795874 | AV24: 107.5594727 | AW24: 108.8421661 | AX24: 110.0636894 | AY24: 111.2807295 | AZ24: 112.4231743 | BA24: 113.5185911 | BB24: 114.516712 | BC24: 115.4497867 | BD24: 116.234955 | BE24: 116.9760157 | BF24: 117.655602 | BG24: 118.2565886 | BH24: 118.8318821 | BI24: 119.3693318 | BJ24: 119.8498528 | BK24: 120.2801921 | BL24: 120.653693 | BM24: 120.9684046 | BN24: 121.1845127 | BP24: 75.31000028 | BQ24: 76.51717498 | BR24: 78.91238931 | BS24: 81.34267742 | BT24: 84.86481021 | BU24: 89.7724562 | BV24: 94.83005606 | BW24: 100.1567664 | BX24: 102.9985707 | BY24: 105.8964512 | BZ24: 109.6311423 | CA24: 113.5568741 | CB24: 115.6183723 | CC24: 117.5556303 | CD24: 119.3561011 | CE24: 122.5252392 | CF24: 124.0550244 | CG24: 125.6260326 | CH24: 126.7726521 | CI24: 127.7536219 | CJ24: 128.8070262 | CK24: 129.5236586 | CL24: 130.150997 | CM24: 130.6823266 | CN24: 131.1814327 | CO24: 131.4793552 | CP24: 131.7311492 | CQ24: 131.9174049 | CR24: 132.0718047 | CS24: 132.1817645 | CT24: 132.2625747 | CV24: 75.31000028 | CW24: 76.41981216 | CX24: 78.73781548 | CY24: 82.78072919 | CZ24: 88.93096216 | DA24: 93.85558762 | DB24: 99.07390371 | DC24: 104.6364303 | DD24: 107.8023644 | DE24: 110.9468456 | DF24: 114.4602301 | DG24: 118.1711163 | DH24: 120.2896841 | DI24: 122.3681355 | DJ24: 125.873507 | DK24: 131.3515311 | DL24: 135.6457016 | DM24: 139.6206627 | DN24: 143.3579998 | DO24: 146.8190704 | DP24: 150.2151005 | DQ24: 153.1682301 | DR24: 155.8290603 | DS24: 158.2442074 | DT24: 160.6027602 | DU24: 162.8012852 | DV24: 164.9566926 | DW24: 167.0592314 | DX24: 169.1331263 | DY24: 170.6420463 | DZ24: 170.2400367 | EB24: 75.31000028 | EC24: 76.46140581 | ED24: 78.9955881 | EE24: 83.11471541 | EF24: 89.18988524 | EG24: 94.0876301 | EH24: 99.07784277 | EI24: 104.5391712 | EJ24: 108.6483522 | EK24: 111.8194235 | EL24: 117.4008668 | EM24: 123.3451481 | EN24: 128.7744755 | EO24: 133.058238 | EP24: 137.1130982 | EQ24: 141.441332 | ER24: 145.1554892 | ES24: 148.5390729 | ET24: 151.6633616 | EU24: 154.4975487 | EV24: 157.0824945 | EW24: 159.4242772 | EX24: 161.5313116 | EY24: 163.4123763 | EZ24: 165.0020799 | FA24: 164.5949007 | FB24: 164.1260651 | FC24: 163.5999634 | FD24: 163.0349424 | FE24: 162.4272132 | FF24: 161.7936352
A25: Cumbria | B25: Eden | D25: 297332.685 | E25: 302040.1338 | F25: 312672.5411 | G25: 319655.7387 | H25: 328127.0584 | I25: 336912.3458 | J25: 348961.6386 | K25: 365229.1873 | L25: 375972.1132 | M25: 389520.795 | N25: 404051.5482 | O25: 415879.8636 | P25: 428775.092 | Q25: 439135.0037 | R25: 451213.116 | S25: 468204.6189 | T25: 489018.0292 | U25: 497191.9422 | V25: 505016.6529 | W25: 513175.1303 | X25: 521682.6944 | Y25: 525617.6694 | Z25: 533131.7883 | AA25: 535814.7272 | AB25: 538268.9848 | AC25: 541704.9339 | AD25: 542476.9373 | AE25: 543011.6707 | AF25: 543914.0752 | AG25: 544652.8059 | AH25: 545593.122 | AJ25: 297445.6107 | AK25: 296884.8959 | AL25: 302271.9294 | AM25: 309623.9262 | AN25: 316673.1149 | AO25: 323896.037 | AP25: 331979.179 | AQ25: 341057.4563 | AR25: 350525.4982 | AS25: 360421.7422 | AT25: 370600.9238 | AU25: 376702.9495 | AV25: 382120.0737 | AW25: 387196.2126 | AX25: 392248.4037 | AY25: 397934.731 | AZ25: 403326.3232 | BA25: 408295.6403 | BB25: 412797.9992 | BC25: 417195.3861 | BD25: 420949.0837 | BE25: 424545.4441 | BF25: 427919.3474 | BG25: 430977.8371 | BH25: 433940.5103 | BI25: 436781.5711 | BJ25: 439386.0553 | BK25: 441780.0321 | BL25: 443928.3003 | BM25: 445610.489 | BN25: 446238.3669 | BP25: 297332.685 | BQ25: 302089.4373 | BR25: 312781.4959 | BS25: 319818.9871 | BT25: 328331.8034 | BU25: 337098.7281 | BV25: 349096.2024 | BW25: 365297.107 | BX25: 375992.3925 | BY25: 389363.945 | BZ25: 403252.4747 | CA25: 414395.7267 | CB25: 426587.7581 | CC25: 436265.8892 | CD25: 447771.0632 | CE25: 463696.317 | CF25: 483269.81 | CG25: 490367.3379 | CH25: 497010.9795 | CI25: 503878.3101 | CJ25: 511001.0685 | CK25: 513806.7327 | CL25: 520423.9877 | CM25: 522456.0019 | CN25: 524502.8925 | CO25: 527763.1472 | CP25: 528176.8149 | CQ25: 528142.0609 | CR25: 528246.122 | CS25: 527926.1807 | CT25: 527526.1322 | CV25: 297332.685 | CW25: 301803.8101 | CX25: 312448.4608 | CY25: 319562.113 | CZ25: 328304.1883 | DA25: 337720.505 | DB25: 351067.6211 | DC25: 369200.2097 | DD25: 382229.8342 | DE25: 397651.8002 | DF25: 415747.4993 | DG25: 428059.049 | DH25: 440788.4185 | DI25: 462122.4892 | DJ25: 477657.7492 | DK25: 531513.3447 | DL25: 555104.0751 | DM25: 571453.5362 | DN25: 586019.4762 | DO25: 598795.8431 | DP25: 612481.3074 | DQ25: 622634.0041 | DR25: 631643.4856 | DS25: 639372.5078 | DT25: 647069.0626 | DU25: 653910.4603 | DV25: 660781.127 | DW25: 667455.3464 | DX25: 674246.4695 | DY25: 678809.4252 | DZ25: 676504.7638 | EB25: 297332.685 | EC25: 302007.6759 | ED25: 313518.8222 | EE25: 320919.3671 | EF25: 329456.0779 | EG25: 339277.6462 | EH25: 362190.6447 | EI25: 392573.8548 | EJ25: 411130.5365 | EK25: 425488.2624 | EL25: 449417.9003 | EM25: 491677.127 | EN25: 508955.369 | EO25: 527795.3585 | EP25: 543428.0074 | EQ25: 559873.894 | ER25: 574496.8168 | ES25: 587350.492 | ET25: 599113.6994 | EU25: 609161.7638 | EV25: 618036.8025 | EW25: 625735.6425 | EX25: 632519.2729 | EY25: 638323.176 | EZ25: 643385.0775 | FA25: 641337.1291 | FB25: 638999.6195 | FC25: 636410.1248 | FD25: 633683.1561 | FE25: 630710.5936 | FF25: 627659.7171
A26: Lancashire | B26: Fylde | D26: 330323.8092 | E26: 335429.3393 | F26: 346090.5262 | G26: 353830.6 | H26: 362157.6323 | I26: 372514.1948 | J26: 384405.9195 | K26: 397500.5918 | L26: 411177.652 | M26: 425009.086 | N26: 440607.9322 | O26: 454618.131 | P26: 473229.7716 | Q26: 485648.8789 | R26: 499125.7366 | S26: 510507.9961 | T26: 521498.9222 | U26: 530655.0981 | V26: 539054.5905 | W26: 546404.0637 | X26: 557346.4966 | Y26: 562968.5028 | Z26: 567818.1169 | AA26: 571999.928 | AB26: 575621.1777 | AC26: 577527.4847 | AD26: 579382.1343 | AE26: 581283.8434 | AF26: 583248.5372 | AG26: 585258.2295 | AH26: 587444.4197 | AJ26: 330438.9031 | AK26: 330048.1922 | AL26: 335888.2414 | AM26: 344856.2932 | AN26: 353011.5844 | AO26: 362285.7695 | AP26: 372624.1447 | AQ26: 384103.2973 | AR26: 396128.1083 | AS26: 408673.1774 | AT26: 421482.9119 | AU26: 429798.0092 | AV26: 437472.9262 | AW26: 444655.7126 | AX26: 451577.0061 | AY26: 458670.7726 | AZ26: 465354.2059 | BA26: 471546.1205 | BB26: 477202.744 | BC26: 482571.9624 | BD26: 487072.5344 | BE26: 491360.0752 | BF26: 495342.7325 | BG26: 498931.0468 | BH26: 502417.9355 | BI26: 505739.5471 | BJ26: 508765.645 | BK26: 511533.8414 | BL26: 514015.8207 | BM26: 516148.1769 | BN26: 517586.5482 | BP26: 330323.8092 | BQ26: 335458.738 | BR26: 346138.814 | BS26: 353895.7924 | BT26: 362240.1685 | BU26: 372562.8801 | BV26: 384378.3643 | BW26: 397400.9857 | BX26: 411022.8101 | BY26: 424618.4544 | BZ26: 439328.04 | CA26: 452415.0403 | CB26: 470099.7827 | CC26: 481639.0096 | CD26: 494400.5742 | CE26: 504386.8843 | CF26: 513798.4911 | CG26: 521650.3748 | CH26: 528642.2337 | CI26: 534468.3494 | CJ26: 543789.8372 | CK26: 548094.2829 | CL26: 551900.0019 | CM26: 555330.0098 | CN26: 558489.4932 | CO26: 560209.9033 | CP26: 561665.0575 | CQ26: 562921.1857 | CR26: 563974.5125 | CS26: 564767.8358 | CT26: 565405.8541 | CV26: 330323.8092 | CW26: 335076.0702 | CX26: 345539.0574 | CY26: 354285.792 | CZ26: 365224.9488 | DA26: 377995.3126 | DB26: 392282.9847 | DC26: 407105.5636 | DD26: 422894.1959 | DE26: 441046.7152 | DF26: 468343.7066 | DG26: 482927.6629 | DH26: 503113.2925 | DI26: 521034.555 | DJ26: 535328.4459 | DK26: 562114.7746 | DL26: 590080.6311 | DM26: 611358.2279 | DN26: 631187.8305 | DO26: 649557.3159 | DP26: 668585.3361 | DQ26: 684111.4943 | DR26: 697945.5221 | DS26: 710440.8242 | DT26: 722669.5956 | DU26: 734044.7062 | DV26: 745154.7954 | DW26: 756025.9674 | DX26: 766760.6976 | DY26: 774690.8801 | DZ26: 773059.439 | EB26: 330323.8092 | EC26: 335792.0999 | ED26: 347904.3626 | EE26: 357082.7927 | EF26: 367611.4064 | EG26: 380039.4779 | EH26: 393474.938 | EI26: 408125.8819 | EJ26: 424676.2458 | EK26: 440311.5408 | EL26: 471387.8653 | EM26: 508158.4417 | EN26: 540687.2037 | EO26: 563640.6829 | EP26: 585389.434 | EQ26: 608464.2985 | ER26: 628764.8403 | ES26: 646934.8448 | ET26: 663565.2159 | EU26: 678358.9637 | EV26: 691625.8456 | EW26: 703598.4746 | EX26: 714326.3791 | EY26: 723823.1348 | EZ26: 732041.6678 | FA26: 730406.2033 | FB26: 728333.1712 | FC26: 725967.0641 | FD26: 723401.746 | FE26: 720617.3606 | FF26: 717711.5171
A27: Derbyshire | B27: High Peak | D27: 423445.0939 | E27: 430236.2962 | F27: 443749.7299 | G27: 457418.5242 | H27: 477255.0772 | I27: 504886.0796 | J27: 533338.0936 | K27: 563284.7805 | L27: 579312.8833 | M27: 595802.3641 | N27: 617632.7255 | O27: 640551.2845 | P27: 653006.1966 | Q27: 664733.8597 | R27: 675536.794 | S27: 694652.5334 | T27: 704728.9823 | U27: 714763.5485 | V27: 722518.5685 | W27: 729437.6373 | X27: 736850.8375 | Y27: 742094.6915 | Z27: 746586.2507 | AA27: 750270.3093 | AB27: 753506.982 | AC27: 755372.062 | AD27: 757157.3566 | AE27: 758796.8283 | AF27: 760498.884 | AG27: 762224.9122 | AH27: 764087.767 | AJ27: 423579.1962 | AK27: 421394.2229 | AL27: 427234.7299 | AM27: 442916.1879 | AN27: 463095.4908 | AO27: 489506.9282 | AP27: 516673.4421 | AQ27: 544858.0906 | AR27: 559713.2195 | AS27: 575009.2532 | AT27: 588496.1799 | AU27: 596974.1733 | AV27: 604733.477 | AW27: 611946.1448 | AX27: 618814.7759 | AY27: 625658.1177 | AZ27: 632081.949 | BA27: 638241.2532 | BB27: 643853.4883 | BC27: 649099.8737 | BD27: 653514.6306 | BE27: 657681.3358 | BF27: 661502.3818 | BG27: 664881.3442 | BH27: 668115.6116 | BI27: 671137.0235 | BJ27: 673838.3752 | BK27: 676257.6191 | BL27: 678357.3511 | BM27: 680126.609 | BN27: 681341.5528 | BP27: 423445.0939 | BQ27: 430257.9497 | BR27: 443782.9896 | BS27: 457458.7589 | BT27: 477256.1644 | BU27: 504830.0419 | BV27: 533249.4418 | BW27: 563166.4582 | BX27: 579163.9724 | BY27: 595454.584 | BZ27: 616451.5448 | CA27: 638507.4108 | CB27: 650097.5172 | CC27: 661006.0388 | CD27: 671145.5284 | CE27: 688962.3907 | CF27: 697571.7852 | CG27: 706400.4687 | CH27: 712856.484 | CI27: 718371.2821 | CJ27: 724291.3312 | CK27: 728319.7954 | CL27: 731846.1654 | CM27: 734832.5225 | CN27: 737637.2813 | CO27: 739323.3235 | CP27: 740737.0244 | CQ27: 741782.7641 | CR27: 742651.1865 | CS27: 743267.5651 | CT27: 743720.1204 | CV27: 423445.0939 | CW27: 429710.3761 | CX27: 442801.0513 | CY27: 465513.8513 | CZ27: 500040.4228 | DA27: 527708.806 | DB27: 557029.881 | DC27: 588272.5183 | DD27: 606106.3627 | DE27: 623782.82 | DF27: 643543.5913 | DG27: 664397.3583 | DH27: 676309.8163 | DI27: 688044.6472 | DJ27: 707733.7249 | DK27: 738566.5355 | DL27: 762722.212 | DM27: 785073.9477 | DN27: 806089.4182 | DO27: 825550.6819 | DP27: 844642.9945 | DQ27: 861248.0932 | DR27: 876209.6335 | DS27: 889789.7834 | DT27: 903051.4364 | DU27: 915413.474 | DV27: 927532.4782 | DW27: 939354.1768 | DX27: 951015.5556 | DY27: 959498.8577 | DZ27: 957237.0973 | EB27: 423445.0939 | EC27: 429944.6251 | ED27: 444251.4081 | EE27: 467392.6032 | EF27: 501496.4847 | EG27: 528999.9614 | EH27: 557099.8142 | EI27: 587801.5975 | EJ27: 610897.7717 | EK27: 628721.6347 | EL27: 660147.67 | EM27: 693575.3058 | EN27: 724081.9539 | EO27: 748167.0216 | EP27: 770965.2602 | EQ27: 795297.4517 | ER27: 816180.6142 | ES27: 835207.0954 | ET27: 852775.8802 | EU27: 868712.357 | EV27: 883248.3326 | EW27: 896415.9929 | EX27: 908264.1962 | EY27: 918841.5618 | EZ27: 927779.2454 | FA27: 925487.6804 | FB27: 922849.0608 | FC27: 919888.5104 | FD27: 916709.2851 | FE27: 913289.8724 | FF27: 909725.34
A28: Lancashire | B28: Hyndburn | D28: 392070.8815 | E28: 399266.0431 | F28: 412711.4725 | G28: 421284.241 | H28: 429051.6643 | I28: 441351.1475 | J28: 452701.4611 | K28: 465134.3275 | L28: 478038.8849 | M28: 504724.5516 | N28: 519031.8247 | O28: 532593.3299 | P28: 555084.595 | Q28: 566808.1694 | R28: 577378.1016 | S28: 591544.0513 | T28: 610194.5295 | U28: 618617.9175 | V28: 626604.8969 | W28: 633414.3116 | X28: 660812.6138 | Y28: 665913.1828 | Z28: 670292.5306 | AA28: 674160.4155 | AB28: 677584.6736 | AC28: 679092.0821 | AD28: 680671.8058 | AE28: 682314.8611 | AF28: 684000.0439 | AG28: 685854.1839 | AH28: 687901.0339 | AJ28: 392198.3866 | AK28: 391493.8422 | AL28: 398066.5299 | AM28: 408002.1884 | AN28: 416346.7465 | AO28: 425678.5803 | AP28: 436028.049 | AQ28: 447461.6286 | AR28: 459445.6626 | AS28: 471932.1246 | AT28: 484710.5435 | AU28: 492711.5342 | AV28: 500016.1527 | AW28: 506832.1712 | AX28: 513325.7433 | AY28: 519915.9306 | AZ28: 526079.9893 | BA28: 531949.7945 | BB28: 537340.5156 | BC28: 542416.8978 | BD28: 546740.8849 | BE28: 550831.3868 | BF28: 554644.2625 | BG28: 558080.6375 | BH28: 561371.2734 | BI28: 564497.697 | BJ28: 567319.3455 | BK28: 569874.5864 | BL28: 572127.2359 | BM28: 574011.3017 | BN28: 575218.6689 | BP28: 392070.8815 | BQ28: 399285.6491 | BR28: 412745.0626 | BS28: 421331.2011 | BT28: 429115.929 | BU28: 441387.1071 | BV28: 452672.4826 | BW28: 465046.1934 | BX28: 477909.4023 | BY28: 504386.9103 | BZ28: 517873.2269 | CA28: 530568.7249 | CB28: 552179.4143 | CC28: 563057.1445 | CD28: 572928.6199 | CE28: 585745.516 | CF28: 602865.2943 | CG28: 610011.7626 | CH28: 616619.0841 | CI28: 621935.8208 | CJ28: 647747.3796 | CK28: 651570.7158 | CL28: 654952.4713 | CM28: 658119.3614 | CN28: 661136.2786 | CO28: 662515.3158 | CP28: 663734.2767 | CQ28: 664750.6298 | CR28: 665522.0602 | CS28: 666136.0637 | CT28: 666589.1511 | CV28: 392070.8815 | CW28: 398844.5522 | CX28: 412017.5621 | CY28: 420459.6372 | CZ28: 428243.4983 | DA28: 440721.8576 | DB28: 452754.5092 | DC28: 466596.9238 | DD28: 481421.7182 | DE28: 509013.4581 | DF28: 524698.9398 | DG28: 538201.6327 | DH28: 558148.8375 | DI28: 579628.7615 | DJ28: 593792.1977 | DK28: 646532.7118 | DL28: 673080.663 | DM28: 695827.0365 | DN28: 717570.3587 | DO28: 737286.5048 | DP28: 760557.1665 | DQ28: 777183.3182 | DR28: 792214.7213 | DS28: 805868.8741 | DT28: 819375.8026 | DU28: 831611.1923 | DV28: 843638.9034 | DW28: 855230.0592 | DX28: 866417.066 | DY28: 874392.5063 | DZ28: 871534.0262 | EB28: 392070.8815 | EC28: 399093.4539 | ED28: 413493.6588 | EE28: 422258.3911 | EF28: 429485.8371 | EG28: 441385.7565 | EH28: 453017.4626 | EI28: 480577.4225 | EJ28: 494388.1472 | EK28: 513386.335 | EL28: 541333.3241 | EM28: 569256.3377 | EN28: 616842.9699 | EO28: 648320.6575 | EP28: 671697.5109 | EQ28: 701751.5324 | ER28: 723089.49 | ES28: 742236.3976 | ET28: 759972.4914 | EU28: 776069.7683 | EV28: 790583.2086 | EW28: 803850.6914 | EX28: 815889.338 | EY28: 826562.2965 | EZ28: 835054.0024 | FA28: 832196.809 | FB28: 829042.7289 | FC28: 825598.0758 | FD28: 821953.3854 | FE28: 818071.5021 | FF28: 814063.7188
A29: Lancashire | B29: Lancaster | D29: 573925.7055 | E29: 582883.4733 | F29: 601330.9182 | G29: 612353.2298 | H29: 625858.0029 | I29: 656450.8831 | J29: 675479.9378 | K29: 696735.2925 | L29: 717995.3856 | M29: 739870.2193 | N29: 784336.0052 | O29: 807356.8559 | P29: 828474.622 | Q29: 848554.9096 | R29: 867577.5188 | S29: 887434.2202 | T29: 906956.6262 | U29: 1263034.022 | V29: 1282844.653 | W29: 1287459.142 | X29: 1288464.906 | Y29: 1294563.648 | Z29: 1306155.776 | AA29: 1308602.714 | AB29: 1317385.301 | AC29: 1318569.672 | AD29: 1316438.473 | AE29: 1319338.982 | AF29: 1314537.449 | AG29: 1308063.128 | AH29: 1308695.486 | AJ29: 574156.5623 | AK29: 572519.5439 | AL29: 581895.005 | AM29: 595734.2861 | AN29: 609600.9625 | AO29: 625471.5692 | AP29: 643158.3825 | AQ29: 662782.1412 | AR29: 683152.1662 | AS29: 704284.3986 | AT29: 725891.577 | AU29: 739913.9215 | AV29: 752782.9331 | AW29: 764728.7371 | AX29: 776376.2515 | AY29: 788815.7361 | AZ29: 800627.7564 | BA29: 811558.9902 | BB29: 821455.9079 | BC29: 830965.2199 | BD29: 839142.3151 | BE29: 847028.0331 | BF29: 854444.5142 | BG29: 861238.4022 | BH29: 867794.8206 | BI29: 874138.8275 | BJ29: 879953.5525 | BK29: 885289.0397 | BL29: 890089.0787 | BM29: 894132.2132 | BN29: 896645.7507 | BP29: 573925.7055 | BQ29: 582958.5904 | BR29: 601452.6186 | BS29: 612518.8698 | BT29: 626063.6294 | BU29: 656618.2424 | BV29: 675531.224 | BW29: 696661.0079 | BX29: 717808.6275 | BY29: 739295.7421 | BZ29: 782409.6311 | CA29: 803971.7531 | CB29: 823573.4311 | CC29: 842160.8502 | CD29: 859893.3127 | CE29: 877437.7001 | CF29: 894198.6865 | CG29: 1247765.244 | CH29: 1264774.606 | CI29: 1266293.384 | CJ29: 1263950.922 | CK29: 1267309.29 | CL29: 1276720.38 | CM29: 1277573.721 | CN29: 1285344.448 | CO29: 1286071.382 | CP29: 1283033.967 | CQ29: 1284509.657 | CR29: 1277718.889 | CS29: 1268619.84 | CT29: 1265942.757 | CV29: 573925.7055 | CW29: 582293.926 | CX29: 600479.3274 | CY29: 611474.1652 | CZ29: 625233.4719 | DA29: 655947.4241 | DB29: 676836.3492 | DC29: 701579.3464 | DD29: 737140.4816 | DE29: 762281.9705 | DF29: 808192.2985 | DG29: 831747.8275 | DH29: 853962.3384 | DI29: 880001.2416 | DJ29: 904983.7922 | DK29: 958029.457 | DL29: 1011861.145 | DM29: 1049927.407 | DN29: 1085521.265 | DO29: 1440435.784 | DP29: 1460158.742 | DQ29: 1483318.418 | DR29: 1506012.976 | DS29: 1522905.843 | DT29: 1546252.581 | DU29: 1563459.683 | DV29: 1577348.755 | DW29: 1595497.795 | DX29: 1605489.725 | DY29: 1608777.626 | DZ29: 1600701.133 | EB29: 573925.7055 | EC29: 583245.3291 | ED29: 603342.7594 | EE29: 614690.1249 | EF29: 627741.3182 | EG29: 644865.1811 | EH29: 696072.2075 | EI29: 744742.8232 | EJ29: 776865.3127 | EK29: 800682.0372 | EL29: 843528.7177 | EM29: 888639.4259 | EN29: 929708.5398 | EO29: 970242.0198 | EP29: 1358034.329 | EQ29: 1391726.313 | ER29: 1423994.88 | ES29: 1452223.507 | ET29: 1478620.364 | EU29: 1496902.308 | EV29: 1511637.553 | EW29: 1528989.699 | EX29: 1546566.574 | EY29: 1558534.107 | EZ29: 1575253.316 | FA29: 1570003.115 | FB29: 1561104.635 | FC29: 1556402.905 | FD29: 1543506.916 | FE29: 1528257.508 | FF29: 1518211.378
A30: Greater Manchester | B30: Manchester | D30: 2430984.986 | E30: 2501873.965 | F30: 2632471.803 | G30: 2705764.144 | H30: 2787396.741 | I30: 2879493.064 | J30: 2976367.713 | K30: 3075320.38 | L30: 3164083.018 | M30: 3254575.28 | N30: 3344104.603 | O30: 3429113.277 | P30: 3501679.815 | Q30: 3573483.711 | R30: 3661398.225 | S30: 3733920.587 | T30: 3808181.675 | U30: 3872445.701 | V30: 3918348.097 | W30: 3956059.476 | X30: 4005779.019 | Y30: 4043653.247 | Z30: 4069270.98 | AA30: 4090598.733 | AB30: 4109263.601 | AC30: 4123173.06 | AD30: 4133299.786 | AE30: 4143290.057 | AF30: 4153600.467 | AG30: 4163544.329 | AH30: 4174130.047 | AJ30: 2431636.66 | AK30: 2436636.374 | AL30: 2497961.882 | AM30: 2579469.654 | AN30: 2663886.604 | AO30: 2748078.373 | AP30: 2837612.658 | AQ30: 2932379.341 | AR30: 3013973.153 | AS30: 3088466.854 | AT30: 3162393.182 | AU30: 3209513.536 | AV30: 3252900.06 | AW30: 3293245.868 | AX30: 3331833.355 | AY30: 3370496.16 | AZ30: 3406941.799 | BA30: 3442020.444 | BB30: 3474044.129 | BC30: 3504047.931 | BD30: 3529354.029 | BE30: 3553319.822 | BF30: 3575403.309 | BG30: 3595055.99 | BH30: 3613940.748 | BI30: 3631644.32 | BJ30: 3647568.138 | BK30: 3661897.577 | BL30: 3674437.871 | BM30: 3685128.96 | BN30: 3692763.171 | BP30: 2430984.986 | BQ30: 2502057.343 | BR30: 2632726.224 | BS30: 2706111.415 | BT30: 2787802.39 | BU30: 2879737.779 | BV30: 2976289.233 | BW30: 3074933.63 | BX30: 3163439.518 | BY30: 3252757.479 | BZ30: 3337868.924 | CA30: 3418293.501 | CB30: 3486259.812 | CC30: 3553694.889 | CD30: 3638044.21 | CE30: 3703669.135 | CF30: 3770061.362 | CG30: 3827738.37 | CH30: 3866489.339 | CI30: 3896425.745 | CJ30: 3937839.237 | CK30: 3968924.612 | CL30: 3989128.87 | CM30: 4006508.554 | CN30: 4022683.139 | CO30: 4035491.271 | CP30: 4043461.419 | CQ30: 4050076.492 | CR30: 4055692.367 | CS30: 4059429.365 | CT30: 4062163.166 | CV30: 2430984.986 | CW30: 2498870.246 | CX30: 2626744.888 | CY30: 2714140.38 | CZ30: 2820772.558 | DA30: 2912776.63 | DB30: 3012801.188 | DC30: 3119055.728 | DD30: 3220565.198 | DE30: 3318365.705 | DF30: 3409547.273 | DG30: 3494866.042 | DH30: 3568578.634 | DI30: 3665845.897 | DJ30: 3757667.977 | DK30: 3963876.112 | DL30: 4127743.055 | DM30: 4250914.422 | DN30: 4361833.844 | DO30: 4464428.033 | DP30: 4561852.868 | DQ30: 4650555.074 | DR30: 4730254.37 | DS30: 4802681.506 | DT30: 4873238.65 | DU30: 4939114.426 | DV30: 5002197.241 | DW30: 5063598.201 | DX30: 5124240.909 | DY30: 5168310.58 | DZ30: 5155662.024 | EB30: 2430984.986 | EC30: 2501523.03 | ED30: 2636521.116 | EE30: 2725291.367 | EF30: 2828647.015 | EG30: 2917778.433 | EH30: 3027509.019 | EI30: 3141621.359 | EJ30: 3243421.086 | EK30: 3350765.476 | EL30: 3547430.311 | EM30: 3744566.75 | EN30: 3890613.859 | EO30: 4021226.607 | EP30: 4140801.826 | EQ30: 4261544.098 | ER30: 4372404.174 | ES30: 4475085.433 | ET30: 4569804.009 | EU30: 4655062.427 | EV30: 4732842.632 | EW30: 4803760.627 | EX30: 4867437.119 | EY30: 4924175.866 | EZ30: 4972124.508 | FA30: 4961186.164 | FB30: 4947279.058 | FC30: 4931592.278 | FD30: 4914738.365 | FE30: 4896420.522 | FF30: 4877359.443
A31: Northumberland | B31: Northumberland | D31: 11.91522885 | E31: 12.10387387 | F31: 12.52995406 | G31: 12.80979681 | H31: 13.14927416 | I31: 13.50133337 | J31: 13.98419344 | K31: 14.63609475 | L31: 15.06660383 | M31: 15.60955 | N31: 16.19185144 | O31: 16.66585612 | P31: 17.18261599 | Q31: 17.59777626 | R31: 18.08179123 | S31: 18.76270408 | T31: 19.59677501 | U31: 19.92433417 | V31: 20.23789949 | W31: 20.56484008 | X31: 20.90576989 | Y31: 21.063459 | Z31: 21.36457775 | AA31: 21.47209311 | AB31: 21.57044436 | AC31: 21.70813564 | AD31: 21.7390727 | AE31: 21.76050146 | AF31: 21.79666417 | AG31: 21.82626786 | AH31: 21.86394983 | AJ31: 11.9197542 | AK31: 11.89728427 | AL31: 12.11316278 | AM31: 12.40778469 | AN31: 12.69027196 | AO31: 12.97972137 | AP31: 13.303643 | AQ31: 13.6674434 | AR31: 14.04686313 | AS31: 14.44344251 | AT31: 14.85136025 | AU31: 15.09589116 | AV31: 15.31297552 | AW31: 15.51639532 | AX31: 15.71885545 | AY31: 15.94672778 | AZ31: 16.16278897 | BA31: 16.36192803 | BB31: 16.54235433 | BC31: 16.71857401 | BD31: 16.86899867 | BE31: 17.01311823 | BF31: 17.14832311 | BG31: 17.27088819 | BH31: 17.38961355 | BI31: 17.50346545 | BJ31: 17.60783684 | BK31: 17.70377241 | BL31: 17.78986152 | BM31: 17.85727309 | BN31: 17.8824345 | BP31: 11.91522885 | BQ31: 12.10584965 | BR31: 12.53432028 | BS31: 12.81633878 | BT31: 13.15747906 | BU31: 13.50880241 | BV31: 13.98958592 | BW31: 14.63881654 | BX31: 15.0674165 | BY31: 15.60326444 | BZ31: 16.15982959 | CA31: 16.60638123 | CB31: 17.09496137 | CC31: 17.48280015 | CD31: 17.94385535 | CE31: 18.58203962 | CF31: 19.36642244 | CG31: 19.65084684 | CH31: 19.91708232 | CI31: 20.19228185 | CJ31: 20.47771732 | CK31: 20.59015074 | CL31: 20.85532882 | CM31: 20.9367592 | CN31: 21.01878573 | CO31: 21.14943629 | CP31: 21.1660135 | CQ31: 21.16462077 | CR31: 21.16879089 | CS31: 21.15596965 | CT31: 21.13993821 | CV31: 11.91522885 | CW31: 12.0944035 | CX31: 12.52097433 | CY31: 12.80604488 | CZ31: 13.15637242 | DA31: 13.53371933 | DB31: 14.06858801 | DC31: 14.79522842 | DD31: 15.31737403 | DE31: 15.93538969 | DF31: 16.66055179 | DG31: 17.15392147 | DH31: 17.66403475 | DI31: 18.51897048 | DJ31: 19.14152625 | DK31: 21.29972068 | DL31: 22.24508917 | DM31: 22.90027301 | DN31: 23.48398452 | DO31: 23.99598115 | DP31: 24.54440872 | DQ31: 24.95126511 | DR31: 25.31230861 | DS31: 25.62203934 | DT31: 25.93046897 | DU31: 26.20462928 | DV31: 26.4799625 | DW31: 26.74742335 | DX31: 27.01956896 | DY31: 27.2024236 | DZ31: 27.11006723 | EB31: 11.91522885 | EC31: 12.10257316 | ED31: 12.56386769 | EE31: 12.86043511 | EF31: 13.20253293 | EG31: 13.59611978 | EH31: 14.51432902 | EI31: 15.73189749 | EJ31: 16.47553289 | EK31: 17.05090048 | EL31: 18.00985025 | EM31: 19.70333497 | EN31: 20.39573852 | EO31: 21.15072712 | EP31: 21.77718562 | EQ31: 22.43623359 | ER31: 23.02222861 | ES31: 23.53732328 | ET31: 24.00871884 | EU31: 24.41138223 | EV31: 24.76703811 | EW31: 25.07555932 | EX31: 25.34740467 | EY31: 25.5799887 | EZ31: 25.78283796 | FA31: 25.70076904 | FB31: 25.60709631 | FC31: 25.50332561 | FD31: 25.39404581 | FE31: 25.27492415 | FF31: 25.15266416
A32: Greater Manchester | B32: Oldham | D32: 935596.009 | E32: 954063.1188 | F32: 994290.4673 | G32: 1016716.592 | H32: 1041658.888 | I32: 1070420.97 | J32: 1103114.574 | K32: 1137872.72 | L32: 1169346.016 | M32: 1201455.689 | N32: 1237814.922 | O32: 1271529.635 | P32: 1300454.831 | Q32: 1327787.23 | R32: 1353148.557 | S32: 1380989.319 | T32: 1405216.7 | U32: 1426594.134 | V32: 1445669.445 | W32: 1463111.123 | X32: 1478778.572 | Y32: 1492433.092 | Z32: 1504368.208 | AA32: 1514445.87 | AB32: 1523353.496 | AC32: 1528968.052 | AD32: 1534412.032 | AE32: 1539789.281 | AF32: 1545127.23 | AG32: 1550603.545 | AH32: 1556342.781 | AJ32: 935875.4429 | AK32: 932515.2401 | AL32: 950596.2271 | AM32: 975921.6331 | AN32: 1001767.729 | AO32: 1030265.967 | AP32: 1060963.859 | AQ32: 1093914.881 | AR32: 1124023.399 | AS32: 1155177.902 | AT32: 1186338.748 | AU32: 1206807.575 | AV32: 1225688.589 | AW32: 1243357.013 | AX32: 1260348.036 | AY32: 1277477.498 | AZ32: 1293653.837 | BA32: 1309266.961 | BB32: 1323559.12 | BC32: 1336935.304 | BD32: 1348315.338 | BE32: 1359056.532 | BF32: 1368976.534 | BG32: 1377840.748 | BH32: 1386402.217 | BI32: 1394422.516 | BJ32: 1401675.961 | BK32: 1408241.392 | BL32: 1414035.973 | BM32: 1419011.78 | BN32: 1422620.993 | BP32: 935596.009 | BQ32: 954160.9381 | BR32: 994415.1013 | BS32: 1016872.701 | BT32: 1041830.702 | BU32: 1070517.04 | BV32: 1103048.768 | BW32: 1137639.59 | BX32: 1168962.312 | BY32: 1200540.159 | BZ32: 1235014.021 | CA32: 1266770.469 | CB32: 1293726.811 | CC32: 1319185.615 | CD32: 1343009.744 | CE32: 1367925.368 | CF32: 1388777.344 | CG32: 1407279.597 | CH32: 1423210.927 | CI32: 1437216.708 | CJ32: 1449196.786 | CK32: 1459812.585 | CL32: 1469298.285 | CM32: 1477555.259 | CN32: 1485268.355 | CO32: 1490285.87 | CP32: 1494700.993 | CQ32: 1498546.899 | CR32: 1501807.929 | CS32: 1504580.35 | CT32: 1506933.3 | CV32: 935596.009 | CW32: 952902.531 | CX32: 992071.2918 | CY32: 1016516.147 | CZ32: 1045600.123 | DA32: 1074388.307 | DB32: 1108434.363 | DC32: 1146421.901 | DD32: 1182206.84 | DE32: 1217705.332 | DF32: 1255082.603 | DG32: 1289428.667 | DH32: 1319195.687 | DI32: 1346887.001 | DJ32: 1381561.957 | DK32: 1443770.266 | DL32: 1501540.001 | DM32: 1555848.714 | DN32: 1606809.584 | DO32: 1654626.153 | DP32: 1699732.382 | DQ32: 1741267.366 | DR32: 1778899.598 | DS32: 1813350.922 | DT32: 1847028.361 | DU32: 1878612.409 | DV32: 1909473.015 | DW32: 1939507.626 | DX32: 1969005.82 | DY32: 1990930.19 | DZ32: 1986822.099 | EB32: 935596.009 | EC32: 953159.2739 | ED32: 994576.3445 | EE32: 1019729.3 | EF32: 1047621.157 | EG32: 1075366.207 | EH32: 1107157.989 | EI32: 1143502.385 | EJ32: 1178715.353 | EK32: 1215802.992 | EL32: 1282135.704 | EM32: 1347117.506 | EN32: 1409175.595 | EO32: 1467208.303 | EP32: 1522321.424 | EQ32: 1576670.057 | ER32: 1627544.967 | ES32: 1674997.54 | ET32: 1718924.716 | EU32: 1759096.622 | EV32: 1795933.466 | EW32: 1829681.408 | EX32: 1860307.872 | EY32: 1887911.59 | EZ32: 1911218.185 | FA32: 1907717.801 | FB32: 1903314.923 | FC32: 1898106.242 | FD32: 1892294.495 | FE32: 1885839.504 | FF32: 1878958.737
A33: Lancashire | B33: Pendle | D33: 343098.9149 | E33: 349393.1848 | F33: 361048.1342 | G33: 367793.2614 | H33: 374903.3559 | I33: 386106.4351 | J33: 396854.2973 | K33: 407914.9689 | L33: 419316.7951 | M33: 442865.8521 | N33: 455397.5119 | O33: 467243.4663 | P33: 487014.1425 | Q33: 497111.8231 | R33: 506390.7636 | S33: 518746.5066 | T33: 535158.4154 | U33: 542513.1781 | V33: 549306.8369 | W33: 555361.0643 | X33: 579466.598 | Y33: 583969.2598 | Z33: 587839.0707 | AA33: 591027.5415 | AB33: 594069.6044 | AC33: 595438.2946 | AD33: 596867.399 | AE33: 598352.6423 | AF33: 599875.7348 | AG33: 601548.2449 | AH33: 603390.1467 | AJ33: 343210.4426 | AK33: 342616.1188 | AL33: 348326.5743 | AM33: 356315.4786 | AN33: 363899.4878 | AO33: 372401.6807 | AP33: 382085.1519 | AQ33: 392244.8784 | AR33: 402828.7548 | AS33: 413790.7574 | AT33: 425007.5431 | AU33: 432048.0386 | AV33: 438477.9428 | AW33: 444483.8132 | AX33: 450206.7545 | AY33: 456008.1135 | AZ33: 461438.4261 | BA33: 466614.2833 | BB33: 471372.0862 | BC33: 475853.3809 | BD33: 479672.3153 | BE33: 483286.1351 | BF33: 486656.2943 | BG33: 489695.7257 | BH33: 492611.3076 | BI33: 495381.5802 | BJ33: 497884.2399 | BK33: 500152.7879 | BL33: 502155.4076 | BM33: 503836.4856 | BN33: 504930.6135 | BP33: 343098.9149 | BQ33: 349411.4301 | BR33: 361080.395 | BS33: 367840.0624 | BT33: 374964.8283 | BU33: 386142.4883 | BV33: 396831.9887 | BW33: 407840.6352 | BX33: 419206.107 | BY33: 442573.1707 | BZ33: 454387.2483 | CA33: 465475.5434 | CB33: 484475.2109 | CC33: 493831.6931 | CD33: 502497.8069 | CE33: 513671.7203 | CF33: 528741.4969 | CG33: 534974.6738 | CH33: 540555.8157 | CI33: 545297.6844 | CJ33: 568007.739 | CK33: 571387.1294 | CL33: 574379.6968 | CM33: 576951.7769 | CN33: 579635.7163 | CO33: 580891.6589 | CP33: 582003.2594 | CQ33: 582936.6941 | CR33: 583655.0405 | CS33: 584235.3405 | CT33: 584673.6428 | CV33: 343098.9149 | CW33: 349023.0493 | CX33: 360436.4917 | CY33: 367064.8585 | CZ33: 374188.0349 | DA33: 385537.1684 | DB33: 396876.2755 | DC33: 409168.7464 | DD33: 422245.5635 | DE33: 446572.7152 | DF33: 460319.8499 | DG33: 472118.4071 | DH33: 489652.0854 | DI33: 508146.0437 | DJ33: 520586.1028 | DK33: 566713.2199 | DL33: 589830.1492 | DM33: 609824.884 | DN33: 628964.5241 | DO33: 646328.7954 | DP33: 666780.7794 | DQ33: 681440.0353 | DR33: 694701.2317 | DS33: 706752.1372 | DT33: 718675.0682 | DU33: 729477.3869 | DV33: 740087.845 | DW33: 750310.8341 | DX33: 760175.1144 | DY33: 767212.5703 | DZ33: 764726.9938 | EB33: 343098.9149 | EC33: 349225.3836 | ED33: 361698.2657 | EE33: 368609.4992 | EF33: 375245.6275 | EG33: 386073.405 | EH33: 396850.631 | EI33: 420951.5132 | EJ33: 432969.3105 | EK33: 449652.0592 | EL33: 474014.1159 | EM33: 498582.6688 | EN33: 540387.998 | EO33: 568092.4185 | EP33: 588660.6933 | EQ33: 615070.1649 | ER33: 633844.6691 | ES33: 650704.8816 | ET33: 666328.0401 | EU33: 680520.9841 | EV33: 693314.829 | EW33: 705031.7681 | EX33: 715667.8752 | EY33: 725101.4103 | EZ33: 732609.4717 | FA33: 730136.318 | FB33: 727396.183 | FC33: 724399.976 | FD33: 721227.0175 | FE33: 717844.9682 | FF33: 714351.2903
A34: Lancashire | B34: Preston | D34: 616045.8356 | E34: 630243.7542 | F34: 658217.7378 | G34: 700334.7717 | H34: 715846.9238 | I34: 731679.8524 | J34: 750354.1511 | K34: 770908.0892 | L34: 791933.3354 | M34: 813456.0305 | N34: 837378.4763 | O34: 860390.7045 | P34: 880655.7245 | Q34: 905883.1692 | R34: 923619.3085 | S34: 944495.5908 | T34: 961568.9852 | U34: 977966.0987 | V34: 998997.0052 | W34: 1011861.593 | X34: 1024238.839 | Y34: 1033624.943 | Z34: 1041754.347 | AA34: 1056038.998 | AB34: 1061618.508 | AC34: 1064724.764 | AD34: 1068016.048 | AE34: 1071421.976 | AF34: 1074915.813 | AG34: 1078677.241 | AH34: 1082792.974 | AJ34: 616236.1174 | AK34: 614954.962 | AL34: 627786.8182 | AM34: 669639.4538 | AN34: 684411.2191 | AO34: 699386.614 | AP34: 716041.4297 | AQ34: 734458.9101 | AR34: 753647.6196 | AS34: 773666.1155 | AT34: 794064.7372 | AU34: 807397.3086 | AV34: 819756.2013 | AW34: 831309.984 | AX34: 842444.6923 | AY34: 853802.7008 | AZ34: 864509.6553 | BA34: 874628.8053 | BB34: 883838.2691 | BC34: 892460.3489 | BD34: 899727.1218 | BE34: 906670.5874 | BF34: 913151.6072 | BG34: 919034.3706 | BH34: 924612.7332 | BI34: 929943.321 | BJ34: 934725.1152 | BK34: 939012.481 | BL34: 942747.5201 | BM34: 945854.7943 | BN34: 947864.4314 | BP34: 616045.8356 | BQ34: 630283.2045 | BR34: 658246.1018 | BS34: 700303.3646 | BT34: 715842.3553 | BU34: 731630.4223 | BV34: 750181.9154 | BW34: 770610.1431 | BX34: 791526.8686 | BY34: 812651.0157 | BZ34: 835150.5233 | CA34: 856644.9368 | CB34: 875347.4499 | CC34: 899051.7963 | CD34: 915491.8209 | CE34: 933992.7447 | CF34: 948267.902 | CG34: 962177.8885 | CH34: 980454.0989 | CI34: 990287.7173 | CJ34: 999397.7818 | CK34: 1006114.109 | CL34: 1012121.137 | CM34: 1024860.289 | CN34: 1029466.21 | CO34: 1032143.991 | CP34: 1034568.005 | CQ34: 1036600.387 | CR34: 1038170.469 | CS34: 1039386.648 | CT34: 1040286.126 | CV34: 616045.8356 | CW34: 629533.7265 | CX34: 656932.29 | CY34: 698703.2535 | CZ34: 714168.6705 | DA34: 730288.9599 | DB34: 749987.5621 | DC34: 772723.4396 | DD34: 796880.5473 | DE34: 821150.9036 | DF34: 846581.3979 | DG34: 871042.879 | DH34: 892865.9764 | DI34: 926399.8304 | DJ34: 950789.3985 | DK34: 1004863.604 | DL34: 1054558.976 | DM34: 1092388.683 | DN34: 1127120.858 | DO34: 1159361.688 | DP34: 1191032.815 | DQ34: 1218360.532 | DR34: 1242986.611 | DS34: 1265349.828 | DT34: 1286819.821 | DU34: 1306797.952 | DV34: 1326286.124 | DW34: 1344972.264 | DX34: 1362971.486 | DY34: 1375976.285 | DZ34: 1372412.666 | EB34: 616045.8356 | EC34: 630589.8926 | ED34: 660421.109 | EE34: 702835.8701 | EF34: 717587.8086 | EG34: 733395.7456 | EH34: 761524.6878 | EI34: 795670.1452 | EJ34: 826443.6086 | EK34: 852384.8259 | EL34: 902894.899 | EM34: 945120.3649 | EN34: 989237.3376 | EO34: 1028800.723 | EP34: 1066402.318 | EQ34: 1104686.805 | ER34: 1139846.688 | ES34: 1171935.174 | ET34: 1201464.127 | EU34: 1227970.785 | EV34: 1252522.194 | EW34: 1273984.793 | EX34: 1293208.206 | EY34: 1310275.899 | EZ34: 1323986.706 | FA34: 1320608.723 | FB34: 1316783.711 | FC34: 1312328.688 | FD34: 1307399.353 | FE34: 1301981.87 | FF34: 1296260.899
A35: Lancashire | B35: Ribble Valley | D35: 246060.6752 | E35: 250917.9597 | F35: 260165.0065 | G35: 268928.6599 | H35: 274194.0193 | I35: 281500.5524 | J35: 288723.052 | K35: 296646.0455 | L35: 304833.1914 | M35: 319170.9032 | N35: 328320.2265 | O35: 337032.4395 | P35: 349367.3451 | Q35: 357528.8092 | R35: 364295.4881 | S35: 373022.7067 | T35: 383283.1295 | U35: 388942.9457 | V35: 394957.1704 | W35: 399486.383 | X35: 413059.0482 | Y35: 416422.0997 | Z35: 419317.9407 | AA35: 422714.7076 | AB35: 424887.2365 | AC35: 425920.3844 | AD35: 427007.3537 | AE35: 428135.8572 | AF35: 429293.3635 | AG35: 430557.1591 | AH35: 431947.981 | AJ35: 246139.5077 | AK35: 245676.7675 | AL35: 250097.5232 | AM35: 259432.3599 | AN35: 264865.3962 | AO35: 270758.8608 | AP35: 277300.4802 | AQ35: 284529.4684 | AR35: 292092.8506 | AS35: 299976.3139 | AT35: 308033.7213 | AU35: 313144.8993 | AV35: 317833.2739 | AW35: 322210.5934 | AX35: 326395.8908 | AY35: 330650.2639 | AZ35: 334639.3894 | BA35: 338429.0347 | BB35: 341899.4814 | BC35: 345161.6119 | BD35: 347931.1087 | BE35: 350559.2172 | BF35: 353009.9951 | BG35: 355223.6982 | BH35: 357337.0296 | BI35: 359348.5137 | BJ35: 361160.4674 | BK35: 362796.2703 | BL35: 364233.0905 | BM35: 365432.8488 | BN35: 366203.8615 | BP35: 246060.6752 | BQ35: 250931.2848 | BR35: 260183.2031 | BS35: 268945.7065 | BT35: 274221.8845 | BU35: 281510.6082 | BV35: 288689.9007 | BW35: 296571.8999 | BX35: 304727.9527 | BY35: 318926.5858 | BZ35: 327544.9813 | CA35: 335695.1477 | CB35: 347456.2883 | CC35: 355063.993 | CD35: 361368.8671 | CE35: 369219.2452 | CF35: 378472.593 | CG35: 383274.2508 | CH35: 388353.3039 | CI35: 391864.7589 | CJ35: 404350.1904 | CK35: 406833.3731 | CL35: 409037.6014 | CM35: 411941.9883 | CN35: 413819.4818 | CO35: 414745.284 | CP35: 415570.3626 | CQ35: 416259.632 | CR35: 416786.0405 | CS35: 417201.0698 | CT35: 417507.5675 | CV35: 246060.6752 | CW35: 250647.7949 | CX35: 259706.4655 | CY35: 268371.4382 | CZ35: 273638.4538 | DA35: 281057.914 | DB35: 288702.9319 | DC35: 297506.6509 | DD35: 306912.4491 | DE35: 321975.057 | DF35: 331911.3155 | DG35: 340768.6812 | DH35: 352162.9761 | DI35: 365618.0208 | DJ35: 374758.9787 | DK35: 404458.1876 | DL35: 422061.9842 | DM35: 436584.1151 | DN35: 450297.0594 | DO35: 462819.7083 | DP35: 476846.2896 | DQ35: 487422.8488 | DR35: 496975.4337 | DS35: 505651.999 | DT35: 514157.9965 | DU35: 521925.7483 | DV35: 529543.8384 | DW35: 536874.234 | DX35: 543944.8526 | DY35: 549006.0365 | DZ35: 547321.6312 | EB35: 246060.6752 | EC35: 250882.5377 | ED35: 260770.9405 | EE35: 269654.5645 | EF35: 274591.3676 | EG35: 281718.2537 | EH35: 290181.7662 | EI35: 306396.7861 | EJ35: 316135.7491 | EK35: 327597.0838 | EL35: 345915.429 | EM35: 363244.492 | EN35: 389489.2349 | EO35: 408075.6716 | EP35: 422849.5422 | EQ35: 440655.6061 | ER35: 454239.8624 | ES35: 466492.8982 | ET35: 477820.0452 | EU35: 488065.8706 | EV35: 497380.695 | EW35: 505779.9831 | EX35: 513371.6499 | EY35: 520105.0586 | EZ35: 525477.8292 | FA35: 523815.9181 | FB35: 521969.9878 | FC35: 519921.2123 | FD35: 517727.9985 | FE35: 515372.2884 | FF35: 512925.0849
A36: North Yorkshire | B36: Richmondshire | D36: 237.8939844 | E36: 241.6603842 | F36: 250.1673055 | G36: 255.7545173 | H36: 262.5323661 | I36: 269.5614185 | J36: 279.2019809 | K36: 292.2175428 | L36: 300.8128893 | M36: 311.6531031 | N36: 323.2790661 | O36: 332.7428257 | P36: 343.0602157 | Q36: 351.349115 | R36: 361.0127356 | S36: 374.6075286 | T36: 391.2602055 | U36: 397.8001011 | V36: 404.0606022 | W36: 410.588148 | X36: 417.3949957 | Y36: 420.5433441 | Z36: 426.5553427 | AA36: 428.701945 | AB36: 430.6655808 | AC36: 433.4146618 | AD36: 434.0323368 | AE36: 434.4601736 | AF36: 435.1821816 | AG36: 435.7732354 | AH36: 436.5255763 | AJ36: 237.9843355 | AK36: 237.5357112 | AL36: 241.8458423 | AM36: 247.7281281 | AN36: 253.368139 | AO36: 259.1471529 | AP36: 265.6144233 | AQ36: 272.877895 | AR36: 280.4532149 | AS36: 288.3711366 | AT36: 296.5154349 | AU36: 301.3976267 | AV36: 305.7318332 | AW36: 309.7932196 | AX36: 313.8354454 | AY36: 318.3850397 | AZ36: 322.6988181 | BA36: 326.6747371 | BB36: 330.2770457 | BC36: 333.7953669 | BD36: 336.7986764 | BE36: 339.6761014 | BF36: 342.37554 | BG36: 344.822618 | BH36: 347.193034 | BI36: 349.4661486 | BJ36: 351.5499798 | BK36: 353.4653853 | BL36: 355.184201 | BM36: 356.5301095 | BN36: 357.0324706 | BP36: 237.8939844 | BQ36: 241.6998316 | BR36: 250.2544795 | BS36: 255.8851312 | BT36: 262.6961813 | BU36: 269.7105418 | BV36: 279.3096445 | BW36: 292.2718849 | BX36: 300.8291146 | BY36: 311.5276085 | BZ36: 322.6397325 | CA36: 331.5553773 | CB36: 341.3101438 | CC36: 349.0535548 | CD36: 358.2587711 | CE36: 371.000465 | CF36: 386.6610919 | CG36: 392.3397787 | CH36: 397.655314 | CI36: 403.1498214 | CJ36: 408.848695 | CK36: 411.093489 | CL36: 416.3879125 | CM36: 418.0137141 | CN36: 419.6514182 | CO36: 422.2599272 | CP36: 422.5909001 | CQ36: 422.5630936 | CR36: 422.6463523 | CS36: 422.3903693 | CT36: 422.070293 | CV36: 237.8939844 | CW36: 241.4713031 | CX36: 249.9880202 | CY36: 255.6796079 | CZ36: 262.6740866 | DA36: 270.2080216 | DB36: 280.886964 | DC36: 295.3947324 | DD36: 305.8196519 | DE36: 318.1586685 | DF36: 332.6369219 | DG36: 342.4873143 | DH36: 352.6720016 | DI36: 369.7412555 | DJ36: 382.1709179 | DK36: 425.2604363 | DL36: 444.1352292 | DM36: 457.2163288 | DN36: 468.8704444 | DO36: 479.0927341 | DP36: 490.0423868 | DQ36: 498.1654946 | DR36: 505.3739232 | DS36: 511.5578646 | DT36: 517.715829 | DU36: 523.1895877 | DV36: 528.6867643 | DW36: 534.0267646 | DX36: 539.4602989 | DY36: 543.1110907 | DZ36: 541.2671458 | EB36: 237.8939844 | EC36: 241.6344148 | ED36: 250.8444095 | EE36: 256.7655383 | EF36: 263.5957062 | EG36: 271.4538803 | EH36: 289.7864242 | EI36: 314.0958368 | EJ36: 328.9429195 | EK36: 340.4304443 | EL36: 359.576395 | EM36: 393.3877327 | EN36: 407.2119439 | EO36: 422.2856993 | EP36: 434.7932819 | EQ36: 447.9515309 | ER36: 459.6512381 | ES36: 469.9353817 | ET36: 479.3470489 | EU36: 487.386441 | EV36: 494.4873029 | EW36: 500.6470957 | EX36: 506.0746351 | EY36: 510.7183009 | EZ36: 514.768296 | FA36: 513.1297456 | FB36: 511.2595191 | FC36: 509.1876809 | FD36: 507.0058506 | FE36: 504.6275223 | FF36: 502.1865355
A37: Greater Manchester | B37: Rochdale | D37: 879410.5931 | E37: 899513.4165 | F37: 935968.6236 | G37: 960840.7676 | H37: 995811.9789 | I37: 1035427.951 | J37: 1094861.199 | K37: 1131375.219 | L37: 1165680.466 | M37: 1200582.564 | N37: 1235074.297 | O37: 1266500.558 | P37: 1296079.61 | Q37: 1324321.925 | R37: 1350715.056 | S37: 1377289.379 | T37: 1402936.161 | U37: 1425396.86 | V37: 1446140.928 | W37: 1468297.985 | X37: 1485253.116 | Y37: 1500397.473 | Z37: 1513697.888 | AA37: 1525018.005 | AB37: 1535005.766 | AC37: 1541813.279 | AD37: 1548678.907 | AE37: 1555694.406 | AF37: 1562833.753 | AG37: 1570359.9 | AH37: 1578367.805 | AJ37: 879675.6709 | AK37: 878469.2458 | AL37: 895413.1837 | AM37: 922208.5538 | AN37: 954991.6258 | AO37: 990165.8855 | AP37: 1039337.145 | AQ37: 1072018.584 | AR37: 1103481.245 | AS37: 1133624.205 | AT37: 1164274.283 | AU37: 1185112.72 | AV37: 1204508.518 | AW37: 1222892.306 | AX37: 1240655.014 | AY37: 1258461.94 | AZ37: 1275424.492 | BA37: 1291723.12 | BB37: 1306754.266 | BC37: 1320864.768 | BD37: 1332860.752 | BE37: 1344334.897 | BF37: 1355087.045 | BG37: 1364897.364 | BH37: 1374445.864 | BI37: 1383538.493 | BJ37: 1391812.503 | BK37: 1399340.599 | BL37: 1406035.02 | BM37: 1411893.247 | BN37: 1416452.508 | BP37: 879410.5931 | BQ37: 899624.837 | BR37: 936139.8677 | BS37: 961055.4424 | BT37: 996043.7126 | BU37: 1035569.599 | BV37: 1094765.268 | BW37: 1131086.145 | BX37: 1165223.06 | BY37: 1199564.282 | BZ37: 1232095.035 | CA37: 1261410.271 | CB37: 1288799.484 | CC37: 1314890.185 | CD37: 1339428.866 | CE37: 1362667.412 | CF37: 1384338.443 | CG37: 1403195.882 | CH37: 1419924.808 | CI37: 1437645.008 | CJ37: 1449801.421 | CK37: 1461016.284 | CL37: 1471186.639 | CM37: 1480216.968 | CN37: 1488748.838 | CO37: 1494896.5 | CP37: 1500459.833 | CQ37: 1505431.089 | CR37: 1509718.51 | CS37: 1513483.388 | CT37: 1516749.784 | CV37: 879410.5931 | CW37: 898422.0013 | CX37: 933860.2615 | CY37: 958078.9038 | CZ37: 992902.6026 | DA37: 1032414.123 | DB37: 1093001.622 | DC37: 1132552.808 | DD37: 1171055.88 | DE37: 1209360.006 | DF37: 1246162.896 | DG37: 1279907.073 | DH37: 1311947.899 | DI37: 1342412.853 | DJ37: 1378604.407 | DK37: 1445166.903 | DL37: 1508976.293 | DM37: 1566399.453 | DN37: 1620346.645 | DO37: 1670952.187 | DP37: 1718305.529 | DQ37: 1762111.739 | DR37: 1801961.539 | DS37: 1838412.74 | DT37: 1873641.167 | DU37: 1906543.779 | DV37: 1938311.18 | DW37: 1968779.066 | DX37: 1998164.647 | DY37: 2019752.762 | DZ37: 2015786.706 | EB37: 879410.5931 | EC37: 899110.8894 | ED37: 937191.4974 | EE37: 962307.0583 | EF37: 996101.1323 | EG37: 1034504.07 | EH37: 1096798.096 | EI37: 1138724.08 | EJ37: 1178302.984 | EK37: 1216407.109 | EL37: 1283405.069 | EM37: 1348664.096 | EN37: 1411679.101 | EO37: 1472562.095 | EP37: 1530585.436 | EQ37: 1587298.608 | ER37: 1641459.247 | ES37: 1691724.884 | ET37: 1738249.24 | EU37: 1780722.091 | EV37: 1819873.466 | EW37: 1855322.397 | EX37: 1887356.53 | EY37: 1916060.105 | EZ37: 1939472.35 | FA37: 1936347.691 | FB37: 1932244.14 | FC37: 1927171.323 | FD37: 1921349.3 | FE37: 1914768.638 | FF37: 1907685.903
A38: Lancashire | B38: Rossendale | D38: 327623.665 | E38: 333742.6336 | F38: 345004.6364 | G38: 351657.291 | H38: 358935.8997 | I38: 370006.1698 | J38: 381238.3216 | K38: 392047.6829 | L38: 403090.2128 | M38: 425024.8386 | N38: 437061.0032 | O38: 448412.6019 | P38: 466818.2183 | Q38: 476531.8472 | R38: 485469.2138 | S38: 497167.0106 | T38: 512476.2831 | U38: 519600.3011 | V38: 526182.5121 | W38: 532155.4742 | X38: 554151.5981 | Y38: 558548.5983 | Z38: 562334.6053 | AA38: 565463.1534 | AB38: 568428.1158 | AC38: 569820.464 | AD38: 571269.8337 | AE38: 572774.1962 | AF38: 574316.6231 | AG38: 576003.5208 | AH38: 577854.9683 | AJ38: 327729.7197 | AK38: 327182.4793 | AL38: 332683.5154 | AM38: 340489.0643 | AN38: 348117.907 | AO38: 356634.6746 | AP38: 366616.2576 | AQ38: 376512.6394 | AR38: 386744.3837 | AS38: 397268.0587 | AT38: 408031.1389 | AU38: 414828.1911 | AV38: 421045.3512 | AW38: 426860.2034 | AX38: 432407.2944 | AY38: 438024.8015 | AZ38: 443290.8392 | BA38: 448312.6804 | BB38: 452930.7282 | BC38: 457279.5288 | BD38: 460984.7078 | BE38: 464494.7718 | BF38: 467770.3224 | BG38: 470728.3131 | BH38: 473569.4689 | BI38: 476270.3898 | BJ38: 478712.0731 | BK38: 480926.2028 | BL38: 482882.1841 | BM38: 484530.4723 | BN38: 485623.0754 | BP38: 327623.665 | BQ38: 333761.6235 | BR38: 345037.7968 | BS38: 351704.554 | BT38: 358996.6041 | BU38: 370041.841 | BV38: 381215.7232 | BW38: 391973.882 | BX38: 402979.8666 | BY38: 424738.1937 | BZ38: 436085.0126 | CA38: 446707.3384 | CB38: 464369.4295 | CC38: 473366.767 | CD38: 481709.5725 | CE38: 492267.6427 | CF38: 506277.3925 | CG38: 512307.4587 | CH38: 517703.7137 | CI38: 522390.5851 | CJ38: 543016.9922 | CK38: 546309.9614 | CL38: 549232.4608 | CM38: 551752.2722 | CN38: 554360.7765 | CO38: 555636.4473 | CP38: 556769.2365 | CQ38: 557728.1239 | CR38: 558477.7998 | CS38: 559091.2206 | CT38: 559565.266 | CV38: 327623.665 | CW38: 333385.8803 | CX38: 344408.0293 | CY38: 350941.0059 | CZ38: 358227.8131 | DA38: 369425.6289 | DB38: 381213.7542 | DC38: 393196.2335 | DD38: 405836.9783 | DE38: 428547.9703 | DF38: 441729.7001 | DG38: 453099.384 | DH38: 469568.3847 | DI38: 486865.5811 | DJ38: 498878.3052 | DK38: 541790.4506 | DL38: 564032.6674 | DM38: 583308.1939 | DN38: 601735.4677 | DO38: 618492.4308 | DP38: 637936.3155 | DQ38: 652106.9613 | DR38: 664932.1847 | DS38: 676592.0933 | DT38: 688105.6637 | DU38: 698559.4409 | DV38: 708812.1414 | DW38: 718684.2857 | DX38: 728206.2856 | DY38: 735012.0107 | DZ38: 732692.3914 | EB38: 327623.665 | EC38: 333586.5672 | ED38: 345623.0436 | EE38: 352432.0246 | EF38: 359259.6998 | EG38: 369964.7496 | EH38: 381316.4926 | EI38: 403956.6985 | EJ38: 415696.9718 | EK38: 431544.4974 | EL38: 454949.0153 | EM38: 478500.4506 | EN38: 517435.4293 | EO38: 543695.0705 | EP38: 563497.2719 | EQ38: 588500.2017 | ER38: 606607.3606 | ES38: 622904.478 | ET38: 638004.3897 | EU38: 651726.0909 | EV38: 664116.7839 | EW38: 675451.7207 | EX38: 685736.4774 | EY38: 694863.9509 | EZ38: 702136.4689 | FA38: 699848.4732 | FB38: 697297.9621 | FC38: 694494.3242 | FD38: 691513.9257 | FE38: 688327.7714 | FF38: 685029.5136
A39: Greater Manchester | B39: Salford | D39: 1077380.709 | E39: 1099227.803 | F39: 1136982.008 | G39: 1161291.23 | H39: 1190198.531 | I39: 1219369.772 | J39: 1254305.439 | K39: 1291860.322 | L39: 1329795.709 | M39: 1370850.08 | N39: 1413224.144 | O39: 1456529.647 | P39: 1499952.119 | Q39: 1547998.876 | R39: 1579068.758 | S39: 1616838.74 | T39: 1651389.666 | U39: 1708631.19 | V39: 1732812.644 | W39: 1755028.473 | X39: 1778114.586 | Y39: 1795847.143 | Z39: 1811352.329 | AA39: 1824526.12 | AB39: 1836137.158 | AC39: 1844147.169 | AD39: 1852060.541 | AE39: 1860275.148 | AF39: 1868727.393 | AG39: 1877601.396 | AH39: 1887168.35 | AJ39: 1077666.388 | AK39: 1078408.654 | AL39: 1096916.982 | AM39: 1121263.326 | AN39: 1145124.914 | AO39: 1171417.286 | AP39: 1200677.431 | AQ39: 1232558.691 | AR39: 1265544.83 | AS39: 1299723.096 | AT39: 1334257.941 | AU39: 1358386.561 | AV39: 1381004.373 | AW39: 1402438.213 | AX39: 1423192.159 | AY39: 1443948.474 | AZ39: 1463814.62 | BA39: 1482679.955 | BB39: 1500107.819 | BC39: 1516581.393 | BD39: 1530517.718 | BE39: 1544008.133 | BF39: 1556732.009 | BG39: 1568425.496 | BH39: 1579936.126 | BI39: 1591047.509 | BJ39: 1601217.739 | BK39: 1610526.733 | BL39: 1618880.82 | BM39: 1626306.531 | BN39: 1632290.355 | BP39: 1077380.709 | BQ39: 1099327.871 | BR39: 1137143.767 | BS39: 1161514.698 | BT39: 1190474.558 | BU39: 1219587.634 | BV39: 1254356.331 | BW39: 1291749.091 | BX39: 1329549.664 | BY39: 1369982.159 | BZ39: 1409994.183 | CA39: 1450726.247 | CB39: 1491459.934 | CC39: 1536847.47 | CD39: 1565609.241 | CE39: 1599210.157 | CF39: 1628817.693 | CG39: 1681592.917 | CH39: 1700809.068 | CI39: 1717552.421 | CJ39: 1734735.971 | CK39: 1747684.066 | CL39: 1759432.42 | CM39: 1769925.646 | CN39: 1779920.925 | CO39: 1787329.598 | CP39: 1793765.962 | CQ39: 1799500.256 | CR39: 1804382.139 | CS39: 1808465.363 | CT39: 1811928.559 | CV39: 1077380.709 | CW39: 1098122.442 | CX39: 1134849.48 | CY39: 1158551.043 | CZ39: 1187629.604 | DA39: 1216994.302 | DB39: 1253725.4 | DC39: 1295313.157 | DD39: 1339475.07 | DE39: 1385291.827 | DF39: 1430417.727 | DG39: 1476711.958 | DH39: 1523132.676 | DI39: 1574838.45 | DJ39: 1617567.747 | DK39: 1737558.919 | DL39: 1816743.792 | DM39: 1882069.665 | DN39: 1943516.185 | DO39: 2000878.248 | DP39: 2057165.046 | DQ39: 2106708.289 | DR39: 2151524.364 | DS39: 2192353.341 | DT39: 2231890.327 | DU39: 2268843.857 | DV39: 2304313.873 | DW39: 2338441.607 | DX39: 2371557.187 | DY39: 2395987.577 | DZ39: 2391857.637 | EB39: 1077380.709 | EC39: 1099867.04 | ED39: 1140862.797 | EE39: 1165931.004 | EF39: 1193899.437 | EG39: 1227951.829 | EH39: 1272224.322 | EI39: 1327775.29 | EJ39: 1367963.71 | EK39: 1417146.085 | EL39: 1502969.405 | EM39: 1578646.413 | EN39: 1663932.965 | EO39: 1733342.162 | EP39: 1799594.528 | EQ39: 1867321.344 | ER39: 1929679.585 | ES39: 1986763.402 | ET39: 2039606.52 | EU39: 2087715.021 | EV39: 2131652.609 | EW39: 2171344.55 | EX39: 2206872.058 | EY39: 2238482.75 | EZ39: 2264615.467 | FA39: 2261263.337 | FB39: 2256791.796 | FC39: 2251226.993 | FD39: 2245044.798 | FE39: 2237868.898 | FF39: 2230356.779
A40: Merseyside | B40: Sefton | D40: 437.8337705 | E40: 442.9675604 | F40: 454.8333294 | G40: 460.6296264 | H40: 470.2603643 | I40: 482.481112 | J40: 500.112236 | K40: 517.7160564 | L40: 534.169116 | M40: 550.8505721 | N40: 568.4953714 | O40: 602.878714 | P40: 615.9649274 | Q40: 628.5910871 | R40: 658.0332464 | S40: 669.8323859 | T40: 681.1912969 | U40: 691.3032443 | V40: 700.6231271 | W40: 708.9538496 | X40: 720.008114 | Y40: 727.0380502 | Z40: 733.1771698 | AA40: 738.3651686 | AB40: 742.8435812 | AC40: 745.5008352 | AD40: 747.7910116 | AE40: 750.2944326 | AF40: 752.9904943 | AG40: 755.9832409 | AH40: 759.4967215 | AJ40: 437.9662053 | AK40: 434.4748179 | AL40: 439.1572982 | AM40: 447.3930369 | AN40: 456.4437805 | AO40: 466.7775689 | AP40: 478.741604 | AQ40: 491.8427687 | AR40: 504.9925024 | AS40: 518.5361616 | AT40: 532.0363771 | AU40: 541.0024748 | AV40: 549.2592012 | AW40: 556.979562 | AX40: 564.457031 | AY40: 572.195037 | AZ40: 579.5061801 | BA40: 586.4930029 | BB40: 592.935844 | BC40: 599.1054964 | BD40: 604.3916137 | BE40: 609.5618134 | BF40: 614.4770409 | BG40: 619.0367364 | BH40: 623.4610543 | BI40: 627.7915938 | BJ40: 631.7331804 | BK40: 635.3176101 | BL40: 638.4953373 | BM40: 641.1717369 | BN40: 642.9637518 | BP40: 437.8337705 | BQ40: 442.9804246 | BR40: 454.8629072 | BS40: 460.682265 | BT40: 470.3406582 | BU40: 482.5406864 | BV40: 500.1120103 | BW40: 517.6669843 | BX40: 534.0969628 | BY40: 550.5704212 | BZ40: 567.3212373 | CA40: 600.7012215 | CB40: 612.710831 | CC40: 624.2475368 | CD40: 652.7197673 | CE40: 662.7803534 | CF40: 672.0841358 | CG40: 680.3281431 | CH40: 687.577033 | CI40: 693.6330732 | CJ40: 702.2440888 | CK40: 707.3353828 | CL40: 711.9996215 | CM40: 716.1945011 | CN40: 720.1546616 | CO40: 722.7442979 | CP40: 724.5301694 | CQ40: 726.0344593 | CR40: 727.1953967 | CS40: 728.0587734 | CT40: 728.8063465 | CV40: 437.8337705 | CW40: 442.3941081 | CX40: 453.8150195 | CY40: 459.3580286 | CZ40: 468.9791759 | DA40: 481.3369836 | DB40: 499.7678674 | DC40: 519.2896436 | DD40: 538.2896761 | DE40: 557.2160888 | DF40: 576.19215 | DG40: 611.4489995 | DH40: 625.8407505 | DI40: 639.7260788 | DJ40: 673.3218364 | DK40: 705.4775881 | DL40: 748.6197267 | DM40: 774.072053 | DN40: 797.8219849 | DO40: 819.6123657 | DP40: 839.8924171 | DQ40: 859.0190601 | DR40: 876.1271257 | DS40: 891.6076339 | DT40: 906.5521613 | DU40: 920.4739352 | DV40: 933.3168941 | DW40: 945.687272 | DX40: 957.6639859 | DY40: 966.2340257 | DZ40: 963.4147533 | EB40: 437.8337705 | EC40: 442.9560293 | ED40: 455.8871496 | EE40: 462.027569 | EF40: 471.3834397 | EG40: 483.5038709 | EH40: 501.2922628 | EI40: 520.5346678 | EJ40: 538.9170178 | EK40: 559.014397 | EL40: 634.8356197 | EM40: 662.6278471 | EN40: 689.660517 | EO40: 716.3242433 | EP40: 741.9280257 | EQ40: 767.2752579 | ER40: 791.2134527 | ES40: 813.5146876 | ET40: 833.9089137 | EU40: 851.9834132 | EV40: 868.2539463 | EW40: 883.217955 | EX40: 896.4853075 | EY40: 908.1636105 | EZ40: 917.8680679 | FA40: 915.7520878 | FB40: 912.6418102 | FC40: 909.128351 | FD40: 905.3292325 | FE40: 901.2463276 | FF40: 897.0070711
A41: Cumbria | B41: South Lakeland | D41: 649354.7009 | E41: 659627.8622 | F41: 682832.3226 | G41: 698064.215 | H41: 716553.0041 | I41: 735736.4615 | J41: 762050.8387 | K41: 797551.2625 | L41: 821015.7699 | M41: 850591.38 | N41: 882309.7302 | O41: 908213.6139 | P41: 936351.0084 | Q41: 958965.2615 | R41: 985392.2688 | S41: 1022444.75 | T41: 1067818.4 | U41: 1085661.554 | V41: 1102740.9 | W41: 1120542.919 | X41: 1139116.648 | Y41: 1147715.587 | Z41: 1164105.123 | AA41: 1169969.706 | AB41: 1175333.29 | AC41: 1182827.03 | AD41: 1184517.904 | AE41: 1185692.971 | AF41: 1187669.535 | AG41: 1189290.917 | AH41: 1191353.493 | AJ41: 649601.1801 | AK41: 648365.3611 | AL41: 660116.559 | AM41: 676161.8911 | AN41: 691551.2346 | AO41: 707324.3372 | AP41: 724977.6378 | AQ41: 744802.8611 | AR41: 765477.0861 | AS41: 787085.4767 | AT41: 809309.8415 | AU41: 822636.1757 | AV41: 834467.9942 | AW41: 845554.9789 | AX41: 856588.7865 | AY41: 869004.6627 | AZ41: 880776.887 | BA41: 891628.1471 | BB41: 901460.2079 | BC41: 911062.5163 | BD41: 919259.3219 | BE41: 927113.0021 | BF41: 934481.1578 | BG41: 941160.9309 | BH41: 947631.4716 | BI41: 953836.7789 | BJ41: 959525.2474 | BK41: 964753.7826 | BL41: 969445.517 | BM41: 973120.1463 | BN41: 974495.0522 | BP41: 649354.7009 | BQ41: 659735.2855 | BR41: 683069.7201 | BS41: 698419.9456 | BT41: 716999.2195 | BU41: 736142.6006 | BV41: 762343.8793 | BW41: 797698.9649 | BX41: 821059.6277 | BY41: 850248.6225 | BZ41: 880564.6177 | CA41: 904972.3917 | CB41: 931573.8774 | CC41: 952698.8062 | CD41: 977874.0216 | CE41: 1012597.175 | CF41: 1055261.96 | CG41: 1070753.166 | CH41: 1085251.735 | CI41: 1100232.399 | CJ41: 1115780.1 | CK41: 1121911.535 | CL41: 1136341.729 | CM41: 1140784.59 | CN41: 1145258.857 | CO41: 1152369.698 | CP41: 1153278.09 | CQ41: 1153208.757 | CR41: 1153440.274 | CS41: 1152747.178 | CT41: 1151879.143 | CV41: 649354.7009 | CW41: 659110.7951 | CX41: 682340.0399 | CY41: 697854.9556 | CZ41: 716933.3332 | DA41: 737491.5716 | DB41: 766635.6156 | DC41: 806205.6641 | DD41: 834660.7049 | DE41: 868325.2744 | DF41: 907812.6839 | DG41: 934772.6027 | DH41: 962554.316 | DI41: 1009072.484 | DJ41: 1043045.713 | DK41: 1160463.657 | DL41: 1212019.719 | DM41: 1247731.663 | DN41: 1279552.417 | DO41: 1307467.717 | DP41: 1337356.395 | DQ41: 1359546.839 | DR41: 1379239.163 | DS41: 1396136.139 | DT41: 1412960.147 | DU41: 1427917.548 | DV41: 1442934.133 | DW41: 1457520.916 | DX41: 1472360.62 | DY41: 1482333.625 | DZ41: 1477302.824 | EB41: 649354.7009 | EC41: 659557.1294 | ED41: 684679.7316 | EE41: 700821.9407 | EF41: 719451.9727 | EG41: 740891.7315 | EH41: 790864.8346 | EI41: 857112.0737 | EJ41: 897600.8655 | EK41: 928952.7668 | EL41: 981384.8527 | EM41: 1073530.779 | EN41: 1111272.016 | EO41: 1152412.738 | EP41: 1186564.309 | EQ41: 1222485.797 | ER41: 1254431.439 | ES41: 1282517.25 | ET41: 1308220.282 | EU41: 1330178.424 | EV41: 1349574.434 | EW41: 1366403.5 | EX41: 1381232.337 | EY41: 1393920.897 | EZ41: 1404985.254 | FA41: 1400516.47 | FB41: 1395412.907 | FC41: 1389758.889 | FD41: 1383804.285 | FE41: 1377313.65 | FF41: 1370651.809
A42: Lancashire | B42: South Ribble | D42: 466608.3843 | E42: 475780.5367 | F42: 494231.9551 | G42: 516769.1966 | H42: 528524.4245 | I42: 541694.3749 | J42: 557023.7789 | K42: 573899.9311 | L42: 591341.0261 | M42: 609088.024 | N42: 628955.8637 | O42: 647440.0139 | P42: 667675.2452 | Q42: 686084.2884 | R42: 702020.3596 | S42: 717951.4162 | T42: 732041.5132 | U42: 744690.7371 | V42: 758805.0341 | W42: 768833.7928 | X42: 780924.7606 | Y42: 788405.69 | Z42: 794872.5972 | AA42: 803498.4101 | AB42: 808121.5781 | AC42: 810626.191 | AD42: 813175.7779 | AE42: 815803.1074 | AF42: 818507.0185 | AG42: 821351.4845 | AH42: 824455.8063 | AJ42: 466760.7499 | AK42: 465977.2467 | AL42: 475040.117 | AM42: 498241.1548 | AN42: 509577.6893 | AO42: 521705.397 | AP42: 535208.3944 | AQ42: 550169.8883 | AR42: 565798.8768 | AS42: 582103.8833 | AT42: 598735.1866 | AU42: 609569.2457 | AV42: 619591.3211 | AW42: 628965.4656 | AX42: 637998.9882 | AY42: 647234.9127 | AZ42: 655939.083 | BA42: 664086.7988 | BB42: 671515.5212 | BC42: 678516.7234 | BD42: 684401.8506 | BE42: 690017.0698 | BF42: 695246.1152 | BG42: 699975.6249 | BH42: 704513.5545 | BI42: 708843.3622 | BJ42: 712756.7112 | BK42: 716300.1167 | BL42: 719431.4468 | BM42: 722079.0819 | BN42: 723828.8314 | BP42: 466608.3843 | BQ42: 475815.6187 | BR42: 494274.3055 | BS42: 516797.1557 | BT42: 528574.5746 | BU42: 541704.3661 | BV42: 556934.1987 | BW42: 573712.2046 | BX42: 591072.9662 | BY42: 608504.1602 | BZ42: 627214.5713 | CA42: 644480.1137 | CB42: 663475.6693 | CC42: 680691.2157 | CD42: 695632.7617 | CE42: 709687.5255 | CF42: 721608.3943 | CG42: 732392.2929 | CH42: 744463.9152 | CI42: 752261.19 | CJ42: 761960.0986 | CK42: 767490.7695 | CL42: 772409.5109 | CM42: 779913.2303 | CN42: 783836.9978 | CO42: 786044.7356 | CP42: 787978.7709 | CQ42: 789623.093 | CR42: 790945.6971 | CS42: 791955.9376 | CT42: 792735.4536 | CV42: 466608.3843 | CW42: 475260.0586 | CX42: 493345.2442 | CY42: 516372.4363 | CZ42: 529755.842 | DA42: 544568.9116 | DB42: 561839.0852 | DC42: 580719.8561 | DD42: 600805.7819 | DE42: 622430.3555 | DF42: 650309.711 | DG42: 669763.2963 | DH42: 691644.5413 | DI42: 717006.322 | DJ42: 736246.785 | DK42: 775810.9221 | DL42: 814283.5974 | DM42: 843563.3476 | DN42: 870631.2528 | DO42: 895733.7676 | DP42: 921012.8872 | DQ42: 942262.3012 | DR42: 961311.8163 | DS42: 978568.2932 | DT42: 995282.2151 | DU42: 1010832.273 | DV42: 1026009.771 | DW42: 1040700.358 | DX42: 1055016.933 | DY42: 1065470.785 | DZ42: 1062947.844 | EB42: 466608.3843 | EC42: 476154.4665 | ED42: 496299.7636 | EE42: 519869.144 | EF42: 532694.4957 | EG42: 547160.7097 | EH42: 567427.1381 | EI42: 590982.3245 | EJ42: 614322.2165 | EK42: 635059.2806 | EL42: 675835.5943 | EM42: 716731.175 | EN42: 755743.8389 | EO42: 786807.4875 | EP42: 816288.8288 | EQ42: 846892.9586 | ER42: 874437.2266 | ES42: 899350.0461 | ET42: 922218.732 | EU42: 942661.9575 | EV42: 961322.4081 | EW42: 977871.6519 | EX42: 992697.079 | EY42: 1005842.241 | EZ42: 1016773.935 | FA42: 1014326.27 | FB42: 1011415.196 | FC42: 1008055.155 | FD42: 1004370.627 | FE42: 1000343.285 | FF42: 996112.1089
A43: Merseyside | B43: St. Helens | D43: 211398.3437 | E43: 216547.0884 | F43: 225484.0995 | G43: 230350.1088 | H43: 235872.5311 | I43: 242876.9819 | J43: 251969.4689 | K43: 261717.6517 | L43: 271206.0166 | M43: 280864.0349 | N43: 291040.5036 | O43: 301326.6486 | P43: 310152.8817 | Q43: 318592.2629 | R43: 327793.115 | S43: 336023.1622 | T43: 344191.9958 | U43: 351587.0177 | V43: 358604.7641 | W43: 365237.5015 | X43: 371531.2547 | Y43: 377024.6622 | Z43: 381886.1371 | AA43: 386076.1449 | AB43: 389820.1418 | AC43: 392622.958 | AD43: 395539.8487 | AE43: 398670.7201 | AF43: 402024.7703 | AG43: 405705.3616 | AH43: 409744.3994 | AJ43: 211451.414 | AK43: 211159.1236 | AL43: 215324.0215 | AM43: 220742.4915 | AN43: 225853.3458 | AO43: 231672.0054 | AP43: 238322.0315 | AQ43: 245615.1593 | AR43: 253057.0499 | AS43: 260749.9552 | AT43: 268435.4211 | AU43: 274156.5743 | AV43: 279641.8768 | AW43: 284957.0957 | AX43: 290192.4176 | AY43: 295441.914 | AZ43: 300517.0447 | BA43: 305358.3422 | BB43: 309853.7088 | BC43: 314102.7749 | BD43: 317750.5825 | BE43: 321368.4418 | BF43: 324877.2537 | BG43: 328222.4781 | BH43: 331559.2514 | BI43: 334873.1983 | BJ43: 337916.6401 | BK43: 340700.3156 | BL43: 343193.5041 | BM43: 345415.1208 | BN43: 347279.6437 | BP43: 211398.3437 | BQ43: 216600.5491 | BR43: 225580.8381 | BS43: 230480.6303 | BT43: 236027.3415 | BU43: 243026.0907 | BV43: 252073.4022 | BW43: 261772.5523 | BX43: 271219.3463 | BY43: 280714.9463 | BZ43: 290308.6237 | CA43: 299899.2352 | CB43: 307941.1777 | CC43: 315549.738 | CD43: 323959.3115 | CE43: 330910.7947 | CF43: 337459.3508 | CG43: 343219.8177 | CH43: 348363.1933 | CI43: 352893.3405 | CJ43: 356890.6986 | CK43: 360532.0866 | CL43: 363956.62 | CM43: 367136.4746 | CN43: 370290.4979 | CO43: 372903.7482 | CP43: 375248.6901 | CQ43: 377371.3044 | CR43: 379241.2619 | CS43: 380915.2522 | CT43: 382390.9714 | CV43: 211398.3437 | CW43: 216296.7741 | CX43: 225013.3495 | CY43: 229761.3221 | CZ43: 235288.544 | DA43: 242308.6479 | DB43: 251893.215 | DC43: 262728.0217 | DD43: 273762.0609 | DE43: 284973.1723 | DF43: 296641.1143 | DG43: 308473.73 | DH43: 318989.4936 | DI43: 329468.0778 | DJ43: 342770.5019 | DK43: 362064.5215 | DL43: 381630.3344 | DM43: 399004.0655 | DN43: 415353.3804 | DO43: 430690.0033 | DP43: 445009.7527 | DQ43: 458280.0421 | DR43: 470357.6327 | DS43: 481327.0488 | DT43: 491823.5366 | DU43: 501575.6188 | DV43: 510787.0177 | DW43: 519468.8452 | DX43: 527655.2987 | DY43: 533668.421 | DZ43: 533305.8776 | EB43: 211398.3437 | EC43: 216695.4776 | ED43: 226518.432 | EE43: 231834.299 | EF43: 237369.3493 | EG43: 244304.0858 | EH43: 253978.8819 | EI43: 265212.0893 | EJ43: 276610.2294 | EK43: 289485.5909 | EL43: 311986.0233 | EM43: 330695.537 | EN43: 349068.4057 | EO43: 367069.6831 | EP43: 384456.4609 | EQ43: 401611.4234 | ER43: 418196.9856 | ES43: 433495.8429 | ET43: 447589.4809 | EU43: 460409.4994 | EV43: 472167.1877 | EW43: 482761.6648 | EX43: 492166.8121 | EY43: 500422.2162 | EZ43: 507143.6504 | FA43: 507303.4627 | FB43: 506987.6632 | FC43: 506274.6558 | FD43: 505248.6598 | FE43: 503930.7196 | FF43: 502424.6929
A44: Staffordshire | B44: Staffordshire Moorlands | D44: 32.10664399 | E44: 32.63518701 | F44: 33.63905575 | G44: 34.37261866 | H44: 35.21605258 | I44: 36.25194391 | J44: 37.41669459 | K44: 38.6885896 | L44: 40.00239333 | M44: 41.34694993 | N44: 42.85341824 | O44: 44.19706205 | P44: 45.43799889 | Q44: 46.59474511 | R44: 47.64858148 | S44: 48.6963201 | T44: 52.17809698 | U44: 55.3661316 | V44: 56.07038121 | W44: 56.69638755 | X44: 57.21018066 | Y44: 57.68294474 | Z44: 58.09210667 | AA44: 58.43465392 | AB44: 58.73376734 | AC44: 58.88031254 | AD44: 59.01484547 | AE44: 59.14311721 | AF44: 59.26108844 | AG44: 59.37474812 | AH44: 59.49121328 | AJ44: 32.11346362 | AK44: 32.1938374 | AL44: 32.80236101 | AM44: 33.62953907 | AN44: 34.43131056 | AO44: 35.34539455 | AP44: 36.35250469 | AQ44: 37.46042857 | AR44: 38.61485038 | AS44: 39.81313095 | AT44: 41.03002896 | AU44: 41.83754229 | AV44: 42.57392489 | AW44: 43.25460369 | AX44: 43.90584236 | AY44: 44.5844831 | AZ44: 45.22654723 | BA44: 45.80253274 | BB44: 46.33278593 | BC44: 46.84899338 | BD44: 47.27610825 | BE44: 47.68299913 | BF44: 48.05671862 | BG44: 48.38978266 | BH44: 48.70684902 | BI44: 49.0050467 | BJ44: 49.27936319 | BK44: 49.53395116 | BL44: 49.76719722 | BM44: 49.96845152 | BN44: 50.09390575 | BP44: 32.10664399 | BQ44: 32.63639397 | BR44: 33.6411036 | BS44: 34.37544264 | BT44: 35.21961724 | BU44: 36.2510822 | BV44: 37.40810353 | BW44: 38.6734387 | BX44: 39.98298281 | BY44: 41.30642611 | BZ44: 42.72957474 | CA44: 43.99212661 | CB44: 45.15647651 | CC44: 46.24533071 | CD44: 47.25048356 | CE44: 48.18724009 | CF44: 51.5538687 | CG44: 54.66424477 | CH44: 55.29131164 | CI44: 55.83829882 | CJ44: 56.27168566 | CK44: 56.67902583 | CL44: 57.03547439 | CM44: 57.33974961 | CN44: 57.61511604 | CO44: 57.751669 | CP44: 57.86880479 | CQ44: 57.97104414 | CR44: 58.05393805 | CS44: 58.12092909 | CT44: 58.17748831 | CV44: 32.10664399 | CW44: 32.60710658 | CX44: 33.59790842 | CY44: 34.33302732 | CZ44: 35.20489436 | DA44: 36.27415512 | DB44: 37.51505998 | DC44: 38.92644569 | DD44: 40.40852058 | DE44: 41.88313228 | DF44: 43.41453975 | DG44: 44.90457513 | DH44: 46.11984299 | DI44: 49.76933102 | DJ44: 50.98448243 | DK44: 68.15890211 | DL44: 72.33666839 | DM44: 73.97900475 | DN44: 75.54795382 | DO44: 77.00665242 | DP44: 78.31438622 | DQ44: 79.5415145 | DR44: 80.62992224 | DS44: 81.61339466 | DT44: 82.57576312 | DU44: 83.47462731 | DV44: 84.36372575 | DW44: 85.23893244 | DX44: 86.10423039 | DY44: 86.74861484 | DZ44: 86.61835266 | EB44: 32.10664399 | EC44: 32.73337579 | ED44: 33.90770718 | EE44: 34.66600653 | EF44: 35.4816047 | EG44: 36.49065863 | EH44: 37.61084011 | EI44: 38.91148992 | EJ44: 40.22636619 | EK44: 41.80011529 | EL44: 46.50580451 | EM44: 48.79042167 | EN44: 55.85523851 | EO44: 57.76406415 | EP44: 59.54458371 | EQ44: 63.59146368 | ER44: 65.2104438 | ES44: 66.62426848 | ET44: 67.93167986 | EU44: 69.09006659 | EV44: 70.10337481 | EW44: 71.03427982 | EX44: 71.9238621 | EY44: 72.67037416 | EZ44: 73.29483663 | FA44: 73.12493119 | FB44: 72.93246529 | FC44: 72.72401075 | FD44: 72.51529188 | FE44: 72.28703541 | FF44: 72.05300877
A45: Greater Manchester | B45: Stockport | D45: 1295650.723 | E45: 1340776.859 | F45: 1434831.586 | G45: 1485601.209 | H45: 1538362.702 | I45: 1600377.126 | J45: 1666756.659 | K45: 1724594.667 | L45: 1788733.256 | M45: 1836510.418 | N45: 1897896.916 | O45: 1949037.982 | P45: 1985924.095 | Q45: 2034038.352 | R45: 2083476.619 | S45: 2135857.554 | T45: 2174848.689 | U45: 2200744.37 | V45: 2231214.281 | W45: 2250755.507 | X45: 2271682.284 | Y45: 2287607.493 | Z45: 2300159.1 | AA45: 2310283.215 | AB45: 2318844.616 | AC45: 2333687.275 | AD45: 2337330.36 | AE45: 2340816.524 | AF45: 2345699.413 | AG45: 2348609.648 | AH45: 2351726.733 | AJ45: 1296011.758 | AK45: 1303602.378 | AL45: 1353814.103 | AM45: 1405374.669 | AN45: 1456430.408 | AO45: 1505835.367 | AP45: 1558392.644 | AQ45: 1613985.563 | AR45: 1658665.639 | AS45: 1703430.612 | AT45: 1748833.728 | AU45: 1775029.471 | AV45: 1798974.037 | AW45: 1821129.08 | AX45: 1842173.376 | AY45: 1863092.509 | AZ45: 1882685.752 | BA45: 1901406.085 | BB45: 1918464.383 | BC45: 1934328.799 | BD45: 1947674.595 | BE45: 1960234.484 | BF45: 1971741.957 | BG45: 1981798.297 | BH45: 1991232.461 | BI45: 1999963.305 | BJ45: 2007754.544 | BK45: 2014731.831 | BL45: 2020802.257 | BM45: 2025940.772 | BN45: 2029492.908 | BP45: 1295650.723 | BQ45: 1340953.332 | BR45: 1435009.778 | BS45: 1485747.227 | BT45: 1538524.4 | BU45: 1600487.835 | BV45: 1666678.305 | BW45: 1724334.04 | BX45: 1788302.199 | BY45: 1835358.911 | BZ45: 1894067.394 | CA45: 1942489.016 | CB45: 1976730.876 | CC45: 2022418.774 | CD45: 2069986.976 | CE45: 2118526.233 | CF45: 2153274.3 | CG45: 2175869.064 | CH45: 2202841.774 | CI45: 2218636.015 | CJ45: 2235600.619 | CK45: 2248245.475 | CL45: 2258122.584 | CM45: 2266234.537 | CN45: 2273447.508 | CO45: 2287574.731 | CP45: 2290116.797 | CQ45: 2292048.548 | CR45: 2294888.605 | CS45: 2295171.552 | CT45: 2295013.387 | CV45: 1295650.723 | CW45: 1339164.547 | CX45: 1431673.106 | CY45: 1482400.049 | CZ45: 1536565.393 | DA45: 1597994.204 | DB45: 1665170.511 | DC45: 1726600.757 | DD45: 1807468.884 | DE45: 1858182.109 | DF45: 1920907.265 | DG45: 1971511.763 | DH45: 2008234.119 | DI45: 2085798.217 | DJ45: 2127617.519 | DK45: 2249222.849 | DL45: 2334680.675 | DM45: 2403359.677 | DN45: 2467137.687 | DO45: 2525557.475 | DP45: 2579879.667 | DQ45: 2629777.623 | DR45: 2674693.238 | DS45: 2715496.912 | DT45: 2755112.806 | DU45: 2792190.901 | DV45: 2827887.859 | DW45: 2862671.397 | DX45: 2897598.566 | DY45: 2921966.813 | DZ45: 2913915.875 | EB45: 1295650.723 | EC45: 1340357.038 | ED45: 1437085.424 | EE45: 1488876.616 | EF45: 1541141.048 | EG45: 1590558.855 | EH45: 1704487.906 | EI45: 1787301.588 | EJ45: 1848529.363 | EK45: 1899162.538 | EL45: 2032126.797 | EM45: 2140155.314 | EN45: 2212634.541 | EO45: 2283909.892 | EP45: 2350855.557 | EQ45: 2419155.936 | ER45: 2480991.126 | ES45: 2539107.433 | ET45: 2593028.997 | EU45: 2641037.726 | EV45: 2685590.269 | EW45: 2725258.4 | EX45: 2761327.912 | EY45: 2793362.983 | EZ45: 2819393.494 | FA45: 2810873.007 | FB45: 2800852.053 | FC45: 2789913.455 | FD45: 2778443.997 | FE45: 2766208.139 | FF45: 2753721.397
A46: Greater Manchester | B46: Tameside | D46: 1098890.465 | E46: 1116472.243 | F46: 1151445.715 | G46: 1186895.354 | H46: 1238377.068 | I46: 1310104.693 | J46: 1383959.306 | K46: 1461719.173 | L46: 1503279.347 | M46: 1546075.143 | N46: 1602725.708 | O46: 1662224.73 | P46: 1694549.022 | Q46: 1724956.716 | R46: 1752964.715 | S46: 1802570.211 | T46: 1828707.235 | U46: 1854756.456 | V46: 1874867.808 | W46: 1892827.051 | X46: 1912071.044 | Y46: 1925682.744 | Z46: 1937341.859 | AA46: 1946905.412 | AB46: 1955308.31 | AC46: 1960129.725 | AD46: 1964767.021 | AE46: 1969025.508 | AF46: 1973443.697 | AG46: 1977928.416 | AH46: 1982768.601 | AJ46: 1099238.544 | AK46: 1093542.784 | AL46: 1108639.047 | AM46: 1149322.332 | AN46: 1201700.104 | AO46: 1270282.525 | AP46: 1340823.052 | AQ46: 1414005.756 | AR46: 1452556.908 | AS46: 1492251.871 | AT46: 1527242.42 | AU46: 1549243.247 | AV46: 1569379.202 | AW46: 1588096.839 | AX46: 1605921.862 | AY46: 1623681.48 | AZ46: 1640352.553 | BA46: 1656337.335 | BB46: 1670902.366 | BC46: 1684518.129 | BD46: 1695975.642 | BE46: 1706789.476 | BF46: 1716706.273 | BG46: 1725476.022 | BH46: 1733870.678 | BI46: 1741713.043 | BJ46: 1748724.732 | BK46: 1755004.206 | BL46: 1760454.355 | BM46: 1765046.707 | BN46: 1768200.309 | BP46: 1098890.465 | BQ46: 1116528.225 | BR46: 1151531.891 | BS46: 1186999.766 | BT46: 1238379.702 | BU46: 1309958.871 | BV46: 1383728.978 | BW46: 1461411.978 | BX46: 1502892.891 | BY46: 1545172.808 | BZ46: 1599660.981 | CA46: 1656921.497 | CB46: 1687001.625 | CC46: 1715283.484 | CD46: 1741569.5 | CE46: 1787804.16 | CF46: 1810133.655 | CG46: 1833052.729 | CH46: 1849792.066 | CI46: 1864105.946 | CJ46: 1879473.786 | CK46: 1889930.487 | CL46: 1899084.222 | CM46: 1906836.865 | CN46: 1914118.9 | CO46: 1918475.974 | CP46: 1922148.818 | CQ46: 1924865.922 | CR46: 1927119.662 | CS46: 1928723.117 | CT46: 1929901.275 | CV46: 1098890.465 | CW46: 1115107.416 | CX46: 1148984.201 | CY46: 1207949.217 | CZ46: 1297624.161 | DA46: 1369450.214 | DB46: 1445563.516 | DC46: 1526687.381 | DD46: 1572909.919 | DE46: 1618787.874 | DF46: 1670056.215 | DG46: 1724189.088 | DH46: 1755104.097 | DI46: 1785474.208 | DJ46: 1836601.672 | DK46: 1916559.206 | DL46: 1979229.048 | DM46: 2037233.51 | DN46: 2091770.349 | DO46: 2142275.424 | DP46: 2191827.867 | DQ46: 2234921.158 | DR46: 2273749.188 | DS46: 2308992.274 | DT46: 2343409.286 | DU46: 2375491.346 | DV46: 2406943.662 | DW46: 2437624.435 | DX46: 2467887.805 | DY46: 2489905.877 | DZ46: 2484039.116 | EB46: 1098890.465 | EC46: 1115714.549 | ED46: 1152746.052 | EE46: 1212822.932 | EF46: 1301401.934 | EG46: 1372823.647 | EH46: 1445661.435 | EI46: 1525332.654 | EJ46: 1585278.052 | EK46: 1631542.724 | EL46: 1713020.568 | EM46: 1799757.257 | EN46: 1878959.499 | EO46: 1941467.266 | EP46: 2000635.147 | EQ46: 2063787.523 | ER46: 2117984.521 | ES46: 2167359.969 | ET46: 2212951.975 | EU46: 2254309.891 | EV46: 2292031.664 | EW46: 2326204.349 | EX46: 2356951.999 | EY46: 2384402.069 | EZ46: 2407599.197 | FA46: 2401656.654 | FB46: 2394814.065 | FC46: 2387135.885 | FD46: 2378889.895 | FE46: 2370020.634 | FF46: 2360774.343
A47: Greater Manchester | B47: Trafford | D47: 1297021.39 | E47: 1325837.611 | F47: 1375377.933 | G47: 1400395.527 | H47: 1426784.806 | I47: 1457656.114 | J47: 1491980.056 | K47: 1528154.262 | L47: 1565406.634 | M47: 1610508.48 | N47: 1648647.021 | O47: 1701600.585 | P47: 1759888.167 | Q47: 1835108.706 | R47: 1870503.765 | S47: 1917292.683 | T47: 1962091.729 | U47: 2080031.633 | V47: 2102411.94 | W47: 2121926.777 | X47: 2148766.828 | Y47: 2167143.816 | Z47: 2181360.805 | AA47: 2193336.099 | AB47: 2203763.863 | AC47: 2211005.783 | AD47: 2217455.752 | AE47: 2224312.626 | AF47: 2231543.384 | AG47: 2239213.215 | AH47: 2247662.06 | AJ47: 1297338.979 | AK47: 1298723.726 | AL47: 1321851.762 | AM47: 1351082.137 | AN47: 1379390.468 | AO47: 1408117.414 | AP47: 1439432.45 | AQ47: 1473145.512 | AR47: 1507928.933 | AS47: 1541466.177 | AT47: 1575483.336 | AU47: 1598612.441 | AV47: 1620308.795 | AW47: 1640812.354 | AX47: 1660708.543 | AY47: 1680648.386 | AZ47: 1699690.51 | BA47: 1718132.323 | BB47: 1735282.221 | BC47: 1751524.915 | BD47: 1765402.093 | BE47: 1778899.958 | BF47: 1791748.514 | BG47: 1803696.989 | BH47: 1815426.035 | BI47: 1826822.122 | BJ47: 1837255.215 | BK47: 1846788.119 | BL47: 1855309.991 | BM47: 1862822.353 | BN47: 1868805.093 | BP47: 1297021.39 | BQ47: 1325949.336 | BR47: 1375585.574 | BS47: 1400690.619 | BT47: 1427158.675 | BU47: 1457981.732 | BV47: 1492155.502 | BW47: 1528196.908 | BX47: 1565359.948 | BY47: 1609924.134 | BZ47: 1645930.987 | CA47: 1696510.163 | CB47: 1752260.406 | CC47: 1824916.79 | CD47: 1858020.197 | CE47: 1900767.018 | CF47: 1940713.268 | CG47: 2054148.368 | CH47: 2071486.093 | CI47: 2085424.125 | CJ47: 2106238.213 | CK47: 2119777.386 | CL47: 2130253.829 | CM47: 2139628.376 | CN47: 2148580.019 | CO47: 2155416.522 | CP47: 2160463.078 | CQ47: 2164780.611 | CR47: 2168238.11 | CS47: 2170766.465 | CT47: 2172608.065 | CV47: 1297021.39 | CW47: 1324485.619 | CX47: 1372758.506 | CY47: 1398737.713 | CZ47: 1427959.763 | DA47: 1458850.7 | DB47: 1494844.407 | DC47: 1534937.937 | DD47: 1577682.538 | DE47: 1627486.825 | DF47: 1669287.484 | DG47: 1724517.535 | DH47: 1784849.406 | DI47: 1866587.051 | DJ47: 1909309.679 | DK47: 2124907.737 | DL47: 2223473.305 | DM47: 2283969.987 | DN47: 2340103.779 | DO47: 2391771.669 | DP47: 2445814.678 | DQ47: 2490984.882 | DR47: 2531592.321 | DS47: 2568451.763 | DT47: 2603894.18 | DU47: 2636891.807 | DV47: 2667548.819 | DW47: 2696873.145 | DX47: 2725266.084 | DY47: 2745877.109 | DZ47: 2739785.491 | EB47: 1297021.39 | EC47: 1327112.245 | ED47: 1380020.02 | EE47: 1406830.449 | EF47: 1434609.067 | EG47: 1481956.252 | EH47: 1537985.338 | EI47: 1618824.114 | EJ47: 1657426.754 | EK47: 1713269.255 | EL47: 1818312.035 | EM47: 1902342.796 | EN47: 2009443.472 | EO47: 2074128.604 | EP47: 2135047.703 | EQ47: 2201120.719 | ER47: 2259742.78 | ES47: 2311811.884 | ET47: 2360290.214 | EU47: 2404198.029 | EV47: 2443933.853 | EW47: 2479874.636 | EX47: 2511746.615 | EY47: 2539835.761 | EZ47: 2563099.256 | FA47: 2558664.305 | FB47: 2553069.404 | FC47: 2546372.329 | FD47: 2539412.795 | FE47: 2531095.797 | FF47: 2522296.179
A48: Cheshire | B48: Warrington | D48: 115766.6507 | E48: 120362.6884 | F48: 127194.3236 | G48: 130524.1396 | H48: 133259.5506 | I48: 136661.7343 | J48: 140819.8429 | K48: 145334.7762 | L48: 149889.818 | M48: 154525.5953 | N48: 159508.7636 | O48: 164005.3284 | P48: 168360.6337 | Q48: 172545.0088 | R48: 176508.4272 | S48: 180544.1589 | T48: 184513.1083 | U48: 188084.2977 | V48: 191913.8149 | W48: 195113.5865 | X48: 198040.2857 | Y48: 200653.688 | Z48: 202957.5555 | AA48: 204933.0703 | AB48: 206678.4651 | AC48: 207948.6887 | AD48: 209296.2452 | AE48: 210755.8615 | AF48: 212330.0211 | AG48: 214069.3966 | AH48: 215986.3774 | AJ48: 115833.649 | AK48: 116277.1909 | AL48: 119426.3612 | AM48: 122766.6456 | AN48: 125515.9797 | AO48: 128578.6964 | AP48: 132015.7636 | AQ48: 135794.5867 | AR48: 139698.0459 | AS48: 143740.804 | AT48: 147817.2198 | AU48: 150672.5251 | AV48: 153382.2495 | AW48: 155983.1253 | AX48: 158515.7121 | AY48: 161027.373 | AZ48: 163434.4611 | BA48: 165769.3646 | BB48: 167944.4419 | BC48: 170002.8362 | BD48: 171771.2516 | BE48: 173517.4151 | BF48: 175210.6601 | BG48: 176822.3266 | BH48: 178421.9604 | BI48: 180010.2707 | BJ48: 181460.1007 | BK48: 182777.6596 | BL48: 183945.132 | BM48: 184973.7495 | BN48: 185820.2769 | BP48: 115766.6507 | BQ48: 120342.9218 | BR48: 127154.5336 | BS48: 130483.1963 | BT48: 133230.9912 | BU48: 136630.3307 | BV48: 140771.2111 | BW48: 145271.0432 | BX48: 149817.4807 | BY48: 154384.3862 | BZ48: 159080.9591 | CA48: 163234.9608 | CB48: 167204.3873 | CC48: 170980.6607 | CD48: 174557.7759 | CE48: 177953.2797 | CF48: 181126.6863 | CG48: 183913.5178 | CH48: 186851.1994 | CI48: 189056.4125 | CJ48: 190902.5294 | CK48: 192654.9961 | CL48: 194302.2912 | CM48: 195831.2587 | CN48: 197336.5141 | CO48: 198562.9751 | CP48: 199670.3535 | CQ48: 200667.0125 | CR48: 201535.9328 | CS48: 202304.2651 | CT48: 202966.9915 | CV48: 115766.6507 | CW48: 120235.3186 | CX48: 126950.0027 | CY48: 130209.2859 | CZ48: 132935.6129 | DA48: 136344.4267 | DB48: 140712.2992 | DC48: 145712.5188 | DD48: 150971.7717 | DE48: 156311.0218 | DF48: 161892.6131 | DG48: 167085.2657 | DH48: 172244.964 | DI48: 177366.3845 | DJ48: 183143.0793 | DK48: 192657.8035 | DL48: 201860.3453 | DM48: 210482.6928 | DN48: 218977.977 | DO48: 226611.527 | DP48: 233747.5326 | DQ48: 240345.0782 | DR48: 246372.5092 | DS48: 251873.957 | DT48: 257134.0058 | DU48: 262050.6602 | DV48: 266724.4458 | DW48: 271146.0228 | DX48: 275334.7726 | DY48: 278580.5723 | DZ48: 278307.8286 | EB48: 115766.6507 | EC48: 120641.8849 | ED48: 128070.786 | EE48: 131563.4446 | EF48: 134235.8221 | EG48: 137551.9483 | EH48: 141876.4606 | EI48: 147554.3438 | EJ48: 152883.448 | EK48: 158807.6755 | EL48: 168540.0229 | EM48: 177984.7372 | EN48: 187248.2656 | EO48: 196328.9512 | EP48: 205087.8485 | EQ48: 213739.7976 | ER48: 222042.3916 | ES48: 229707.6247 | ET48: 236780.8431 | EU48: 243225.0164 | EV48: 249120.6742 | EW48: 254432.2396 | EX48: 259172.1678 | EY48: 263361.8962 | EZ48: 266872.9416 | FA48: 266748.1619 | FB48: 266409.1959 | FC48: 265891.1231 | FD48: 265236.0062 | FE48: 264452.0124 | FF48: 263591.7221
A49: Lancashire | B49: West Lancashire | D49: 418245.5336 | E49: 423547.9654 | F49: 435423.5344 | G49: 441939.8137 | H49: 451512.2384 | I49: 463610.632 | J49: 479983.6751 | K49: 496762.733 | L49: 512956.1297 | M49: 529359.8755 | N49: 547055.6537 | O49: 575736.2526 | P49: 591409.7397 | Q49: 604471.3861 | R49: 629584.3839 | S49: 641728.7715 | T49: 653454.3221 | U49: 663654.8527 | V49: 672998.7006 | W49: 681336.4372 | X49: 692868.3037 | Y49: 699703.4686 | Z49: 705651.1188 | AA49: 710653.5432 | AB49: 715025.2978 | AC49: 717532.3956 | AD49: 719765.8503 | AE49: 722162.8635 | AF49: 724715.2109 | AG49: 727486.8596 | AH49: 730679.8206 | AJ49: 418377.5489 | AK49: 415833.7719 | AL49: 421102.3975 | AM49: 429752.7045 | AN49: 438867.4576 | AO49: 449274.5879 | AP49: 461183.0877 | AQ49: 474279.7919 | AR49: 487603.3467 | AS49: 501382.5196 | AT49: 515225.4173 | AU49: 524350.5187 | AV49: 532759.5239 | AW49: 540624.636 | AX49: 548229.7598 | AY49: 556076.0291 | AZ49: 563482.7112 | BA49: 570490.5442 | BB49: 576934.2534 | BC49: 583088.8382 | BD49: 588326.5612 | BE49: 593408.9368 | BF49: 598207.4793 | BG49: 602621.1305 | BH49: 606906.5527 | BI49: 611068.7736 | BJ49: 614858.7 | BK49: 618311.6025 | BL49: 621383.3704 | BM49: 623986.1014 | BN49: 625733.1838 | BP49: 418245.5336 | BQ49: 423567.2784 | BR49: 435461.356 | BS49: 442000.1589 | BT49: 451597.8061 | BU49: 463669.8791 | BV49: 479974.7319 | BW49: 496694.7115 | BX49: 512852.8252 | BY49: 529029.8976 | BZ49: 545794.5783 | CA49: 573456.8792 | CB49: 588060.4727 | CC49: 600060.2081 | CD49: 624252.1742 | CE49: 634704.5353 | CF49: 644455.7079 | CG49: 652909.1118 | CH49: 660329.9087 | CI49: 666563.7795 | CJ49: 675841.5359 | CK49: 680877.2548 | CL49: 685441.4499 | CM49: 689495.3421 | CN49: 693348.0139 | CO49: 695743.7767 | CP49: 697489.706 | CQ49: 698971.5087 | CR49: 700145.6743 | CS49: 701022.171 | CT49: 701764.3987 | CV49: 418245.5336 | CW49: 423028.401 | CX49: 434528.7522 | CY49: 441239.72 | CZ49: 451758.2866 | DA49: 464829.3242 | DB49: 482620.6842 | DC49: 501338.0915 | DD49: 520037.0961 | DE49: 539546.3513 | DF49: 562415.6221 | DG49: 591897.9504 | DH49: 609035.3743 | DI49: 624911.8585 | DJ49: 653142.0215 | DK49: 684715.7486 | DL49: 724337.3116 | DM49: 749392.7796 | DN49: 772767.4931 | DO49: 794275.0401 | DP49: 814984.0334 | DQ49: 833651.5678 | DR49: 850328.1223 | DS49: 865409.3312 | DT49: 880029.8145 | DU49: 893643.7729 | DV49: 906419.7977 | DW49: 918788.2736 | DX49: 930840.2126 | DY49: 939553.9002 | DZ49: 937038.4994 | EB49: 418245.5336 | EC49: 423669.7404 | ED49: 436796.4015 | EE49: 444072.556 | EF49: 454263.4854 | EG49: 467048.1015 | EH49: 484023.4563 | EI49: 502401.9415 | EJ49: 520903.8071 | EK49: 540291.536 | EL49: 603605.0919 | EM49: 635893.0219 | EN49: 666096.036 | EO49: 692586.3096 | EP49: 717919.8117 | EQ49: 743554.7021 | ER49: 767227.9886 | ES49: 789016.6437 | ET49: 808945.9169 | EU49: 826625.9374 | EV49: 842517.9592 | EW49: 857058.5541 | EX49: 869990.1943 | EY49: 881391.518 | EZ49: 890988.4572 | FA49: 888955.8318 | FB49: 886080.4022 | FC49: 882824.3369 | FD49: 879301.8667 | FE49: 875507.146 | FF49: 871562.4038
A50: Greater Manchester | B50: Wigan | D50: 1368641.797 | E50: 1394903.665 | F50: 1443644.701 | G50: 1473805.503 | H50: 1512462.34 | I50: 1552838.943 | J50: 1605199.823 | K50: 1660099.629 | L50: 1713803.058 | M50: 1768558.797 | N50: 1827978.091 | O50: 1902114.472 | P50: 1950906.391 | Q50: 1995958.496 | R50: 2059511.647 | S50: 2102381.438 | T50: 2143225.491 | U50: 2179161.287 | V50: 2212321.447 | W50: 2242597.013 | X50: 2276827.002 | Y50: 2301302.957 | Z50: 2322698.253 | AA50: 2340857.741 | AB50: 2356780.267 | AC50: 2367044.224 | AD50: 2377026.4 | AE50: 2387591.979 | AF50: 2398681.806 | AG50: 2410614.499 | AH50: 2423867.685 | AJ50: 1369047.385 | AK50: 1365731.514 | AL50: 1388323.73 | AM50: 1419887.617 | AN50: 1451481.181 | AO50: 1486513.947 | AP50: 1526250.865 | AQ50: 1569779.024 | AR50: 1614301.602 | AS50: 1660355.539 | AT50: 1706640.766 | AU50: 1738236.518 | AV50: 1767650.766 | AW50: 1795393.089 | AX50: 1822240.567 | AY50: 1849400.458 | AZ50: 1875216.554 | BA50: 1899814.137 | BB50: 1922484.628 | BC50: 1943966.206 | BD50: 1962276.571 | BE50: 1980074.744 | BF50: 1996927.033 | BG50: 2012470.846 | BH50: 2027687.734 | BI50: 2042471.344 | BJ50: 2055954.731 | BK50: 2068249.755 | BL50: 2079209.586 | BM50: 2088722.318 | BN50: 2095848.241 | BP50: 1368641.797 | BQ50: 1395012.353 | BR50: 1443835.18 | BS50: 1474082.14 | BT50: 1512810.054 | BU50: 1553108.661 | BV50: 1605241.08 | BW50: 1659930.319 | BX50: 1713484.955 | BY50: 1767432.741 | BZ50: 1823651.996 | CA50: 1894254.623 | CB50: 1939307.351 | CC50: 1980620.644 | CD50: 2040888.067 | CE50: 2077855.407 | CF50: 2111703.466 | CG50: 2141291.61 | CH50: 2167400.301 | CI50: 2189914.25 | CJ50: 2215786.573 | CK50: 2233549.813 | CL50: 2249744.341 | CM50: 2264280.28 | CN50: 2278136.639 | CO50: 2287815.547 | CP50: 2295863.132 | CQ50: 2302955.767 | CR50: 2308903.596 | CS50: 2313834.561 | CT50: 2318089.642 | CV50: 1368641.797 | CW50: 1393254.167 | CX50: 1440630.459 | CY50: 1470278.677 | CZ50: 1509644.517 | DA50: 1550947.617 | DB50: 1606317.672 | DC50: 1667164.415 | DD50: 1729736.274 | DE50: 1792235.225 | DF50: 1858562.399 | DG50: 1936768.929 | DH50: 1990473.099 | DI50: 2042780.706 | DJ50: 2121218.808 | DK50: 2226481.479 | DL50: 2342012.499 | DM50: 2430648.434 | DN50: 2513582.834 | DO50: 2590687.038 | DP50: 2663968.517 | DQ50: 2730576.461 | DR50: 2790567.419 | DS50: 2845018.082 | DT50: 2897672.176 | DU50: 2946768.191 | DV50: 2993487.198 | DW50: 3038435.478 | DX50: 3081931.008 | DY50: 3113691.101 | DZ50: 3107065.895 | EB50: 1368641.797 | EC50: 1395254.918 | ED50: 1448249.441 | EE50: 1480067.025 | EF50: 1518365.752 | EG50: 1558478.883 | EH50: 1614611.393 | EI50: 1675989.597 | EJ50: 1735733.492 | EK50: 1801505.346 | EL50: 1961747.151 | EM50: 2064155.132 | EN50: 2162657.312 | EO50: 2256240.422 | EP50: 2345716.168 | EQ50: 2435092.857 | ER50: 2518765.7 | ES50: 2596103.371 | ET50: 2667143.237 | EU50: 2731064.565 | EV50: 2789053.819 | EW50: 2841665.148 | EX50: 2888587.876 | EY50: 2930106.265 | EZ50: 2964458.745 | FA50: 2959135.76 | FB50: 2951486.097 | FC50: 2942376.955 | FD50: 2932208.951 | FE50: 2920970.486 | FF50: 2909300.969
A51: Lancashire | B51: Wyre | D51: 452704.6741 | E51: 459777.6914 | F51: 474519.6941 | G51: 485572.9636 | H51: 496983.2858 | I51: 511138.0436 | J51: 527376.2036 | K51: 545256.8255 | L51: 563925.095 | M51: 582808.4303 | N51: 604126.8199 | O51: 623275.3415 | P51: 648532.9402 | Q51: 665584.7085 | R51: 683928.4506 | S51: 699521.1366 | T51: 714527.5427 | U51: 727540.5322 | V51: 739146.2222 | W51: 749193.3037 | X51: 764034.5474 | Y51: 771716.6475 | Z51: 778352.1146 | AA51: 784181.8483 | AB51: 789129.2821 | AC51: 791731.3474 | AD51: 794263.0484 | AE51: 796866.6402 | AF51: 799545.1069 | AG51: 802285.804 | AH51: 805278.2976 | AJ51: 452862.0556 | AK51: 452316.3206 | AL51: 460350.409 | AM51: 473046.2352 | AN51: 484215.4806 | AO51: 496887.8173 | AP51: 511013.6304 | AQ51: 526696.8885 | AR51: 543123.7003 | AS51: 560261.0485 | AT51: 577759.2917 | AU51: 589119.3591 | AV51: 599605.5979 | AW51: 609419.0958 | AX51: 618875.5213 | AY51: 628567.3428 | AZ51: 637698.7688 | BA51: 646161.8683 | BB51: 653892.6474 | BC51: 661228.8422 | BD51: 667379.0886 | BE51: 673238.6836 | BF51: 678682.2384 | BG51: 683587.6579 | BH51: 688352.1206 | BI51: 692891.1545 | BJ51: 697025.2019 | BK51: 700805.5338 | BL51: 704193.2528 | BM51: 707102.0244 | BN51: 709062.4967 | BP51: 452704.6741 | BQ51: 459817.7628 | BR51: 474584.9148 | BS51: 485659.8857 | BT51: 497093.898 | BU51: 511202.5869 | BV51: 527336.5952 | BW51: 545118.6124 | BX51: 563711.0692 | BY51: 582271.9514 | BZ51: 602375.6876 | CA51: 620262.4667 | CB51: 644252.5707 | CC51: 660100.4196 | CD51: 677464.3996 | CE51: 691147.7839 | CF51: 703992.0888 | CG51: 715216.3195 | CH51: 724890.2553 | CI51: 732845.8743 | CJ51: 745460.9186 | CK51: 751333.2318 | CL51: 756534.6868 | CM51: 761331.3521 | CN51: 765643.8237 | CO51: 767989.6065 | CP51: 769971.5249 | CQ51: 771687.1805 | CR51: 773112.4251 | CS51: 774180.8948 | CT51: 775045.4288 | CV51: 452704.6741 | CW51: 459292.7324 | CX51: 473759.8548 | CY51: 486154.305 | CZ51: 501059.0502 | DA51: 518448.0668 | DB51: 537910.8858 | DC51: 558143.3389 | DD51: 579707.2246 | DE51: 604420.7724 | DF51: 641416.5362 | DG51: 661356.8945 | DH51: 688747.2236 | DI51: 713302.0153 | DJ51: 732854.6474 | DK51: 769636.5808 | DL51: 807931.0918 | DM51: 837063.6654 | DN51: 864205.4708 | DO51: 889799.9976 | DP51: 915797.6246 | DQ51: 937044.8388 | DR51: 955983.7804 | DS51: 973086.9594 | DT51: 989828.0763 | DU51: 1005394.389 | DV51: 1020593.53 | DW51: 1035465.989 | DX51: 1050133.336 | DY51: 1060958.309 | DZ51: 1058706.781 | EB51: 452704.6741 | EC51: 460269.1679 | ED51: 476984.9253 | EE51: 489967.8516 | EF51: 504310.7824 | EG51: 521217.7087 | EH51: 539718.0619 | EI51: 559937.6205 | EJ51: 582622.3664 | EK51: 603993.4227 | EL51: 646447.359 | EM51: 696386.0088 | EN51: 740677.9997 | EO51: 772084.0117 | EP51: 802332.2923 | EQ51: 833870.7481 | ER51: 861644.9217 | ES51: 886513.3561 | ET51: 909277.9366 | EU51: 929525.1088 | EV51: 947692.9245 | EW51: 964082.8375 | EX51: 978771.5121 | EY51: 991770.319 | EZ51: 1003011.244 | FA51: 1000761.258 | FB51: 997913.5239 | FC51: 994669.3581 | FD51: 991139.5309 | FE51: 987305.4326 | FF51: 983311.1941
B52: County | C52: (Years as financial years, ie 2051 is FY2050/51) | D52: 2021 | E52: 2022 | F52: 2023 | G52: 2024 | H52: 2025 | I52: 2026 | J52: 2027 | K52: 2028 | L52: 2029 | M52: 2030 | N52: 2031 | O52: 2032 | P52: 2033 | Q52: 2034 | R52: 2035 | S52: 2036 | T52: 2037 | U52: 2038 | V52: 2039 | W52: 2040 | X52: 2041 | Y52: 2042 | Z52: 2043 | AA52: 2044 | AB52: 2045 | AC52: 2046 | AD52: 2047 | AE52: 2048 | AF52: 2049 | AG52: 2050 | AH52: 2051 | AI52: (Years as financial years, ie 2051 is FY2050/51) | AJ52: 2021 | AK52: 2022 | AL52: 2023 | AM52: 2024 | AN52: 2025 | AO52: 2026 | AP52: 2027 | AQ52: 2028 | AR52: 2029 | AS52: 2030 | AT52: 2031 | AU52: 2032 | AV52: 2033 | AW52: 2034 | AX52: 2035 | AY52: 2036 | AZ52: 2037 | BA52: 2038 | BB52: 2039 | BC52: 2040 | BD52: 2041 | BE52: 2042 | BF52: 2043 | BG52: 2044 | BH52: 2045 | BI52: 2046 | BJ52: 2047 | BK52: 2048 | BL52: 2049 | BM52: 2050 | BN52: 2051 | BO52: (Years as financial years, ie 2051 is FY2050/51) | BP52: 2021 | BQ52: 2022 | BR52: 2023 | BS52: 2024 | BT52: 2025 | BU52: 2026 | BV52: 2027 | BW52: 2028 | BX52: 2029 | BY52: 2030 | BZ52: 2031 | CA52: 2032 | CB52: 2033 | CC52: 2034 | CD52: 2035 | CE52: 2036 | CF52: 2037 | CG52: 2038 | CH52: 2039 | CI52: 2040 | CJ52: 2041 | CK52: 2042 | CL52: 2043 | CM52: 2044 | CN52: 2045 | CO52: 2046 | CP52: 2047 | CQ52: 2048 | CR52: 2049 | CS52: 2050 | CT52: 2051 | CU52: (Years as financial years, ie 2051 is FY2050/51) | CV52: 2021 | CW52: 2022 | CX52: 2023 | CY52: 2024 | CZ52: 2025 | DA52: 2026 | DB52: 2027 | DC52: 2028 | DD52: 2029 | DE52: 2030 | DF52: 2031 | DG52: 2032 | DH52: 2033 | DI52: 2034 | DJ52: 2035 | DK52: 2036 | DL52: 2037 | DM52: 2038 | DN52: 2039 | DO52: 2040 | DP52: 2041 | DQ52: 2042 | DR52: 2043 | DS52: 2044 | DT52: 2045 | DU52: 2046 | DV52: 2047 | DW52: 2048 | DX52: 2049 | DY52: 2050 | DZ52: 2051 | EA52: (Years as financial years, ie 2051 is FY2050/51) | EB52: 2021 | EC52: 2022 | ED52: 2023 | EE52: 2024 | EF52: 2025 | EG52: 2026 | EH52: 2027 | EI52: 2028 | EJ52: 2029 | EK52: 2030 | EL52: 2031 | EM52: 2032 | EN52: 2033 | EO52: 2034 | EP52: 2035 | EQ52: 2036 | ER52: 2037 | ES52: 2038 | ET52: 2039 | EU52: 2040 | EV52: 2041 | EW52: 2042 | EX52: 2043 | EY52: 2044 | EZ52: 2045 | FA52: 2046 | FB52: 2047 | FC52: 2048 | FD52: 2049 | FE52: 2050 | FF52: 2051
B54: Cumbria | D54: 2868422.957 | E54: 2913828.987 | F54: 3016385.764 | G54: 3083735.008 | H54: 3165447.377 | I54: 3250197.633 | J54: 3366438.899 | K54: 3523348.111 | L54: 3626989.763 | M54: 3757682.577 | N54: 3897847.576 | O54: 4012029.138 | P54: 4136406.85 | Q54: 4236339.717 | R54: 4352908.7 | S54: 4516773.02 | T54: 4717482.361 | U54: 4796329.474 | V54: 4871806.595 | W54: 4950497.373 | X54: 5032565.183 | Y54: 5070531.826 | Z54: 5143001.111 | AA54: 5168889.139 | AB54: 5192569.462 | AC54: 5225706.55 | AD54: 5233159.078 | AE54: 5238324.995 | AF54: 5247036.429 | AG54: 5254171.143 | AH54: 5263251.534 | AJ54: 2869512.228 | AK54: 2864091.655 | AL54: 2916047.632 | AM54: 2986962.756 | AN54: 3054961.96 | AO54: 3124641.538 | AP54: 3202621.351 | AQ54: 3290200.03 | AR54: 3381536.622 | AS54: 3477003.159 | AT54: 3575197.303 | AU54: 3634064.583 | AV54: 3686325.755 | AW54: 3735297.235 | AX54: 3784036.81 | AY54: 3838891.17 | AZ54: 3890902.196 | BA54: 3938840.714 | BB54: 3982275.006 | BC54: 4024696.114 | BD54: 4060907.704 | BE54: 4095601.922 | BF54: 4128150.363 | BG54: 4157656.41 | BH54: 4186238.123 | BI54: 4213646.978 | BJ54: 4238773.364 | BK54: 4261868.747 | BL54: 4282593.545 | BM54: 4298822.769 | BN54: 4304883.686 | BP54: 2868422.957 | BQ54: 2914304.374 | BR54: 3017436.319 | BS54: 3085309.102 | BT54: 3167421.655 | BU54: 3251994.79 | BV54: 3367736.223 | BW54: 3524002.714 | BX54: 3627184.97 | BY54: 3756169.209 | BZ54: 3890138.777 | CA54: 3997711.43 | CB54: 4115305.098 | CC54: 4208660.342 | CD54: 4319701.551 | CE54: 4473278.859 | CF54: 4662025.523 | CG54: 4730487.356 | CH54: 4794569.086 | CI54: 4860802.357 | CJ54: 4929508.987 | CK54: 4956579.796 | CL54: 5020396.22 | CM54: 5040004.512 | CN54: 5059755.236 | CO54: 5091198.174 | CP54: 5095193.871 | CQ54: 5094865.16 | CR54: 5095873.312 | CS54: 5092792.414 | CT54: 5088938.716 | CV54: 2868422.957 | CW54: 2911548.177 | CX54: 3014221.114 | CY54: 3082826.997 | CZ54: 3167149.671 | DA54: 3257984.238 | DB54: 3386741.15 | DC54: 3561639.246 | DD54: 3687337.636 | DE54: 3836100.199 | DF54: 4010640.34 | DG54: 4129484.436 | DH54: 4252268.62 | DI54: 4458008.297 | DJ54: 4607925.062 | DK54: 5127280.795 | DL54: 5354900.383 | DM54: 5512632.449 | DN54: 5653162.459 | DO54: 5776430.983 | DP54: 5908457.707 | DQ54: 6006420.268 | DR54: 6093352.607 | DS54: 6167933.211 | DT54: 6242198.533 | DU54: 6308214.998 | DV54: 6374509.088 | DW54: 6438907.242 | DX54: 6504430.797 | DY54: 6548458.283 | DZ54: 6526227.218 | EB54: 2868422.957 | EC54: 2913516.012 | ED54: 3024549.181 | EE54: 3095923.509 | EF54: 3178265.151 | EG54: 3273005.732 | EH54: 3493984.278 | EI54: 3786989.02 | EJ54: 3965970.972 | EK54: 4104478.176 | EL54: 4335503.14 | EM54: 4743040.253 | EN54: 4909733.336 | EO54: 5091481.615 | EP54: 5242303.557 | EQ54: 5400964.814 | ER54: 5542044.989 | ES54: 5666060.996 | ET54: 5779555.789 | EU54: 5876505.151 | EV54: 5962137.796 | EW54: 6036425.233 | EX54: 6101882.001 | EY54: 6157886.542 | EZ54: 6206729.138 | FA54: 6186976.003 | FB54: 6164427.02 | FC54: 6139446.954 | FD54: 6113140.301 | FE54: 6084464.688 | FF54: 6055033.392
B55: Lancashire | D55: 6247416.003 | E55: 6360843.698 | F55: 6585716.798 | G55: 6792976.403 | H55: 6946777.096 | I55: 7151477.623 | J55: 7370034.136 | K55: 7597209.227 | L55: 7829233.416 | M55: 8113976.593 | N55: 8394562.616 | O55: 8648778.38 | P55: 8941424.485 | Q55: 9164814.589 | R55: 9382889.053 | S55: 9596423.329 | T55: 9813364.42 | U55: 10314908.11 | V55: 10483154.61 | W55: 10605454.09 | X55: 10820429.61 | Y55: 10914724.02 | Z55: 11002544.9 | AA55: 11088398.59 | AB55: 11153419.54 | AC55: 11184341.89 | AD55: 11212097.69 | AE55: 11245921.8 | AF55: 11273002.4 | AG55: 11300314.02 | AH55: 11337998.23 | AJ55: 6249504.655 | AK55: 6237111.617 | AL55: 6348501.281 | AM55: 6573031.876 | AN55: 6724639.801 | AO55: 6891489.117 | AP55: 7081799.413 | AQ55: 7283269.016 | AR55: 7492330.72 | AS55: 7709010.09 | AT55: 7930004.511 | AU55: 8073139.745 | AV55: 8205074.03 | AW55: 8328438.775 | AX55: 8447229.981 | AY55: 8569011.185 | AZ55: 8683782.664 | BA55: 8791501.883 | BB55: 8889937.685 | BC55: 8983039.747 | BD55: 9061766.162 | BE55: 9136931.343 | BF55: 9207089.227 | BG55: 9270668.63 | BH55: 9331905.221 | BI55: 9390439.203 | BJ55: 9443522.686 | BK55: 9491769.44 | BL55: 9534601.996 | BM55: 9570901.295 | BN55: 9594971.131 | BP55: 6247416.003 | BQ55: 6361324.437 | BR55: 6586426.486 | BS55: 6793777.348 | BT55: 6947882.178 | BU55: 7152064.383 | BV55: 7369345.433 | BW55: 7595304.641 | BX55: 7826369.357 | BY55: 8107124.337 | BZ55: 8372813.583 | CA55: 8611277.332 | CB55: 8887846.205 | CC55: 9095711.939 | CD55: 9300809.358 | CE55: 9489863.606 | CF55: 9678541.595 | CG55: 10155799.43 | CH55: 10297481.92 | CI55: 10390792.72 | CJ55: 10574727.57 | CK55: 10643808.91 | CL55: 10711718.61 | CM55: 10783271.25 | CN55: 10839552.14 | CO55: 10867026.7 | CP55: 10887042.43 | CQ55: 10908190.1 | CR55: 10917247.4 | CS55: 10920468.92 | CT55: 10927497.96 | CV55: 6247416.003 | CW55: 6353931.054 | CX55: 6574212.976 | CY55: 6786349.489 | CZ55: 6957449.05 | DA55: 7179509.012 | DB55: 7421541.121 | DC55: 7676268.053 | DD55: 7954213.941 | DE55: 8283236.28 | DF55: 8652413.967 | DG55: 8915708.037 | DH55: 9216277.369 | DI55: 9538648.312 | DJ55: 9803503.53 | DK55: 10398586.08 | DL55: 10904145.07 | DM55: 11293060.57 | DN55: 11656504.66 | DO55: 12314275.79 | DP55: 12649918.7 | DQ55: 12929543.27 | DR55: 13182542.61 | DS55: 13408188.61 | DT55: 13635027.92 | DU55: 13840400.36 | DV55: 14037607.58 | DW55: 14233191.16 | DX55: 14415909.96 | DY55: 14544789.36 | DZ55: 14503758.88 | EB55: 6247416.003 | EC55: 6363712.975 | ED55: 6609061.851 | EE55: 6827856.946 | EF55: 6991299.337 | EG55: 7194111.315 | EH55: 7480304.854 | EI55: 7835571.933 | EJ55: 8127457.225 | EK55: 8412339.866 | EL55: 8957724.817 | EM55: 9489003.483 | EN55: 10062244.33 | EO55: 10502248.47 | EP55: 11246505.04 | EQ55: 11669909.56 | ER55: 12032921.53 | ES55: 12360051.97 | ET55: 12661334.07 | EU55: 12926186.63 | EV55: 13164621.33 | EW55: 13382987.56 | EX55: 13581184.21 | EY55: 13753273.28 | EZ55: 13902489.09 | FA55: 13865482.1 | FB55: 13818766.15 | FC55: 13771135.52 | FD55: 13711660.56 | FE55: 13645892.36 | FF55: 13583076.7
B56: Greater Manchester | D56: 12297545.74 | E56: 12591625.63 | F56: 13140501.73 | G56: 13481444.15 | H56: 13886742.12 | I56: 14337185.06 | J56: 14854971.88 | K56: 15361563.65 | L56: 15823513.64 | M56: 16287544.18 | N56: 16789070.56 | O56: 17291464.73 | P56: 17709179.09 | Q56: 18146513.12 | R56: 18552130.85 | S56: 18969018.93 | T56: 19334623.09 | U56: 19754299.29 | V56: 20014622.81 | W56: 20241977.92 | X56: 20490188.93 | Y56: 20678445.67 | Z56: 20832011.68 | AA56: 20960920.06 | AB56: 21073711.75 | AC56: 21158295.98 | AD56: 21226473.42 | AE56: 21295682.57 | AF56: 21368150.44 | AG56: 21441064.52 | AH56: 21519740.11 | AJ56: 12301027.19 | AK56: 12305286.85 | AL56: 12568886.95 | AM56: 12927930.81 | AN56: 13304850.79 | AO56: 13710822.07 | AP56: 14159482.44 | AQ56: 14618780.85 | AR56: 15020602.7 | AS56: 15420072.09 | AT56: 15817224.95 | AU56: 16077690.04 | AV56: 16318907.65 | AW56: 16545060.19 | AX56: 16762406.86 | AY56: 16980072.97 | AZ56: 17186279.06 | BA56: 17383801.59 | BB56: 17565190.81 | BC56: 17735696.77 | BD56: 17880133.72 | BE56: 18018300.69 | BF56: 18147145.42 | BG56: 18263581.74 | BH56: 18376497.16 | BI56: 18483923.6 | BJ56: 18581327.57 | BK56: 18669708.34 | BL56: 18747990.2 | BM56: 18815904.89 | BN56: 18866927.76 | BP56: 12297545.74 | BQ56: 12592677.58 | BR56: 13142023.31 | BS56: 13483421.51 | BT56: 13888966.26 | BU56: 14338565.38 | BV56: 14854493.98 | BW56: 15359360.44 | BX56: 15819883.62 | BY56: 16277284.11 | BZ56: 16753475.65 | CA56: 17228965.47 | CB56: 17619164.51 | CC56: 18029864.61 | CD56: 18413110.37 | CE56: 18788026.72 | CF56: 19104966.35 | CG56: 19482493.24 | CH56: 19696579.46 | CI56: 19873372.37 | CJ56: 20067354.67 | CK56: 20211541.22 | CL56: 20330301.56 | CM56: 20434190.78 | CN56: 20531669.14 | CO56: 20610184.26 | CP56: 20664732.31 | CQ56: 20711625.14 | CR56: 20752358.49 | CS56: 20782879.29 | CT56: 20807636.25 | CV56: 12297545.74 | CW56: 12577133.76 | CX56: 13112971.57 | CY56: 13491460.24 | CZ56: 13969154.95 | DA56: 14420444.5 | DB56: 14956622.92 | DC56: 15505023.34 | DD56: 16042913.98 | DE56: 16552414.14 | DF56: 17070575.77 | DG56: 17584112.43 | DH56: 18018876.88 | DI56: 18538557.44 | DJ56: 19035833.19 | DK56: 20154566.62 | DL56: 21013609.88 | DM56: 21711637.81 | DN56: 22360449.59 | DO56: 22963339.17 | DP56: 23543283.29 | DQ56: 24063086.27 | DR56: 24531971.92 | DS56: 24958656.9 | DT56: 25372871.43 | DU56: 25759804.51 | DV56: 26132083.83 | DW56: 26492335.05 | DX56: 26845020.31 | DY56: 27102259.62 | DZ56: 27042076.09 | EB56: 12297545.74 | EC56: 12591431.75 | ED56: 13168893.57 | EE56: 13559518.56 | EF56: 14022833.63 | EG56: 14474098.92 | EH56: 15096190.5 | EI56: 15730161.35 | EJ56: 16243187.9 | EK56: 16779598.17 | EL56: 17821919.1 | EM56: 18746695.48 | EN56: 19596178.04 | EO56: 20337524.65 | EP56: 21036648.94 | EQ56: 21746952.75 | ER56: 22398084.75 | ES56: 22998437.11 | ET56: 23553122.88 | EU56: 24054951.61 | EV56: 24513336.74 | EW56: 24928338.8 | EX56: 25301190.71 | EY56: 25633294.45 | EZ56: 25909175.98 | FA56: 25855327.25 | FB56: 25787615.71 | FC56: 25709205.97 | FD56: 25624026.49 | FE56: 25529858.14 | FF56: 25431998.97
B57: Other* | D57: 1492109.908 | E57: 1527010.682 | F57: 1590293.653 | G57: 1632280.432 | H57: 1682347.608 | I57: 1745742.499 | J57: 1814853.468 | K57: 1888065.966 | L57: 1947305.82 | M57: 2009372.339 | N57: 2076917.181 | O57: 2141648.64 | P57: 2193587.405 | Q57: 2241470.899 | R57: 2292849.234 | S57: 2347715.472 | T57: 2422528.161 | U57: 2485956.537 | V57: 2519954.963 | W57: 2549732.867 | X57: 2583163.849 | Y57: 2607831.15 | Z57: 2628382.652 | AA57: 2645161.277 | AB57: 2659980.143 | AC57: 2670088.63 | AD57: 2678921.303 | AE57: 2687827.357 | AF57: 2697149.62 | AG57: 2706798.201 | AH57: 2717258.384 | AJ57: 1492545.427 | AK57: 1492964.8 | AL57: 1523895.325 | AM57: 1570721.541 | AN57: 1620658.297 | AO57: 1677899.851 | AP57: 1739033.926 | AQ57: 1804151.505 | AR57: 1856175.437 | AS57: 1908018.656 | AT57: 1958495.519 | AU57: 1991755.907 | AV57: 2022508.71 | AW57: 2051339.355 | AX57: 2079090.032 | AY57: 2107200.777 | AZ57: 2133853.092 | BA57: 2158964.43 | BB57: 2182031.353 | BC57: 2203919.98 | BD57: 2222374.971 | BE57: 2240095.945 | BF57: 2256652.051 | BG57: 2271689.483 | BH57: 2286254.803 | BI57: 2300183.639 | BJ57: 2312843.977 | BK57: 2324366.628 | BL57: 2334616.268 | BM57: 2343454.831 | BN57: 2349798.518 | BP57: 1492109.908 | BQ57: 1527111.531 | BR57: 1590455.312 | BS57: 1632510.507 | BT57: 1682604.776 | BU57: 1745865.452 | BV57: 1814742.298 | BW57: 1887735.717 | BX57: 1946806.29 | BY57: 2008022.165 | BZ57: 2072245.46 | CA57: 2133455.922 | CB57: 2181788.209 | CC57: 2226176.408 | CD57: 2274617.799 | CE57: 2323953.791 | CF57: 2392377.206 | CG57: 2450298.065 | CH57: 2478269.465 | CI57: 2501469.71 | CJ57: 2527858.95 | CK57: 2546826.846 | CL57: 2562901.661 | CM57: 2576494.302 | CN57: 2589405.7 | CO57: 2598823.246 | CP57: 2605949.652 | CQ57: 2611985.49 | CR57: 2617176.977 | CS57: 2621269.571 | CT57: 2624633.449 | CV57: 1492109.908 | CW57: 1525332.689 | CX57: 1587321.93 | CY57: 1639493.927 | CZ57: 1707034.1 | DA57: 1770911.749 | DB57: 1842986.605 | DC57: 1921851.861 | DD57: 1989426.908 | DE57: 2057520.736 | DF57: 2126444.246 | DG57: 2193183.116 | DH57: 2246600.044 | DI57: 2332273.836 | DJ57: 2399140.208 | DK57: 2682626.729 | DL57: 2808420.252 | DM57: 2894245.371 | DN57: 2974573.524 | DO57: 3048742.809 | DP57: 3119130.002 | DQ57: 3182505.567 | DR57: 3239550.358 | DS57: 3291247.35 | DT57: 3341443.256 | DU57: 3388150.405 | DV57: 3433298.781 | DW57: 3476961.076 | DX57: 3519557.618 | DY57: 3550815.039 | DZ57: 3544142.736 | EB57: 1492109.908 | EC57: 1528188.936 | ED57: 1596376.16 | EE57: 1650226.071 | EF57: 1716139.289 | EG57: 1777881.274 | EH57: 1851233.315 | EI57: 1933743.16 | EJ57: 2004981.299 | EK57: 2076892.631 | EL57: 2224617.842 | EM57: 2346876.718 | EN57: 2505135.325 | EO57: 2598802.919 | EP57: 2685753.308 | EQ57: 2799098.134 | ER57: 2879735.918 | ES57: 2953030.848 | ET57: 3020650.279 | EU57: 3081494.761 | EV57: 3136557.427 | EW57: 3186511.942 | EX57: 3231811.806 | EY57: 3271475.999 | EZ57: 3304604.43 | FA57: 3298421.219 | FB57: 3290441.058 | FC57: 3281116.085 | FD57: 3270938.485 | FE57: 3259665.873 | FF57: 3247818.841
B58: * includes Cheshire, North Yorkshire, Derbyshire, Northumberland, Merseyside, Straffordshire

Sheet LA Heat Pump Uptake
C9: Best View | BN9: Steady Progression | DY9: System Transformation | GJ9: Consumer Transformation | IU9: Leading the Way
A10: County | B10: Local Authority | C10: (Years as financial years, ie 2051 is FY2050/51) | D10: 2021 | F10: 2022 | H10: 2023 | J10: 2024 | L10: 2025 | N10: 2026 | P10: 2027 | R10: 2028 | T10: 2029 | V10: 2030 | X10: 2031 | Z10: 2032 | AB10: 2033 | AD10: 2034 | AF10: 2035 | AH10: 2036 | AJ10: 2037 | AL10: 2038 | AN10: 2039 | AP10: 2040 | AR10: 2041 | AT10: 2042 | AV10: 2043 | AX10: 2044 | AZ10: 2045 | BB10: 2046 | BD10: 2047 | BF10: 2048 | BH10: 2049 | BJ10: 2050 | BL10: 2051 | BN10: (Years as financial years, ie 2051 is FY2050/51) | BO10: 2021 | BQ10: 2022 | BS10: 2023 | BU10: 2024 | BW10: 2025 | BY10: 2026 | CA10: 2027 | CC10: 2028 | CE10: 2029 | CG10: 2030 | CI10: 2031 | CK10: 2032 | CM10: 2033 | CO10: 2034 | CQ10: 2035 | CS10: 2036 | CU10: 2037 | CW10: 2038 | CY10: 2039 | DA10: 2040 | DC10: 2041 | DE10: 2042 | DG10: 2043 | DI10: 2044 | DK10: 2045 | DM10: 2046 | DO10: 2047 | DQ10: 2048 | DS10: 2049 | DU10: 2050 | DW10: 2051 | DY10: (Years as financial years, ie 2051 is FY2050/51) | DZ10: 2021 | EB10: 2022 | ED10: 2023 | EF10: 2024 | EH10: 2025 | EJ10: 2026 | EL10: 2027 | EN10: 2028 | EP10: 2029 | ER10: 2030 | ET10: 2031 | EV10: 2032 | EX10: 2033 | EZ10: 2034 | FB10: 2035 | FD10: 2036 | FF10: 2037 | FH10: 2038 | FJ10: =FH10+1 -> 2039 | FL10: =FJ10+1 -> 2040 | FN10: =FL10+1 -> 2041 | FP10: =FN10+1 -> 2042 | FR10: =FP10+1 -> 2043 | FT10: =FR10+1 -> 2044 | FV10: =FT10+1 -> 2045 | FX10: =FV10+1 -> 2046 | FZ10: =FX10+1 -> 2047 | GB10: =FZ10+1 -> 2048 | GD10: =GB10+1 -> 2049 | GF10: =GD10+1 -> 2050 | GH10: =GF10+1 -> 2051 | GJ10: (Years as financial years, ie 2051 is FY2050/51) | GK10: 2021 | GM10: =GK10+1 -> 2022 | GO10: =GM10+1 -> 2023 | GQ10: =GO10+1 -> 2024 | GS10: =GQ10+1 -> 2025 | GU10: =GS10+1 -> 2026 | GW10: =GU10+1 -> 2027 | GY10: =GW10+1 -> 2028 | HA10: =GY10+1 -> 2029 | HC10: =HA10+1 -> 2030 | HE10: =HC10+1 -> 2031 | HG10: =HE10+1 -> 2032 | HI10: =HG10+1 -> 2033 | HK10: =HI10+1 -> 2034 | HM10: =HK10+1 -> 2035 | HO10: =HM10+1 -> 2036 | HQ10: =HO10+1 -> 2037 | HS10: =HQ10+1 -> 2038 | HU10: =HS10+1 -> 2039 | HW10: =HU10+1 -> 2040 | HY10: =HW10+1 -> 2041 | IA10: =HY10+1 -> 2042 | IC10: =IA10+1 -> 2043 | IE10: =IC10+1 -> 2044 | IG10: =IE10+1 -> 2045 | II10: =IG10+1 -> 2046 | IK10: =II10+1 -> 2047 | IM10: =IK10+1 -> 2048 | IO10: =IM10+1 -> 2049 | IQ10: =IO10+1 -> 2050 | IS10: =IQ10+1 -> 2051 | IU10: (Years as financial years, ie 2051 is FY2050/51) | IV10: 2021 | IX10: =IV10+1 -> 2022 | IZ10: =IX10+1 -> 2023 | JB10: =IZ10+1 -> 2024 | JD10: =JB10+1 -> 2025 | JF10: =JD10+1 -> 2026 | JH10: =JF10+1 -> 2027 | JJ10: =JH10+1 -> 2028 | JL10: =JJ10+1 -> 2029 | JN10: =JL10+1 -> 2030 | JP10: =JN10+1 -> 2031 | JR10: =JP10+1 -> 2032 | JT10: =JR10+1 -> 2033 | JV10: =JT10+1 -> 2034 | JX10: =JV10+1 -> 2035 | JZ10: =JX10+1 -> 2036 | KB10: =JZ10+1 -> 2037 | KD10: =KB10+1 -> 2038 | KF10: =KD10+1 -> 2039 | KH10: =KF10+1 -> 2040 | KJ10: =KH10+1 -> 2041 | KL10: =KJ10+1 -> 2042 | KN10: =KL10+1 -> 2043 | KP10: =KN10+1 -> 2044 | KR10: =KP10+1 -> 2045 | KT10: =KR10+1 -> 2046 | KV10: =KT10+1 -> 2047 | KX10: =KV10+1 -> 2048 | KZ10: =KX10+1 -> 2049 | LB10: =KZ10+1 -> 2050 | LD10: =LB10+1 -> 2051
D11: dom | E11: non-dom | F11: dom | G11: non-dom | H11: dom | I11: non-dom | J11: dom | K11: non-dom | L11: dom | M11: non-dom | N11: dom | O11: non-dom | P11: dom | Q11: non-dom | R11: dom | S11: non-dom | T11: dom | U11: non-dom | V11: dom | W11: non-dom | X11: dom | Y11: non-dom | Z11: dom | AA11: non-dom | AB11: dom | AC11: non-dom | AD11: dom | AE11: non-dom | AF11: dom | AG11: non-dom | AH11: dom | AI11: non-dom | AJ11: dom | AK11: non-dom | AL11: dom | AM11: non-dom | AN11: dom | AO11: non-dom | AP11: dom | AQ11: non-dom | AR11: dom | AS11: non-dom | AT11: dom | AU11: non-dom | AV11: dom | AW11: non-dom | AX11: dom | AY11: non-dom | AZ11: dom | BA11: non-dom | BB11: dom | BC11: non-dom | BD11: dom | BE11: non-dom | BF11: dom | BG11: non-dom | BH11: dom | BI11: non-dom | BJ11: dom | BK11: non-dom | BL11: dom | BM11: non-dom | BO11: dom | BP11: non-dom | BQ11: dom | BR11: non-dom | BS11: dom | BT11: non-dom | BU11: dom | BV11: non-dom | BW11: dom | BX11: non-dom | BY11: dom | BZ11: non-dom | CA11: dom | CB11: non-dom | CC11: dom | CD11: non-dom | CE11: dom | CF11: non-dom | CG11: dom | CH11: non-dom | CI11: dom | CJ11: non-dom | CK11: dom | CL11: non-dom | CM11: dom | CN11: non-dom | CO11: dom | CP11: non-dom | CQ11: dom | CR11: non-dom | CS11: dom | CT11: non-dom | CU11: dom | CV11: non-dom | CW11: dom | CX11: non-dom | CY11: dom | CZ11: non-dom | DA11: dom | DB11: non-dom | DC11: dom | DD11: non-dom | DE11: dom | DF11: non-dom | DG11: dom | DH11: non-dom | DI11: dom | DJ11: non-dom | DK11: dom | DL11: non-dom | DM11: dom | DN11: non-dom | DO11: dom | DP11: non-dom | DQ11: dom | DR11: non-dom | DS11: dom | DT11: non-dom | DU11: dom | DV11: non-dom | DW11: dom | DX11: non-dom | DZ11: dom | EA11: non-dom | EB11: dom | EC11: non-dom | ED11: dom | EE11: non-dom | EF11: dom | EG11: non-dom | EH11: dom | EI11: non-dom | EJ11: dom | EK11: non-dom | EL11: dom | EM11: non-dom | EN11: dom | EO11: non-dom | EP11: dom | EQ11: non-dom | ER11: dom | ES11: non-dom | ET11: dom | EU11: non-dom | EV11: dom | EW11: non-dom | EX11: dom | EY11: non-dom | EZ11: dom | FA11: non-dom | FB11: dom | FC11: non-dom | FD11: dom | FE11: non-dom | FF11: dom | FG11: non-dom | FH11: dom | FI11: non-dom | FJ11: dom | FK11: non-dom | FL11: dom | FM11: non-dom | FN11: dom | FO11: non-dom | FP11: dom | FQ11: non-dom | FR11: dom | FS11: non-dom | FT11: dom | FU11: non-dom | FV11: dom | FW11: non-dom | FX11: dom | FY11: non-dom | FZ11: dom | GA11: non-dom | GB11: dom | GC11: non-dom | GD11: dom | GE11: non-dom | GF11: dom | GG11: non-dom | GH11: dom | GI11: non-dom | GK11: dom | GL11: non-dom | GM11: dom | GN11: non-dom | GO11: dom | GP11: non-dom | GQ11: dom | GR11: non-dom | GS11: dom | GT11: non-dom | GU11: dom | GV11: non-dom | GW11: dom | GX11: non-dom | GY11: dom | GZ11: non-dom | HA11: dom | HB11: non-dom | HC11: dom | HD11: non-dom | HE11: dom | HF11: non-dom | HG11: dom | HH11: non-dom | HI11: dom | HJ11: non-dom | HK11: dom | HL11: non-dom | HM11: dom | HN11: non-dom | HO11: dom | HP11: non-dom | HQ11: dom | HR11: non-dom | HS11: dom | HT11: non-dom | HU11: dom | HV11: non-dom | HW11: dom | HX11: non-dom | HY11: dom | HZ11: non-dom | IA11: dom | IB11: non-dom | IC11: dom | ID11: non-dom | IE11: dom | IF11: non-dom | IG11: dom | IH11: non-dom | II11: dom | IJ11: non-dom | IK11: dom | IL11: non-dom | IM11: dom | IN11: non-dom | IO11: dom | IP11: non-dom | IQ11: dom | IR11: non-dom | IS11: dom | IT11: non-dom | IV11: dom | IW11: non-dom | IX11: dom | IY11: non-dom | IZ11: dom | JA11: non-dom | JB11: dom | JC11: non-dom | JD11: dom | JE11: non-dom | JF11: dom | JG11: non-dom | JH11: dom | JI11: non-dom | JJ11: dom | JK11: non-dom | JL11: dom | JM11: non-dom | JN11: dom | JO11: non-dom | JP11: dom | JQ11: non-dom | JR11: dom | JS11: non-dom | JT11: dom | JU11: non-dom | JV11: dom | JW11: non-dom | JX11: dom | JY11: non-dom | JZ11: dom | KA11: non-dom | KB11: dom | KC11: non-dom | KD11: dom | KE11: non-dom | KF11: dom | KG11: non-dom | KH11: dom | KI11: non-dom | KJ11: dom | KK11: non-dom | KL11: dom | KM11: non-dom | KN11: dom | KO11: non-dom | KP11: dom | KQ11: non-dom | KR11: dom | KS11: non-dom | KT11: dom | KU11: non-dom | KV11: dom | KW11: non-dom | KX11: dom | KY11: non-dom | KZ11: dom | LA11: non-dom | LB11: dom | LC11: non-dom | LD11: dom | LE11: non-dom
A12: Cumbria | B12: Allerdale | D12: 338.3836721 | E12: 108.5495202 | F12: 412.8025212 | G12: 125.790405 | H12: 873.3553816 | I12: 143.7143483 | J12: 1384.307116 | K12: 162.0885806 | L12: 1976.619354 | M12: 179.4765835 | N12: 2695.447598 | O12: 193.8406009 | P12: 3399.721957 | Q12: 213.9562463 | R12: 4126.242216 | S12: 234.5960757 | T12: 4868.211557 | U12: 255.4889597 | V12: 5585.676315 | W12: 276.8334924 | X12: 7016.980338 | Y12: 300.1384169 | Z12: 8440.538758 | AA12: 319.598086 | AB12: 9851.688595 | AC12: 338.8917823 | AD12: 11235.80723 | AE12: 358.0085882 | AF12: 12635.25471 | AG12: 376.9405213 | AH12: 14101.9389 | AI12: 395.7216904 | AJ12: 15592.52141 | AK12: 414.3202145 | AL12: 16748.83618 | AM12: 432.7542494 | AN12: 17855.25566 | AO12: 451.0333734 | AP12: 18869.80558 | AQ12: 469.1161174 | AR12: 19699.04642 | AS12: 487.0159972 | AT12: 20541.57884 | AU12: 504.7393241 | AV12: 21341.64419 | AW12: 522.3366462 | AX12: 22133.67013 | AY12: 539.7998553 | AZ12: 22949.31255 | BA12: 557.0894121 | BB12: 23101.87965 | BC12: 574.2468725 | BD12: 23261.51546 | BE12: 591.2671577 | BF12: 23424.00222 | BG12: 608.1523163 | BH12: 23593.7518 | BI12: 624.9062054 | BJ12: 23787.37953 | BK12: 641.5326404 | BL12: 23975.55907 | BM12: 658.0335785 | BO12: 338.3836721 | BP12: 108.5495202 | BQ12: 408.1592748 | BR12: 123.7082006 | BS12: 812.8377737 | BT12: 139.5068009 | BU12: 1259.415069 | BV12: 155.9167772 | BW12: 1435.126883 | BX12: 170.8734382 | BY12: 1824.896271 | BZ12: 181.8288541 | CA12: 2241.639802 | CB12: 199.8020429 | CC12: 2682.560296 | CD12: 218.2577259 | CE12: 3137.750281 | CF12: 236.9254577 | CG12: 3610.403246 | CH12: 255.9966993 | CI12: 4099.183558 | CJ12: 277.3551125 | CK12: 4594.981696 | CL12: 291.5830267 | CM12: 5091.6689 | CN12: 305.6395495 | CO12: 5572.865299 | CP12: 319.5204882 | CQ12: 6181.735226 | CR12: 333.2254184 | CS12: 7171.70215 | CT12: 346.7779706 | CU12: 8197.34732 | CV12: 360.1543257 | CW12: 8935.923297 | CX12: 373.3930708 | CY12: 9643.85727 | CZ12: 386.4820704 | DA12: 10532.95502 | DB12: 399.3928659 | DC12: 11207.63555 | DD12: 412.1324491 | DE12: 11884.38909 | DF12: 424.7100544 | DG12: 12519.27023 | DH12: 437.1696209 | DI12: 13170.97089 | DJ12: 449.5023291 | DK12: 13846.32957 | DL12: 461.6821905 | DM12: 14530.53193 | DN12: 473.7394222 | DO12: 15207.58679 | DP12: 485.6726118 | DQ12: 15874.67461 | DR12: 497.4854131 | DS12: 16540.655 | DT12: 509.1821621 | DU12: 17031.97287 | DV12: 520.7653935 | DW12: 17300.62992 | DX12: 532.2412204 | DZ12: 338.3836721 | EA12: 108.5495202 | EB12: 412.8025212 | EC12: 125.790405 | ED12: 873.3553816 | EE12: 143.7143483 | EF12: 1384.307116 | EG12: 162.0885806 | EH12: 1976.619354 | EI12: 179.4765835 | EJ12: 2695.447598 | EK12: 193.8406009 | EL12: 3399.721957 | EM12: 213.9562463 | EN12: 4126.242216 | EO12: 234.5960757 | EP12: 4868.211557 | EQ12: 255.4889597 | ER12: 5585.676315 | ES12: 276.8334924 | ET12: 7016.980338 | EU12: 300.1384169 | EV12: 8440.538758 | EW12: 319.598086 | EX12: 9851.688595 | EY12: 338.8917823 | EZ12: 11235.80723 | FA12: 358.0085882 | FB12: 12635.25471 | FC12: 376.9405213 | FD12: 14101.9389 | FE12: 395.7216904 | FF12: 15592.52141 | FG12: 414.3202145 | FH12: 16748.83618 | FI12: 432.7542494 | FJ12: 17855.25566 | FK12: 451.0333734 | FL12: 18869.80558 | FM12: 469.1161174 | FN12: 19699.04642 | FO12: 487.0159972 | FP12: 20541.57884 | FQ12: 504.7393241 | FR12: 21341.64419 | FS12: 522.3366462 | FT12: 22133.67013 | FU12: 539.7998553 | FV12: 22949.31255 | FW12: 557.0894121 | FX12: 23101.87965 | FY12: 574.2468725 | FZ12: 23261.51546 | GA12: 591.2671577 | GB12: 23424.00222 | GC12: 608.1523163 | GD12: 23593.7518 | GE12: 624.9062054 | GF12: 23787.37953 | GG12: 641.5326404 | GH12: 23975.55907 | GI12: 658.0335785 | GK12: 338.3836721 | GL12: 108.5495202 | GM12: 428.4008775 | GN12: 138.9128585 | GO12: 1051.819262 | GP12: 169.6643138 | GQ12: 1812.499249 | GR12: 200.4173688 | GS12: 2644.59897 | GT12: 231.6537255 | GU12: 3644.097673 | GV12: 263.3093795 | GW12: 4799.841816 | GX12: 295.3644475 | GY12: 6207.447697 | GZ12: 327.8168783 | HA12: 7726.918626 | HB12: 360.682085 | HC12: 9104.325524 | HD12: 393.9349155 | HE12: 10569.10965 | HF12: 426.344306 | HG12: 11830.91121 | HH12: 453.1806751 | HI12: 12941.49921 | HJ12: 479.6900261 | HK12: 13890.03314 | HL12: 505.8661596 | HM12: 15377.2595 | HN12: 531.7016101 | HO12: 18612.76286 | HP12: 770.6594302 | HQ12: 21839.7461 | HR12: 1008.532326 | HS12: 24562.23098 | HT12: 1245.345345 | HU12: 27152.33815 | HV12: 1481.12087 | HW12: 29614.16709 | HX12: 1715.711943 | HY12: 31957.03086 | HZ12: 1949.115847 | IA12: 34162.54527 | IB12: 2181.329144 | IC12: 36135.52597 | ID12: 2412.555081 | IE12: 37999.89717 | IF12: 2642.755308 | IG12: 40047.64752 | IH12: 2871.737665 | II12: 42027.86209 | IJ12: 3099.682162 | IK12: 44215.43214 | IL12: 3326.5527 | IM12: 46550.01966 | IN12: 3552.353997 | IO12: 49026.99707 | IP12: 3777.096665 | IQ12: 51035.71586 | IR12: 4000.784326 | IS12: 51310.51082 | IT12: 4016.08667 | IV12: 338.3836721 | IW12: 108.5495202 | IX12: 428.4008775 | IY12: 138.9128585 | IZ12: 1051.819262 | JA12: 169.6643138 | JB12: 1862.010603 | JC12: 200.4173688 | JD12: 2944.806045 | JE12: 231.6537255 | JF12: 4218.043264 | JG12: 263.3093795 | JH12: 5577.512009 | JI12: 295.3644475 | JJ12: 7040.005595 | JK12: 327.8168783 | JL12: 8574.490689 | JM12: 360.682085 | JN12: 10030.69471 | JO12: 393.9349155 | JP12: 13192.66772 | JQ12: 641.6525393 | JR12: 16362.31997 | JS12: 883.0168793 | JT12: 19531.89177 | JU12: 1123.310495 | JV12: 22679.452 | JW12: 1362.527404 | JX12: 25849.83958 | JY12: 1600.631213 | JZ12: 29085.16492 | KA12: 1837.742166 | KB12: 32311.97925 | KC12: 2073.727745 | KD12: 35032.95957 | KE12: 2308.647678 | KF12: 37556.95904 | KG12: 2542.537641 | KH12: 39766.83763 | KI12: 2775.15098 | KJ12: 41836.81462 | KK12: 3006.512056 | KL12: 43855.1233 | KM12: 3236.633374 | KN12: 45773.51905 | KO12: 3465.817356 | KP12: 47622.90689 | KQ12: 3693.993513 | KR12: 49577.00416 | KS12: 3920.893263 | KT12: 49943.81409 | KU12: 3937.350627 | KV12: 50243.86395 | KW12: 3953.559596 | KX12: 50539.4329 | KY12: 3969.527651 | KZ12: 50834.1612 | LA12: 3985.267514 | LB12: 51138.53027 | LC12: 4000.784326 | LD12: 51436.7297 | LE12: 4016.08667
A13: Cumbria | B13: Barrow-in-Furness | D13: 160.0950852 | E13: 51.38086563 | F13: 208.3369548 | G13: 59.47732866 | H13: 346.3120446 | I13: 68.01366218 | J13: 498.1408467 | K13: 76.51598673 | L13: 663.4386208 | M13: 84.56790235 | N13: 848.1444066 | O13: 91.19780935 | P13: 1017.354157 | Q13: 100.5495854 | R13: 1186.52872 | S13: 110.1264478 | T13: 1358.561734 | U13: 119.7933406 | V13: 1535.874316 | W13: 129.6716931 | X13: 1905.588214 | Y13: 140.4638828 | Z13: 2272.69881 | AA13: 149.4074617 | AB13: 2637.031286 | AC13: 158.2742962 | AD13: 2996.371497 | AE13: 167.039252 | AF13: 3360.414765 | AG13: 175.7071312 | AH13: 3740.903772 | AI13: 184.2772335 | AJ13: 4127.631964 | AK13: 192.7573859 | AL13: 4446.139482 | AM13: 201.1746248 | AN13: 4757.899002 | AO13: 209.5158734 | AP13: 5060.505558 | AQ13: 217.7736959 | AR13: 5307.994636 | AS13: 225.950596 | AT13: 5555.386985 | AU13: 234.0531066 | AV13: 5787.983197 | AW13: 242.0731141 | AX13: 6019.269976 | AY13: 250.0173176 | AZ13: 6252.855426 | BA13: 257.813962 | BB13: 6300.899509 | BC13: 265.5482737 | BD13: 6353.445459 | BE13: 273.1954531 | BF13: 6406.917635 | BG13: 280.7562642 | BH13: 6463.386433 | BI13: 288.232342 | BJ13: 6531.076399 | BK13: 295.6253326 | BL13: 6595.258429 | BM13: 302.9360533 | BO13: 160.0950852 | BP13: 51.38086563 | BQ13: 207.0138419 | BR13: 58.27935475 | BS13: 331.425883 | BT13: 65.56957598 | BU13: 467.8267321 | BV13: 73.16728799 | BW13: 512.6985269 | BX13: 80.092624 | BY13: 604.1587348 | BZ13: 85.13340188 | CA13: 701.931892 | CB13: 93.44943783 | CC13: 805.3797454 | CD13: 101.9816901 | CE13: 912.1888537 | CF13: 110.5916468 | CG13: 1022.942297 | CH13: 119.3954364 | CI13: 1137.411381 | CJ13: 129.2649902 | CK13: 1253.4413 | CL13: 135.7634987 | CM13: 1369.580878 | CN13: 142.1808623 | CO13: 1481.910116 | CP13: 148.4975517 | CQ13: 1619.079924 | CR13: 154.7244083 | CS13: 1830.466167 | CT13: 160.8560678 | CU13: 2050.212726 | CV13: 166.8999399 | CW13: 2210.156135 | CX13: 172.9145718 | CY13: 2364.920889 | CZ13: 178.8579759 | DA13: 2555.929016 | DB13: 184.7260629 | DC13: 2692.973051 | DD13: 190.5163068 | DE13: 2830.33571 | DF13: 196.2355085 | DG13: 2957.772124 | DH13: 201.8786965 | DI13: 3087.297021 | DJ13: 207.4500516 | DK13: 3222.144345 | DL13: 212.8932717 | DM13: 3358.851582 | DN13: 218.2778173 | DO13: 3493.899779 | DP13: 223.5853375 | DQ13: 3627.005597 | DR13: 228.8176356 | DS13: 3760.288684 | DT13: 233.9755397 | DU13: 3872.864495 | DV13: 239.0613357 | DW13: 3931.409278 | DX13: 244.0789208 | DZ13: 160.0950852 | EA13: 51.38086563 | EB13: 208.3369548 | EC13: 59.47732866 | ED13: 346.3120446 | EE13: 68.01366218 | EF13: 498.1408467 | EG13: 76.51598673 | EH13: 663.4386208 | EI13: 84.56790235 | EJ13: 848.1444066 | EK13: 91.19780935 | EL13: 1017.354157 | EM13: 100.5495854 | EN13: 1186.52872 | EO13: 110.1264478 | EP13: 1358.561734 | EQ13: 119.7933406 | ER13: 1535.874316 | ES13: 129.6716931 | ET13: 1905.588214 | EU13: 140.4638828 | EV13: 2272.69881 | EW13: 149.4074617 | EX13: 2637.031286 | EY13: 158.2742962 | EZ13: 2996.371497 | FA13: 167.039252 | FB13: 3360.414765 | FC13: 175.7071312 | FD13: 3740.903772 | FE13: 184.2772335 | FF13: 4127.631964 | FG13: 192.7573859 | FH13: 4446.139482 | FI13: 201.1746248 | FJ13: 4757.899002 | FK13: 209.5158734 | FL13: 5060.505558 | FM13: 217.7736959 | FN13: 5307.994636 | FO13: 225.950596 | FP13: 5555.386985 | FQ13: 234.0531066 | FR13: 5787.983197 | FS13: 242.0731141 | FT13: 6019.269976 | FU13: 250.0173176 | FV13: 6252.855426 | FW13: 257.813962 | FX13: 6300.899509 | FY13: 265.5482737 | FZ13: 6353.445459 | GA13: 273.1954531 | GB13: 6406.917635 | GC13: 280.7562642 | GD13: 6463.386433 | GE13: 288.232342 | GF13: 6531.076399 | GG13: 295.6253326 | GH13: 6595.258429 | GI13: 302.9360533 | GK13: 160.0950852 | GL13: 51.38086563 | GM13: 214.5480812 | GN13: 65.68200285 | GO13: 399.1028453 | GP13: 80.29463631 | GQ13: 622.5827127 | GR13: 94.60958122 | GS13: 870.99494 | GT13: 109.1533461 | GU13: 1166.85078 | GV13: 123.8813668 | GW13: 1513.45426 | GX13: 138.8076921 | GY13: 1945.993665 | GZ13: 153.8870939 | HA13: 2427.792704 | HB13: 169.1161603 | HC13: 2856.810891 | HD13: 184.5232201 | HE13: 3322.688612 | HF13: 199.527862 | HG13: 3707.552368 | HH13: 211.8553812 | HI13: 4023.052152 | HJ13: 224.0319926 | HK13: 4246.547703 | HL13: 236.0264744 | HM13: 4933.294109 | HN13: 247.8474965 | HO13: 7104.727903 | HP13: 358.8759253 | HQ13: 9253.347446 | HR13: 469.207265 | HS13: 11279.64967 | HT13: 578.9241421 | HU13: 13267.51135 | HV13: 688.0163439 | HW13: 15237.38062 | HX13: 796.4700359 | HY13: 17151.0071 | HZ13: 904.2903926 | IA13: 19023.79757 | IB13: 1011.506016 | IC13: 20803.95411 | ID13: 1118.08108 | IE13: 22542.69547 | IF13: 1224.036255 | IG13: 24343.9602 | IH13: 1329.004015 | II13: 26114.58693 | IJ13: 1433.382203 | IK13: 27965.41902 | IL13: 1537.03628 | IM13: 29881.65407 | IN13: 1639.960271 | IO13: 31883.79204 | IP13: 1742.151715 | IQ13: 33347.1564 | IR13: 1843.605645 | IS13: 33400.72235 | IT13: 1848.868333 | IV13: 160.0950852 | IW13: 51.38086563 | IX13: 214.5480812 | IY13: 65.68200285 | IZ13: 399.1028453 | JA13: 80.29463631 | JB13: 634.1171341 | JC13: 94.60958122 | JD13: 938.23198 | JE13: 109.1533461 | JF13: 1302.614253 | JG13: 123.8813668 | JH13: 1702.555036 | JI13: 138.8076921 | JJ13: 2150.677994 | JK13: 153.8870939 | JL13: 2642.258254 | JM13: 169.1161603 | JN13: 3326.590986 | JO13: 184.5232201 | JP13: 5493.130063 | JQ13: 300.2914722 | JR13: 7661.393784 | JS13: 412.7975614 | JT13: 9828.901927 | JU13: 524.6252262 | JV13: 11988.39989 | JW13: 635.7265323 | JX13: 14150.87055 | JY13: 746.1185588 | JZ13: 16322.04988 | KA13: 855.7884254 | KB13: 18470.42636 | KC13: 964.7763376 | KD13: 20498.37169 | KE13: 1073.221883 | KF13: 22497.82862 | KG13: 1181.070018 | KH13: 24387.49694 | KI13: 1288.284208 | KJ13: 26232.75148 | KK13: 1394.868331 | KL13: 28051.93859 | KM13: 1500.862049 | KN13: 29815.93347 | KO13: 1606.20781 | KP13: 31544.60401 | KQ13: 1710.934785 | KR13: 33089.68009 | KS13: 1814.540009 | KT13: 33131.15768 | KU13: 1820.744199 | KV13: 33190.22912 | KW13: 1826.745307 | KX13: 33248.73878 | KY13: 1832.550373 | KZ13: 33307.08251 | LA13: 1838.168639 | LB13: 33366.99729 | LC13: 1843.605645 | LD13: 33425.19878 | LE13: 1848.868333
A14: Lancashire | B14: Blackburn with Darwen | D14: 410.1723908 | E14: 95.61729705 | F14: 544.2565599 | G14: 110.5389439 | H14: 879.2950378 | I14: 125.8798978 | J14: 1217.066496 | K14: 141.6942183 | L14: 1522.804543 | M14: 156.5727594 | N14: 1964.517583 | O14: 168.7545264 | P14: 2390.026679 | Q14: 185.8987977 | R14: 2823.775761 | S14: 203.473044 | T14: 3268.31908 | U14: 221.2675662 | V14: 3749.539807 | W14: 239.4842141 | X14: 4561.314207 | Y14: 259.4354299 | Z14: 5371.070184 | AA14: 276.0318954 | AB14: 6177.04513 | AC14: 292.505707 | AD14: 6970.747076 | AE14: 308.8666593 | AF14: 7783.279542 | AG14: 325.1111907 | AH14: 8654.805572 | AI14: 341.2288741 | AJ14: 9551.560193 | AK14: 357.2292608 | AL14: 10250.34271 | AM14: 373.1486643 | AN14: 10956.68765 | AO14: 389.0113753 | AP14: 11661.67464 | AQ14: 404.7809283 | AR14: 12207.65414 | AS14: 420.4659027 | AT14: 12755.93233 | AU14: 436.0693514 | AV14: 13277.44365 | AW14: 451.5879985 | AX14: 13787.84537 | AY14: 467.032735 | AZ14: 14294.69 | BA14: 482.2885662 | BB14: 14485.32776 | BC14: 497.4922264 | BD14: 14683.83115 | BE14: 512.6054376 | BF14: 14883.9143 | BG14: 527.6299431 | BH14: 15090.29031 | BI14: 542.5690346 | BJ14: 15321.624 | BK14: 557.4259533 | BL14: 15546.42456 | BM14: 572.2023128 | BO14: 410.1723908 | BP14: 95.61729705 | BQ14: 541.1288683 | BR14: 108.8629254 | BS14: 855.088832 | BT14: 122.5217972 | BU14: 1191.339831 | BV14: 136.6146383 | BW14: 1327.128231 | BX14: 149.3743248 | BY14: 1632.249877 | BZ14: 158.5990127 | CA14: 1958.22397 | CB14: 173.9292058 | CC14: 2303.396838 | CD14: 189.6513966 | CE14: 2659.504754 | CF14: 205.5574892 | CG14: 3028.455185 | CH14: 221.8403407 | CI14: 3409.528187 | CJ14: 240.1397745 | CK14: 3795.529345 | CL14: 252.2430175 | CM14: 4182.181679 | CN14: 264.2254522 | CO14: 4557.591873 | CP14: 276.0987844 | CQ14: 4980.872322 | CR14: 287.8614828 | CS14: 5547.729785 | CT14: 299.4989684 | CU14: 6142.981359 | CV14: 311.0237783 | CW14: 6554.792699 | CX14: 322.4673149 | CY14: 6954.336998 | CZ14: 333.8474421 | DA14: 7421.650413 | DB14: 345.1383586 | DC14: 7733.982498 | DD14: 356.3441864 | DE14: 8049.832171 | DF14: 367.4702535 | DG14: 8345.837044 | DH14: 378.5135426 | DI14: 8637.548664 | DJ14: 389.4817819 | DK14: 8946.494534 | DL14: 400.2853352 | DM14: 9258.750756 | DN14: 411.0338551 | DO14: 9568.199109 | DP14: 421.6971613 | DQ14: 9874.494238 | DR14: 432.278203 | DS14: 10181.28164 | DT14: 442.7815379 | DU14: 10473.94823 | DV14: 453.2083823 | DW14: 10670.47209 | DX14: 463.5630876 | DZ14: 410.1723908 | EA14: 95.61729705 | EB14: 544.2565599 | EC14: 110.5389439 | ED14: 879.2950378 | EE14: 125.8798978 | EF14: 1217.066496 | EG14: 141.6942183 | EH14: 1522.804543 | EI14: 156.5727594 | EJ14: 1964.517583 | EK14: 168.7545264 | EL14: 2390.026679 | EM14: 185.8987977 | EN14: 2823.775761 | EO14: 203.473044 | EP14: 3268.31908 | EQ14: 221.2675662 | ER14: 3749.539807 | ES14: 239.4842141 | ET14: 4561.314207 | EU14: 259.4354299 | EV14: 5371.070184 | EW14: 276.0318954 | EX14: 6177.04513 | EY14: 292.505707 | EZ14: 6970.747076 | FA14: 308.8666593 | FB14: 7783.279542 | FC14: 325.1111907 | FD14: 8654.805572 | FE14: 341.2288741 | FF14: 9551.560193 | FG14: 357.2292608 | FH14: 10250.34271 | FI14: 373.1486643 | FJ14: 10956.68765 | FK14: 389.0113753 | FL14: 11661.67464 | FM14: 404.7809283 | FN14: 12207.65414 | FO14: 420.4659027 | FP14: 12755.93233 | FQ14: 436.0693514 | FR14: 13277.44365 | FS14: 451.5879985 | FT14: 13787.84537 | FU14: 467.032735 | FV14: 14294.69 | FW14: 482.2885662 | FX14: 14485.32776 | FY14: 497.4922264 | FZ14: 14683.83115 | GA14: 512.6054376 | GB14: 14883.9143 | GC14: 527.6299431 | GD14: 15090.29031 | GE14: 542.5690346 | GF14: 15321.624 | GG14: 557.4259533 | GH14: 15546.42456 | GI14: 572.2023128 | GK14: 410.1723908 | GL14: 95.61729705 | GM14: 559.3855126 | GN14: 122.0703652 | GO14: 966.3941274 | GP14: 148.609563 | GQ14: 1439.338892 | GR14: 175.2003892 | GS14: 1943.094972 | GT14: 202.0913387 | GU14: 2555.818792 | GV14: 229.2329337 | GW14: 3260.33315 | GX14: 256.6314217 | GY14: 4121.076473 | GZ14: 284.3265724 | HA14: 5073.400272 | HB14: 312.3706292 | HC14: 5947.961292 | HD14: 340.786777 | HE14: 6888.233427 | HF14: 368.526027 | HG14: 7704.780944 | HH14: 391.4050996 | HI14: 8415.994389 | HJ14: 414.0320821 | HK14: 8965.298931 | HL14: 436.4286106 | HM14: 10371.88861 | HN14: 458.5926261 | HO14: 14536.60642 | HP14: 664.5358493 | HQ14: 18642.41852 | HR14: 869.5623448 | HS14: 22516.80209 | HT14: 1073.81719 | HU14: 26326.24573 | HV14: 1277.450629 | HW14: 30074.91611 | HX14: 1480.416995 | HY14: 33729.57006 | HZ14: 1682.771734 | IA14: 37332.44814 | IB14: 1884.558503 | IC14: 40775.12823 | ID14: 2085.783045 | IE14: 44137.77705 | IF14: 2286.501612 | IG14: 47609.87458 | IH14: 2486.147126 | II14: 51033.394 | IJ14: 2685.374277 | IK14: 54581.9533 | IL14: 2883.990732 | IM14: 58228.59488 | IN14: 3082.004767 | IO14: 62020.42244 | IP14: 3279.429254 | IQ14: 64811.18188 | IR14: 3476.270538 | IS14: 65013.85116 | IT14: 3492.244403 | IV14: 410.1723908 | IW14: 95.61729705 | IX14: 559.3855126 | IY14: 122.0703652 | IZ14: 966.3941274 | JA14: 148.609563 | JB14: 1466.100529 | JC14: 175.2003892 | JD14: 2084.139673 | JE14: 202.0913387 | JF14: 2805.78408 | JG14: 229.2329337 | JH14: 3597.231671 | JI14: 256.6314217 | JJ14: 4485.235771 | JK14: 284.3265724 | JL14: 5460.894113 | JM14: 312.3706292 | JN14: 6859.226568 | JO14: 340.786777 | JP14: 10992.72601 | JQ14: 554.6354383 | JR14: 15131.98749 | JS14: 762.6479429 | JT14: 19269.94239 | JU14: 969.5565002 | JV14: 23385.64019 | JW14: 1175.500536 | JX14: 27513.57898 | JY14: 1380.544383 | JZ14: 31677.68552 | KA14: 1584.676062 | KB14: 35782.91486 | KC14: 1787.979933 | KD14: 39657.83074 | KE14: 1990.665137 | KF14: 43456.62189 | KG14: 2192.911041 | KH14: 47075.88909 | KI14: 2394.563198 | KJ14: 50622.22417 | KK14: 2595.676144 | KL14: 54135.94985 | KM14: 2796.288201 | KN14: 57550.09556 | KO14: 2996.384677 | KP14: 60888.71698 | KQ14: 3196.028818 | KR14: 63824.68832 | KS14: 3394.431753 | KT14: 63992.53128 | KU14: 3411.078794 | KV14: 64213.61283 | KW14: 3427.58112 | KX14: 64433.05465 | KY14: 3443.942566 | KZ14: 64651.94737 | LA14: 3460.171669 | LB14: 64875.78012 | LC14: 3476.270538 | LD14: 65093.62812 | LE14: 3492.244403
A15: Lancashire | B15: Blackpool | D15: 336.5758296 | E15: 145.785001 | F15: 426.7632222 | G15: 168.070638 | H15: 903.7779768 | I15: 190.7258856 | J15: 1403.6398 | K15: 214.3745559 | L15: 1772.248945 | M15: 236.5054717 | N15: 2167.338031 | O15: 254.5525937 | P15: 2494.321882 | Q15: 280.0539069 | R15: 2800.199262 | S15: 306.2277744 | T15: 3105.598245 | U15: 332.7365801 | V15: 3440.637407 | W15: 359.9020344 | X15: 4082.97481 | Y15: 389.6934803 | Z15: 4726.324139 | AA15: 414.4649492 | AB15: 5369.247306 | AC15: 439.0599101 | AD15: 6005.71787 | AE15: 463.5176847 | AF15: 6656.227815 | AG15: 487.8019577 | AH15: 7344.503843 | AI15: 511.9267611 | AJ15: 8049.325546 | AK15: 535.8902353 | AL15: 8630.188868 | AM15: 559.7382346 | AN15: 9213.150862 | AO15: 583.4717788 | AP15: 9805.552452 | AQ15: 607.0457583 | AR15: 10278.41673 | AS15: 630.4399154 | AT15: 10748.21189 | AU15: 653.6749949 | AV15: 11192.12977 | AW15: 676.7468363 | AX15: 11634.6866 | AY15: 699.6743398 | AZ15: 12070.313 | BA15: 722.5042104 | BB15: 12205.61284 | BC15: 745.1857894 | BD15: 12343.62006 | BE15: 767.7441177 | BF15: 12480.44444 | BG15: 790.1824118 | BH15: 12630.62605 | BI15: 812.5061439 | BJ15: 12836.20743 | BK15: 834.7206526 | BL15: 13036.40502 | BM15: 856.8287876 | BO15: 336.5758296 | BP15: 145.785001 | BQ15: 424.387789 | BR15: 165.8821079 | BS15: 878.083734 | BT15: 186.4051422 | BU15: 1362.478278 | BV15: 207.429654 | BW15: 1466.384281 | BX15: 226.3520584 | BY15: 1652.993427 | BZ15: 239.9425512 | CA15: 1852.59649 | CB15: 262.7945347 | CC15: 2063.687626 | CD15: 286.2486054 | CE15: 2281.853654 | CF15: 309.9777804 | CG15: 2508.218148 | CH15: 334.2881913 | CI15: 2742.300053 | CJ15: 361.6512266 | CK15: 2979.655662 | CL15: 379.7107192 | CM15: 3217.230064 | CN15: 397.6082912 | CO15: 3446.662482 | CP15: 415.3816378 | CQ15: 3725.665573 | CR15: 432.9936529 | CS15: 4152.254984 | CT15: 450.4513599 | CU15: 4595.87333 | CV15: 467.7612738 | CW15: 4929.920844 | CX15: 484.9178131 | CY15: 5257.925689 | CZ15: 501.9546283 | DA15: 5653.57293 | DB15: 518.8430506 | DC15: 5926.523997 | DD15: 535.5655628 | DE15: 6199.236536 | DF15: 552.1451249 | DG15: 6448.034966 | DH15: 568.5759649 | DI15: 6704.552532 | DJ15: 584.8733857 | DK15: 6972.13147 | DL15: 601.0857201 | DM15: 7244.27635 | DN15: 617.1627001 | DO15: 7512.487216 | DP15: 633.1262526 | DQ15: 7775.901854 | DR15: 648.9808937 | DS15: 8039.388599 | DT15: 664.7359798 | DU15: 8295.374949 | DV15: 680.3915491 | DW15: 8409.250813 | DX15: 695.9523718 | DZ15: 336.5758296 | EA15: 145.785001 | EB15: 426.7632222 | EC15: 168.070638 | ED15: 903.7779768 | EE15: 190.7258856 | EF15: 1403.6398 | EG15: 214.3745559 | EH15: 1772.248945 | EI15: 236.5054717 | EJ15: 2167.338031 | EK15: 254.5525937 | EL15: 2494.321882 | EM15: 280.0539069 | EN15: 2800.199262 | EO15: 306.2277744 | EP15: 3105.598245 | EQ15: 332.7365801 | ER15: 3440.637407 | ES15: 359.9020344 | ET15: 4082.97481 | EU15: 389.6934803 | EV15: 4726.324139 | EW15: 414.4649492 | EX15: 5369.247306 | EY15: 439.0599101 | EZ15: 6005.71787 | FA15: 463.5176847 | FB15: 6656.227815 | FC15: 487.8019577 | FD15: 7344.503843 | FE15: 511.9267611 | FF15: 8049.325546 | FG15: 535.8902353 | FH15: 8630.188868 | FI15: 559.7382346 | FJ15: 9213.150862 | FK15: 583.4717788 | FL15: 9805.552452 | FM15: 607.0457583 | FN15: 10278.41673 | FO15: 630.4399154 | FP15: 10748.21189 | FQ15: 653.6749949 | FR15: 11192.12977 | FS15: 676.7468363 | FT15: 11634.6866 | FU15: 699.6743398 | FV15: 12070.313 | FW15: 722.5042104 | FX15: 12205.61284 | FY15: 745.1857894 | FZ15: 12343.62006 | GA15: 767.7441177 | GB15: 12480.44444 | GC15: 790.1824118 | GD15: 12630.62605 | GE15: 812.5061439 | GF15: 12836.20743 | GG15: 834.7206526 | GH15: 13036.40502 | GI15: 856.8287876 | GK15: 336.5758296 | GL15: 145.785001 | GM15: 438.2437327 | GN15: 185.6037648 | GO15: 1016.493533 | GP15: 225.1645498 | GQ15: 1675.220091 | GR15: 265.0673124 | GS15: 2234.46498 | GT15: 305.2619598 | GU15: 2891.007592 | GV15: 345.7793939 | GW15: 3663.336369 | GX15: 386.6116037 | GY15: 4648.838933 | GZ15: 427.9126696 | HA15: 5733.908953 | HB15: 469.7350666 | HC15: 6742.880093 | HD15: 512.1417076 | HE15: 7824.868065 | HF15: 553.5565827 | HG15: 8758.299078 | HH15: 587.6990935 | HI15: 9534.752206 | HJ15: 621.4746734 | HK15: 10047.54385 | HL15: 654.9505201 | HM15: 11455.92387 | HN15: 688.0796084 | HO15: 15807.98591 | HP15: 996.9662912 | HQ15: 20127.20754 | HR15: 1304.456327 | HS15: 24075.47166 | HT15: 1610.769637 | HU15: 27953.2545 | HV15: 1916.027238 | HW15: 31799.50049 | HX15: 2220.166008 | HY15: 35529.63641 | HZ15: 2523.121287 | IA15: 39226.50881 | IB15: 2824.983608 | IC15: 42719.35822 | ID15: 3125.7409 | IE15: 46135.98522 | IF15: 3425.46975 | IG15: 49653.75637 | IH15: 3724.433652 | II15: 53116.41888 | IJ15: 4022.379937 | IK15: 56730.65192 | IL15: 4319.437051 | IM15: 60497.69717 | IN15: 4615.632588 | IO15: 64519.69194 | IP15: 4910.999795 | IQ15: 67899.52383 | IR15: 5205.561015 | IS15: 68114.98726 | IT15: 5229.366381 | IV15: 336.5758296 | IW15: 145.785001 | IX15: 438.2437327 | IY15: 185.6037648 | IZ15: 1016.493533 | JA15: 225.1645498 | JB15: 1689.224744 | JC15: 265.0673124 | JD15: 2346.782161 | JE15: 305.2619598 | JF15: 3171.950756 | JG15: 345.7793939 | JH15: 4074.496922 | JI15: 386.6116037 | JJ15: 5077.949819 | JK15: 427.9126696 | JL15: 6177.761844 | JM15: 469.7350666 | JN15: 7556.683284 | JO15: 512.1417076 | JP15: 11871.67223 | JQ15: 833.1083165 | JR15: 16193.00046 | JS15: 1145.124336 | JT15: 20516.58298 | JU15: 1455.333621 | JV15: 24830.28937 | JW15: 1764.079322 | JX15: 29156.39563 | JY15: 2071.390565 | JZ15: 33507.771 | KA15: 2377.401638 | KB15: 37826.3361 | KC15: 2682.201858 | KD15: 41778.16441 | KE15: 2986.078998 | KF15: 45685.01624 | KG15: 3289.111288 | KH15: 49383.96916 | KI15: 3591.101583 | KJ15: 52946.5288 | KK15: 3891.915701 | KL15: 56509.98925 | KM15: 4191.681138 | KN15: 59984.87707 | KO15: 4490.362582 | KP15: 63386.30566 | KQ15: 4788.056995 | KR15: 66638.38113 | KS15: 5085.111706 | KT15: 66996.83222 | KU15: 5109.401331 | KV15: 67280.64279 | KW15: 5133.588234 | KX15: 67559.7955 | KY15: 5157.673249 | KZ15: 67836.85174 | LA15: 5181.664563 | LB15: 68130.07543 | LC15: 5205.561015 | LD15: 68400.20617 | LE15: 5229.366381
A16: Greater Manchester | B16: Bolton | D16: 1159.222171 | E16: 169.9166322 | F16: 1557.073742 | G16: 196.6332624 | H16: 2340.789192 | I16: 224.0590282 | J16: 3147.847029 | K16: 252.552509 | L16: 3811.905821 | M16: 279.3935579 | N16: 4697.873471 | O16: 301.4394194 | P16: 5530.710994 | Q16: 332.3797187 | R16: 6370.256177 | S16: 364.1733098 | T16: 7229.396147 | U16: 396.3858337 | V16: 8129.71957 | W16: 429.3349148 | X16: 9731.251589 | Y16: 465.4344422 | Z16: 11326.61872 | AA16: 495.5573859 | AB16: 12912.97006 | AC16: 525.5024318 | AD16: 14475.37999 | AE16: 555.2602457 | AF16: 16069.7081 | AG16: 584.8148322 | AH16: 17767.73561 | AI16: 614.1759592 | AJ16: 19509.25166 | AK16: 643.3805789 | AL16: 20903.07111 | AM16: 672.4934185 | AN16: 22302.01669 | AO16: 701.5465301 | AP16: 23688.19856 | AQ16: 730.4743787 | AR16: 24755.30751 | AS16: 759.2885909 | AT16: 25815.12879 | AU16: 788.0029958 | AV16: 26811.24227 | AW16: 816.6407159 | AX16: 27789.00568 | AY16: 845.1933387 | AZ16: 28799.46411 | BA16: 873.4231248 | BB16: 29121.24198 | BC16: 901.6210344 | BD16: 29455.98724 | BE16: 929.7036346 | BF16: 29793.11299 | BG16: 957.6738747 | BH16: 30151.30293 | BI16: 985.537494 | BJ16: 30593.79437 | BK16: 1013.300129 | BL16: 31022.51048 | BM16: 1040.964449 | BO16: 1159.222171 | BP16: 169.9166322 | BQ16: 1549.297055 | BR16: 193.8564911 | BS16: 2291.202902 | BT16: 218.5194568 | BU16: 3081.706206 | BV16: 243.9221309 | BW16: 3335.170662 | BX16: 266.9611919 | BY16: 3879.515176 | BZ16: 283.7061769 | CA16: 4461.201744 | CB16: 311.4231885 | CC16: 5077.010318 | CD16: 339.9095401 | CE16: 5712.557517 | CF16: 368.7418453 | CG16: 6371.224268 | CH16: 398.2247879 | CI16: 7051.656024 | CJ16: 431.3617472 | CK16: 7740.97675 | CL16: 453.40774 | CM16: 8431.355489 | CN16: 475.2730993 | CO16: 9101.111592 | CP16: 496.9540028 | CQ16: 9854.662663 | CR16: 518.4363049 | CS16: 10859.02617 | CT16: 539.7213288 | CU16: 11913.95842 | CV16: 560.8503829 | CW16: 12650.40781 | CX16: 581.8530225 | CY16: 13367.96598 | CZ16: 602.7727338 | DA16: 14220.96467 | DB16: 623.5638574 | DC16: 14770.6535 | DD16: 644.2328922 | DE16: 15324.69492 | DF16: 664.7967852 | DG16: 15835.20347 | DH16: 685.2729794 | DI16: 16346.14486 | DJ16: 705.6521748 | DK16: 16888.38894 | DL16: 725.7475106 | DM16: 17438.18629 | DN16: 745.7932156 | DO16: 17981.72579 | DP16: 765.7218331 | DQ16: 18518.03249 | DR16: 785.5382874 | DS16: 19055.01669 | DT16: 805.2518648 | DU16: 19624.12112 | DV16: 824.8632892 | DW16: 19967.80928 | DX16: 844.3790167 | DZ16: 1159.222171 | EA16: 169.9166322 | EB16: 1557.073742 | EC16: 196.6332624 | ED16: 2340.789192 | EE16: 224.0590282 | EF16: 3147.847029 | EG16: 252.552509 | EH16: 3811.905821 | EI16: 279.3935579 | EJ16: 4697.873471 | EK16: 301.4394194 | EL16: 5530.710994 | EM16: 332.3797187 | EN16: 6370.256177 | EO16: 364.1733098 | EP16: 7229.396147 | EQ16: 396.3858337 | ER16: 8129.71957 | ES16: 429.3349148 | ET16: 9731.251589 | EU16: 465.4344422 | EV16: 11326.61872 | EW16: 495.5573859 | EX16: 12912.97006 | EY16: 525.5024318 | EZ16: 14475.37999 | FA16: 555.2602457 | FB16: 16069.7081 | FC16: 584.8148322 | FD16: 17767.73561 | FE16: 614.1759592 | FF16: 19509.25166 | FG16: 643.3805789 | FH16: 20903.07111 | FI16: 672.4934185 | FJ16: 22302.01669 | FK16: 701.5465301 | FL16: 23688.19856 | FM16: 730.4743787 | FN16: 24755.30751 | FO16: 759.2885909 | FP16: 25815.12879 | FQ16: 788.0029958 | FR16: 26811.24227 | FS16: 816.6407159 | FT16: 27789.00568 | FU16: 845.1933387 | FV16: 28799.46411 | FW16: 873.4231248 | FX16: 29121.24198 | FY16: 901.6210344 | FZ16: 29455.98724 | GA16: 929.7036346 | GB16: 29793.11299 | GC16: 957.6738747 | GD16: 30151.30293 | GE16: 985.537494 | GF16: 30593.79437 | GG16: 1013.300129 | GH16: 31022.51048 | GI16: 1040.964449 | GK16: 1159.222171 | GL16: 169.9166322 | GM16: 1599.524591 | GN16: 217.1460419 | GO16: 2558.735349 | GP16: 264.516534 | GQ16: 3672.760539 | GR16: 312.2731357 | GS16: 4729.748843 | GT16: 360.6184009 | GU16: 6005.870987 | GV16: 409.4695647 | GW16: 7491.468866 | GX16: 458.8468609 | GY16: 9346.051226 | GZ16: 508.8838643 | HA16: 11417.19562 | HB16: 559.5907907 | HC16: 13294.2133 | HD16: 610.944911 | HE16: 15320.33792 | HF16: 661.1460349 | HG16: 17033.09387 | HH16: 702.685781 | HI16: 18475.91828 | HJ16: 743.8311826 | HK16: 19508.61663 | HL16: 784.582765 | HM16: 22217.80686 | HN16: 824.923218 | HO16: 30444.35568 | HP16: 1196.094392 | HQ16: 38464.47646 | HR16: 1566.107781 | HS16: 46095.98059 | HT16: 1935.247429 | HU16: 53583.29727 | HV16: 2303.765681 | HW16: 60955.87025 | HX16: 2671.585071 | HY16: 68121.68833 | HZ16: 3038.794276 | IA16: 75205.0411 | IB16: 3405.508186 | IC16: 81926.74527 | ID16: 3771.879157 | IE16: 88463.91876 | IF16: 4137.902521 | IG16: 95257.11938 | IH16: 4502.404874 | II16: 101936.2701 | IJ16: 4866.789478 | IK16: 108934.639 | IL16: 5230.644212 | IM16: 116188.6539 | IN16: 5593.987766 | IO16: 123818.8437 | IP16: 5956.846563 | IQ16: 129573.2953 | IR16: 6319.234626 | IS16: 130026.2557 | IT16: 6353.176469 | IV16: 1159.222171 | IW16: 169.9166322 | IX16: 1599.524591 | IY16: 217.1460419 | IZ16: 2558.735349 | JA16: 264.516534 | JB16: 3723.413829 | JC16: 312.2731357 | JD16: 5018.141734 | JE16: 360.6184009 | JF16: 6547.300794 | JG16: 409.4695647 | JH16: 8235.705026 | JI16: 458.8468609 | JJ16: 10151.85436 | JK16: 508.8838643 | JL16: 12271.10871 | JM16: 559.5907907 | JN16: 14983.6903 | JO16: 610.944911 | JP16: 23196.27921 | JQ16: 995.0315419 | JR16: 31422.09326 | JS16: 1369.174459 | JT16: 39645.42437 | JU16: 1741.861052 | JV16: 47818.47714 | JW16: 2113.237855 | JX16: 56006.55806 | JY16: 2483.343714 | JZ16: 64231.56393 | KA16: 2852.249661 | KB16: 72250.21446 | KC16: 3220.205316 | KD16: 79884.33915 | KE16: 3587.602828 | KF16: 87364.49849 | KG16: 3954.715027 | KH16: 94452.4549 | KI16: 4321.268474 | KJ16: 101366.9997 | KK16: 4687.341515 | KL16: 108240.8827 | KM16: 5053.057437 | KN16: 114899.561 | KO16: 5418.588927 | KP16: 121387.3192 | KQ16: 5783.882082 | KR16: 127235.152 | KS16: 6147.305568 | KT16: 127714.2204 | KU16: 6182.006929 | KV16: 128252.885 | KW16: 6216.544718 | KX16: 128785.215 | KY16: 6250.922383 | KZ16: 129314.9322 | LA16: 6285.152114 | LB16: 129865.6717 | LC16: 6319.234626 | LD16: 130387.7868 | LE16: 6353.176469
A17: Lancashire | B17: Burnley | D17: 265.135544 | E17: 65.22306129 | F17: 349.4255349 | G17: 75.71437818 | H17: 592.8489357 | I17: 86.62086077 | J17: 832.4221611 | K17: 97.82616018 | L17: 1033.710827 | M17: 108.454838 | N17: 1353.71928 | O17: 117.2672236 | P17: 1669.436028 | Q17: 129.5863628 | R17: 1994.474211 | S17: 142.2500016 | T17: 2328.111783 | U17: 155.1016099 | V17: 2688.166577 | W17: 168.2781587 | X17: 3244.194407 | Y17: 182.7260025 | Z17: 3799.830509 | AA17: 194.8623101 | AB17: 4353.490565 | AC17: 206.9224222 | AD17: 4898.234792 | AE17: 218.9244648 | AF17: 5458.718962 | AG17: 230.8832024 | AH17: 6067.150872 | AI17: 242.7491277 | AJ17: 6696.663026 | AK17: 254.5624935 | AL17: 7172.168872 | AM17: 266.3373398 | AN17: 7658.177056 | AO17: 278.0880472 | AP17: 8144.88671 | AQ17: 289.7870209 | AR17: 8510.846117 | AS17: 301.4387421 | AT17: 8879.431083 | AU17: 313.0302759 | AV17: 9231.510817 | AW17: 324.5745435 | AX17: 9573.435868 | AY17: 336.0697186 | AZ17: 9914.975308 | BA17: 347.5178806 | BB17: 10071.97764 | BC17: 358.920634 | BD17: 10234.9074 | BE17: 370.2803872 | BF17: 10399.01862 | BG17: 381.5979391 | BH17: 10567.43294 | BI17: 392.8752312 | BJ17: 10753.07605 | BK17: 404.1141937 | BL17: 10934.96607 | BM17: 415.3155988 | BO17: 265.135544 | BP17: 65.22306129 | BQ17: 347.4412995 | BR17: 74.48944441 | BS17: 577.1370882 | BT17: 84.14539193 | BU17: 822.1643952 | BV17: 94.1597837 | BW17: 926.8528451 | BX17: 103.313099 | BY17: 1170.044328 | BZ17: 110.0566765 | CA17: 1429.823436 | CB17: 121.074885 | CC17: 1704.965937 | CD17: 132.4082899 | CE17: 1988.784368 | CF17: 143.9007878 | CG17: 2282.785782 | CH17: 155.6836685 | CI17: 2586.397301 | CJ17: 168.9300608 | CK17: 2893.88131 | CL17: 177.8577638 | CM17: 3201.922968 | CN17: 186.6982063 | CO17: 3501.247329 | CP17: 195.4710895 | CQ17: 3833.484578 | CR17: 204.19258 | CS17: 4264.595385 | CT17: 212.814848 | CU17: 4718.426168 | CV17: 221.3762518 | CW17: 5027.839534 | CX17: 229.898917 | CY17: 5328.120861 | CZ17: 238.3851333 | DA17: 5673.590348 | DB17: 246.8151437 | DC17: 5900.777957 | DD17: 255.1898355 | DE17: 6131.272312 | DF17: 263.5004041 | DG17: 6348.558227 | DH17: 271.7583773 | DI17: 6559.935681 | DJ17: 279.9611519 | DK17: 6784.895178 | DL17: 288.1147569 | DM17: 7011.915731 | DN17: 296.2176392 | DO17: 7237.202359 | DP17: 304.2733965 | DQ17: 7460.675813 | DR17: 312.2838517 | DS17: 7684.657954 | DT17: 320.251467 | DU17: 7901.852538 | DV17: 328.177251 | DW17: 8058.92493 | DX17: 336.0644867 | DZ17: 265.135544 | EA17: 65.22306129 | EB17: 349.4255349 | EC17: 75.71437818 | ED17: 592.8489357 | EE17: 86.62086077 | EF17: 832.4221611 | EG17: 97.82616018 | EH17: 1033.710827 | EI17: 108.454838 | EJ17: 1353.71928 | EK17: 117.2672236 | EL17: 1669.436028 | EM17: 129.5863628 | EN17: 1994.474211 | EO17: 142.2500016 | EP17: 2328.111783 | EQ17: 155.1016099 | ER17: 2688.166577 | ES17: 168.2781587 | ET17: 3244.194407 | EU17: 182.7260025 | EV17: 3799.830509 | EW17: 194.8623101 | EX17: 4353.490565 | EY17: 206.9224222 | EZ17: 4898.234792 | FA17: 218.9244648 | FB17: 5458.718962 | FC17: 230.8832024 | FD17: 6067.150872 | FE17: 242.7491277 | FF17: 6696.663026 | FG17: 254.5624935 | FH17: 7172.168872 | FI17: 266.3373398 | FJ17: 7658.177056 | FK17: 278.0880472 | FL17: 8144.88671 | FM17: 289.7870209 | FN17: 8510.846117 | FO17: 301.4387421 | FP17: 8879.431083 | FQ17: 313.0302759 | FR17: 9231.510817 | FS17: 324.5745435 | FT17: 9573.435868 | FU17: 336.0697186 | FV17: 9914.975308 | FW17: 347.5178806 | FX17: 10071.97764 | FY17: 358.920634 | FZ17: 10234.9074 | GA17: 370.2803872 | GB17: 10399.01862 | GC17: 381.5979391 | GD17: 10567.43294 | GE17: 392.8752312 | GF17: 10753.07605 | GG17: 404.1141937 | GH17: 10934.96607 | GI17: 415.3155988 | GK17: 265.135544 | GL17: 65.22306129 | GM17: 358.8537665 | GN17: 83.61290116 | GO17: 648.0269409 | GP17: 102.2616676 | GQ17: 980.9944414 | GR17: 120.9589322 | GS17: 1330.10132 | GT17: 139.9846531 | GU17: 1758.836859 | GV17: 159.2935625 | GW17: 2249.347116 | GX17: 178.8926713 | GY17: 2843.226907 | GZ17: 198.7754967 | HA17: 3497.259145 | HB17: 218.961994 | HC17: 4104.595287 | HD17: 239.46034 | HE17: 4757.006828 | HF17: 259.560877 | HG17: 5331.587523 | HH17: 276.3090179 | HI17: 5839.738791 | HJ17: 292.891794 | HK17: 6247.478009 | HL17: 309.3402836 | HM17: 7238.624007 | HN17: 325.6772979 | HO17: 10094.35487 | HP17: 472.7486742 | HQ17: 12919.1357 | HR17: 619.6523718 | HS17: 15570.26355 | HT17: 766.4441583 | HU17: 18178.38013 | HV17: 913.1963057 | HW17: 20737.35179 | HX17: 1059.846452 | HY17: 23234.95378 | HZ17: 1206.406016 | IA17: 25704.30204 | IB17: 1352.821211 | IC17: 28070.51456 | ID17: 1499.136562 | IE17: 30383.52334 | IF17: 1645.332106 | IG17: 32768.35446 | IH17: 1791.418335 | II17: 35121.38117 | IJ17: 1937.389545 | IK17: 37553.86286 | IL17: 2083.249857 | IM17: 40048.29503 | IN17: 2228.999098 | IO17: 42631.13586 | IP17: 2374.640726 | IQ17: 44566.23823 | IR17: 2520.173768 | IS17: 44732.02659 | IT17: 2534.7391 | IV17: 265.135544 | IW17: 65.22306129 | IX17: 358.8537665 | IY17: 83.61290116 | IZ17: 648.0269409 | JA17: 102.2616676 | JB17: 1000.621584 | JC17: 120.9589322 | JD17: 1429.367577 | JE17: 139.9846531 | JF17: 1925.480277 | JG17: 159.2935625 | JH17: 2469.452228 | JI17: 178.8926713 | JJ17: 3078.229781 | JK17: 198.7754967 | JL17: 3744.942679 | JM17: 218.961994 | JN17: 4724.813282 | JO17: 239.46034 | JP17: 7546.768257 | JQ17: 390.6417735 | JR17: 10373.29536 | JS17: 538.3846666 | JT17: 13199.3614 | JU17: 685.8771457 | JV17: 16010.08912 | JW17: 833.1939304 | JX17: 18832.23155 | JY17: 980.4169075 | JZ17: 21687.72569 | KA17: 1127.333474 | KB17: 24512.28051 | KC17: 1274.119116 | KD17: 27163.14633 | KE17: 1420.850475 | KF17: 29755.76896 | KG17: 1567.620866 | KH17: 32233.20571 | KI17: 1714.293552 | KJ17: 34664.01781 | KK17: 1860.881814 | KL17: 37078.24462 | KM17: 2007.301967 | KN17: 39428.76287 | KO17: 2153.622754 | KP17: 41728.73731 | KQ17: 2299.814178 | KR17: 43709.09265 | KS17: 2445.891965 | KT17: 43895.70821 | KU17: 2460.956169 | KV17: 44076.54712 | KW17: 2475.912215 | KX17: 44256.13296 | KY17: 2490.763465 | KZ17: 44435.26128 | LA17: 2505.51664 | LB17: 44618.26638 | LC17: 2520.173768 | LD17: 44796.30601 | LE17: 2534.7391
A18: Greater Manchester | B18: Bury | D18: 625.1529423 | E18: 106.6482638 | F18: 826.4546922 | G18: 123.7881067 | H18: 1396.843111 | I18: 141.5842534 | J18: 1970.376796 | K18: 159.9729404 | L18: 2415.37192 | M18: 177.423383 | N18: 3048.826648 | O18: 191.9258879 | P18: 3644.791244 | Q18: 212.1831382 | R18: 4243.581889 | S18: 233.0427937 | T18: 4855.165745 | U18: 254.2859956 | V18: 5502.38544 | W18: 276.1160646 | X18: 6536.238501 | Y18: 300.0335135 | Z18: 7570.855868 | AA18: 320.1902305 | AB18: 8602.839426 | AC18: 340.2877609 | AD18: 9619.090457 | AE18: 360.3720057 | AF18: 10663.36465 | AG18: 380.4100495 | AH18: 11791.69212 | AI18: 400.3700825 | AJ18: 12956.81147 | AK18: 420.3399132 | AL18: 13857.11162 | AM18: 440.3007857 | AN18: 14773.29345 | AO18: 460.2572168 | AP18: 15688.21006 | AQ18: 480.1774665 | AR18: 16376.99605 | AS18: 500.0536991 | AT18: 17065.39636 | AU18: 519.8917795 | AV18: 17717.97633 | AW18: 539.6973734 | AX18: 18353.82314 | AY18: 559.4688703 | AZ18: 19008.13554 | BA18: 579.1938516 | BB18: 19287.68373 | BC18: 598.893944 | BD18: 19573.20545 | BE18: 618.5664126 | BF18: 19858.84704 | BG18: 638.2121669 | BH18: 20158.10854 | BI18: 657.8340289 | BJ18: 20512.4109 | BK18: 677.4348109 | BL18: 20858.59723 | BM18: 697.0153923 | BO18: 625.1529423 | BP18: 106.6482638 | BQ18: 822.0549464 | BR18: 121.8551283 | BS18: 1365.693475 | BT18: 137.6871223 | BU18: 1942.649566 | BV18: 154.1217639 | BW18: 2138.485722 | BX18: 169.1527757 | BY18: 2564.019751 | BZ18: 180.2637647 | CA18: 3018.678114 | CB18: 198.3984908 | CC18: 3500.050665 | CD18: 217.0815717 | CE18: 3996.764736 | CF18: 236.0934095 | CG18: 4511.438621 | CH18: 255.6290368 | CI18: 5043.039702 | CJ18: 277.567337 | CK18: 5581.504752 | CL18: 292.4405678 | CM18: 6120.82558 | CN18: 307.2270387 | CO18: 6644.28059 | CP18: 321.9721808 | CQ18: 7221.539434 | CR18: 336.6494659 | CS18: 7960.035408 | CT18: 351.2245264 | CU18: 8738.128558 | CV18: 365.7789463 | CW18: 9270.025809 | CX18: 380.3029036 | CY18: 9787.746485 | CZ18: 394.7909313 | DA18: 10386.16479 | DB18: 409.2225595 | DC18: 10767.05787 | DD18: 423.5870326 | DE18: 11152.81226 | DF18: 437.892943 | DG18: 11511.87862 | DH18: 452.1454541 | DI18: 11864.68819 | DJ18: 466.3415815 | DK18: 12241.5269 | DL18: 480.4781958 | DM18: 12622.70013 | DN18: 494.5682217 | DO18: 13000.34865 | DP18: 508.611682 | DQ18: 13373.96532 | DR18: 522.6111651 | DS18: 13748.01961 | DT18: 536.5708437 | DU18: 14146.94305 | DV18: 550.4916016 | DW18: 14417.43384 | DX18: 564.378156 | DZ18: 625.1529423 | EA18: 106.6482638 | EB18: 826.4546922 | EC18: 123.7881067 | ED18: 1396.843111 | EE18: 141.5842534 | EF18: 1970.376796 | EG18: 159.9729404 | EH18: 2415.37192 | EI18: 177.423383 | EJ18: 3048.826648 | EK18: 191.9258879 | EL18: 3644.791244 | EM18: 212.1831382 | EN18: 4243.581889 | EO18: 233.0427937 | EP18: 4855.165745 | EQ18: 254.2859956 | ER18: 5502.38544 | ES18: 276.1160646 | ET18: 6536.238501 | EU18: 300.0335135 | EV18: 7570.855868 | EW18: 320.1902305 | EX18: 8602.839426 | EY18: 340.2877609 | EZ18: 9619.090457 | FA18: 360.3720057 | FB18: 10663.36465 | FC18: 380.4100495 | FD18: 11791.69212 | FE18: 400.3700825 | FF18: 12956.81147 | FG18: 420.3399132 | FH18: 13857.11162 | FI18: 440.3007857 | FJ18: 14773.29345 | FK18: 460.2572168 | FL18: 15688.21006 | FM18: 480.1774665 | FN18: 16376.99605 | FO18: 500.0536991 | FP18: 17065.39636 | FQ18: 519.8917795 | FR18: 17717.97633 | FS18: 539.6973734 | FT18: 18353.82314 | FU18: 559.4688703 | FV18: 19008.13554 | FW18: 579.1938516 | FX18: 19287.68373 | FY18: 598.893944 | FZ18: 19573.20545 | GA18: 618.5664126 | GB18: 19858.84704 | GC18: 638.2121669 | GD18: 20158.10854 | GE18: 657.8340289 | GF18: 20512.4109 | GG18: 677.4348109 | GH18: 20858.59723 | GI18: 697.0153923 | GK18: 625.1529423 | GL18: 106.6482638 | GM18: 848.57926 | GN18: 136.7016804 | GO18: 1525.269081 | GP18: 167.1495957 | GQ18: 2297.139439 | GR18: 197.801447 | GS18: 3020.408512 | GT18: 229.0036218 | GU18: 3896.85489 | GV18: 260.7084698 | GW18: 4899.219567 | GX18: 292.9166896 | GY18: 6113.53668 | GZ18: 325.6463728 | HA18: 7456.596392 | HB18: 358.9838215 | HC18: 8700.375615 | HD18: 392.9140135 | HE18: 10034.03786 | HF18: 426.1952915 | HG18: 11196.84765 | HH18: 454.0203185 | HI18: 12204.23367 | HJ18: 481.6659873 | HK18: 12949.10603 | HL18: 509.2056687 | HM18: 14814.31441 | HN18: 536.5956281 | HO18: 20336.27487 | HP18: 779.7120732 | HQ18: 25771.3876 | HR18: 1023.18539 | HS18: 30845.62282 | HT18: 1267.06216 | HU18: 35832.53135 | HV18: 1511.410484 | HW18: 40731.93479 | HX18: 1756.166935 | HY18: 45502.61979 | HZ18: 2001.294813 | IA18: 50240.06689 | IB18: 2246.813426 | IC18: 54775.06394 | ID18: 2492.740362 | IE18: 59200.54835 | IF18: 2739.050988 | IG18: 63772.5224 | IH18: 2985.683739 | II18: 68281.06687 | IJ18: 3232.722656 | IK18: 72965.47805 | IL18: 3480.142171 | IM18: 77797.6767 | IN18: 3727.940323 | IO18: 82870.55532 | IP18: 3976.121049 | IQ18: 86830.58096 | IR18: 4224.680714 | IS18: 87177.75499 | IT18: 4253.999063 | IV18: 625.1529423 | IW18: 106.6482638 | IX18: 848.57926 | IY18: 136.7016804 | IZ18: 1525.269081 | JA18: 167.1495957 | JB18: 2331.441775 | JC18: 197.801447 | JD18: 3204.636149 | JE18: 229.0036218 | JF18: 4214.354727 | JG18: 260.7084698 | JH18: 5324.727182 | JI18: 292.9166896 | JJ18: 6573.360144 | JK18: 325.6463728 | JL18: 7947.172832 | JM18: 358.9838215 | JN18: 9791.982829 | JO18: 392.9140135 | JP18: 15262.29459 | JQ18: 641.4282709 | JR18: 20742.34373 | JS18: 884.6529139 | JT18: 26222.40287 | JU18: 1127.937687 | JV18: 31673.34714 | JW18: 1371.522219 | JX18: 37143.60748 | JY18: 1615.364134 | JZ18: 42664.64328 | KA18: 1859.329423 | KB18: 48098.8749 | KC18: 2103.857137 | KD18: 53173.85585 | KE18: 2348.906771 | KF18: 58141.05836 | KG18: 2594.533725 | KH18: 62875.72295 | KI18: 2840.586622 | KJ18: 67514.45004 | KK18: 3086.998134 | KL18: 72139.34029 | KM18: 3333.798268 | KN18: 76638.8877 | KO18: 3581.00956 | KP18: 81032.74335 | KQ18: 3828.593798 | KR18: 85019.20372 | KS18: 4076.468195 | KT18: 85409.87702 | KU18: 4106.344429 | KV18: 85816.32331 | KW18: 4136.098453 | KX18: 86218.36142 | KY18: 4165.734103 | KZ18: 86618.58019 | LA18: 4195.260925 | LB18: 87033.3718 | LC18: 4224.680714 | LD18: 87428.5142 | LE18: 4253.999063
A19: Cumbria | B19: Carlisle | D19: 466.4633817 | E19: 110.7812727 | F19: 596.9573684 | G19: 128.2931004 | H19: 1130.086755 | I19: 146.4723513 | J19: 1670.078249 | K19: 165.0384738 | L19: 2157.398988 | M19: 182.6290382 | N19: 2850.779629 | O19: 197.1415024 | P19: 3528.084714 | Q19: 217.5137875 | R19: 4223.116186 | S19: 238.3935654 | T19: 4933.837771 | U19: 259.5130689 | V19: 5701.434548 | W19: 281.0905368 | X19: 6965.913145 | Y19: 304.6451969 | Z19: 8232.416412 | AA19: 324.2323269 | AB19: 9495.162371 | AC19: 343.6402909 | AD19: 10736.30333 | AE19: 362.8067576 | AF19: 12008.07416 | AG19: 381.7450968 | AH19: 13376.07045 | AI19: 400.4868394 | AJ19: 14784.92633 | AK19: 419.0297263 | AL19: 15829.59457 | AM19: 437.4084668 | AN19: 16873.76969 | AO19: 455.6069731 | AP19: 17899.57319 | AQ19: 473.6191604 | AR19: 18710.9513 | AS19: 491.4608657 | AT19: 19542.30429 | AU19: 509.1417394 | AV19: 20347.74223 | AW19: 526.6705068 | AX19: 21138.34184 | AY19: 544.0492824 | AZ19: 21894.19069 | BA19: 561.2029071 | BB19: 22202.30742 | BC19: 578.2253449 | BD19: 22515.06287 | BE19: 595.0930181 | BF19: 22828.65647 | BG19: 611.8081509 | BH19: 23149.21529 | BI19: 628.3747859 | BJ19: 23496.88605 | BK19: 644.7969198 | BL19: 23839.67013 | BM19: 661.0766794 | BO19: 466.4633817 | BP19: 110.7812727 | BQ19: 592.2482259 | BR19: 126.1475688 | BS19: 1080.989433 | BT19: 142.1374094 | BU19: 1609.249609 | BV19: 158.7093407 | BW19: 1826.844142 | BX19: 173.8310085 | BY19: 2322.105723 | BZ19: 184.8821334 | CA19: 2851.390066 | CB19: 203.0773109 | CC19: 3411.677497 | CD19: 221.7408388 | CE19: 3989.833396 | CF19: 240.6047223 | CG19: 4589.562247 | CH19: 259.8787541 | CI19: 5209.378426 | CJ19: 281.4629152 | CK19: 5837.678266 | CL19: 295.7528551 | CM19: 6467.306614 | CN19: 309.8620806 | CO19: 7078.558934 | CP19: 323.7404551 | CQ19: 7803.336661 | CR19: 337.4080076 | CS19: 8867.496726 | CT19: 350.8862763 | CU19: 9977.540437 | CV19: 364.1775298 | CW19: 10758.83435 | CX19: 377.3373504 | CY19: 11511.93922 | CZ19: 390.3286809 | DA19: 12420.76511 | DB19: 403.1532176 | DC19: 13075.77592 | DD19: 415.8191203 | DE19: 13735.66801 | DF19: 428.3379756 | DG19: 14356.11562 | DH19: 440.7184255 | DI19: 14982.78778 | DJ19: 452.9602287 | DK19: 15638.61533 | DL19: 465.0079266 | DM19: 16302.25359 | DN19: 476.9354116 | DO19: 16959.74643 | DP19: 488.726001 | DQ19: 17608.97286 | DR19: 500.3835448 | DS19: 18257.64798 | DT19: 511.9124322 | DU19: 18792.00631 | DV19: 523.3154837 | DW19: 19125.68814 | DX19: 534.5991066 | DZ19: 466.4633817 | EA19: 110.7812727 | EB19: 596.9573684 | EC19: 128.2931004 | ED19: 1130.086755 | EE19: 146.4723513 | EF19: 1670.078249 | EG19: 165.0384738 | EH19: 2157.398988 | EI19: 182.6290382 | EJ19: 2850.779629 | EK19: 197.1415024 | EL19: 3528.084714 | EM19: 217.5137875 | EN19: 4223.116186 | EO19: 238.3935654 | EP19: 4933.837771 | EQ19: 259.5130689 | ER19: 5701.434548 | ES19: 281.0905368 | ET19: 6965.913145 | EU19: 304.6451969 | EV19: 8232.416412 | EW19: 324.2323269 | EX19: 9495.162371 | EY19: 343.6402909 | EZ19: 10736.30333 | FA19: 362.8067576 | FB19: 12008.07416 | FC19: 381.7450968 | FD19: 13376.07045 | FE19: 400.4868394 | FF19: 14784.92633 | FG19: 419.0297263 | FH19: 15829.59457 | FI19: 437.4084668 | FJ19: 16873.76969 | FK19: 455.6069731 | FL19: 17899.57319 | FM19: 473.6191604 | FN19: 18710.9513 | FO19: 491.4608657 | FP19: 19542.30429 | FQ19: 509.1417394 | FR19: 20347.74223 | FS19: 526.6705068 | FT19: 21138.34184 | FU19: 544.0492824 | FV19: 21894.19069 | FW19: 561.2029071 | FX19: 22202.30742 | FY19: 578.2253449 | FZ19: 22515.06287 | GA19: 595.0930181 | GB19: 22828.65647 | GC19: 611.8081509 | GD19: 23149.21529 | GE19: 628.3747859 | GF19: 23496.88605 | GG19: 644.7969198 | GH19: 23839.67013 | GI19: 661.0766794 | GK19: 466.4633817 | GL19: 110.7812727 | GM19: 614.8420256 | GN19: 141.676635 | GO19: 1276.50159 | GP19: 172.9203192 | GQ19: 2051.110225 | GR19: 204.0648178 | GS19: 2859.661673 | GT19: 235.7226567 | GU19: 3839.608482 | GV19: 267.7932611 | GW19: 4956.237155 | GX19: 300.2755974 | GY19: 6299.571131 | GZ19: 333.1233661 | HA19: 7743.146954 | HB19: 366.363051 | HC19: 9099.953026 | HD19: 399.9927029 | HE19: 10533.94577 | HF19: 432.7461523 | HG19: 11824.06169 | HH19: 459.7518922 | HI19: 12993.20105 | HJ19: 486.4113818 | HK19: 13992.64563 | HL19: 512.6459732 | HM19: 15662.47015 | HN19: 538.4788079 | HO19: 19513.41086 | HP19: 779.9394547 | HQ19: 23329.87365 | HR19: 1019.996152 | HS19: 26678.98843 | HT19: 1258.738878 | HU19: 29919.31861 | HV19: 1496.139834 | HW19: 33027.9621 | HX19: 1732.181053 | HY19: 36032.78242 | HZ19: 1966.904921 | IA19: 38950.20216 | IB19: 2200.355038 | IC19: 41662.27323 | ID19: 2432.572205 | IE19: 44278.52617 | IF19: 2663.559679 | IG19: 47033.85815 | IH19: 2892.942301 | II19: 49737.27225 | IJ19: 3121.157246 | IK19: 52590.9478 | IL19: 3348.077532 | IM19: 55560.65884 | IN19: 3573.708547 | IO19: 58676.33437 | IP19: 3798.061673 | IQ19: 61174.29984 | IR19: 4021.141323 | IS19: 61536.37898 | IT19: 4034.659213 | IV19: 466.4633817 | IW19: 110.7812727 | IX19: 614.8420256 | IY19: 141.676635 | IZ19: 1276.50159 | JA19: 172.9203192 | JB19: 2090.27324 | JC19: 204.0648178 | JD19: 3092.045287 | JE19: 235.7226567 | JF19: 4269.69009 | JG19: 267.7932611 | JH19: 5534.268051 | JI19: 300.2755974 | JJ19: 6908.265573 | JK19: 333.1233661 | JL19: 8370.065062 | JM19: 366.363051 | JN19: 10008.83866 | JO19: 399.9927029 | JP19: 13773.706 | JQ19: 651.2873834 | JR19: 17548.48165 | JS19: 895.8208136 | JT19: 21323.29908 | JU19: 1139.050178 | JV19: 25069.55844 | JW19: 1380.788522 | JX19: 28842.88598 | JY19: 1621.033247 | JZ19: 32693.48932 | KA19: 1859.871646 | KB19: 36509.63065 | KC19: 2097.299477 | KD19: 39856.04593 | KE19: 2333.476893 | KF19: 43027.08407 | KG19: 2568.319657 | KH19: 45962.17641 | KI19: 2801.78964 | KJ19: 48770.80324 | KK19: 3033.951711 | KL19: 51550.1758 | KM19: 3264.863797 | KN19: 54231.41735 | KO19: 3494.573465 | KP19: 56829.19392 | KQ19: 3723.07347 | KR19: 59259.77162 | KS19: 3949.844764 | KT19: 59722.19662 | KU19: 3964.629209 | KV19: 60121.15652 | KW19: 3979.141546 | KX19: 60515.31621 | KY19: 3993.389991 | KZ19: 60908.34124 | LA19: 4007.387987 | LB19: 61313.2906 | LC19: 4021.141323 | LD19: 61707.52343 | LE19: 4034.659213
A20: Cheshire | B20: Cheshire East | D20: 439.5271375 | E20: 108.8596025 | F20: 547.1811229 | G20: 126.8509553 | H20: 1265.111421 | I20: 145.8653158 | J20: 1975.590045 | K20: 165.2451425 | L20: 2527.263611 | M20: 183.8515912 | N20: 3392.91286 | O20: 199.5227026 | P20: 4247.569733 | Q20: 221.3040089 | R20: 5125.889618 | S20: 243.8107086 | T20: 6025.024483 | U20: 266.7780546 | V20: 6968.283431 | W20: 290.4638797 | X20: 8384.881895 | Y20: 316.3510791 | Z20: 9806.000355 | AA20: 338.2924348 | AB20: 11224.05746 | AC20: 360.2107401 | AD20: 12615.97975 | AE20: 382.1156645 | AF20: 14049.10764 | AG20: 403.9400198 | AH20: 15609.77837 | AI20: 425.6517739 | AJ20: 17226.00988 | AK20: 447.3166654 | AL20: 18406.88135 | AM20: 468.9262547 | AN20: 19602.8784 | AO20: 490.5623756 | AP20: 20770.146 | AQ20: 512.1462672 | AR20: 21644.30586 | AS20: 533.6568574 | AT20: 22532.90519 | AU20: 555.1185254 | AV20: 23389.97501 | AW20: 576.5491741 | AX20: 24220.63061 | AY20: 597.9650973 | AZ20: 25057.9933 | BA20: 619.3228107 | BB20: 25463.94627 | BC20: 640.6525562 | BD20: 25874.10895 | BE20: 661.9514145 | BF20: 26284.52168 | BG20: 683.2196482 | BH20: 26707.76174 | BI20: 704.4596301 | BJ20: 27183.09804 | BK20: 725.6737815 | BL20: 27654.24956 | BM20: 746.8625072 | BO20: 439.5271375 | BP20: 108.8596025 | BQ20: 542.6118374 | BR20: 124.5234408 | BS20: 1221.219394 | BT20: 141.1074199 | BU20: 1943.255045 | BV20: 158.4808381 | BW20: 2226.072078 | BX20: 174.5774744 | BY20: 2873.351385 | BZ20: 186.7031675 | CA20: 3564.983583 | CB20: 206.1654015 | CC20: 4297.309492 | CD20: 226.2986393 | CE20: 5052.915956 | CF20: 246.83289 | CG20: 5836.330176 | CH20: 268.0147615 | CI20: 6645.737054 | CJ20: 291.7235648 | CK20: 7465.899656 | CL20: 308.0085471 | CM20: 8287.776563 | CN20: 324.2138999 | CO20: 9086.256767 | CP20: 340.3551984 | CQ20: 9990.975379 | CR20: 356.3838446 | CS20: 11213.60638 | CT20: 372.2640565 | CU20: 12496.5192 | CV20: 388.0574169 | CW20: 13378.95328 | CX20: 403.8108474 | CY20: 14232.84434 | CZ20: 419.5481097 | DA20: 15222.60969 | DB20: 435.2077286 | DC20: 15902.98875 | DD20: 450.7638993 | DE20: 16591.8579 | DF20: 466.2410666 | DG20: 17242.17297 | DH20: 481.6572772 | DI20: 17886.93811 | DJ20: 497.0232595 | DK20: 18568.82403 | DL20: 512.3100852 | DM20: 19257.73448 | DN20: 527.5387874 | DO20: 19941.36778 | DP20: 542.7110008 | DQ20: 20618.06428 | DR20: 557.8292844 | DS20: 21294.54391 | DT20: 572.8954029 | DU20: 21907.03371 | DV20: 587.9120196 | DW20: 22336.74078 | DX20: 602.8858791 | DZ20: 439.5271375 | EA20: 108.8596025 | EB20: 547.1811229 | EC20: 126.8509553 | ED20: 1265.111421 | EE20: 145.8653158 | EF20: 1975.590045 | EG20: 165.2451425 | EH20: 2527.263611 | EI20: 183.8515912 | EJ20: 3392.91286 | EK20: 199.5227026 | EL20: 4247.569733 | EM20: 221.3040089 | EN20: 5125.889618 | EO20: 243.8107086 | EP20: 6025.024483 | EQ20: 266.7780546 | ER20: 6968.283431 | ES20: 290.4638797 | ET20: 8384.881895 | EU20: 316.3510791 | EV20: 9806.000355 | EW20: 338.2924348 | EX20: 11224.05746 | EY20: 360.2107401 | EZ20: 12615.97975 | FA20: 382.1156645 | FB20: 14049.10764 | FC20: 403.9400198 | FD20: 15609.77837 | FE20: 425.6517739 | FF20: 17226.00988 | FG20: 447.3166654 | FH20: 18406.88135 | FI20: 468.9262547 | FJ20: 19602.8784 | FK20: 490.5623756 | FL20: 20770.146 | FM20: 512.1462672 | FN20: 21644.30586 | FO20: 533.6568574 | FP20: 22532.90519 | FQ20: 555.1185254 | FR20: 23389.97501 | FS20: 576.5491741 | FT20: 24220.63061 | FU20: 597.9650973 | FV20: 25057.9933 | FW20: 619.3228107 | FX20: 25463.94627 | FY20: 640.6525562 | FZ20: 25874.10895 | GA20: 661.9514145 | GB20: 26284.52168 | GC20: 683.2196482 | GD20: 26707.76174 | GE20: 704.4596301 | GF20: 27183.09804 | GG20: 725.6737815 | GH20: 27654.24956 | GI20: 746.8625072 | GK20: 439.5271375 | GL20: 108.8596025 | GM20: 563.1470679 | GN20: 140.0840453 | GO20: 1402.704138 | GP20: 172.2036735 | GQ20: 2354.877569 | GR20: 204.3203571 | GS20: 3249.507955 | GT20: 237.3006284 | GU20: 4347.854964 | GV20: 271.0278382 | GW20: 5590.813885 | GX20: 305.5079599 | GY20: 7068.596109 | GZ20: 340.6931047 | HA20: 8655.272849 | HB20: 376.6192679 | HC20: 10170.10607 | HD20: 413.3309988 | HE20: 11769.56233 | HF20: 449.3742677 | HG20: 13236.02486 | HH20: 479.6887113 | HI20: 14584.12719 | HJ20: 509.8663005 | HK20: 15737.16804 | HL20: 539.9294599 | HM20: 17665.01719 | HN20: 569.786337 | HO20: 22098.22454 | HP20: 828.9476203 | HQ20: 26532.6147 | HR20: 1088.851813 | HS20: 30359.25447 | HT20: 1349.438231 | HU20: 34082.55538 | HV20: 1610.927739 | HW20: 37643.8838 | HX20: 1873.087354 | HY20: 41098.81333 | HZ20: 2135.780023 | IA20: 44517.07322 | IB20: 2399.052659 | IC20: 47740.91526 | ID20: 2662.950512 | IE20: 50862.69068 | IF20: 2927.521042 | IG20: 54126.54491 | IH20: 3192.544327 | II20: 57341.1964 | IJ20: 3458.128194 | IK20: 60700.17103 | IL20: 3724.232332 | IM20: 64175.58309 | IN20: 3990.83911 | IO20: 67820.81045 | IP20: 4257.938385 | IQ20: 71067.59685 | IR20: 4525.512979 | IS20: 71598.27691 | IT20: 4558.224167 | IV20: 439.5271375 | IW20: 108.8596025 | IX20: 563.1470679 | IY20: 140.0840453 | IZ20: 1402.704138 | JA20: 172.2036735 | JB20: 2404.261461 | JC20: 204.3203571 | JD20: 3525.867309 | JE20: 237.3006284 | JF20: 4820.176918 | JG20: 271.0278382 | JH20: 6212.515393 | JI20: 305.5079599 | JJ20: 7723.203556 | JK20: 340.6931047 | JL20: 9329.872916 | JM20: 376.6192679 | JN20: 11190.41234 | JO20: 413.3309988 | JP20: 15472.46888 | JQ20: 676.3128671 | JR20: 19768.61309 | JS20: 934.6674563 | JT20: 24068.27779 | JU20: 1193.975557 | JV20: 28340.95257 | JW20: 1454.275348 | JX20: 32656.63606 | JY20: 1715.281237 | JZ20: 37089.40518 | KA20: 1976.738278 | KB20: 41523.37755 | KC20: 2238.879368 | KD20: 45345.65608 | KE20: 2501.617282 | KF20: 48964.66969 | KG20: 2765.368105 | KH20: 52347.27625 | KI20: 3029.704508 | KJ20: 55608.50898 | KK20: 3294.44163 | KL20: 58883.25538 | KM20: 3559.68925 | KN20: 62074.10882 | KO20: 3825.52928 | KP20: 65175.55307 | KQ20: 4092.033684 | KR20: 68173.54072 | KS20: 4358.902867 | KT20: 68915.01482 | KU20: 4392.664312 | KV20: 69521.86417 | KW20: 4426.196065 | KX20: 70121.54301 | KY20: 4459.506628 | KZ20: 70718.88137 | LA20: 4492.610337 | LB20: 71337.01004 | LC20: 4525.512979 | LD20: 71930.88439 | LE20: 4558.224167
A21: Lancashire | B21: Chorley | D21: 329.2086846 | E21: 68.14105831 | F21: 408.2873672 | G21: 79.25226033 | H21: 976.0192475 | I21: 90.6618022 | J21: 1536.248427 | K21: 102.6739102 | L21: 2064.872438 | M21: 114.0958786 | N21: 2950.003697 | O21: 123.6116215 | P21: 3853.641213 | Q21: 136.8251148 | R21: 4797.421417 | S21: 150.4567556 | T21: 5767.224883 | U21: 164.3210633 | V21: 6717.660586 | W21: 178.5651168 | X21: 8115.449905 | Y21: 194.1453353 | Z21: 9513.362907 | AA21: 207.2648557 | AB21: 10903.98979 | AC21: 220.32794 | AD21: 12264.48609 | AE21: 233.3243882 | AF21: 13662.22783 | AG21: 246.2532678 | AH21: 15186.49542 | AI21: 259.1161074 | AJ21: 16764.77328 | AK21: 271.9416971 | AL21: 17920.09558 | AM21: 284.7518952 | AN21: 19084.94005 | AO21: 297.5012908 | AP21: 20180.73398 | AQ21: 310.2017196 | AR21: 20957.71976 | AS21: 322.8510073 | AT21: 21738.12779 | AU21: 335.463727 | AV21: 22476.69428 | AW21: 348.0477379 | AX21: 23180.25519 | AY21: 360.6015447 | AZ21: 23966.15035 | BA21: 373.153301 | BB21: 24331.03344 | BC21: 385.6739935 | BD21: 24701.10593 | BE21: 398.176539 | BF21: 25072.71637 | BG21: 410.66195 | BH21: 25452.23973 | BI21: 423.1324328 | BJ21: 25860.79071 | BK21: 435.5901532 | BL21: 26263.73855 | BM21: 448.0360029 | BO21: 329.2086846 | BP21: 68.14105831 | BQ21: 404.5428177 | BR21: 78.2197076 | BS21: 940.1183996 | BT21: 88.60760845 | BU21: 1509.75274 | BV21: 99.34819271 | BW21: 1787.694728 | BX21: 109.1988786 | BY21: 2450.616256 | BZ21: 116.5188734 | CA21: 3158.689606 | CB21: 128.3956122 | CC21: 3908.68207 | CD21: 140.6443243 | CE21: 4682.186952 | CF21: 153.0864488 | CG21: 5483.453925 | CH21: 165.8625215 | CI21: 6310.836299 | CJ21: 180.1813337 | CK21: 7148.714321 | CL21: 189.8925038 | CM21: 7988.152896 | CN21: 199.5351834 | CO21: 8804.342593 | CP21: 209.103171 | CQ21: 9697.942488 | CR21: 218.5952405 | CS21: 10824.51708 | CT21: 228.011337 | CU21: 12013.18365 | CV21: 237.3818618 | CW21: 12805.70791 | CX21: 246.7025841 | CY21: 13572.15875 | CZ21: 255.951648 | DA21: 14434.22366 | DB21: 265.1452163 | DC21: 15002.69394 | DD21: 274.2816398 | DE21: 15582.20352 | DF21: 283.376167 | DG21: 16135.46349 | DH21: 292.4342785 | DI21: 16666.28065 | DJ21: 301.4543864 | DK21: 17233.78634 | DL21: 310.4649096 | DM21: 17805.06307 | DN21: 319.4374514 | DO21: 18373.46577 | DP21: 328.38333 | DQ21: 18938.1073 | DR21: 337.3043457 | DS21: 19502.65121 | DT21: 346.2048837 | DU21: 20035.25205 | DV21: 355.0844427 | DW21: 20469.0742 | DX21: 363.944997 | DZ21: 329.2086846 | EA21: 68.14105831 | EB21: 408.2873672 | EC21: 79.25226033 | ED21: 976.0192475 | EE21: 90.6618022 | EF21: 1536.248427 | EG21: 102.6739102 | EH21: 2064.872438 | EI21: 114.0958786 | EJ21: 2950.003697 | EK21: 123.6116215 | EL21: 3853.641213 | EM21: 136.8251148 | EN21: 4797.421417 | EO21: 150.4567556 | EP21: 5767.224883 | EQ21: 164.3210633 | ER21: 6717.660586 | ES21: 178.5651168 | ET21: 8115.449905 | EU21: 194.1453353 | EV21: 9513.362907 | EW21: 207.2648557 | EX21: 10903.98979 | EY21: 220.32794 | EZ21: 12264.48609 | FA21: 233.3243882 | FB21: 13662.22783 | FC21: 246.2532678 | FD21: 15186.49542 | FE21: 259.1161074 | FF21: 16764.77328 | FG21: 271.9416971 | FH21: 17920.09558 | FI21: 284.7518952 | FJ21: 19084.94005 | FK21: 297.5012908 | FL21: 20180.73398 | FM21: 310.2017196 | FN21: 20957.71976 | FO21: 322.8510073 | FP21: 21738.12779 | FQ21: 335.463727 | FR21: 22476.69428 | FS21: 348.0477379 | FT21: 23180.25519 | FU21: 360.6015447 | FV21: 23966.15035 | FW21: 373.153301 | FX21: 24331.03344 | FY21: 385.6739935 | FZ21: 24701.10593 | GA21: 398.176539 | GB21: 25072.71637 | GC21: 410.66195 | GD21: 25452.23973 | GE21: 423.1324328 | GF21: 25860.79071 | GG21: 435.5901532 | GH21: 26263.73855 | GI21: 448.0360029 | GK21: 329.2086846 | GL21: 68.14105831 | GM21: 420.9114338 | GN21: 87.51985513 | GO21: 1083.940115 | GP21: 107.0322668 | GQ21: 1843.45344 | GR21: 126.9530206 | GS21: 2662.083956 | GT21: 147.2656479 | GU21: 3679.797685 | GV21: 167.9116718 | GW21: 4825.434699 | GX21: 188.8856958 | GY21: 6159.780662 | GZ21: 210.2433461 | HA21: 7599.445698 | HB21: 231.9773965 | HC21: 8948.357041 | HD21: 254.0987132 | HE21: 10380.6097 | HF21: 275.7819513 | HG21: 11666.20731 | HH21: 293.8954623 | HI21: 12835.92004 | HJ21: 311.8668578 | HK21: 13848.83001 | HL21: 329.6873764 | HM21: 15476.75668 | HN21: 347.3578762 | HO21: 19084.91987 | HP21: 504.6230129 | HQ21: 22708.03277 | HR21: 661.9565801 | HS21: 25797.4867 | HT21: 819.4360837 | HU21: 28791.09655 | HV21: 976.9462672 | HW21: 31607.03817 | HX21: 1134.50972 | HY21: 34328.48663 | HZ21: 1292.101324 | IA21: 36994.66938 | IB21: 1449.771733 | IC21: 39496.29554 | ID21: 1607.55395 | IE21: 41890.07814 | IF21: 1765.435165 | IG21: 44440.95496 | IH21: 1923.566246 | II21: 46939.2837 | IJ21: 2081.799406 | IK21: 49593.03018 | IL21: 2240.197555 | IM21: 52359.82324 | IN21: 2398.7685 | IO21: 55257.30028 | IP21: 2557.523172 | IQ21: 57616.81175 | IR21: 2716.467016 | IS21: 58074.38975 | IT21: 2734.437084 | IV21: 329.2086846 | IW21: 68.14105831 | IX21: 420.9114338 | IY21: 87.51985513 | IZ21: 1083.940115 | JA21: 107.0322668 | JB21: 1906.027147 | JC21: 126.9530206 | JD21: 2965.376303 | JE21: 147.2656479 | JF21: 4137.362387 | JG21: 167.9116718 | JH21: 5403.521852 | JI21: 188.8856958 | JJ21: 6780.482778 | JK21: 210.2433461 | JL21: 8238.966516 | JM21: 231.9773965 | JN21: 9809.018691 | JO21: 254.0987132 | JP21: 13269.70198 | JQ21: 415.0546561 | JR21: 16741.98478 | JS21: 572.6516338 | JT21: 20215.54895 | JU21: 730.3118582 | JV21: 23660.87552 | JW21: 887.9978956 | JX21: 27147.56754 | JY21: 1045.683986 | JZ21: 30755.40524 | KA21: 1203.342167 | KB21: 34378.20839 | KC21: 1361.104341 | KD21: 37460.90095 | KE21: 1519.088033 | KF21: 40323.70411 | KG21: 1677.056011 | KH21: 42969.35143 | KI21: 1835.060818 | KJ21: 45537.77794 | KK21: 1993.066863 | KL21: 48085.22012 | KM21: 2151.156137 | KN21: 50544.04047 | KO21: 2309.372509 | KP21: 52918.77898 | KQ21: 2467.691968 | KR21: 55266.54411 | KS21: 2626.318562 | KT21: 55778.56786 | KU21: 2644.391834 | KV21: 56263.70328 | KW21: 2662.442276 | KX21: 56745.85214 | KY21: 2680.469879 | KZ21: 57227.15482 | LA21: 2698.478466 | LB21: 57716.52262 | LC21: 2716.467016 | LD21: 58197.35742 | LE21: 2734.437084
A22: Cumbria | B22: Copeland | D22: 246.5035928 | E22: 55.43619847 | F22: 313.9726561 | G22: 64.04699807 | H22: 556.979362 | I22: 73.01744411 | J22: 836.9101052 | K22: 82.01675709 | L22: 1172.629782 | M22: 90.51594233 | N22: 1555.47557 | O22: 97.44281754 | P22: 1926.141466 | Q22: 107.242687 | R22: 2307.004541 | S22: 117.2591256 | T22: 2695.933103 | U22: 127.3675125 | V22: 3052.686911 | W22: 137.6477395 | X22: 3832.982239 | Y22: 148.8614419 | Z22: 4606.814781 | AA22: 158.0912337 | AB22: 5372.526885 | AC22: 167.190566 | AD22: 6124.099732 | AE22: 176.1751213 | AF22: 6880.335379 | AG22: 185.0142466 | AH22: 7664.388435 | AI22: 193.7266796 | AJ22: 8457.187949 | AK22: 202.3435424 | AL22: 9102.783442 | AM22: 210.8656822 | AN22: 9716.29561 | AO22: 219.2793582 | AP22: 10271.87523 | AQ22: 227.5825719 | AR22: 10723.28725 | AS22: 235.7920421 | AT22: 11173.82609 | AU22: 243.9098342 | AV22: 11592.23501 | AW22: 251.9348515 | AX22: 12007.42209 | AY22: 259.8603984 | AZ22: 12458.57506 | BA22: 267.5978985 | BB22: 12503.74343 | BC22: 275.2632857 | BD22: 12553.43795 | BE22: 282.821741 | BF22: 12604.75233 | BG22: 290.2744693 | BH22: 12661.71125 | BI22: 297.6235537 | BJ22: 12738.01394 | BK22: 304.8710632 | BL22: 12809.71418 | BM22: 312.0181907 | BO22: 246.5035928 | BP22: 55.43619847 | BQ22: 311.3814047 | BR22: 62.85770822 | BS22: 525.4495606 | BT22: 70.60597023 | BU22: 761.5936579 | BV22: 78.63095668 | BW22: 842.7781775 | BX22: 85.92259243 | BY22: 1016.605174 | BZ22: 91.15530336 | CA22: 1202.460805 | CB22: 99.87777031 | CC22: 1399.077272 | CD22: 108.8064221 | CE22: 1602.092619 | CF22: 117.813433 | CG22: 1812.784873 | CH22: 126.9766456 | CI22: 2030.597263 | CJ22: 137.2389528 | CK22: 2251.440543 | CL22: 143.9045756 | CM22: 2472.501556 | CN22: 150.4475515 | CO22: 2686.342115 | CP22: 156.8850562 | CQ22: 2961.506484 | CR22: 163.1948804 | CS22: 3419.889248 | CT22: 169.3895371 | CU22: 3894.122134 | CV22: 175.497249 | CW22: 4243.614925 | CX22: 181.5440436 | CY22: 4580.071605 | CZ22: 187.49528 | DA22: 5003.887107 | DB22: 193.3520212 | DC22: 5323.188982 | DD22: 199.1245398 | DE22: 5642.74331 | DF22: 204.8158846 | DG22: 5940.635943 | DH22: 210.4263404 | DI22: 6246.323616 | DJ22: 215.9490104 | DK22: 6562.414243 | DL22: 221.3138308 | DM22: 6882.8614 | DN22: 226.615515 | DO22: 7199.516783 | DP22: 231.8270606 | DQ22: 7511.005614 | DR22: 236.9505868 | DS22: 7821.92271 | DT22: 241.9877641 | DU22: 8056.154749 | DV22: 246.9407473 | DW22: 8170.505073 | DX22: 251.8133559 | DZ22: 246.5035928 | EA22: 55.43619847 | EB22: 313.9726561 | EC22: 64.04699807 | ED22: 556.979362 | EE22: 73.01744411 | EF22: 836.9101052 | EG22: 82.01675709 | EH22: 1172.629782 | EI22: 90.51594233 | EJ22: 1555.47557 | EK22: 97.44281754 | EL22: 1926.141466 | EM22: 107.242687 | EN22: 2307.004541 | EO22: 117.2591256 | EP22: 2695.933103 | EQ22: 127.3675125 | ER22: 3052.686911 | ES22: 137.6477395 | ET22: 3832.982239 | EU22: 148.8614419 | EV22: 4606.814781 | EW22: 158.0912337 | EX22: 5372.526885 | EY22: 167.190566 | EZ22: 6124.099732 | FA22: 176.1751213 | FB22: 6880.335379 | FC22: 185.0142466 | FD22: 7664.388435 | FE22: 193.7266796 | FF22: 8457.187949 | FG22: 202.3435424 | FH22: 9102.783442 | FI22: 210.8656822 | FJ22: 9716.29561 | FK22: 219.2793582 | FL22: 10271.87523 | FM22: 227.5825719 | FN22: 10723.28725 | FO22: 235.7920421 | FP22: 11173.82609 | FQ22: 243.9098342 | FR22: 11592.23501 | FS22: 251.9348515 | FT22: 12007.42209 | FU22: 259.8603984 | FV22: 12458.57506 | FW22: 267.5978985 | FX22: 12503.74343 | FY22: 275.2632857 | FZ22: 12553.43795 | GA22: 282.821741 | GB22: 12604.75233 | GC22: 290.2744693 | GD22: 12661.71125 | GE22: 297.6235537 | GF22: 12738.01394 | GG22: 304.8710632 | GH22: 12809.71418 | GI22: 312.0181907 | GK22: 246.5035928 | GL22: 55.43619847 | GM22: 324.7861509 | GN22: 70.7283801 | GO22: 663.6041444 | GP22: 86.20193253 | GQ22: 1082.396622 | GR22: 101.4111086 | GS22: 1531.57506 | GT22: 116.8305906 | GU22: 2068.888424 | GV22: 132.364467 | GW22: 2703.776587 | GX22: 148.0474516 | GY22: 3505.227804 | GZ22: 163.8540644 | HA22: 4384.072537 | HB22: 179.8088654 | HC22: 5159.966453 | HD22: 195.8731588 | HE22: 5993.759431 | HF22: 211.4565299 | HG22: 6682.150905 | HH22: 224.1687143 | HI22: 7260.774886 | HJ22: 236.6526755 | HK22: 7719.41808 | HL22: 248.9354585 | HM22: 8586.145544 | HN22: 260.9758496 | HO22: 10788.23565 | HP22: 377.2785169 | HQ22: 12963.56282 | HR22: 492.5417497 | HS22: 14902.76964 | HT22: 606.8122872 | HU22: 16766.54574 | HV22: 720.0780538 | HW22: 18571.4868 | HX22: 832.3443219 | HY22: 20295.13064 | HZ22: 943.6774325 | IA22: 21935.92156 | IB22: 1054.103781 | IC22: 23414.72378 | ID22: 1163.630219 | IE22: 24822.20351 | IF22: 1272.226068 | IG22: 26351.3082 | IH22: 1379.439184 | II22: 27832.28316 | IJ22: 1485.822105 | IK22: 29460.06196 | IL22: 1591.195137 | IM22: 31193.9678 | IN22: 1695.558241 | IO22: 33037.53606 | IP22: 1798.914657 | IQ22: 34438.41157 | IR22: 1901.264713 | IS22: 34560.77424 | IT22: 1904.298105 | IV22: 246.5035928 | IW22: 55.43619847 | IX22: 324.7861509 | IY22: 70.7283801 | IZ22: 663.6041444 | JA22: 86.20193253 | JB22: 1111.195559 | JC22: 101.4111086 | JD22: 1704.894782 | JE22: 116.8305906 | JF22: 2417.046648 | JG22: 132.364467 | JH22: 3184.649792 | JI22: 148.0474516 | JJ22: 4022.884591 | JK22: 163.8540644 | JL22: 4913.401479 | JM22: 179.8088654 | JN22: 5771.735057 | JO22: 195.8731588 | JP22: 7954.307564 | JQ22: 318.2442394 | JR22: 10140.40595 | JS22: 436.789937 | JT22: 12325.81486 | JU22: 554.1796149 | JV22: 14498.31059 | JW22: 670.4962915 | JX22: 16678.58846 | JY22: 785.6400711 | JZ22: 18880.49159 | KA22: 899.6719066 | KB22: 21055.64103 | KC22: 1012.756325 | KD22: 22995.30151 | KE22: 1124.921519 | KF22: 24839.31784 | KG22: 1236.108135 | KH22: 26482.66432 | KI22: 1346.310592 | KJ22: 28031.53428 | KK22: 1455.622857 | KL22: 29545.31468 | KM22: 1564.068168 | KN22: 30987.55633 | KO22: 1671.642584 | KP22: 32383.3467 | KQ22: 1778.293597 | KR22: 33794.71396 | KS22: 1883.401074 | KT22: 33949.28274 | KU22: 1887.355635 | KV22: 34085.57369 | KW22: 1891.112323 | KX22: 34219.99729 | KY22: 1894.677537 | KZ22: 34353.93335 | LA22: 1898.060012 | LB22: 34492.3416 | LC22: 1901.264713 | LD22: 34627.19086 | LE22: 1904.298105
A23: North Yorkshire | B23: Craven | D23: 45.2579261 | E23: 26.1035128 | F23: 49.74395592 | G23: 30.29449747 | H23: 143.1242221 | I23: 34.66929121 | J23: 248.2572865 | K23: 39.18177454 | L23: 364.3156998 | M23: 43.48319378 | N23: 481.7375628 | O23: 47.0445626 | P23: 590.2634047 | Q23: 52.04483701 | R23: 699.5865096 | S23: 57.19206356 | T23: 810.1112903 | U23: 62.43791335 | V23: 934.029545 | W23: 67.81257552 | X23: 1212.475862 | Y23: 73.70894347 | Z23: 1490.045536 | AA23: 78.66674668 | AB23: 1765.857977 | AC23: 83.6111046 | AD23: 2037.336332 | AE23: 88.5338526 | AF23: 2311.387688 | AG23: 93.4270461 | AH23: 2595.562215 | AI23: 98.28264696 | AJ23: 2883.130796 | AK23: 103.1201495 | AL23: 3103.479796 | AM23: 107.9260333 | AN23: 3312.139673 | AO23: 112.723581 | AP23: 3512.109887 | AQ23: 117.4941239 | AR23: 3694.035088 | AS23: 122.2359543 | AT23: 3883.896612 | AU23: 126.9536574 | AV23: 4068.917295 | AW23: 131.6471822 | AX23: 4255.76908 | AY23: 136.3188262 | AZ23: 4418.956138 | BA23: 140.9888552 | BB23: 4445.290612 | BC23: 145.6337151 | BD23: 4472.774009 | BE23: 150.2621981 | BF23: 4500.703709 | BG23: 154.8746134 | BH23: 4529.662333 | BI23: 159.4717344 | BJ23: 4562.16182 | BK23: 164.0543304 | BL23: 4594.112201 | BM23: 168.6227014 | BO23: 45.2579261 | BP23: 26.1035128 | BQ23: 48.78813043 | BR23: 29.80381331 | BS23: 127.5768283 | BT23: 33.67729843 | BU23: 216.4257693 | BV23: 37.71214144 | BW23: 244.5849799 | BX23: 41.42057379 | BY23: 302.8422284 | BZ23: 44.15077766 | CA23: 365.1991464 | CB23: 48.62523777 | CC23: 431.0833778 | CD23: 53.23390486 | CE23: 499.176452 | CF23: 57.9275666 | CG23: 570.0871281 | CH23: 62.73588122 | CI23: 643.5317531 | CJ23: 68.14243335 | CK23: 718.1621925 | CL23: 71.80047637 | CM23: 792.9261594 | CN23: 75.43760328 | CO23: 865.0454516 | CP23: 79.0476599 | CQ23: 973.9065791 | CR23: 82.62504833 | CS23: 1192.237737 | CT23: 86.16137104 | CU23: 1415.737606 | CV23: 89.67504776 | CW23: 1584.602389 | CX23: 93.15856105 | CY23: 1745.602959 | CZ23: 96.628116 | DA23: 1959.240263 | DB23: 100.0693511 | DC23: 2133.174711 | DD23: 103.4797709 | DE23: 2306.582886 | DF23: 106.8642447 | DG23: 2468.570112 | DH23: 110.2230332 | DI23: 2638.470562 | DJ23: 113.5576877 | DK23: 2812.264109 | DL23: 116.8867884 | DM23: 2988.652488 | DN23: 120.1895382 | DO23: 3162.859903 | DP23: 123.4739091 | DQ23: 3333.981809 | DR23: 126.7406281 | DS23: 3504.66917 | DT23: 129.9906791 | DU23: 3612.422541 | DV23: 133.2244624 | DW23: 3654.771899 | DX23: 136.443302 | DZ23: 45.2579261 | EA23: 26.1035128 | EB23: 49.74395592 | EC23: 30.29449747 | ED23: 143.1242221 | EE23: 34.66929121 | EF23: 248.2572865 | EG23: 39.18177454 | EH23: 364.3156998 | EI23: 43.48319378 | EJ23: 481.7375628 | EK23: 47.0445626 | EL23: 590.2634047 | EM23: 52.04483701 | EN23: 699.5865096 | EO23: 57.19206356 | EP23: 810.1112903 | EQ23: 62.43791335 | ER23: 934.029545 | ES23: 67.81257552 | ET23: 1212.475862 | EU23: 73.70894347 | EV23: 1490.045536 | EW23: 78.66674668 | EX23: 1765.857977 | EY23: 83.6111046 | EZ23: 2037.336332 | FA23: 88.5338526 | FB23: 2311.387688 | FC23: 93.4270461 | FD23: 2595.562215 | FE23: 98.28264696 | FF23: 2883.130796 | FG23: 103.1201495 | FH23: 3103.479796 | FI23: 107.9260333 | FJ23: 3312.139673 | FK23: 112.723581 | FL23: 3512.109887 | FM23: 117.4941239 | FN23: 3694.035088 | FO23: 122.2359543 | FP23: 3883.896612 | FQ23: 126.9536574 | FR23: 4068.917295 | FS23: 131.6471822 | FT23: 4255.76908 | FU23: 136.3188262 | FV23: 4418.956138 | FW23: 140.9888552 | FX23: 4445.290612 | FY23: 145.6337151 | FZ23: 4472.774009 | GA23: 150.2621981 | GB23: 4500.703709 | GC23: 154.8746134 | GD23: 4529.662333 | GE23: 159.4717344 | GF23: 4562.16182 | GG23: 164.0543304 | GH23: 4594.112201 | GI23: 168.6227014 | GK23: 45.2579261 | GL23: 26.1035128 | GM23: 52.25997088 | GN23: 33.45481906 | GO23: 184.635085 | GP23: 40.92939624 | GQ23: 347.2956873 | GR23: 48.44701662 | GS23: 524.6259114 | GT23: 56.12455753 | GU23: 731.9106117 | GV23: 63.9044376 | GW23: 970.7744524 | GX23: 71.8473744 | GY23: 1262.676495 | GZ23: 79.91831782 | HA23: 1570.88877 | HB23: 88.14563571 | HC23: 1855.929883 | HD23: 96.49750459 | HE23: 2154.526211 | HF23: 104.7029856 | HG23: 2419.750102 | HH23: 111.5471304 | HI23: 2659.529791 | HJ23: 118.3487327 | HK23: 2873.482294 | HL23: 125.0983398 | HM23: 3170.659252 | HN23: 131.7855418 | HO23: 3733.725971 | HP23: 191.4033285 | HQ23: 4300.380726 | HR23: 251.0135894 | HS23: 4746.455692 | HT23: 310.5808513 | HU23: 5162.59024 | HV23: 370.1660634 | HW23: 5556.793101 | HX23: 429.7146573 | HY23: 5927.439576 | HZ23: 489.2078226 | IA23: 6265.68848 | IB23: 548.6549188 | IC23: 6557.319661 | ID23: 608.0486229 | IE23: 6833.368881 | IF23: 667.3905115 | IG23: 7139.221747 | IH23: 726.7828053 | II23: 7434.814136 | IJ23: 786.1048106 | IK23: 7764.587037 | IL23: 845.3963905 | IM23: 8119.329189 | IN23: 904.6573323 | IO23: 8496.845979 | IP23: 963.8889019 | IQ23: 8837.983614 | IR23: 1023.090568 | IS23: 8883.146947 | IT23: 1029.131955 | IV23: 45.2579261 | IW23: 26.1035128 | IX23: 52.25997088 | IY23: 33.45481906 | IZ23: 184.635085 | JA23: 40.92939624 | JB23: 353.4254692 | JC23: 48.44701662 | JD23: 573.4950354 | JE23: 56.12455753 | JF23: 843.6028345 | JG23: 63.9044376 | JH23: 1127.712874 | JI23: 71.8473744 | JJ23: 1427.815926 | JK23: 79.91831782 | JL23: 1738.665533 | JM23: 88.14563571 | JN23: 2028.910141 | JO23: 96.49750459 | JP23: 2577.945554 | JQ23: 157.5790638 | JR23: 3128.300905 | JS23: 217.3481888 | JT23: 3678.833482 | JU23: 277.1422506 | JV23: 4226.44942 | JW23: 336.9466664 | JX23: 4778.26123 | JY23: 396.7263737 | JZ23: 5341.308383 | KA23: 456.427254 | KB23: 5907.944758 | KC23: 516.1300549 | KD23: 6353.981225 | KE23: 575.7613853 | KF23: 6763.255138 | KG23: 635.4384498 | KH23: 7108.96356 | KI23: 695.0601803 | KJ23: 7416.746954 | KK23: 754.6032828 | KL23: 7715.912305 | KM23: 814.0884316 | KN23: 7999.434087 | KO23: 873.5077127 | KP23: 8272.862564 | KQ23: 932.8658667 | KR23: 8585.442767 | KS23: 992.3043596 | KT23: 8658.407664 | KU23: 998.5444014 | KV23: 8710.105166 | KW23: 1004.741338 | KX23: 8760.696513 | KY23: 1010.896521 | KZ23: 8811.102895 | LA23: 1017.012661 | LB23: 8864.01122 | LC23: 1023.090568 | LD23: 8915.107137 | LE23: 1029.131955
A24: Derbyshire | B24: Derbyshire Dales | D24: 0.02733115221 | E24: 0.01416474373 | F24: 0.03149176928 | G24: 0.01644677276 | H24: 0.08864295863 | I24: 0.01882562515 | J24: 0.1496497129 | K24: 0.02127649745 | L24: 0.208777448 | M24: 0.02361348475 | N24: 0.2800470555 | O24: 0.02556520667 | P24: 0.3469227114 | Q24: 0.0282894975 | R24: 0.4143080801 | S24: 0.03110122081 | T24: 0.4826940588 | U24: 0.03396562624 | V24: 0.5557247207 | W24: 0.03690628642 | X24: 0.6946582295 | Y24: 0.04013033678 | Z24: 0.8333111225 | AA24: 0.04285204431 | AB24: 0.9712360553 | AC24: 0.04556455556 | AD24: 1.106937534 | AE24: 0.04826973363 | AF24: 1.244954861 | AG24: 0.05095994997 | AH24: 1.390732445 | AI24: 0.05363401203 | AJ24: 1.539584673 | AK24: 0.05629439486 | AL24: 1.653101504 | AM24: 0.05894483303 | AN24: 1.763625694 | AO24: 0.06158946266 | AP24: 1.869887793 | AQ24: 0.06422443651 | AR24: 1.958741212 | AS24: 0.0668497583 | AT24: 2.050066583 | AU24: 0.06946542285 | AV24: 2.138065169 | AW24: 0.07207464782 | AX24: 2.225563123 | AY24: 0.0746755934 | AZ24: 2.307973985 | BA24: 0.07726870095 | BB24: 2.330717508 | BC24: 0.07985484677 | BD24: 2.354363055 | BE24: 0.08243433102 | BF24: 2.378198066 | BG24: 0.08500729095 | BH24: 2.402916874 | BI24: 0.08757411945 | BJ24: 2.431082575 | BK24: 0.09013520853 | BL24: 2.458706407 | BM24: 0.09269069348 | BO24: 0.02733115221 | BP24: 0.01416474373 | BQ24: 0.03106635815 | BR24: 0.01617910672 | BS24: 0.08248034599 | BT24: 0.01828423658 | BU24: 0.1387390675 | BV24: 0.02047581002 | BW24: 0.1581883694 | BX24: 0.02249079571 | BY24: 0.1997871423 | BZ24: 0.02399009379 | CA24: 0.2442655117 | CB24: 0.02642794279 | CC24: 0.291324122 | CD24: 0.0289457739 | CE24: 0.3399155589 | CF24: 0.03150888581 | CG24: 0.3903614084 | CH24: 0.03414005259 | CI24: 0.4425290729 | CJ24: 0.03709623797 | CK24: 0.4954401311 | CL24: 0.03910824371 | CM24: 0.5484433951 | CN24: 0.04110666519 | CO24: 0.5997692141 | CP24: 0.04309391382 | CQ24: 0.6648929072 | CR24: 0.04506398379 | CS24: 0.7711663695 | CT24: 0.04701510679 | CU24: 0.8812242652 | CV24: 0.04895017856 | CW24: 0.9608499433 | CX24: 0.05087497366 | CY24: 1.037235128 | CZ24: 0.05279074924 | DA24: 1.13273681 | DB24: 0.05469511973 | DC24: 1.20533828 | DD24: 0.05658744887 | DE24: 1.278136131 | DF24: 0.05846822332 | DG24: 1.346385057 | DH24: 0.06034029376 | DI24: 1.416152408 | DJ24: 0.06220186728 | DK24: 1.488402115 | DL24: 0.06405426775 | DM24: 1.561579928 | DN24: 0.06589758534 | DO24: 1.63396628 | DP24: 0.06773242924 | DQ24: 1.70530345 | DR24: 0.06955917131 | DS24: 1.776572752 | DT24: 0.07137831607 | DU24: 1.828840893 | DV24: 0.07319006517 | DW24: 1.856900708 | DX24: 0.07499512843 | DZ24: 0.02733115221 | EA24: 0.01416474373 | EB24: 0.03149176928 | EC24: 0.01644677276 | ED24: 0.08864295863 | EE24: 0.01882562515 | EF24: 0.1496497129 | EG24: 0.02127649745 | EH24: 0.208777448 | EI24: 0.02361348475 | EJ24: 0.2800470555 | EK24: 0.02556520667 | EL24: 0.3469227114 | EM24: 0.0282894975 | EN24: 0.4143080801 | EO24: 0.03110122081 | EP24: 0.4826940588 | EQ24: 0.03396562624 | ER24: 0.5557247207 | ES24: 0.03690628642 | ET24: 0.6946582295 | EU24: 0.04013033678 | EV24: 0.8333111225 | EW24: 0.04285204431 | EX24: 0.9712360553 | EY24: 0.04556455556 | EZ24: 1.106937534 | FA24: 0.04826973363 | FB24: 1.244954861 | FC24: 0.05095994997 | FD24: 1.390732445 | FE24: 0.05363401203 | FF24: 1.539584673 | FG24: 0.05629439486 | FH24: 1.653101504 | FI24: 0.05894483303 | FJ24: 1.763625694 | FK24: 0.06158946266 | FL24: 1.869887793 | FM24: 0.06422443651 | FN24: 1.958741212 | FO24: 0.0668497583 | FP24: 2.050066583 | FQ24: 0.06946542285 | FR24: 2.138065169 | FS24: 0.07207464782 | FT24: 2.225563123 | FU24: 0.0746755934 | FV24: 2.307973985 | FW24: 0.07726870095 | FX24: 2.330717508 | FY24: 0.07985484677 | FZ24: 2.354363055 | GA24: 0.08243433102 | GB24: 2.378198066 | GC24: 0.08500729095 | GD24: 2.402916874 | GE24: 0.08757411945 | GF24: 2.431082575 | GG24: 0.09013520853 | GH24: 2.458706407 | GI24: 0.09269069348 | GK24: 0.02733115221 | GL24: 0.01416474373 | GM24: 0.03274475529 | GN24: 0.01816249989 | GO24: 0.1061406517 | GP24: 0.02222489829 | GQ24: 0.192843096 | GR24: 0.02630771163 | GS24: 0.2809799516 | GT24: 0.03047835883 | GU24: 0.3863059096 | GV24: 0.0347272897 | GW24: 0.5066151205 | GX24: 0.03905336697 | GY24: 0.65102814 | GZ24: 0.04345982807 | HA24: 0.8061499703 | HB24: 0.04795038075 | HC24: 0.9516864245 | HD24: 0.05251775967 | HE24: 1.10575362 | HF24: 0.05700483386 | HG24: 1.24416263 | HH24: 0.06076293704 | HI24: 1.36883983 | HJ24: 0.06449511022 | HK24: 1.473724737 | HL24: 0.06820513688 | HM24: 1.667306821 | HN24: 0.07188266028 | HO24: 2.143457778 | HP24: 0.1044510779 | HQ24: 2.621526272 | HR24: 0.1370310088 | HS24: 3.038066608 | HT24: 0.1696266958 | HU24: 3.442188071 | HV24: 0.2022498641 | HW24: 3.835147231 | HX24: 0.234889889 | HY24: 4.214407603 | HZ24: 0.2675434155 | IA24: 4.582840569 | IB24: 0.3002083335 | IC24: 4.929534963 | ID24: 0.3328965316 | IE24: 5.266628699 | IF24: 0.3655972097 | IG24: 5.617848636 | IH24: 0.3983120735 | II24: 5.963005165 | IJ24: 0.4310422153 | IK24: 6.324267429 | IL24: 0.4637872115 | IM24: 6.698839398 | IN24: 0.496546641 | IO24: 7.091383575 | IP24: 0.529320899 | IQ24: 7.419673813 | IR24: 0.562109403 | IS24: 7.451308895 | IT24: 0.5657064788 | IV24: 0.02733115221 | IW24: 0.01416474373 | IX24: 0.03274475529 | IY24: 0.01816249989 | IZ24: 0.1061406517 | JA24: 0.02222489829 | JB24: 0.196902135 | JC24: 0.02630771163 | JD24: 0.306335246 | JE24: 0.03047835883 | JF24: 0.4360851766 | JG24: 0.0347272897 | JH24: 0.57431266 | JI24: 0.03905336697 | JJ24: 0.7225033602 | JK24: 0.04345982807 | JL24: 0.8790508802 | JM24: 0.04795038075 | JN24: 1.06750237 | JO24: 0.05251775967 | JP24: 1.533547181 | JQ24: 0.08579285773 | JR24: 2.000475811 | JS24: 0.118395823 | JT24: 2.467588844 | JU24: 0.1510309371 | JV24: 2.932941463 | JW24: 0.1837074222 | JX24: 3.401198797 | JY24: 0.2163951125 | JZ24: 3.877324317 | KA24: 0.2490777933 | KB24: 4.355368368 | KC24: 0.2817609288 | KD24: 4.771959148 | KE24: 0.3144575751 | KF24: 5.172394085 | KG24: 0.3471883376 | KH24: 5.541922249 | KI24: 0.3799326037 | KJ24: 5.896781734 | KK24: 0.4126858366 | KL24: 6.248993284 | KM24: 0.445445986 | KN24: 6.591846565 | KO24: 0.4782309786 | KP24: 6.927481634 | KQ24: 0.5110248827 | KR24: 7.244692448 | KS24: 0.5438307075 | KT24: 7.292425826 | KU24: 0.547528504 | KV24: 7.328453992 | KW24: 0.5512043687 | KX24: 7.363958621 | KY24: 0.5548590097 | KZ24: 7.399320907 | LA24: 0.558493883 | LB24: 7.436020132 | LC24: 0.562109403 | LD24: 7.471454163 | LE24: 0.5657064788
A25: Cumbria | B25: Eden | D25: 196.8610311 | E25: 87.71247322 | F25: 225.5231769 | G25: 101.5664694 | H25: 566.6308956 | I25: 115.8303948 | J25: 938.1957575 | K25: 130.6002091 | L25: 1269.118746 | M25: 144.5634077 | N25: 1568.049346 | O25: 156.0795707 | P25: 1824.835598 | Q25: 172.2081972 | R25: 2074.046684 | S25: 188.7595638 | T25: 2323.028176 | U25: 205.5317376 | V25: 2692.935877 | W25: 222.6637286 | X25: 3583.47521 | Y25: 241.3886422 | Z25: 4475.024922 | AA25: 257.0105729 | AB25: 5364.494795 | AC25: 272.3994598 | AD25: 6243.631276 | AE25: 287.6318605 | AF25: 7132.926551 | AG25: 302.7376351 | AH25: 8051.677728 | AI25: 317.6637915 | AJ25: 8980.448254 | AK25: 332.4168162 | AL25: 9677.86413 | AM25: 347.0641375 | AN25: 10341.59384 | AO25: 361.589004 | AP25: 11023.69371 | AQ25: 375.9661111 | AR25: 11691.26472 | AS25: 390.1791781 | AT25: 12399.84941 | AU25: 404.2681715 | AV25: 13111.86344 | AW25: 418.2258383 | AX25: 13839.61828 | AY25: 432.0787436 | AZ25: 14393.09625 | BA25: 445.8325713 | BB25: 14504.22307 | BC25: 459.4676613 | BD25: 14617.55096 | BE25: 472.997627 | BF25: 14731.71155 | BG25: 486.4244846 | BH25: 14849.1421 | BI25: 499.7516594 | BJ25: 14979.86055 | BK25: 512.9825086 | BL25: 15111.34756 | BM25: 526.1188728 | BO25: 196.8610311 | BP25: 87.71247322 | BQ25: 221.5969906 | BR25: 100.0797257 | BS25: 509.7997611 | BT25: 112.8542346 | BU25: 835.0072391 | BV25: 126.0284588 | BW25: 916.7435604 | BX25: 138.0244858 | BY25: 1072.107141 | BZ25: 146.792775 | CA25: 1238.786514 | CB25: 161.2358343 | CC25: 1414.57683 | CD25: 176.0607562 | CE25: 1596.599169 | CF25: 191.0689231 | CG25: 1787.338908 | CH25: 206.3946467 | CI25: 1985.70472 | CJ25: 223.5768128 | CK25: 2188.213979 | CL25: 235.0061809 | CM25: 2391.623772 | CN25: 246.2132509 | CO25: 2587.4559 | CP25: 257.273012 | CQ25: 2936.122228 | CR25: 268.2139649 | CS25: 3739.125128 | CT25: 278.9853875 | CU25: 4555.557274 | CV25: 289.5985155 | CW25: 5189.484642 | CX25: 300.1060353 | CY25: 5793.915897 | CZ25: 310.4967402 | DA25: 6617.647204 | DB25: 320.7551266 | DC25: 7307.46547 | DD25: 330.865767 | DE25: 7993.102447 | DF25: 340.8659539 | DG25: 8630.4004 | DH25: 350.74934 | DI25: 9315.982077 | DJ25: 360.5373642 | DK25: 10014.34915 | DL25: 370.2403122 | DM25: 10724.82574 | DN25: 379.8375327 | DO25: 11425.98797 | DP25: 389.3417654 | DQ25: 12113.89424 | DR25: 398.7560176 | DS25: 12800.20926 | DT25: 408.0851271 | DU25: 13226.71663 | DV25: 417.3302009 | DW25: 13360.66257 | DX25: 426.4952299 | DZ25: 196.8610311 | EA25: 87.71247322 | EB25: 225.5231769 | EC25: 101.5664694 | ED25: 566.6308956 | EE25: 115.8303948 | EF25: 938.1957575 | EG25: 130.6002091 | EH25: 1269.118746 | EI25: 144.5634077 | EJ25: 1568.049346 | EK25: 156.0795707 | EL25: 1824.835598 | EM25: 172.2081972 | EN25: 2074.046684 | EO25: 188.7595638 | EP25: 2323.028176 | EQ25: 205.5317376 | ER25: 2692.935877 | ES25: 222.6637286 | ET25: 3583.47521 | EU25: 241.3886422 | EV25: 4475.024922 | EW25: 257.0105729 | EX25: 5364.494795 | EY25: 272.3994598 | EZ25: 6243.631276 | FA25: 287.6318605 | FB25: 7132.926551 | FC25: 302.7376351 | FD25: 8051.677728 | FE25: 317.6637915 | FF25: 8980.448254 | FG25: 332.4168162 | FH25: 9677.86413 | FI25: 347.0641375 | FJ25: 10341.59384 | FK25: 361.589004 | FL25: 11023.69371 | FM25: 375.9661111 | FN25: 11691.26472 | FO25: 390.1791781 | FP25: 12399.84941 | FQ25: 404.2681715 | FR25: 13111.86344 | FS25: 418.2258383 | FT25: 13839.61828 | FU25: 432.0787436 | FV25: 14393.09625 | FW25: 445.8325713 | FX25: 14504.22307 | FY25: 459.4676613 | FZ25: 14617.55096 | GA25: 472.997627 | GB25: 14731.71155 | GC25: 486.4244846 | GD25: 14849.1421 | GE25: 499.7516594 | GF25: 14979.86055 | GG25: 512.9825086 | GH25: 15111.34756 | GI25: 526.1188728 | GK25: 196.8610311 | GL25: 87.71247322 | GM25: 235.5582305 | GN25: 112.1618822 | GO25: 710.3003619 | GP25: 136.7454586 | GQ25: 1285.288892 | GR25: 161.483 | GS25: 1832.917143 | GT25: 186.5906477 | GU25: 2464.729177 | GV25: 212.0155153 | GW25: 3196.591152 | GX25: 237.7316853 | GY25: 4116.489206 | GZ25: 263.7664367 | HA25: 5069.209401 | HB25: 290.1558476 | HC25: 5990.02163 | HD25: 316.8511741 | HE25: 6938.735527 | HF25: 342.8907042 | HG25: 7836.400646 | HH25: 364.4334245 | HI25: 8691.309986 | HJ25: 385.5723591 | HK25: 9488.373172 | HL25: 406.4238384 | HM25: 10485.91205 | HN25: 427.033123 | HO25: 12122.78269 | HP25: 618.643361 | HQ25: 13761.41877 | HR25: 809.164248 | HS25: 15012.55443 | HT25: 998.7532388 | HU25: 16172.93175 | HV25: 1187.399983 | HW25: 17282.95619 | HX25: 1375.031731 | HY25: 18337.96428 | HZ25: 1561.559422 | IA25: 19290.95872 | IB25: 1747.123519 | IC25: 20085.53285 | ID25: 1931.690757 | IE25: 20851.29794 | IF25: 2115.373656 | IG25: 21670.87748 | IH25: 2298.220284 | II25: 22474.04618 | IJ25: 2480.124459 | IK25: 23332.17335 | IL25: 2661.151584 | IM25: 24232.36492 | IN25: 2841.314447 | IO25: 25181.21773 | IP25: 3020.629831 | IQ25: 26287.24389 | IR25: 3199.108277 | IS25: 26458.38515 | IT25: 3210.989623 | IV25: 196.8610311 | IW25: 87.71247322 | IX25: 235.5582305 | IY25: 112.1618822 | IZ25: 710.3003619 | JA25: 136.7454586 | JB25: 1287.753441 | JC25: 161.483 | JD25: 1949.535431 | JE25: 186.5906477 | JF25: 2818.037351 | JG25: 212.0155153 | JH25: 3716.935697 | JI25: 237.7316853 | JJ25: 4649.49131 | JK25: 263.7664367 | JL25: 5608.165746 | JM25: 290.1558476 | JN25: 6583.08313 | JO25: 316.8511741 | JP25: 8177.888304 | JQ25: 516.0540153 | JR25: 9778.285805 | JS25: 710.0939712 | JT25: 11380.41553 | JU25: 902.911159 | JV25: 12973.73971 | JW25: 1094.684052 | JX25: 14580.01403 | JY25: 1285.537852 | JZ25: 16216.79763 | KA25: 1475.239186 | KB25: 17855.35102 | KC25: 1663.79035 | KD25: 19107.07427 | KE25: 1851.509988 | KF25: 20260.97953 | KG25: 2038.327333 | KH25: 21230.49157 | KI25: 2224.103337 | KJ25: 22050.5101 | KK25: 2408.706099 | KL25: 22862.63711 | KM25: 2592.363609 | KN25: 23644.9164 | KO25: 2775.019482 | KP25: 24404.73428 | KQ25: 2956.829389 | KR25: 25251.33235 | KS25: 3137.848049 | KT25: 25610.16707 | KU25: 3150.36158 | KV25: 25827.594 | KW25: 3162.740028 | KX25: 26037.45201 | KY25: 3174.986578 | KZ25: 26245.84524 | LA25: 3187.108779 | LB25: 26471.2089 | LC25: 3199.108277 | LD25: 26684.40233 | LE25: 3210.989623
A26: Lancashire | B26: Fylde | D26: 198.9295275 | E26: 62.80279019 | F26: 235.3779585 | G26: 73.18581944 | H26: 676.3169961 | I26: 84.00297248 | J26: 1126.69562 | K26: 95.2739867 | L26: 1488.337458 | M26: 106.0187131 | N26: 1986.188597 | O26: 115.0547067 | P26: 2459.623253 | Q26: 127.5697901 | R26: 2937.121027 | S26: 140.5015057 | T26: 3422.891531 | U26: 153.6870359 | V26: 3897.638732 | W26: 167.2415357 | X26: 4639.354761 | Y26: 182.0770193 | Z26: 5381.584232 | AA26: 194.6478087 | AB26: 6120.677625 | AC26: 207.1813743 | AD26: 6845.319237 | AE26: 219.6633643 | AF26: 7588.720509 | AG26: 232.1193889 | AH26: 8393.01702 | AI26: 244.5141122 | AJ26: 9223.207361 | AK26: 256.8541744 | AL26: 9849.273107 | AM26: 269.1660405 | AN26: 10475.55626 | AO26: 281.4523566 | AP26: 11066.00878 | AQ26: 293.6673913 | AR26: 11496.85732 | AS26: 305.8349915 | AT26: 11927.18316 | AU26: 317.9593491 | AV26: 12333.74398 | AW26: 330.0507374 | AX26: 12726.62676 | AY26: 342.0997307 | AZ26: 13162.02284 | BA26: 354.1984648 | BB26: 13342.7667 | BC26: 366.2490386 | BD26: 13525.85288 | BE26: 378.2847829 | BF26: 13708.99118 | BG26: 390.3063084 | BH26: 13901.3734 | BI26: 402.315389 | BJ26: 14131.53756 | BK26: 414.3137871 | BL26: 14358.74424 | BM26: 426.3020778 | BO26: 198.9295275 | BP26: 62.80279019 | BQ26: 233.2423977 | BR26: 72.08165318 | BS26: 653.006925 | BT26: 81.77370413 | BU26: 1099.428748 | BV26: 91.86975491 | BW26: 1246.489316 | BX26: 101.1553992 | BY26: 1562.205409 | BZ26: 108.1415063 | CA26: 1899.623801 | CB26: 119.3675043 | CC26: 2256.804418 | CD26: 130.9697893 | CE26: 2625.466923 | CF26: 142.7881847 | CG26: 3007.699187 | CH26: 154.9336056 | CI26: 3402.650947 | CJ26: 168.5490142 | CK26: 3802.859515 | CL26: 177.8871522 | CM26: 4203.758285 | CN26: 187.1653894 | CO26: 4592.774739 | CP26: 196.3746009 | CQ26: 5027.490866 | CR26: 205.5403376 | CS26: 5598.722041 | CT26: 214.628536 | CU26: 6199.230192 | CV26: 223.6492122 | CW26: 6612.783524 | CX26: 232.6255489 | CY26: 7014.492983 | CZ26: 241.5589915 | DA26: 7471.198675 | DB26: 250.4152747 | DC26: 7776.764748 | DD26: 259.213432 | DE26: 8086.309265 | DF26: 267.9596343 | DG26: 8377.263925 | DH26: 276.6627726 | DI26: 8664.573721 | DJ26: 285.3142836 | DK26: 8969.791483 | DL26: 293.9953403 | DM26: 9278.243533 | DN26: 302.6209902 | DO26: 9584.250071 | DP26: 311.2202595 | DQ26: 9887.278225 | DR26: 319.7947326 | DS26: 10190.40896 | DT26: 328.3472468 | DU26: 10486.26323 | DV26: 336.8781274 | DW26: 10692.17514 | DX26: 345.3900477 | DZ26: 198.9295275 | EA26: 62.80279019 | EB26: 235.3779585 | EC26: 73.18581944 | ED26: 676.3169961 | EE26: 84.00297248 | EF26: 1126.69562 | EG26: 95.2739867 | EH26: 1488.337458 | EI26: 106.0187131 | EJ26: 1986.188597 | EK26: 115.0547067 | EL26: 2459.623253 | EM26: 127.5697901 | EN26: 2937.121027 | EO26: 140.5015057 | EP26: 3422.891531 | EQ26: 153.6870359 | ER26: 3897.638732 | ES26: 167.2415357 | ET26: 4639.354761 | EU26: 182.0770193 | EV26: 5381.584232 | EW26: 194.6478087 | EX26: 6120.677625 | EY26: 207.1813743 | EZ26: 6845.319237 | FA26: 219.6633643 | FB26: 7588.720509 | FC26: 232.1193889 | FD26: 8393.01702 | FE26: 244.5141122 | FF26: 9223.207361 | FG26: 256.8541744 | FH26: 9849.273107 | FI26: 269.1660405 | FJ26: 10475.55626 | FK26: 281.4523566 | FL26: 11066.00878 | FM26: 293.6673913 | FN26: 11496.85732 | FO26: 305.8349915 | FP26: 11927.18316 | FQ26: 317.9593491 | FR26: 12333.74398 | FS26: 330.0507374 | FT26: 12726.62676 | FU26: 342.0997307 | FV26: 13162.02284 | FW26: 354.1984648 | FX26: 13342.7667 | FY26: 366.2490386 | FZ26: 13525.85288 | GA26: 378.2847829 | GB26: 13708.99118 | GC26: 390.3063084 | GD26: 13901.3734 | GE26: 402.315389 | GF26: 14131.53756 | GG26: 414.3137871 | GH26: 14358.74424 | GI26: 426.3020778 | GK26: 198.9295275 | GL26: 62.80279019 | GM26: 242.4907131 | GN26: 80.82056321 | GO26: 762.1567182 | GP26: 99.17107691 | GQ26: 1351.464841 | GR26: 117.8032509 | GS26: 1881.551732 | GT26: 136.8403019 | GU26: 2525.787027 | GV26: 156.2881218 | GW26: 3260.038878 | GX26: 176.108813 | GY26: 4136.792176 | GZ26: 196.3322057 | HA26: 5086.684501 | HB26: 216.9649938 | HC26: 5979.656863 | HD26: 237.9852224 | HE26: 6929.846518 | HF26: 258.6390015 | HG26: 7772.858384 | HH26: 276.0048611 | HI26: 8511.88651 | HJ26: 293.2583322 | HK26: 9086.354227 | HL26: 310.3843487 | HM26: 10115.66924 | HN26: 327.4210276 | HO26: 12648.15232 | HP26: 476.1859432 | HQ26: 15194.42592 | HR26: 625.2307486 | HS26: 17345.62237 | HT26: 774.5843657 | HU26: 19434.40107 | HV26: 924.2441552 | HW26: 21437.88603 | HX26: 1074.038243 | HY26: 23367.40494 | HZ26: 1224.000509 | IA26: 25277.81242 | IB26: 1374.123159 | IC26: 27067.75814 | ID26: 1524.429866 | IE26: 28792.42266 | IF26: 1674.853875 | IG26: 30609.54999 | IH26: 1825.856048 | II26: 32388.73364 | IJ26: 1976.946965 | IK26: 34282.12007 | IL26: 2128.28372 | IM26: 36279.7994 | IN26: 2279.866635 | IO26: 38430.93067 | IP26: 2431.699511 | IQ26: 40428.09621 | IR26: 2583.781402 | IS26: 40713.20715 | IT26: 2601.79138 | IV26: 198.9295275 | IW26: 62.80279019 | IX26: 242.4907131 | IY26: 80.82056321 | IZ26: 762.1567182 | JA26: 99.17107691 | JB26: 1379.199897 | JC26: 117.8032509 | JD26: 2040.665286 | JE26: 136.8403019 | JF26: 2801.757679 | JG26: 156.2881218 | JH26: 3625.772566 | JI26: 176.108813 | JJ26: 4523.299753 | JK26: 196.3322057 | JL26: 5480.875809 | JM26: 216.9649938 | JN26: 6465.171342 | JO26: 237.9852224 | JP26: 8912.286549 | JQ26: 389.2543414 | JR26: 11366.90973 | JS26: 537.7920208 | JT26: 13824.37217 | JU26: 686.7354838 | JV26: 16271.41261 | JW26: 836.0060718 | JX26: 18742.11395 | JY26: 985.6662207 | JZ26: 21274.35521 | KA26: 1135.530109 | KB26: 23820.39742 | KC26: 1285.589284 | KD26: 25970.62215 | KE26: 1435.940965 | KF26: 28010.11656 | KG26: 1586.585944 | KH26: 29898.50523 | KI26: 1737.248666 | KJ26: 31712.51384 | KK26: 1888.021326 | KL26: 33533.91451 | KM26: 2038.909575 | KN26: 35303.78891 | KO26: 2189.958492 | KP26: 37020.72923 | KQ26: 2341.07915 | KR26: 38816.10056 | KS26: 2492.911091 | KT26: 39263.9024 | KU26: 2511.203719 | KV26: 39600.93234 | KW26: 2529.434307 | KX26: 39933.76811 | KY26: 2547.604674 | KZ26: 40265.11002 | LA26: 2565.720161 | LB26: 40610.16562 | LC26: 2583.781402 | LD26: 40938.291 | LE26: 2601.79138
A27: Derbyshire | B27: High Peak | D27: 248.0036529 | E27: 63.69333246 | F27: 314.6015904 | G27: 73.96063953 | H27: 610.1663987 | I27: 84.66467911 | J27: 928.6349889 | K27: 95.69300668 | L27: 1269.907881 | M27: 106.2109719 | N27: 1714.419855 | O27: 114.9956796 | P27: 2148.965433 | Q27: 127.2532338 | R27: 2595.606728 | S27: 139.9068463 | T27: 3052.395146 | U27: 152.7975544 | V27: 3473.932613 | W27: 166.0313302 | X27: 4240.594387 | Y27: 180.5397509 | Z27: 5002.702993 | AA27: 192.788513 | AB27: 5758.053652 | AC27: 204.9956806 | AD27: 6498.568197 | AE27: 217.1698895 | AF27: 7250.260605 | AG27: 229.2784275 | AH27: 8046.572307 | AI27: 241.3158033 | AJ27: 8860.143577 | AK27: 253.2897777 | AL27: 9502.50161 | AM27: 265.2179898 | AN27: 10129.04568 | AO27: 277.1235067 | AP27: 10702.34501 | AQ27: 288.9875792 | AR27: 11134.10284 | AS27: 300.8084354 | AT27: 11561.93197 | AU27: 312.5869182 | AV27: 11958.20195 | AW27: 324.3374513 | AX27: 12343.82285 | AY27: 336.0507452 | AZ27: 12788.5839 | BA27: 347.7294251 | BB27: 12897.97451 | BC27: 359.3774544 | BD27: 13012.72385 | BE27: 370.9960971 | BF27: 13128.94933 | BG27: 382.5859643 | BH27: 13251.32186 | BI27: 394.1488179 | BJ27: 13396.33688 | BK27: 405.6864161 | BL27: 13536.29045 | BM27: 417.1993615 | BO27: 248.0036529 | BP27: 63.69333246 | BQ27: 312.2410765 | BR27: 72.75770683 | BS27: 584.5810119 | BT27: 82.23150981 | BU27: 878.6025493 | BV27: 92.09341986 | BW27: 991.6772157 | BX27: 101.1627838 | BY27: 1241.943219 | BZ27: 107.9121488 | CA27: 1509.367059 | CB27: 118.8811758 | CC27: 1792.472439 | CD27: 130.2125048 | CE27: 2084.612138 | CF27: 141.7475784 | CG27: 2387.383056 | CH27: 153.5887855 | CI27: 2700.140261 | CJ27: 166.8919255 | CK27: 3016.977273 | CL27: 175.9475475 | CM27: 3334.223408 | CN27: 184.9417883 | CO27: 3641.913744 | CP27: 193.8857409 | CQ27: 3992.243906 | CR27: 202.7538071 | CS27: 4470.306812 | CT27: 211.5378985 | CU27: 4971.558585 | CV27: 220.2480884 | CW27: 5318.493583 | CX27: 228.9110249 | CY27: 5653.909564 | CZ27: 237.5362967 | DA27: 6048.710762 | DB27: 246.1118943 | DC27: 6318.781478 | DD27: 254.6334254 | DE27: 6591.706504 | DF27: 263.1038163 | DG27: 6848.128566 | DH27: 271.5358346 | DI27: 7101.660712 | DJ27: 279.9205673 | DK27: 7369.291981 | DL27: 288.2645118 | DM27: 7639.732733 | DN27: 296.5680851 | DO27: 7907.803539 | DP27: 304.8339529 | DQ27: 8172.890922 | DR27: 313.0637821 | DS27: 8437.951144 | DT27: 321.2598436 | DU27: 8678.685209 | DV27: 329.4230344 | DW27: 8840.444856 | DX27: 337.5565387 | DZ27: 248.0036529 | EA27: 63.69333246 | EB27: 314.6015904 | EC27: 73.96063953 | ED27: 610.1663987 | EE27: 84.66467911 | EF27: 928.6349889 | EG27: 95.69300668 | EH27: 1269.907881 | EI27: 106.2109719 | EJ27: 1714.419855 | EK27: 114.9956796 | EL27: 2148.965433 | EM27: 127.2532338 | EN27: 2595.606728 | EO27: 139.9068463 | EP27: 3052.395146 | EQ27: 152.7975544 | ER27: 3473.932613 | ES27: 166.0313302 | ET27: 4240.594387 | EU27: 180.5397509 | EV27: 5002.702993 | EW27: 192.788513 | EX27: 5758.053652 | EY27: 204.9956806 | EZ27: 6498.568197 | FA27: 217.1698895 | FB27: 7250.260605 | FC27: 229.2784275 | FD27: 8046.572307 | FE27: 241.3158033 | FF27: 8860.143577 | FG27: 253.2897777 | FH27: 9502.50161 | FI27: 265.2179898 | FJ27: 10129.04568 | FK27: 277.1235067 | FL27: 10702.34501 | FM27: 288.9875792 | FN27: 11134.10284 | FO27: 300.8084354 | FP27: 11561.93197 | FQ27: 312.5869182 | FR27: 11958.20195 | FS27: 324.3374513 | FT27: 12343.82285 | FU27: 336.0507452 | FV27: 12788.5839 | FW27: 347.7294251 | FX27: 12897.97451 | FY27: 359.3774544 | FZ27: 13012.72385 | GA27: 370.9960971 | GB27: 13128.94933 | GC27: 382.5859643 | GD27: 13251.32186 | GE27: 394.1488179 | GF27: 13396.33688 | GG27: 405.6864161 | GH27: 13536.29045 | GI27: 417.1993615 | GK27: 248.0036529 | GL27: 63.69333246 | GM27: 324.5093989 | GN27: 81.6762125 | GO27: 701.4348717 | GP27: 99.95226546 | GQ27: 1150.368487 | GR27: 118.3213558 | GS27: 1627.966907 | GT27: 137.0884538 | GU27: 2207.678364 | GV27: 156.2079405 | GW27: 2878.369753 | GX27: 175.6718102 | GY27: 3692.774842 | GZ27: 195.5012481 | HA27: 4590.088692 | HB27: 215.7092838 | HC27: 5393.093358 | HD27: 236.2630961 | HE27: 6259.02529 | HF27: 256.4553235 | HG27: 6983.472554 | HH27: 273.3684345 | HI27: 7594.01009 | HJ27: 290.1645556 | HK27: 8063.366291 | HL27: 306.8610687 | HM27: 9062.901636 | HN27: 323.4136479 | HO27: 11784.48974 | HP27: 469.9573058 | HQ27: 14488.118 | HR27: 616.5543452 | HS27: 16919.04988 | HT27: 763.2229829 | HU27: 19280.41839 | HV27: 910.0289103 | HW27: 21570.92553 | HX27: 1056.922631 | HY27: 23778.21687 | HZ27: 1203.883428 | IA27: 25926.74195 | IB27: 1350.905154 | IC27: 27935.15211 | ID27: 1498.041487 | IE27: 29867.35443 | IF27: 1645.239216 | IG27: 31919.95722 | IH27: 1792.508825 | II27: 33923.29517 | IJ27: 1939.855379 | IK27: 36070.4398 | IL27: 2087.276542 | IM27: 38327.81501 | IN27: 2234.770375 | IO27: 40714.17913 | IP27: 2382.338618 | IQ27: 42553.50326 | IR27: 2529.978605 | IS27: 42729.20576 | IT27: 2546.236012 | IV27: 248.0036529 | IW27: 63.69333246 | IX27: 324.5093989 | IY27: 81.6762125 | IZ27: 701.4348717 | JA27: 99.95226546 | JB27: 1182.509295 | JC27: 118.3213558 | JD27: 1798.691645 | JE27: 137.0884538 | JF27: 2504.206205 | JG27: 156.2079405 | JH27: 3272.783987 | JI27: 175.6718102 | JJ27: 4120.770987 | JK27: 195.5012481 | JL27: 5031.036167 | JM27: 215.7092838 | JN27: 6012.098565 | JO27: 236.2630961 | JP27: 8691.876796 | JQ27: 385.9678838 | JR27: 11376.42905 | JS27: 532.6549767 | JT27: 14060.81388 | JU27: 679.4906557 | JV27: 16730.74826 | JW27: 826.5162779 | JX27: 19414.07138 | JY27: 973.6024301 | JZ27: 22135.41208 | KA27: 1120.677076 | KB27: 24838.80437 | KC27: 1267.749005 | KD27: 27269.57743 | KE27: 1414.878992 | KF27: 29599.90475 | KG27: 1562.183618 | KH27: 31748.13068 | KI27: 1709.564293 | KJ27: 33830.12961 | KK27: 1856.99072 | KL27: 35881.67528 | KM27: 2004.458943 | KN27: 37856.42332 | KO27: 2152.049595 | KP27: 39775.52547 | KQ27: 2299.684338 | KR27: 41632.32217 | KS27: 2447.380852 | KT27: 41844.80167 | KU27: 2464.088379 | KV27: 42038.04898 | KW27: 2480.697872 | KX27: 42229.60817 | KY27: 2497.212497 | KZ27: 42420.62726 | LA27: 2513.638793 | LB27: 42616.53161 | LC27: 2529.978605 | LD27: 42807.02193 | LE27: 2546.236012
A28: Lancashire | B28: Hyndburn | D28: 184.2963932 | E28: 62.13242759 | F28: 245.2854089 | G28: 71.86920632 | H28: 381.3275896 | I28: 81.85157167 | J28: 523.671079 | K28: 92.21528181 | L28: 656.0501961 | M28: 101.9774868 | N28: 824.7038037 | O28: 109.9902417 | P28: 982.7005981 | Q28: 121.2346165 | R28: 1142.045105 | S28: 132.7893364 | T28: 1305.19466 | U28: 144.4896776 | V28: 1486.65742 | W28: 156.4849544 | X28: 1843.626399 | Y28: 169.6262452 | Z28: 2197.616928 | AA28: 180.5792947 | AB28: 2548.916625 | AC28: 191.4325029 | AD28: 2895.819308 | AE28: 202.2336734 | AF28: 3248.480571 | AG28: 212.9611075 | AH28: 3619.81091 | AI28: 223.6326653 | AJ28: 3998.717517 | AK28: 234.2519532 | AL28: 4313.282512 | AM28: 244.836975 | AN28: 4628.373049 | AO28: 255.3915015 | AP28: 4945.535504 | AQ28: 265.8875493 | AR28: 5199.645104 | AS28: 276.3399259 | AT28: 5451.881859 | AU28: 286.7386403 | AV28: 5689.706613 | AW28: 297.0872309 | AX28: 5925.113745 | AY28: 307.3904299 | AZ28: 6156.541541 | BA28: 317.6192516 | BB28: 6215.482254 | BC28: 327.8108157 | BD28: 6280.358181 | BE28: 337.9564991 | BF28: 6346.592777 | BG28: 348.0574124 | BH28: 6416.41632 | BI28: 358.1156803 | BJ28: 6500.426565 | BK28: 368.1333891 | BL28: 6580.795257 | BM28: 378.1115458 | BO28: 184.2963932 | BP28: 62.13242759 | BQ28: 243.9316477 | BR28: 70.84725683 | BS28: 370.8673976 | BT28: 79.81284635 | BU28: 507.5146837 | BV28: 89.04951471 | BW28: 554.274651 | BX28: 97.42558018 | BY28: 654.1369697 | BZ28: 103.5057425 | CA28: 760.8560673 | CB28: 113.575583 | CC28: 873.8350032 | CD28: 123.925804 | CE28: 990.4428337 | CF28: 134.3959265 | CG28: 1111.268868 | CH28: 145.1281334 | CI28: 1236.095981 | CJ28: 157.1900462 | CK28: 1362.564538 | CL28: 165.2011642 | CM28: 1489.202791 | CN28: 173.1151425 | CO28: 1611.950631 | CP28: 180.9773449 | CQ28: 1753.269206 | CR28: 188.7680926 | CS28: 1950.195553 | CT28: 196.5002755 | CU28: 2156.37291 | CV28: 204.1799182 | CW28: 2303.808877 | CX28: 211.8137147 | CY28: 2447.661186 | CZ28: 219.4099743 | DA28: 2617.832983 | DB28: 226.948652 | DC28: 2731.978163 | DD28: 234.441176 | DE28: 2846.878139 | DF28: 241.8810251 | DG28: 2953.36842 | DH28: 249.2706994 | DI28: 3059.81174 | DJ28: 256.6135377 | DK28: 3171.951214 | DL28: 263.8894575 | DM28: 3285.553434 | DN28: 271.126288 | DO28: 3397.877849 | DP28: 278.3176663 | DQ28: 3508.956526 | DR28: 285.4654237 | DS28: 3620.530651 | DT28: 292.5729273 | DU28: 3729.172832 | DV28: 299.6405146 | DW28: 3792.651854 | DX28: 306.6706035 | DZ28: 184.2963932 | EA28: 62.13242759 | EB28: 245.2854089 | EC28: 71.86920632 | ED28: 381.3275896 | EE28: 81.85157167 | EF28: 523.671079 | EG28: 92.21528181 | EH28: 656.0501961 | EI28: 101.9774868 | EJ28: 824.7038037 | EK28: 109.9902417 | EL28: 982.7005981 | EM28: 121.2346165 | EN28: 1142.045105 | EO28: 132.7893364 | EP28: 1305.19466 | EQ28: 144.4896776 | ER28: 1486.65742 | ES28: 156.4849544 | ET28: 1843.626399 | EU28: 169.6262452 | EV28: 2197.616928 | EW28: 180.5792947 | EX28: 2548.916625 | EY28: 191.4325029 | EZ28: 2895.819308 | FA28: 202.2336734 | FB28: 3248.480571 | FC28: 212.9611075 | FD28: 3619.81091 | FE28: 223.6326653 | FF28: 3998.717517 | FG28: 234.2519532 | FH28: 4313.282512 | FI28: 244.836975 | FJ28: 4628.373049 | FK28: 255.3915015 | FL28: 4945.535504 | FM28: 265.8875493 | FN28: 5199.645104 | FO28: 276.3399259 | FP28: 5451.881859 | FQ28: 286.7386403 | FR28: 5689.706613 | FS28: 297.0872309 | FT28: 5925.113745 | FU28: 307.3904299 | FV28: 6156.541541 | FW28: 317.6192516 | FX28: 6215.482254 | FY28: 327.8108157 | FZ28: 6280.358181 | GA28: 337.9564991 | GB28: 6346.592777 | GC28: 348.0574124 | GD28: 6416.41632 | GE28: 358.1156803 | GF28: 6500.426565 | GG28: 368.1333891 | GH28: 6580.795257 | GI28: 378.1115458 | GK28: 184.2963932 | GL28: 62.13242759 | GM28: 252.2606095 | GN28: 79.36660102 | GO28: 423.1696413 | GP28: 96.63120568 | GQ28: 625.0972924 | GR28: 114.0212597 | GS28: 836.0110949 | GT28: 131.6242168 | GU28: 1090.633768 | GV28: 149.4086489 | GW28: 1391.530294 | GX28: 167.3631696 | GY28: 1775.676462 | GZ28: 185.5554728 | HA28: 2208.62909 | HB28: 203.9807836 | HC28: 2594.993493 | HD28: 222.6785739 | HE28: 3016.956688 | HF28: 240.9527728 | HG28: 3368.243274 | HH28: 256.0561226 | HI28: 3660.149117 | HJ28: 270.9663294 | HK28: 3867.107648 | HL28: 285.7561942 | HM28: 4608.824184 | HN28: 300.3968991 | HO28: 7051.723886 | HP28: 435.5197771 | HQ28: 9463.905895 | HR28: 570.2127459 | HS28: 11787.45804 | HT28: 704.5721391 | HU28: 14080.97617 | HV28: 838.6645094 | HW28: 16363.13408 | HX28: 972.4382235 | HY28: 18592.34938 | HZ28: 1105.956543 | IA28: 20792.98186 | IB28: 1239.196795 | IC28: 22902.40565 | ID28: 1372.178869 | IE28: 24972.38394 | IF28: 1504.923875 | IG28: 27099.86217 | IH28: 1637.294029 | II28: 29198.92537 | IJ28: 1769.464296 | IK28: 31367.91703 | IL28: 1901.391088 | IM28: 33591.91931 | IN28: 2033.081363 | IO28: 35894.46901 | IP28: 2164.544903 | IQ28: 37589.31541 | IR28: 2295.786995 | IS28: 37653.82185 | IT28: 2307.676673 | IV28: 184.2963932 | IW28: 62.13242759 | IX28: 252.2606095 | IY28: 79.36660102 | IZ28: 423.1696413 | JA28: 96.63120568 | JB28: 635.2309659 | JC28: 114.0212597 | JD28: 894.2532526 | JE28: 131.6242168 | JF28: 1209.06526 | JG28: 149.4086489 | JH28: 1558.264743 | JI28: 167.3631696 | JJ28: 1956.504519 | JK28: 185.5554728 | JL28: 2401.483444 | JM28: 203.9807836 | JN28: 3141.324645 | JO28: 222.6785739 | JP28: 5579.7396 | JQ28: 362.6363865 | JR28: 8020.215161 | JS28: 498.9221534 | JT28: 10460.03969 | JU28: 634.5333547 | JV28: 12891.12127 | JW28: 769.6712623 | JX28: 15325.24166 | JY28: 904.3129529 | JZ28: 17767.93136 | KA28: 1038.556108 | KB28: 20179.91274 | KC28: 1172.462163 | KD28: 22505.30439 | KE28: 1306.150811 | KF28: 24814.58088 | KG28: 1439.677292 | KH28: 27024.07064 | KI28: 1572.911409 | KJ28: 29193.53183 | KK28: 1705.938457 | KL28: 31343.32643 | KM28: 1838.707247 | KN28: 33437.86939 | KO28: 1971.238451 | KP28: 35495.49017 | KQ28: 2103.554202 | KR28: 37255.20666 | KS28: 2235.460155 | KT28: 37326.21566 | KU28: 2247.65024 | KV28: 37400.08859 | KW28: 2259.775708 | KX28: 37473.25888 | KY28: 2271.837968 | KZ28: 37546.1424 | LA28: 2283.841598 | LB28: 37621.32628 | LC28: 2295.786995 | LD28: 37693.3954 | LE28: 2307.676673
A29: Lancashire | B29: Lancaster | D29: 385.7952594 | E29: 112.7968552 | F29: 479.4782647 | G29: 130.9197177 | H29: 1043.993939 | I29: 149.6846677 | J29: 1640.438196 | K29: 169.2322032 | L29: 2202.144659 | M29: 187.9150281 | N29: 2906.846818 | O29: 203.613734 | P29: 3574.51047 | Q29: 225.5170618 | R29: 4250.086622 | S29: 248.1923915 | T29: 4937.683316 | U29: 271.2164182 | V29: 5633.239338 | W29: 294.838939 | X29: 6897.729473 | Y29: 320.7003086 | Z29: 8159.406221 | AA29: 342.5532508 | AB29: 9413.867702 | AC29: 364.083465 | AD29: 10646.5931 | AE29: 385.2701926 | AF29: 11901.57098 | AG29: 406.2065379 | AH29: 13233.36782 | AI29: 427.0648352 | AJ29: 14596.03472 | AK29: 447.7061025 | AL29: 15655.49534 | AM29: 468.0237932 | AN29: 16695.93945 | AO29: 488.0164711 | AP29: 17684.74437 | AQ29: 507.9641328 | AR29: 18467.22824 | AS29: 527.8943984 | AT29: 19256.32769 | AU29: 547.7597911 | AV29: 20005.6721 | AW29: 567.5228271 | AX29: 20743.58251 | AY29: 587.226372 | AZ29: 21496.29804 | BA29: 606.6566928 | BB29: 21714.18548 | BC29: 626.0627273 | BD29: 21937.76151 | BE29: 645.3704018 | BF29: 22162.45428 | BG29: 664.581665 | BH29: 22397.86224 | BI29: 683.7004259 | BJ29: 22675.00402 | BK29: 702.7305404 | BL29: 22945.83834 | BM29: 721.6738232 | BO29: 385.7952594 | BP29: 112.7968552 | BQ29: 475.3547188 | BR29: 128.9167007 | BS29: 995.7515158 | BT29: 145.6530241 | BU29: 1558.33304 | BV29: 163.1281013 | BW29: 1751.29751 | BX29: 179.239162 | BY29: 2163.865737 | BZ29: 191.3243417 | CA29: 2604.886133 | CB29: 210.9570214 | CC29: 3071.612481 | CD29: 231.2907548 | CE29: 3553.422904 | CF29: 251.9152947 | CG29: 4053.2477 | CH29: 273.0701496 | CI29: 4569.891284 | CJ29: 296.7991558 | CK29: 5093.634947 | CL29: 312.9811988 | CM29: 5618.260078 | CN29: 328.8308093 | CO29: 6126.826001 | CP29: 344.3423531 | CQ29: 6737.082587 | CR29: 359.6087693 | CS29: 7650.975825 | CT29: 374.778712 | CU29: 8602.829026 | CV29: 389.7359696 | CW29: 9285.797112 | CX29: 404.3934653 | CY29: 9946.069921 | CZ29: 418.7491746 | DA29: 10739.03504 | DB29: 433.0530653 | DC29: 11313.23607 | DD29: 447.3233764 | DE29: 11890.56065 | DF29: 461.5224191 | DG29: 12430.9063 | DH29: 475.6182774 | DI29: 12978.13189 | DJ29: 489.6451024 | DK29: 13549.50076 | DL29: 503.4326035 | DM29: 14128.06395 | DN29: 517.1829081 | DO29: 14700.69238 | DP29: 530.8365186 | DQ29: 15265.56489 | DR29: 544.3969572 | DS29: 15830.0116 | DT29: 557.8696541 | DU29: 16299.08181 | DV29: 571.2560631 | DW29: 16571.36303 | DX29: 584.5615941 | DZ29: 385.7952594 | EA29: 112.7968552 | EB29: 479.4782647 | EC29: 130.9197177 | ED29: 1043.993939 | EE29: 149.6846677 | EF29: 1640.438196 | EG29: 169.2322032 | EH29: 2202.144659 | EI29: 187.9150281 | EJ29: 2906.846818 | EK29: 203.613734 | EL29: 3574.51047 | EM29: 225.5170618 | EN29: 4250.086622 | EO29: 248.1923915 | EP29: 4937.683316 | EQ29: 271.2164182 | ER29: 5633.239338 | ES29: 294.838939 | ET29: 6897.729473 | EU29: 320.7003086 | EV29: 8159.406221 | EW29: 342.5532508 | EX29: 9413.867702 | EY29: 364.083465 | EZ29: 10646.5931 | FA29: 385.2701926 | FB29: 11901.57098 | FC29: 406.2065379 | FD29: 13233.36782 | FE29: 427.0648352 | FF29: 14596.03472 | FG29: 447.7061025 | FH29: 15655.49534 | FI29: 468.0237932 | FJ29: 16695.93945 | FK29: 488.0164711 | FL29: 17684.74437 | FM29: 507.9641328 | FN29: 18467.22824 | FO29: 527.8943984 | FP29: 19256.32769 | FQ29: 547.7597911 | FR29: 20005.6721 | FS29: 567.5228271 | FT29: 20743.58251 | FU29: 587.226372 | FV29: 21496.29804 | FW29: 606.6566928 | FX29: 21714.18548 | FY29: 626.0627273 | FZ29: 21937.76151 | GA29: 645.3704018 | GB29: 22162.45428 | GC29: 664.581665 | GD29: 22397.86224 | GE29: 683.7004259 | GF29: 22675.00402 | GG29: 702.7305404 | GH29: 22945.83834 | GI29: 721.6738232 | GK29: 385.7952594 | GL29: 112.7968552 | GM29: 494.8075149 | GN29: 144.577261 | GO29: 1202.362334 | GP29: 176.7126717 | GQ29: 2031.771342 | GR29: 209.2502306 | GS29: 2860.537255 | GT29: 242.545381 | GU29: 3858.618374 | GV29: 276.5850173 | GW29: 5012.708799 | GX29: 311.3240371 | GY29: 6428.13008 | GZ29: 346.8159249 | HA29: 7964.692536 | HB29: 382.8850505 | HC29: 9384.422206 | HD29: 419.5567217 | HE29: 10897.97418 | HF29: 455.5523147 | HG29: 12218.07562 | HH29: 485.7304228 | HI29: 13366.10526 | HJ29: 515.3480136 | HK29: 14277.03748 | HL29: 544.3868084 | HM29: 15971.11722 | HN29: 572.9834231 | HO29: 20227.76662 | HP29: 831.6995265 | HQ29: 24468.29132 | HR29: 1089.799775 | HS29: 28182.74522 | HT29: 1346.841199 | HU29: 31782.12799 | HV29: 1602.567399 | HW29: 35265.42672 | HX29: 1857.791913 | HY29: 38617.67563 | HZ29: 2112.717741 | IA29: 41875.8783 | IB29: 2367.250458 | IC29: 44891.46994 | ID29: 2621.259853 | IE29: 47797.76244 | IF29: 2874.946328 | IG29: 50866.1608 | IH29: 3127.251813 | II29: 53864.92124 | IJ29: 3379.374902 | IK29: 57063.31293 | IL29: 3630.945208 | IM29: 60429.90856 | IN29: 3881.970472 | IO29: 64014.77178 | IP29: 4132.464322 | IQ29: 66987.36583 | IR29: 4382.432248 | IS29: 67316.30814 | IT29: 4404.493504 | IV29: 385.7952594 | IW29: 112.7968552 | IX29: 494.8075149 | IY29: 144.577261 | IZ29: 1202.362334 | JA29: 176.7126717 | JB29: 2073.469733 | JC29: 209.2502306 | JD29: 3115.131551 | JE29: 242.545381 | JF29: 4354.257799 | JG29: 276.5850173 | JH29: 5690.40856 | JI29: 311.3240371 | JJ29: 7145.482285 | JK29: 346.8159249 | JL29: 8697.980365 | JM29: 382.8850505 | JN29: 10351.20542 | JO29: 419.5567217 | JP29: 14524.07363 | JQ29: 685.6108909 | JR29: 18705.96273 | JS29: 946.4396556 | JT29: 22889.10769 | JU29: 1206.812317 | JV29: 27051.26279 | JW29: 1466.281013 | JX29: 31238.8879 | JY29: 1724.905726 | JZ29: 35495.06105 | KA29: 1983.300573 | KB29: 39735.13037 | KC29: 2240.828552 | KD29: 43449.56847 | KE29: 2496.80285 | KF29: 47000.73824 | KG29: 2751.016489 | KH29: 50265.17812 | KI29: 3004.964249 | KJ29: 53377.47292 | KK29: 3258.86805 | KL29: 56460.3612 | KM29: 3512.501476 | KN29: 59436.71108 | KO29: 3765.637504 | KP29: 62326.84571 | KQ29: 4018.545741 | KR29: 65196.62146 | KS29: 4269.756502 | KT29: 65656.09144 | KU29: 4292.628467 | KV29: 66033.94791 | KW29: 4315.325672 | KX29: 66407.00031 | KY29: 4337.852912 | KZ29: 66778.638 | LA29: 4360.220899 | LB29: 67164.36243 | LC29: 4382.432248 | LD29: 67534.81978 | LE29: 4404.493504
A30: Greater Manchester | B30: Manchester | D30: 2702.257141 | E30: 392.5044114 | F30: 3602.57847 | G30: 455.7317022 | H30: 5861.992052 | I30: 521.3679498 | J30: 8117.001284 | K30: 588.9951727 | L30: 9856.127288 | M30: 653.4326174 | N30: 12329.8001 | O30: 707.2559647 | P30: 14666.38686 | Q30: 782.6923134 | R30: 17023.66006 | S30: 860.8148826 | T30: 19431.95792 | U30: 940.4234362 | V30: 22004.79092 | W30: 1022.437175 | X30: 25954.66306 | Y30: 1112.667263 | Z30: 29903.86105 | AA30: 1189.403961 | AB30: 33837.37266 | AC30: 1265.765751 | AD30: 37700.30945 | AE30: 1341.63635 | AF30: 41672.02069 | AG30: 1417.138647 | AH30: 45984.10968 | AI30: 1492.54028 | AJ30: 50443.51309 | AK30: 1567.542145 | AL30: 53842.08521 | AM30: 1641.790151 | AN30: 57304.00318 | AO30: 1715.189488 | AP30: 60725.09999 | AQ30: 1788.249677 | AR30: 63275.53942 | AS30: 1861.076139 | AT30: 65829.61685 | AU30: 1933.559883 | AV30: 68262.93576 | AW30: 2005.632597 | AX30: 70625.06479 | AY30: 2077.346525 | AZ30: 73028.42756 | BA30: 2149.226975 | BB30: 74113.9286 | BC30: 2220.706163 | BD30: 75222.74862 | BE30: 2291.975013 | BF30: 76337.07568 | BG30: 2363.03773 | BH30: 77491.55208 | BI30: 2433.905615 | BJ30: 78811.68273 | BK30: 2504.589924 | BL30: 80106.87682 | BM30: 2575.094766 | BO30: 2702.257141 | BP30: 392.5044114 | BQ30: 3583.011616 | BR30: 448.349787 | BS30: 5734.546378 | BT30: 506.4493378 | BU30: 8025.433235 | BV30: 566.9024614 | BW30: 8832.057957 | BX30: 622.4365366 | BY30: 10568.24189 | BZ30: 663.7509587 | CA30: 12423.55226 | CB30: 731.2649491 | CC30: 14387.70573 | CD30: 801.2386555 | CE30: 16414.63533 | CF30: 872.4888693 | CG30: 18515.76597 | CH30: 945.8927993 | CI30: 20686.5605 | CJ30: 1028.637258 | CK30: 22886.07826 | CL30: 1085.587798 | CM30: 25090.05999 | CN30: 1142.02776 | CO30: 27230.83442 | CP30: 1197.88147 | CQ30: 29605.30929 | CR30: 1253.287809 | CS30: 32678.70639 | CT30: 1308.46215 | CU30: 35913.43892 | CV30: 1363.159416 | CW30: 38156.76075 | CX30: 1417.142674 | CY30: 40344.12321 | CZ30: 1470.280753 | DA30: 42821.01583 | DB30: 1523.04445 | DC30: 44430.39179 | DD30: 1575.506394 | DE30: 46059.0873 | DF30: 1627.58777 | DG30: 47576.25791 | DH30: 1679.236281 | DI30: 49080.24568 | DJ30: 1730.490988 | DK30: 50683.71761 | DL30: 1781.81519 | DM30: 52306.57667 | DN30: 1832.717864 | DO30: 53914.68946 | DP30: 1883.367886 | DQ30: 55507.14338 | DR30: 1933.7759 | DS30: 57101.85615 | DT30: 1983.956481 | DU30: 58794.55342 | DV30: 2033.915323 | DW30: 59918.05453 | DX30: 2083.672237 | DZ30: 2702.257141 | EA30: 392.5044114 | EB30: 3602.57847 | EC30: 455.7317022 | ED30: 5861.992052 | EE30: 521.3679498 | EF30: 8117.001284 | EG30: 588.9951727 | EH30: 9856.127288 | EI30: 653.4326174 | EJ30: 12329.8001 | EK30: 707.2559647 | EL30: 14666.38686 | EM30: 782.6923134 | EN30: 17023.66006 | EO30: 860.8148826 | EP30: 19431.95792 | EQ30: 940.4234362 | ER30: 22004.79092 | ES30: 1022.437175 | ET30: 25954.66306 | EU30: 1112.667263 | EV30: 29903.86105 | EW30: 1189.403961 | EX30: 33837.37266 | EY30: 1265.765751 | EZ30: 37700.30945 | FA30: 1341.63635 | FB30: 41672.02069 | FC30: 1417.138647 | FD30: 45984.10968 | FE30: 1492.54028 | FF30: 50443.51309 | FG30: 1567.542145 | FH30: 53842.08521 | FI30: 1641.790151 | FJ30: 57304.00318 | FK30: 1715.189488 | FL30: 60725.09999 | FM30: 1788.249677 | FN30: 63275.53942 | FO30: 1861.076139 | FP30: 65829.61685 | FQ30: 1933.559883 | FR30: 68262.93576 | FS30: 2005.632597 | FT30: 70625.06479 | FU30: 2077.346525 | FV30: 73028.42756 | FW30: 2149.226975 | FX30: 74113.9286 | FY30: 2220.706163 | FZ30: 75222.74862 | GA30: 2291.975013 | GB30: 76337.07568 | GC30: 2363.03773 | GD30: 77491.55208 | GE30: 2433.905615 | GF30: 78811.68273 | GG30: 2504.589924 | GH30: 80106.87682 | GI30: 2575.094766 | GK30: 2702.257141 | GL30: 392.5044114 | GM30: 3699.495194 | GN30: 503.2736277 | GO30: 6396.825838 | GP30: 615.5094223 | GQ30: 9486.144092 | GR30: 728.2737766 | GS30: 12393.58913 | GT30: 843.3974907 | GU30: 15935.55951 | GV30: 960.7230287 | GW30: 19993.38787 | GX30: 1080.498872 | GY30: 24929.32588 | GZ30: 1202.874544 | HA30: 30335.1044 | HB30: 1327.626392 | HC30: 35401.07307 | HD30: 1454.93126 | HE30: 40806.43234 | HF30: 1580.535265 | HG30: 45535.23358 | HH30: 1686.539793 | HI30: 49597.91025 | HJ30: 1791.649245 | HK30: 52615.2696 | HL30: 1895.732253 | HM30: 58405.65454 | HN30: 1998.975588 | HO30: 73661.41824 | HP30: 2906.689903 | HQ30: 88500.75727 | HR30: 3815.688615 | HS30: 102017.8709 | HT30: 4724.611545 | HU30: 115173.4512 | HV30: 5632.405706 | HW30: 127865.322 | HX30: 6540.217258 | HY30: 140126.9856 | HZ30: 7448.324113 | IA30: 152193.8865 | IB30: 8356.255046 | IC30: 163442.6996 | ID30: 9263.564308 | IE30: 174270.5986 | IF30: 10170.28534 | IG30: 185628.5303 | IH30: 11079.04031 | II30: 196743.1018 | IJ30: 11986.97565 | IK30: 208577.9674 | IL30: 12894.97576 | IM30: 221067.1344 | IN30: 13803.03306 | IO30: 234510.141 | IP30: 14711.16257 | IQ30: 245109.0478 | IR30: 15619.35197 | IS30: 246554.7204 | IT30: 15716.22498 | IV30: 2702.257141 | IW30: 392.5044114 | IX30: 3699.495194 | IY30: 503.2736277 | IZ30: 6396.825838 | JA30: 615.5094223 | JB30: 9601.228597 | JC30: 728.2737766 | JD30: 13114.6239 | JE30: 843.3974907 | JF30: 17216.79506 | JG30: 960.7230287 | JH30: 21714.06386 | JI30: 1080.498872 | JJ30: 26742.09811 | JK30: 1202.874544 | JL30: 32223.47566 | JM30: 1327.626392 | JN30: 37971.1995 | JO30: 1454.93126 | JP30: 53049.14039 | JQ30: 2378.721732 | JR30: 68166.11767 | JS30: 3286.2017 | JT30: 83279.93918 | JU30: 4195.581084 | JV30: 98264.30424 | JW30: 5106.06827 | JX30: 113320.5271 | JY30: 6017.703651 | JZ30: 128571.0108 | KA30: 6931.397176 | KB30: 143405.3151 | KC30: 7845.756795 | KD30: 156918.679 | KE30: 8758.585329 | KF30: 169847.201 | KG30: 9668.760874 | KH30: 182003.3952 | KI30: 10578.75153 | KJ30: 193710.4212 | KK30: 11489.04324 | KL30: 205324.076 | KM30: 12398.92386 | KN30: 216484.8356 | KO30: 13307.80889 | KP30: 227233.9644 | KQ30: 14215.83299 | KR30: 237983.496 | KS30: 15126.63745 | KT30: 239272.4721 | KU30: 15226.37601 | KV30: 240925.978 | KW30: 15325.49151 | KX30: 242561.8882 | KY30: 15424.00376 | KZ30: 244193.6395 | LA30: 15521.95336 | LB30: 245890.4003 | LC30: 15619.35197 | LD30: 247521.5603 | LE30: 15716.22498
A31: Northumberland | B31: Northumberland | D31: 15.40792701 | E31: 2.95116287 | F31: 20.23317949 | G31: 3.423541859 | H31: 35.04582334 | I31: 3.913089651 | J31: 49.02089991 | K31: 4.417404886 | L31: 61.39310741 | M31: 4.89488189 | N31: 83.61809861 | O31: 5.289754963 | P31: 105.9779448 | Q31: 5.842296679 | R31: 129.15322 | S31: 6.409821615 | T31: 153.0088953 | U31: 6.985435813 | V31: 180.5039218 | W31: 7.57529708 | X31: 224.2837224 | Y31: 8.222058924 | Z31: 268.2004118 | AA31: 8.764477185 | AB31: 312.1109194 | AC31: 9.303284403 | AD31: 355.4713252 | AE31: 9.839189797 | AF31: 400.1184492 | AG31: 10.372763 | AH31: 448.4589629 | AI31: 10.9020555 | AJ31: 498.4656348 | AK31: 11.42880739 | AL31: 537.3966093 | AM31: 11.9536355 | AN31: 577.5560054 | AO31: 12.4771368 | AP31: 618.8192644 | AQ31: 12.99824519 | AR31: 650.6792089 | AS31: 13.51706669 | AT31: 682.6895476 | AU31: 14.03312346 | AV31: 713.4577556 | AW31: 14.54700639 | AX31: 743.5332185 | AY31: 15.05857396 | AZ31: 771.8279967 | BA31: 15.56762086 | BB31: 784.8139965 | BC31: 16.07462238 | BD31: 798.1466882 | BE31: 16.57956335 | BF31: 811.4976061 | BG31: 17.08248505 | BH31: 825.0392041 | BI31: 17.58347957 | BJ31: 839.3258653 | BK31: 18.08263807 | BL31: 853.2935103 | BM31: 18.57999959 | BO31: 15.40792701 | BP31: 2.95116287 | BQ31: 20.11671577 | BR31: 3.36991876 | BS31: 34.16938442 | BT31: 3.80502713 | BU31: 49.08246333 | BV31: 4.255487626 | BW31: 56.73861097 | BX31: 4.666365634 | BY31: 75.02906098 | BZ31: 4.967990148 | CA31: 94.56314433 | CB31: 5.462372765 | CC31: 115.2563644 | CD31: 5.97040626 | CE31: 136.5960139 | CF31: 6.485241874 | CG31: 158.6925075 | CH31: 7.012779539 | CI31: 181.507065 | CJ31: 7.605923661 | CK31: 204.6087989 | CL31: 8.00440028 | CM31: 227.7540502 | CN31: 8.398907901 | CO31: 250.2594982 | CP31: 8.790225061 | CQ31: 276.2213438 | CR31: 9.178962605 | CS31: 312.587727 | CT31: 9.563228941 | CU31: 350.6720315 | CV31: 9.944696095 | CW31: 378.1223671 | CX31: 10.32412249 | CY31: 404.9615349 | CZ31: 10.70175071 | DA31: 435.2954184 | DB31: 11.07684731 | DC31: 456.484419 | DD31: 11.44938841 | DE31: 477.9059841 | DF31: 11.81906694 | DG31: 498.1708979 | DH31: 12.18639613 | DI31: 518.058204 | DJ31: 12.55121286 | DK31: 538.9721389 | DL31: 12.91354003 | DM31: 560.0819939 | DN31: 13.27363929 | DO31: 581.0191352 | DP31: 13.63156113 | DQ31: 601.7565683 | DR31: 13.98738988 | DS31: 622.5209433 | DT31: 14.34125025 | DU31: 640.5569145 | DV31: 14.69318077 | DW31: 652.392805 | DX31: 15.04332182 | DZ31: 15.40792701 | EA31: 2.95116287 | EB31: 20.23317949 | EC31: 3.423541859 | ED31: 35.04582334 | EE31: 3.913089651 | EF31: 49.02089991 | EG31: 4.417404886 | EH31: 61.39310741 | EI31: 4.89488189 | EJ31: 83.61809861 | EK31: 5.289754963 | EL31: 105.9779448 | EM31: 5.842296679 | EN31: 129.15322 | EO31: 6.409821615 | EP31: 153.0088953 | EQ31: 6.985435813 | ER31: 180.5039218 | ES31: 7.57529708 | ET31: 224.2837224 | EU31: 8.222058924 | EV31: 268.2004118 | EW31: 8.764477185 | EX31: 312.1109194 | EY31: 9.303284403 | EZ31: 355.4713252 | FA31: 9.839189797 | FB31: 400.1184492 | FC31: 10.372763 | FD31: 448.4589629 | FE31: 10.9020555 | FF31: 498.4656348 | FG31: 11.42880739 | FH31: 537.3966093 | FI31: 11.9536355 | FJ31: 577.5560054 | FK31: 12.4771368 | FL31: 618.8192644 | FM31: 12.99824519 | FN31: 650.6792089 | FO31: 13.51706669 | FP31: 682.6895476 | FQ31: 14.03312346 | FR31: 713.4577556 | FS31: 14.54700639 | FT31: 743.5332185 | FU31: 15.05857396 | FV31: 771.8279967 | FW31: 15.56762086 | FX31: 784.8139965 | FY31: 16.07462238 | FZ31: 798.1466882 | GA31: 16.57956335 | GB31: 811.4976061 | GC31: 17.08248505 | GD31: 825.0392041 | GE31: 17.58347957 | GF31: 839.3258653 | GG31: 18.08263807 | GH31: 853.2935103 | GI31: 18.57999959 | GK31: 15.40792701 | GL31: 2.95116287 | GM31: 20.75295204 | GN31: 3.780685702 | GO31: 37.67261003 | GP31: 4.619661702 | GQ31: 56.95357286 | GR31: 5.461980484 | GS31: 79.27715943 | GT31: 6.317914035 | GU31: 107.0203939 | GV31: 7.185502366 | GW31: 140.0811437 | GX31: 8.065231845 | GY31: 183.9803144 | GZ31: 8.956874943 | HA31: 231.8903074 | HB31: 9.861567238 | HC31: 276.8735169 | HD31: 10.77967116 | HE31: 324.8384729 | HF31: 11.67937128 | HG31: 368.31154 | HH31: 12.42777057 | HI31: 408.1766404 | HJ31: 13.16848909 | HK31: 442.024998 | HL31: 13.90277585 | HM31: 524.8850938 | HN31: 14.63152534 | HO31: 762.0191343 | HP31: 21.2315172 | HQ31: 997.7460784 | HR31: 27.81983907 | HS31: 1222.072463 | HT31: 34.39921007 | HU31: 1443.941423 | HV31: 40.97290534 | HW31: 1663.001459 | HX31: 47.53885805 | HY31: 1877.724414 | HZ31: 54.09746093 | IA31: 2088.855618 | IB31: 60.646872 | IC31: 2288.440898 | ID31: 67.18933934 | IE31: 2484.549205 | IF31: 73.72385502 | IG31: 2685.38623 | IH31: 80.24945763 | II31: 2884.203056 | IJ31: 86.76794362 | IK31: 3087.520069 | IL31: 93.27896959 | IM31: 3294.017159 | IN31: 99.78262425 | IO31: 3505.643161 | IP31: 106.2791527 | IQ31: 3659.212397 | IR31: 112.7685957 | IS31: 3669.763183 | IT31: 113.3967797 | IV31: 15.40792701 | IW31: 2.95116287 | IX31: 20.75295204 | IY31: 3.780685702 | IZ31: 37.67261003 | JA31: 4.619661702 | JB31: 58.36276213 | JC31: 5.461980484 | JD31: 87.40564123 | JE31: 6.317914035 | JF31: 124.8809023 | JG31: 7.185502366 | JH31: 165.5378413 | JI31: 8.065231845 | JJ31: 210.5344119 | JK31: 8.956874943 | JL31: 259.6209452 | JM31: 9.861567238 | JN31: 341.5896314 | JO31: 10.77967116 | JP31: 575.9530653 | JQ31: 17.57757318 | JR31: 810.608974 | JS31: 24.21535557 | JT31: 1045.205852 | JU31: 30.83720984 | JV31: 1278.716973 | JW31: 37.44649199 | JX31: 1513.105096 | JY31: 44.04665268 | JZ31: 1750.231114 | KA31: 50.62943873 | KB31: 1985.950392 | KC31: 57.20270009 | KD31: 2210.275835 | KE31: 63.76998695 | KF31: 2431.545197 | KG31: 70.33534955 | KH31: 2643.457676 | KI31: 76.89374029 | KJ31: 2848.502096 | KK31: 83.44535743 | KL31: 3051.749672 | KM31: 89.98719452 | KN31: 3250.175191 | KO31: 96.52255417 | KP31: 3445.084671 | KQ31: 103.0498137 | KR31: 3606.549025 | KS31: 109.5676537 | KT31: 3617.036391 | KU31: 110.2164026 | KV31: 3627.755616 | KW31: 110.8607013 | KX31: 3638.446764 | KY31: 111.5006799 | KZ31: 3649.133627 | LA31: 112.1366204 | LB31: 3659.885811 | LC31: 112.7685957 | LD31: 3670.590115 | LE31: 113.3967797
